Workbook

Sheet HOME
A1: CHLAPCI
B9: DISCIPLÍNY

Sheet TVOJE
B2: 6.A | E2: 6.B | H2: 7.A | K2: 7.B | O2: 8.A | R2: 9.A | U2: 9.B

Sheet TVOJE2
D3: výkon | F3: místo | G3: body | I3: 19 - 20 | J3: 18 - 19 | K3: 17 - 18
C4: 60 m
C6: 300 m
C8: 1000 m
C10: dálka
C12: výška
C14: míček
C16: koule
C18: oštěp
C20: člunek
C22: lehsed
C24: odbíjení
C26: plavání
C28: shyby
C30: šplh
C32: švihadlo
C34: z místa

Sheet FOTO
B2: PRO ZOBRAZENÍ FOTOGRAFIÍ JE TŘEBA PŘÍSTUP K INTERNETU
E5: DALŠÍ SPORTOVNÍ AKCE
B7: 2020 | C7: VYHLÁŠENÍ SE NEUSKUTEČNILO | E7: 10.12.2019 OF FLORBAL STARŠÍ ŽÁCI | F7: 13.11.2019 OF PLAVÁNÍ JILEMNICE
E8: 19.12.2019 OF FLORBAL ML.ŽÁCI JIL. | F8: 25.9.2019 JILEMNICKÉ ŠTAFETY
E9: 24. 9.2019 OF ČTYŘBOJ TURNOV
B11: 2019 | C11: VYHLÁŠENÍ SPORTOVCE ŠKOLY 13. ROČNÍK | E11: 6. 12. 2018 OF FLORBAL 6.-7. ROČ | F11: 14.11.2018 OF PLAVÁNÍ JILEMNICE
E12: 26. 9.2018 OF ČTYŘBOJ TURNOV
B13: 2018 | C13: VYHLÁŠENÍ SPORTOVCE ŠKOLY 12. ROČNÍK
B15: 2017 | C15: VYHLÁŠENÍ SPORTOVCE ŠKOLY 11. ROČNÍK
B17: 2016 | C17: VYHLÁŠENÍ SPORTOVCE ŠKOLY 10. ROČNÍK | E17: 11. 5. 2016 POHÁR ROZHLASU TURNOV
C20: průběžně budu přídávat další

Sheet CH15
C1: T O P 1 5 | S1: stav k | U1: =TODAY() -> 2021-06-28
F3: 60 m | G3: 300m | H3: 1000m | I3: dálka | J3: výška | K3: míček | L3: koule | M3: člunek | N3: lehsed | O3: odbíjení | P3: plavání | Q3: šplh | R3: švihadlo | S3: z místa | T3: REPRE | U3: CELKEM
A5: 1. | B5: =B35 -> BOUKAL | C5: Jakub | D5: 6.A | F5: 608.6949179 | G5: 357.2276587 | H5: 0 | I5: 474.24 | J5: 0 | K5: 175 | L5: 548.3333333 | M5: 663.7575028 | N5: 0 | O5: 96 | P5: 0 | Q5: 0 | R5: 0 | S5: 0 | T5: 0 | U5: 2923.253413
A6: 2. | B6: =B36 -> DEMČUK | C6: Ilja | D6: 6.A | F6: 686.3454534 | G6: 582.9735498 | H6: 0 | I6: 572.052 | J6: 571.16 | K6: 250 | L6: 515.5555556 | M6: 0 | N6: 312.5 | O6: 120 | P6: 0 | Q6: 0 | R6: 0 | S6: 570 | T6: 0 | U6: 4180.586559
A7: 3. | B7: =B37 -> FAISTAUER | C7: Kryštof | D7: 6.A | F7: 767.3945441 | G7: 670.248152 | H7: 0 | I7: 653.562 | J7: 628.36 | K7: 431.25 | L7: 488.8888889 | M7: 855.6771362 | N7: 512.5 | O7: 64 | P7: 0 | Q7: 0 | R7: 325 | S7: 627 | T7: 0 | U7: 6023.880721
A8: 4. | B8: =B38 -> FRK | C8: Matyáš | D8: 6.A | F8: 602.4974976 | G8: 351.7134153 | H8: 0 | I8: 529.074 | J8: 411 | K8: 0 | L8: 0 | M8: 639.1720793 | N8: 0 | O8: 112 | P8: 0 | Q8: 0 | R8: 0 | S8: 0 | T8: 0 | U8: 2645.456992
A9: 5. | B9: =B39 -> HUBÁLOVSKÝ | C9: Marek | D9: 6.A | F9: 657.4040393 | G9: 442.951971 | H9: 0 | I9: 678.756 | J9: 485.36 | K9: 325 | L9: 413.8888889 | M9: 680.2297461 | N9: 0 | O9: 64 | P9: 0 | Q9: 0 | R9: 0 | S9: 0 | T9: 0 | U9: 3747.590645
A10: 6. | B10: =B40 -> MAŘAS | C10: Dominik | D10: 6.A | F10: 647.6364407 | G10: 379.6319554 | H10: 0 | I10: 545.376 | J10: 0 | K10: 275 | L10: 517.2222222 | M10: 639.1720793 | N10: 0 | O10: 88 | P10: 0 | Q10: 0 | R10: 0 | S10: 691.6 | T10: 0 | U10: 3783.638698
A11: 7. | B11: =B41 -> MAŤÁTKO | C11: Jakub | D11: 6.A | F11: 585.1621053 | G11: 331.6780969 | H11: 0 | I11: 0 | J11: 0 | K11: 250 | L11: 435.5555556 | M11: 475.326472 | N11: 0 | O11: 80 | P11: 0 | Q11: 0 | R11: 0 | S11: 0 | T11: 0 | U11: 2157.72223
A12: 8. | B12: =B42 -> MERY | C12: Luboš | D12: 6.A | F12: 657.4040393 | G12: 407.1843586 | H12: 0 | I12: 0 | J12: 456.76 | K12: 0 | L12: 0 | M12: 663.7575028 | N12: 325 | O12: 32 | P12: 0 | Q12: 0 | R12: 112.5 | S12: 566.2 | T12: 0 | U12: 3220.805901
A13: 9. | B13: =B43 -> NOVOTNÝ | C13: Matěj | D13: 6.A | F13: 680.6211833 | G13: 0 | H13: 0 | I13: 527.592 | J13: 439.6 | K13: 362.5 | L13: 0 | M13: 722.344333 | N13: 0 | O13: 0 | P13: 0 | Q13: 0 | R13: 0 | S13: 0 | T13: 0 | U13: 2732.657516
A14: 10. | B14: =B44 -> ŘEHOŘEK | C14: Vojtěch | D14: 6.A | F14: 635.1483363 | G14: 440.4559076 | H14: 0 | I14: 549.822 | J14: 485.36 | K14: 500 | L14: 507.2222222 | M14: 0 | N14: 350 | O14: 112 | P14: 0 | Q14: 0 | R14: 0 | S14: 554.8 | T14: 0 | U14: 4134.808466
A15: 11. | B15: =B45 -> ŠÍR | C15: Matyáš | D15: 6.A | F15: 655.0460078 | G15: 465.7496614 | H15: 0 | I15: 530.556 | J15: 479.64 | K15: 250 | L15: 379.4444444 | M15: 603.039864 | N15: 475 | O15: 88 | P15: 0 | Q15: 0 | R15: 237.5 | S15: 600.4 | T15: 0 | U15: 4764.375978
A16: 12. | B16: =B46 -> TORÁČ | C16: Tomáš | D16: 6.A | F16: 387.7719881 | G16: 110.1526699 | H16: 0 | I16: 0 | J16: 0 | K16: 156.25 | L16: 427.2222222 | M16: 372.892898 | N16: 0 | O16: 96 | P16: 0 | Q16: 0 | R16: 0 | S16: 0 | T16: 0 | U16: 1550.289778
A17: 13. | B17: =B47 -> ULLMAN | C17: Šimon | D17: 6.A | F17: 790.1011078 | G17: 690.3599225 | H17: 0 | I17: 634.296 | J17: 439.6 | K17: 306.25 | L17: 0 | M17: 788.2386569 | N17: 0 | O17: 48 | P17: 0 | Q17: 0 | R17: 0 | S17: 0 | T17: 0 | U17: 3696.845687
A18: 14. | B18: =B48 -> VÁCLAVÍK | C18: Ondřej | D18: 6.A | F18: 681.6533976 | G18: 609.1811602 | H18: 0 | I18: 569.088 | J18: 542.56 | K18: 450 | L18: 488.8888889 | M18: 755.1114192 | N18: 0 | O18: 0 | P18: 0 | Q18: 0 | R18: 0 | S18: 0 | T18: 0 | U18: 4096.482866
A19: 15. | B19: =B49 -> AUERSWALD | C19: Daniel | D19: 6.B | F19: 741.7076005 | G19: 594.2990891 | H19: 0 | I19: 626.886 | J19: 628.36 | K19: 312.5 | L19: 473.8888889 | M19: 761.8226409 | N19: 0 | O19: 152 | P19: 0 | Q19: 0 | R19: 187.5 | S19: 0 | T19: 0 | U19: 4478.964219
F34: 60 m | G34: 300m | H34: 1000m | I34: dálka | J34: výška | K34: míček | L34: koule | M34: člunek | N34: lehsed | O34: odbíjení | P34: plavání | Q34: šplh | R34: švihadlo | S34: z místa | T34: REPRE | U34: CELKEM
B35: ='60'!B101 -> BOUKAL | C35: ='60'!C101 -> Jakub | D35: ='60'!D101 -> 6.A | F35: ='60'!H101 -> 608.6949179 | G35: ='300'!H100 -> 357.2276587 | H35: ='1000'!H101 -> 0 | I35: =DÁLKA!H101 -> 474.24 | J35: =VÝŠKA!H101 -> 0 | K35: =MÍČEK!H101 -> 175 | L35: =KOULE!H101 -> 548.3333333 | M35: =ČLUNEK!H101 -> 663.7575028 | N35: =LEHSED!H101 -> 0 | O35: =ODBÍJENÍ!H101 -> 96 | P35: =PLAVÁNÍ!H101 -> 0 | Q35: =ŠPLH!H101 -> 0 | R35: =ŠVIHADLO!H101 -> 0 | S35: ='Z MÍSTA'!H101 -> 0 | T35: =REPRE!E4 -> 0 | U35: =SUM(F35:T35) -> 2923.253413
B36: ='60'!B102 -> DEMČUK | C36: ='60'!C102 -> Ilja | D36: ='60'!D102 -> 6.A | F36: ='60'!H102 -> 686.3454534 | G36: ='300'!H101 -> 582.9735498 | H36: ='1000'!H102 -> 0 | I36: =DÁLKA!H102 -> 572.052 | J36: =VÝŠKA!H102 -> 571.16 | K36: =MÍČEK!H102 -> 250 | L36: =KOULE!H102 -> 515.5555556 | M36: =ČLUNEK!H102 -> 0 | N36: =LEHSED!H102 -> 312.5 | O36: =ODBÍJENÍ!H102 -> 120 | P36: =PLAVÁNÍ!H102 -> 0 | Q36: =ŠPLH!H102 -> 0 | R36: =ŠVIHADLO!H102 -> 0 | S36: ='Z MÍSTA'!H102 -> 570 | T36: =REPRE!E5 -> 0 | U36: 4180.586559
B37: ='60'!B103 -> FAISTAUER | C37: ='60'!C103 -> Kryštof | D37: ='60'!D103 -> 6.A | F37: ='60'!H103 -> 767.3945441 | G37: ='300'!H102 -> 670.248152 | H37: ='1000'!H103 -> 0 | I37: =DÁLKA!H103 -> 653.562 | J37: =VÝŠKA!H103 -> 628.36 | K37: =MÍČEK!H103 -> 431.25 | L37: =KOULE!H103 -> 488.8888889 | M37: =ČLUNEK!H103 -> 855.6771362 | N37: =LEHSED!H103 -> 512.5 | O37: =ODBÍJENÍ!H103 -> 64 | P37: =PLAVÁNÍ!H103 -> 0 | Q37: =ŠPLH!H103 -> 0 | R37: =ŠVIHADLO!H103 -> 325 | S37: ='Z MÍSTA'!H103 -> 627 | T37: =REPRE!E6 -> 0 | U37: 6023.880721
B38: ='60'!B104 -> FRK | C38: ='60'!C104 -> Matyáš | D38: ='60'!D104 -> 6.A | F38: ='60'!H104 -> 602.4974976 | G38: ='300'!H103 -> 351.7134153 | H38: ='1000'!H104 -> 0 | I38: =DÁLKA!H104 -> 529.074 | J38: =VÝŠKA!H104 -> 411 | K38: =MÍČEK!H104 -> 0 | L38: =KOULE!H104 -> 0 | M38: =ČLUNEK!H104 -> 639.1720793 | N38: =LEHSED!H104 -> 0 | O38: =ODBÍJENÍ!H104 -> 112 | P38: =PLAVÁNÍ!H104 -> 0 | Q38: =ŠPLH!H104 -> 0 | R38: =ŠVIHADLO!H104 -> 0 | S38: ='Z MÍSTA'!H104 -> 0 | T38: =REPRE!E7 -> 0 | U38: 2645.456992
B39: ='60'!B105 -> HUBÁLOVSKÝ | C39: ='60'!C105 -> Marek | D39: ='60'!D105 -> 6.A | F39: ='60'!H105 -> 657.4040393 | G39: ='300'!H104 -> 442.951971 | H39: ='1000'!H105 -> 0 | I39: =DÁLKA!H105 -> 678.756 | J39: =VÝŠKA!H105 -> 485.36 | K39: =MÍČEK!H105 -> 325 | L39: =KOULE!H105 -> 413.8888889 | M39: =ČLUNEK!H105 -> 680.2297461 | N39: =LEHSED!H105 -> 0 | O39: =ODBÍJENÍ!H105 -> 64 | P39: =PLAVÁNÍ!H105 -> 0 | Q39: =ŠPLH!H105 -> 0 | R39: =ŠVIHADLO!H105 -> 0 | S39: ='Z MÍSTA'!H105 -> 0 | T39: =REPRE!E8 -> 0 | U39: 3747.590645
B40: ='60'!B106 -> MAŘAS | C40: ='60'!C106 -> Dominik | D40: ='60'!D106 -> 6.A | F40: ='60'!H106 -> 647.6364407 | G40: ='300'!H105 -> 379.6319554 | H40: ='1000'!H106 -> 0 | I40: =DÁLKA!H106 -> 545.376 | J40: =VÝŠKA!H106 -> 0 | K40: =MÍČEK!H106 -> 275 | L40: =KOULE!H106 -> 517.2222222 | M40: =ČLUNEK!H106 -> 639.1720793 | N40: =LEHSED!H106 -> 0 | O40: =ODBÍJENÍ!H106 -> 88 | P40: =PLAVÁNÍ!H106 -> 0 | Q40: =ŠPLH!H106 -> 0 | R40: =ŠVIHADLO!H106 -> 0 | S40: ='Z MÍSTA'!H106 -> 691.6 | T40: =REPRE!E9 -> 0 | U40: 3783.638698
B41: ='60'!B107 -> MAŤÁTKO | C41: ='60'!C107 -> Jakub | D41: ='60'!D107 -> 6.A | F41: ='60'!H107 -> 585.1621053 | G41: ='300'!H106 -> 331.6780969 | H41: ='1000'!H107 -> 0 | I41: =DÁLKA!H107 -> 0 | J41: =VÝŠKA!H107 -> 0 | K41: =MÍČEK!H107 -> 250 | L41: =KOULE!H107 -> 435.5555556 | M41: =ČLUNEK!H107 -> 475.326472 | N41: =LEHSED!H107 -> 0 | O41: =ODBÍJENÍ!H107 -> 80 | P41: =PLAVÁNÍ!H107 -> 0 | Q41: =ŠPLH!H107 -> 0 | R41: =ŠVIHADLO!H107 -> 0 | S41: ='Z MÍSTA'!H107 -> 0 | T41: =REPRE!E10 -> 0 | U41: 2157.72223
B42: ='60'!B108 -> MERY | C42: ='60'!C108 -> Luboš | D42: ='60'!D108 -> 6.A | F42: ='60'!H108 -> 657.4040393 | G42: ='300'!H107 -> 407.1843586 | H42: ='1000'!H108 -> 0 | I42: =DÁLKA!H108 -> 0 | J42: =VÝŠKA!H108 -> 456.76 | K42: =MÍČEK!H108 -> 0 | L42: =KOULE!H108 -> 0 | M42: =ČLUNEK!H108 -> 663.7575028 | N42: =LEHSED!H108 -> 325 | O42: =ODBÍJENÍ!H108 -> 32 | P42: =PLAVÁNÍ!H108 -> 0 | Q42: =ŠPLH!H108 -> 0 | R42: =ŠVIHADLO!H108 -> 112.5 | S42: ='Z MÍSTA'!H108 -> 566.2 | T42: =REPRE!E11 -> 0 | U42: 3220.805901
B43: ='60'!B109 -> NOVOTNÝ | C43: ='60'!C109 -> Matěj | D43: ='60'!D109 -> 6.A | F43: ='60'!H109 -> 680.6211833 | G43: ='300'!H108 -> 0 | H43: ='1000'!H109 -> 0 | I43: =DÁLKA!H109 -> 527.592 | J43: =VÝŠKA!H109 -> 439.6 | K43: =MÍČEK!H109 -> 362.5 | L43: =KOULE!H109 -> 0 | M43: =ČLUNEK!H109 -> 722.344333 | N43: =LEHSED!H109 -> 0 | O43: =ODBÍJENÍ!H109 -> 0 | P43: =PLAVÁNÍ!H109 -> 0 | Q43: =ŠPLH!H109 -> 0 | R43: =ŠVIHADLO!H109 -> 0 | S43: ='Z MÍSTA'!H109 -> 0 | T43: =REPRE!E12 -> 0 | U43: 2732.657516
B44: ='60'!B110 -> ŘEHOŘEK | C44: ='60'!C110 -> Vojtěch | D44: ='60'!D110 -> 6.A | F44: ='60'!H110 -> 635.1483363 | G44: ='300'!H109 -> 440.4559076 | H44: ='1000'!H110 -> 0 | I44: =DÁLKA!H110 -> 549.822 | J44: =VÝŠKA!H110 -> 485.36 | K44: =MÍČEK!H110 -> 500 | L44: =KOULE!H110 -> 507.2222222 | M44: =ČLUNEK!H110 -> 0 | N44: =LEHSED!H110 -> 350 | O44: =ODBÍJENÍ!H110 -> 112 | P44: =PLAVÁNÍ!H110 -> 0 | Q44: =ŠPLH!H110 -> 0 | R44: =ŠVIHADLO!H110 -> 0 | S44: ='Z MÍSTA'!H110 -> 554.8 | T44: =REPRE!E13 -> 0 | U44: 4134.808466
B45: ='60'!B111 -> ŠÍR | C45: ='60'!C111 -> Matyáš | D45: ='60'!D111 -> 6.A | F45: ='60'!H111 -> 655.0460078 | G45: ='300'!H110 -> 465.7496614 | H45: ='1000'!H111 -> 0 | I45: =DÁLKA!H111 -> 530.556 | J45: =VÝŠKA!H111 -> 479.64 | K45: =MÍČEK!H111 -> 250 | L45: =KOULE!H111 -> 379.4444444 | M45: =ČLUNEK!H111 -> 603.039864 | N45: =LEHSED!H111 -> 475 | O45: =ODBÍJENÍ!H111 -> 88 | P45: =PLAVÁNÍ!H111 -> 0 | Q45: =ŠPLH!H111 -> 0 | R45: =ŠVIHADLO!H111 -> 237.5 | S45: ='Z MÍSTA'!H111 -> 600.4 | T45: =REPRE!E14 -> 0 | U45: 4764.375978
B46: ='60'!B112 -> TORÁČ | C46: ='60'!C112 -> Tomáš | D46: ='60'!D112 -> 6.A | F46: ='60'!H112 -> 387.7719881 | G46: ='300'!H111 -> 110.1526699 | H46: ='1000'!H112 -> 0 | I46: =DÁLKA!H112 -> 0 | J46: =VÝŠKA!H112 -> 0 | K46: =MÍČEK!H112 -> 156.25 | L46: =KOULE!H112 -> 427.2222222 | M46: =ČLUNEK!H112 -> 372.892898 | N46: =LEHSED!H112 -> 0 | O46: =ODBÍJENÍ!H112 -> 96 | P46: =PLAVÁNÍ!H112 -> 0 | Q46: =ŠPLH!H112 -> 0 | R46: =ŠVIHADLO!H112 -> 0 | S46: ='Z MÍSTA'!H112 -> 0 | T46: =REPRE!E15 -> 0 | U46: 1550.289778
B47: ='60'!B113 -> ULLMAN | C47: ='60'!C113 -> Šimon | D47: ='60'!D113 -> 6.A | F47: ='60'!H113 -> 790.1011078 | G47: ='300'!H112 -> 690.3599225 | H47: ='1000'!H113 -> 0 | I47: =DÁLKA!H113 -> 634.296 | J47: =VÝŠKA!H113 -> 439.6 | K47: =MÍČEK!H113 -> 306.25 | L47: =KOULE!H113 -> 0 | M47: =ČLUNEK!H113 -> 788.2386569 | N47: =LEHSED!H113 -> 0 | O47: =ODBÍJENÍ!H113 -> 48 | P47: =PLAVÁNÍ!H113 -> 0 | Q47: =ŠPLH!H113 -> 0 | R47: =ŠVIHADLO!H113 -> 0 | S47: ='Z MÍSTA'!H113 -> 0 | T47: =REPRE!E16 -> 0 | U47: 3696.845687
B48: ='60'!B114 -> VÁCLAVÍK | C48: ='60'!C114 -> Ondřej | D48: ='60'!D114 -> 6.A | F48: ='60'!H114 -> 681.6533976 | G48: ='300'!H113 -> 609.1811602 | H48: ='1000'!H114 -> 0 | I48: =DÁLKA!H114 -> 569.088 | J48: =VÝŠKA!H114 -> 542.56 | K48: =MÍČEK!H114 -> 450 | L48: =KOULE!H114 -> 488.8888889 | M48: =ČLUNEK!H114 -> 755.1114192 | N48: =LEHSED!H114 -> 0 | O48: =ODBÍJENÍ!H114 -> 0 | P48: =PLAVÁNÍ!H114 -> 0 | Q48: =ŠPLH!H114 -> 0 | R48: =ŠVIHADLO!H114 -> 0 | S48: ='Z MÍSTA'!H114 -> 0 | T48: =REPRE!E17 -> 0 | U48: 4096.482866
B49: ='60'!B115 -> AUERSWALD | C49: ='60'!C115 -> Daniel | D49: ='60'!D115 -> 6.B | F49: ='60'!H115 -> 741.7076005 | G49: ='300'!H114 -> 594.2990891 | H49: ='1000'!H115 -> 0 | I49: =DÁLKA!H115 -> 626.886 | J49: =VÝŠKA!H115 -> 628.36 | K49: =MÍČEK!H115 -> 312.5 | L49: =KOULE!H115 -> 473.8888889 | M49: =ČLUNEK!H115 -> 761.8226409 | N49: =LEHSED!H115 -> 0 | O49: =ODBÍJENÍ!H115 -> 152 | P49: =PLAVÁNÍ!H115 -> 0 | Q49: =ŠPLH!H115 -> 0 | R49: =ŠVIHADLO!H115 -> 187.5 | S49: ='Z MÍSTA'!H115 -> 0 | T49: =REPRE!E18 -> 0 | U49: 4478.964219
B50: ='60'!B116 -> BODLÁK | C50: ='60'!C116 -> Vladimír | D50: ='60'!D116 -> 6.B | F50: ='60'!H116 -> 853.5742752 | G50: ='300'!H115 -> 881.7771043 | H50: ='1000'!H116 -> 0 | I50: =DÁLKA!H116 -> 0 | J50: =VÝŠKA!H116 -> 628.36 | K50: =MÍČEK!H116 -> 0 | L50: =KOULE!H116 -> 735.5555556 | M50: =ČLUNEK!H116 -> 923.6308113 | N50: =LEHSED!H116 -> 662.5 | O50: =ODBÍJENÍ!H116 -> 0 | P50: =PLAVÁNÍ!H116 -> 0 | Q50: =ŠPLH!H116 -> 0 | R50: =ŠVIHADLO!H116 -> 312.5 | S50: ='Z MÍSTA'!H116 -> 114 | T50: =REPRE!E19 -> 0 | U50: 5111.897746
B51: ='60'!B117 -> BUDÍN | C51: ='60'!C117 -> Martin | D51: ='60'!D117 -> 6.B | F51: ='60'!H117 -> 707.6107236 | G51: ='300'!H116 -> 613.09701 | H51: ='1000'!H117 -> 0 | I51: =DÁLKA!H117 -> 595.764 | J51: =VÝŠKA!H117 -> 513.96 | K51: =MÍČEK!H117 -> 387.5 | L51: =KOULE!H117 -> 393.3333333 | M51: =ČLUNEK!H117 -> 780.3215075 | N51: =LEHSED!H117 -> 375 | O51: =ODBÍJENÍ!H117 -> 72 | P51: =PLAVÁNÍ!H117 -> 0 | Q51: =ŠPLH!H117 -> 0 | R51: =ŠVIHADLO!H117 -> 500 | S51: ='Z MÍSTA'!H117 -> 570 | T51: =REPRE!E20 -> 0 | U51: 5508.586574
B52: ='60'!B118 -> DVOŘÁK | C52: ='60'!C118 -> Dominik | D52: ='60'!D118 -> 6.B | F52: ='60'!H118 -> 651.3155856 | G52: ='300'!H117 -> 0 | H52: ='1000'!H118 -> 0 | I52: =DÁLKA!H118 -> 477.204 | J52: =VÝŠKA!H118 -> 411 | K52: =MÍČEK!H118 -> 0 | L52: =KOULE!H118 -> 0 | M52: =ČLUNEK!H118 -> 707.777346 | N52: =LEHSED!H118 -> 0 | O52: =ODBÍJENÍ!H118 -> 0 | P52: =PLAVÁNÍ!H118 -> 0 | Q52: =ŠPLH!H118 -> 0 | R52: =ŠVIHADLO!H118 -> 0 | S52: ='Z MÍSTA'!H118 -> 0 | T52: =REPRE!E21 -> 0 | U52: 2247.296932
B53: ='60'!B119 -> FIŠERA | C53: ='60'!C119 -> Vojtěch | D53: ='60'!D119 -> 6.B | F53: ='60'!H119 -> 708.7440775 | G53: ='300'!H118 -> 632.8626166 | H53: ='1000'!H119 -> 0 | I53: =DÁLKA!H119 -> 589.836 | J53: =VÝŠKA!H119 -> 542.56 | K53: =MÍČEK!H119 -> 237.5 | L53: =KOULE!H119 -> 500 | M53: =ČLUNEK!H119 -> 733.4352323 | N53: =LEHSED!H119 -> 325 | O53: =ODBÍJENÍ!H119 -> 96 | P53: =PLAVÁNÍ!H119 -> 0 | Q53: =ŠPLH!H119 -> 0 | R53: =ŠVIHADLO!H119 -> 568.75 | S53: ='Z MÍSTA'!H119 -> 494 | T53: =REPRE!E22 -> 0 | U53: 5428.687926
B54: ='60'!B120 -> JINDŘIŠEK | C54: ='60'!C120 -> Vít | D54: ='60'!D120 -> 6.B | F54: ='60'!H120 -> 821.6155267 | G54: ='300'!H119 -> 0 | H54: ='1000'!H120 -> 0 | I54: =DÁLKA!H120 -> 675.792 | J54: =VÝŠKA!H120 -> 439.6 | K54: =MÍČEK!H120 -> 525 | L54: =KOULE!H120 -> 0 | M54: =ČLUNEK!H120 -> 825.9137458 | N54: =LEHSED!H120 -> 500 | O54: =ODBÍJENÍ!H120 -> 224 | P54: =PLAVÁNÍ!H120 -> 0 | Q54: =ŠPLH!H120 -> 0 | R54: =ŠVIHADLO!H120 -> 350 | S54: ='Z MÍSTA'!H120 -> 760 | T54: =REPRE!E23 -> 0 | U54: 5121.921273
B55: ='60'!B121 -> JIROUŠ | C55: ='60'!C121 -> Matouš | D55: ='60'!D121 -> 6.B | F55: ='60'!H121 -> 729.9135088 | G55: ='300'!H120 -> 0 | H55: ='1000'!H121 -> 0 | I55: =DÁLKA!H121 -> 638.742 | J55: =VÝŠKA!H121 -> 439.6 | K55: =MÍČEK!H121 -> 350 | L55: =KOULE!H121 -> 468.8888889 | M55: =ČLUNEK!H121 -> 819.6809926 | N55: =LEHSED!H121 -> 312.5 | O55: =ODBÍJENÍ!H121 -> 152 | P55: =PLAVÁNÍ!H121 -> 0 | Q55: =ŠPLH!H121 -> 0 | R55: =ŠVIHADLO!H121 -> 250 | S55: ='Z MÍSTA'!H121 -> 760 | T55: =REPRE!E24 -> 0 | U55: 4921.32539
B56: ='60'!B122 -> KERLE | C56: ='60'!C122 -> Marek | D56: ='60'!D122 -> 6.B | F56: ='60'!H122 -> 697.6022715 | G56: ='300'!H121 -> 685.9413855 | H56: ='1000'!H122 -> 0 | I56: =DÁLKA!H122 -> 586.872 | J56: =VÝŠKA!H122 -> 571.16 | K56: =MÍČEK!H122 -> 0 | L56: =KOULE!H122 -> 542.2222222 | M56: =ČLUNEK!H122 -> 794.2281357 | N56: =LEHSED!H122 -> 600 | O56: =ODBÍJENÍ!H122 -> 176 | P56: =PLAVÁNÍ!H122 -> 0 | Q56: =ŠPLH!H122 -> 0 | R56: =ŠVIHADLO!H122 -> 231.25 | S56: ='Z MÍSTA'!H122 -> 600.4 | T56: =REPRE!E25 -> 0 | U56: 5485.676015
B57: ='60'!B123 -> LUKEŠ | C57: ='60'!C123 -> Jakub | D57: ='60'!D123 -> 6.B | F57: ='60'!H123 -> 719.1430964 | G57: ='300'!H122 -> 680.6544324 | H57: ='1000'!H123 -> 0 | I57: =DÁLKA!H123 -> 561.678 | J57: =VÝŠKA!H123 -> 542.56 | K57: =MÍČEK!H123 -> 262.5 | L57: =KOULE!H123 -> 470.5555556 | M57: =ČLUNEK!H123 -> 822.7911822 | N57: =LEHSED!H123 -> 375 | O57: =ODBÍJENÍ!H123 -> 96 | P57: =PLAVÁNÍ!H123 -> 0 | Q57: =ŠPLH!H123 -> 0 | R57: =ŠVIHADLO!H123 -> 406.25 | S57: ='Z MÍSTA'!H123 -> 722 | T57: =REPRE!E26 -> 0 | U57: 5659.132267
B58: ='60'!B124 -> OTT | C58: ='60'!C124 -> Matyáš | D58: ='60'!D124 -> 6.B | F58: ='60'!H124 -> 678.5680154 | G58: ='300'!H123 -> 478.937555 | H58: ='1000'!H124 -> 0 | I58: =DÁLKA!H124 -> 566.124 | J58: =VÝŠKA!H124 -> 542.56 | K58: =MÍČEK!H124 -> 362.5 | L58: =KOULE!H124 -> 427.7777778 | M58: =ČLUNEK!H124 -> 762.7858778 | N58: =LEHSED!H124 -> 0 | O58: =ODBÍJENÍ!H124 -> 88 | P58: =PLAVÁNÍ!H124 -> 0 | Q58: =ŠPLH!H124 -> 0 | R58: =ŠVIHADLO!H124 -> 0 | S58: ='Z MÍSTA'!H124 -> 0 | T58: =REPRE!E27 -> 0 | U58: 3907.253226
B59: ='60'!B125 -> POKORNÝ | C59: ='60'!C125 -> Matyáš | D59: ='60'!D125 -> 6.B | F59: ='60'!H125 -> 808.1977818 | G59: ='300'!H124 -> 809.6576595 | H59: ='1000'!H125 -> 0 | I59: =DÁLKA!H125 -> 0 | J59: =VÝŠKA!H125 -> 571.16 | K59: =MÍČEK!H125 -> 537.5 | L59: =KOULE!H125 -> 461.1111111 | M59: =ČLUNEK!H125 -> 882.135289 | N59: =LEHSED!H125 -> 0 | O59: =ODBÍJENÍ!H125 -> 176 | P59: =PLAVÁNÍ!H125 -> 0 | Q59: =ŠPLH!H125 -> 0 | R59: =ŠVIHADLO!H125 -> 0 | S59: ='Z MÍSTA'!H125 -> 0 | T59: =REPRE!E28 -> 0 | U59: 4245.761841
B60: ='60'!B126 -> POLÁČEK | C60: ='60'!C126 -> Matyáš | D60: ='60'!D126 -> 6.B | F60: ='60'!H126 -> 654.5768642 | G60: ='300'!H125 -> 421.9583494 | H60: ='1000'!H126 -> 0 | I60: =DÁLKA!H126 -> 529.074 | J60: =VÝŠKA!H126 -> 513.96 | K60: =MÍČEK!H126 -> 425 | L60: =KOULE!H126 -> 502.7777778 | M60: =ČLUNEK!H126 -> 687.2568313 | N60: =LEHSED!H126 -> 0 | O60: =ODBÍJENÍ!H126 -> 80 | P60: =PLAVÁNÍ!H126 -> 0 | Q60: =ŠPLH!H126 -> 0 | R60: =ŠVIHADLO!H126 -> 0 | S60: ='Z MÍSTA'!H126 -> 0 | T60: =REPRE!E29 -> 0 | U60: 3814.603823
B61: ='60'!B127 -> SOUKUP | C61: ='60'!C127 -> Patrik | D61: ='60'!D127 -> 6.B | F61: ='60'!H127 -> 729.3050713 | G61: ='300'!H126 -> 686.4915539 | H61: ='1000'!H127 -> 0 | I61: =DÁLKA!H127 -> 603.174 | J61: =VÝŠKA!H127 -> 542.56 | K61: =MÍČEK!H127 -> 375 | L61: =KOULE!H127 -> 472.2222222 | M61: =ČLUNEK!H127 -> 845.9853231 | N61: =LEHSED!H127 -> 337.5 | O61: =ODBÍJENÍ!H127 -> 88 | P61: =PLAVÁNÍ!H127 -> 0 | Q61: =ŠPLH!H127 -> 0 | R61: =ŠVIHADLO!H127 -> 593.75 | S61: ='Z MÍSTA'!H127 -> 760 | T61: =REPRE!E30 -> 0 | U61: 6033.988171
B62: ='60'!B128 -> VALENTA | C62: ='60'!C128 -> Jakub | D62: ='60'!D128 -> 6.B | F62: ='60'!H128 -> 720.3211103 | G62: ='300'!H127 -> 0 | H62: ='1000'!H128 -> 0 | I62: =DÁLKA!H128 -> 0 | J62: =VÝŠKA!H128 -> 628.36 | K62: =MÍČEK!H128 -> 325 | L62: =KOULE!H128 -> 455.5555556 | M62: =ČLUNEK!H128 -> 810.423469 | N62: =LEHSED!H128 -> 612.5 | O62: =ODBÍJENÍ!H128 -> 0 | P62: =PLAVÁNÍ!H128 -> 0 | Q62: =ŠPLH!H128 -> 0 | R62: =ŠVIHADLO!H128 -> 475 | S62: ='Z MÍSTA'!H128 -> 0 | T62: =REPRE!E31 -> 0 | U62: 4027.160135
B63: ='60'!B129 -> VRBATA | C63: ='60'!C129 -> Dominik | D63: ='60'!D129 -> 6.B | F63: ='60'!H129 -> 719.7315287 | G63: ='300'!H128 -> 621.1903985 | H63: ='1000'!H129 -> 0 | I63: =DÁLKA!H129 -> 613.548 | J63: =VÝŠKA!H129 -> 571.16 | K63: =MÍČEK!H129 -> 431.25 | L63: =KOULE!H129 -> 497.2222222 | M63: =ČLUNEK!H129 -> 822.7911822 | N63: =LEHSED!H129 -> 0 | O63: =ODBÍJENÍ!H129 -> 72 | P63: =PLAVÁNÍ!H129 -> 0 | Q63: =ŠPLH!H129 -> 0 | R63: =ŠVIHADLO!H129 -> 0 | S63: ='Z MÍSTA'!H129 -> 0 | T63: =REPRE!E32 -> 0 | U63: 4348.893332
B64: ='60'!B130 -> FEJKL | C64: ='60'!C130 -> Jan | D64: ='60'!D130 -> 7.A | F64: ='60'!H130 -> 793.051222 | G64: ='300'!H129 -> 0 | H64: ='1000'!H130 -> 0 | I64: =DÁLKA!H130 -> 800.28 | J64: =VÝŠKA!H130 -> 788.52 | K64: =MÍČEK!H130 -> 612.5 | L64: =KOULE!H130 -> 603.8888889 | M64: =ČLUNEK!H130 -> 0 | N64: =LEHSED!H130 -> 712.5 | O64: =ODBÍJENÍ!H130 -> 144 | P64: =PLAVÁNÍ!H130 -> 436.9544345 | Q64: =ŠPLH!H130 -> 0 | R64: =ŠVIHADLO!H130 -> 262.5 | S64: ='Z MÍSTA'!H130 -> 760 | T64: =REPRE!E33 -> 0 | U64: 5914.194545
B65: ='60'!B131 -> KOTYK | C65: ='60'!C131 -> Tadeáš | D65: ='60'!D131 -> 7.A | F65: ='60'!H131 -> 694.3409504 | G65: ='300'!H130 -> 0 | H65: ='1000'!H131 -> 0 | I65: =DÁLKA!H131 -> 549.822 | J65: =VÝŠKA!H131 -> 582.6 | K65: =MÍČEK!H131 -> 250 | L65: =KOULE!H131 -> 510.5555556 | M65: =ČLUNEK!H131 -> 0 | N65: =LEHSED!H131 -> 437.5 | O65: =ODBÍJENÍ!H131 -> 56 | P65: =PLAVÁNÍ!H131 -> 0 | Q65: =ŠPLH!H131 -> 0 | R65: =ŠVIHADLO!H131 -> 125 | S65: ='Z MÍSTA'!H131 -> 228 | T65: =REPRE!E34 -> 0 | U65: 3433.818506
B66: ='60'!B132 -> KRAUSE | C66: ='60'!C132 -> Tadeáš | D66: ='60'!D132 -> 7.A | F66: ='60'!H132 -> 726.8833336 | G66: ='300'!H131 -> 0 | H66: ='1000'!H132 -> 0 | I66: =DÁLKA!H132 -> 640.224 | J66: =VÝŠKA!H132 -> 611.2 | K66: =MÍČEK!H132 -> 368.75 | L66: =KOULE!H132 -> 478.8888889 | M66: =ČLUNEK!H132 -> 0 | N66: =LEHSED!H132 -> 675 | O66: =ODBÍJENÍ!H132 -> 144 | P66: =PLAVÁNÍ!H132 -> 0 | Q66: =ŠPLH!H132 -> 0 | R66: =ŠVIHADLO!H132 -> 756.25 | S66: ='Z MÍSTA'!H132 -> 763.8 | T66: =REPRE!E35 -> 0 | U66: 5164.996222
B67: ='60'!B133 -> LEŠÁK | C67: ='60'!C133 -> Martin | D67: ='60'!D133 -> 7.A | F67: ='60'!H133 -> 685.2960597 | G67: ='300'!H132 -> 0 | H67: ='1000'!H133 -> 0 | I67: =DÁLKA!H133 -> 0 | J67: =VÝŠKA!H133 -> 548.28 | K67: =MÍČEK!H133 -> 318.75 | L67: =KOULE!H133 -> 501.6666667 | M67: =ČLUNEK!H133 -> 0 | N67: =LEHSED!H133 -> 187.5 | O67: =ODBÍJENÍ!H133 -> 56 | P67: =PLAVÁNÍ!H133 -> 0 | Q67: =ŠPLH!H133 -> 0 | R67: =ŠVIHADLO!H133 -> 187.5 | S67: ='Z MÍSTA'!H133 -> 0 | T67: =REPRE!E36 -> 0 | U67: =SUM(F67:T67) -> 2484.992726
B68: ='60'!B134 -> NECHANICKÝ | C68: ='60'!C134 -> David | D68: ='60'!D134 -> 7.A | F68: ='60'!H134 -> 757.2692403 | G68: ='300'!H133 -> 0 | H68: ='1000'!H134 -> 0 | I68: =DÁLKA!H134 -> 660.972 | J68: =VÝŠKA!H134 -> 639.8 | K68: =MÍČEK!H134 -> 387.5 | L68: =KOULE!H134 -> 0 | M68: =ČLUNEK!H134 -> 0 | N68: =LEHSED!H134 -> 0 | O68: =ODBÍJENÍ!H134 -> 176 | P68: =PLAVÁNÍ!H134 -> 436.9544345 | Q68: =ŠPLH!H134 -> 0 | R68: =ŠVIHADLO!H134 -> 0 | S68: ='Z MÍSTA'!H134 -> 0 | T68: =REPRE!E37 -> 0 | U68: 3058.495675
B69: ='60'!B135 -> ŘEHOŘEK | C69: ='60'!C135 -> Jan | D69: ='60'!D135 -> 7.A | F69: ='60'!H135 -> 763.9841015 | G69: ='300'!H134 -> 0 | H69: ='1000'!H135 -> 0 | I69: =DÁLKA!H135 -> 647.634 | J69: =VÝŠKA!H135 -> 668.4 | K69: =MÍČEK!H135 -> 525 | L69: =KOULE!H135 -> 460 | M69: =ČLUNEK!H135 -> 0 | N69: =LEHSED!H135 -> 325 | O69: =ODBÍJENÍ!H135 -> 336 | P69: =PLAVÁNÍ!H135 -> 436.9544345 | Q69: =ŠPLH!H135 -> 0 | R69: =ŠVIHADLO!H135 -> 718.75 | S69: ='Z MÍSTA'!H135 -> 0 | T69: =REPRE!E38 -> 0 | U69: 4881.722536
B70: ='60'!B136 -> SOUKUP | C70: ='60'!C136 -> Ondřej | D70: ='60'!D136 -> 7.A | F70: ='60'!H136 -> 734.8248169 | G70: ='300'!H135 -> 0 | H70: ='1000'!H136 -> 0 | I70: =DÁLKA!H136 -> 576.498 | J70: =VÝŠKA!H136 -> 582.6 | K70: =MÍČEK!H136 -> 0 | L70: =KOULE!H136 -> 0 | M70: =ČLUNEK!H136 -> 0 | N70: =LEHSED!H136 -> 587.5 | O70: =ODBÍJENÍ!H136 -> 176 | P70: =PLAVÁNÍ!H136 -> 0 | Q70: =ŠPLH!H136 -> 0 | R70: =ŠVIHADLO!H136 -> 0 | S70: ='Z MÍSTA'!H136 -> 0 | T70: =REPRE!E39 -> 0 | U70: 2657.422817
B71: ='60'!B137 -> SPANILÝ | C71: ='60'!C137 -> David | D71: ='60'!D137 -> 7.A | F71: ='60'!H137 -> 747.4538948 | G71: ='300'!H136 -> 0 | H71: ='1000'!H137 -> 0 | I71: =DÁLKA!H137 -> 0 | J71: =VÝŠKA!H137 -> 0 | K71: =MÍČEK!H137 -> 587.5 | L71: =KOULE!H137 -> 481.6666667 | M71: =ČLUNEK!H137 -> 0 | N71: =LEHSED!H137 -> 675 | O71: =ODBÍJENÍ!H137 -> 336 | P71: =PLAVÁNÍ!H137 -> 436.9544345 | Q71: =ŠPLH!H137 -> 0 | R71: =ŠVIHADLO!H137 -> 662.5 | S71: ='Z MÍSTA'!H137 -> 752.4 | T71: =REPRE!E40 -> 0 | U71: 4679.474996
B72: ='60'!B138 -> ČADAN | C72: ='60'!C138 -> Benjamín | D72: ='60'!D138 -> 7.B | F72: ='60'!H138 -> 0 | G72: ='300'!H137 -> 0 | H72: ='1000'!H138 -> 0 | I72: =DÁLKA!H138 -> 603.174 | J72: =VÝŠKA!H138 -> 605.48 | K72: =MÍČEK!H138 -> 325 | L72: =KOULE!H138 -> 466.6666667 | M72: =ČLUNEK!H138 -> 0 | N72: =LEHSED!H138 -> 0 | O72: =ODBÍJENÍ!H138 -> 80 | P72: =PLAVÁNÍ!H138 -> 0 | Q72: =ŠPLH!H138 -> 0 | R72: =ŠVIHADLO!H138 -> 0 | S72: ='Z MÍSTA'!H138 -> 0 | T72: =REPRE!E41 -> 0 | U72: 2080.320667
B73: ='60'!B139 -> ČERNÝ | C73: ='60'!C139 -> Michal | D73: ='60'!D139 -> 7.B | F73: ='60'!H139 -> 713.3212519 | G73: ='300'!H138 -> 0 | H73: ='1000'!H139 -> 0 | I73: =DÁLKA!H139 -> 529.074 | J73: =VÝŠKA!H139 -> 548.28 | K73: =MÍČEK!H139 -> 493.75 | L73: =KOULE!H139 -> 463.8888889 | M73: =ČLUNEK!H139 -> 0 | N73: =LEHSED!H139 -> 0 | O73: =ODBÍJENÍ!H139 -> 120 | P73: =PLAVÁNÍ!H139 -> 0 | Q73: =ŠPLH!H139 -> 0 | R73: =ŠVIHADLO!H139 -> 0 | S73: ='Z MÍSTA'!H139 -> 0 | T73: =REPRE!E42 -> 0 | U73: 2868.314141
B74: ='60'!B140 -> DOLEJŠÍ | C74: ='60'!C140 -> David | D74: ='60'!D140 -> 7.B | F74: ='60'!H140 -> 673.4998351 | G74: ='300'!H139 -> 0 | H74: ='1000'!H140 -> 0 | I74: =DÁLKA!H140 -> 560.196 | J74: =VÝŠKA!H140 -> 639.8 | K74: =MÍČEK!H140 -> 262.5 | L74: =KOULE!H140 -> 516.6666667 | M74: =ČLUNEK!H140 -> 0 | N74: =LEHSED!H140 -> 562.5 | O74: =ODBÍJENÍ!H140 -> 64 | P74: =PLAVÁNÍ!H140 -> 0 | Q74: =ŠPLH!H140 -> 0 | R74: =ŠVIHADLO!H140 -> 362.5 | S74: ='Z MÍSTA'!H140 -> 577.6 | T74: =REPRE!E43 -> 0 | U74: 4219.262502
B75: ='60'!B141 -> NOVÁK | C75: ='60'!C141 -> Matěj | D75: ='60'!D141 -> 7.B | F75: ='60'!H141 -> 707.0456704 | G75: ='300'!H140 -> 0 | H75: ='1000'!H141 -> 0 | I75: =DÁLKA!H141 -> 588.354 | J75: =VÝŠKA!H141 -> 582.6 | K75: =MÍČEK!H141 -> 381.25 | L75: =KOULE!H141 -> 463.3333333 | M75: =ČLUNEK!H141 -> 0 | N75: =LEHSED!H141 -> 0 | O75: =ODBÍJENÍ!H141 -> 64 | P75: =PLAVÁNÍ!H141 -> 0 | Q75: =ŠPLH!H141 -> 0 | R75: =ŠVIHADLO!H141 -> 425 | S75: ='Z MÍSTA'!H141 -> 642.2 | T75: =REPRE!E44 -> 0 | U75: 3853.783004
B76: ='60'!B142 -> POVAŽANEC | C76: ='60'!C142 -> Martin | D76: ='60'!D142 -> 7.B | F76: ='60'!H142 -> 743.6113762 | G76: ='300'!H141 -> 0 | H76: ='1000'!H142 -> 0 | I76: =DÁLKA!H142 -> 660.972 | J76: =VÝŠKA!H142 -> 611.2 | K76: =MÍČEK!H142 -> 506.25 | L76: =KOULE!H142 -> 645 | M76: =ČLUNEK!H142 -> 0 | N76: =LEHSED!H142 -> 0 | O76: =ODBÍJENÍ!H142 -> 64 | P76: =PLAVÁNÍ!H142 -> 0 | Q76: =ŠPLH!H142 -> 0 | R76: =ŠVIHADLO!H142 -> 0 | S76: ='Z MÍSTA'!H142 -> 0 | T76: =REPRE!E45 -> 0 | U76: 3231.033376
B77: ='60'!B143 -> RICHTER | C77: ='60'!C143 -> Jakub | D77: ='60'!D143 -> 7.B | F77: ='60'!H143 -> 0 | G77: ='300'!H142 -> 0 | H77: ='1000'!H143 -> 0 | I77: =DÁLKA!H143 -> 0 | J77: =VÝŠKA!H143 -> 0 | K77: =MÍČEK!H143 -> 287.5 | L77: =KOULE!H143 -> 0 | M77: =ČLUNEK!H143 -> 0 | N77: =LEHSED!H143 -> 250 | O77: =ODBÍJENÍ!H143 -> 0 | P77: =PLAVÁNÍ!H143 -> 0 | Q77: =ŠPLH!H143 -> 0 | R77: =ŠVIHADLO!H143 -> 0 | S77: ='Z MÍSTA'!H143 -> 0 | T77: =REPRE!E46 -> 0 | U77: 537.5
B78: ='60'!B144 -> ROZUMEK | C78: ='60'!C144 -> Adam | D78: ='60'!D144 -> 7.B | F78: ='60'!H144 -> 0 | G78: ='300'!H143 -> 0 | H78: ='1000'!H144 -> 0 | I78: =DÁLKA!H144 -> 515.736 | J78: =VÝŠKA!H144 -> 548.28 | K78: =MÍČEK!H144 -> 475 | L78: =KOULE!H144 -> 595.5555556 | M78: =ČLUNEK!H144 -> 0 | N78: =LEHSED!H144 -> 0 | O78: =ODBÍJENÍ!H144 -> 208 | P78: =PLAVÁNÍ!H144 -> 0 | Q78: =ŠPLH!H144 -> 0 | R78: =ŠVIHADLO!H144 -> 0 | S78: ='Z MÍSTA'!H144 -> 0 | T78: =REPRE!E47 -> 0 | U78: 2342.571556
B79: ='60'!B145 -> VALENTA | C79: ='60'!C145 -> František | D79: ='60'!D145 -> 7.B | F79: ='60'!H145 -> 682.6893928 | G79: ='300'!H144 -> 0 | H79: ='1000'!H145 -> 0 | I79: =DÁLKA!H145 -> 515.736 | J79: =VÝŠKA!H145 -> 582.6 | K79: =MÍČEK!H145 -> 250 | L79: =KOULE!H145 -> 513.3333333 | M79: =ČLUNEK!H145 -> 0 | N79: =LEHSED!H145 -> 0 | O79: =ODBÍJENÍ!H145 -> 120 | P79: =PLAVÁNÍ!H145 -> 0 | Q79: =ŠPLH!H145 -> 0 | R79: =ŠVIHADLO!H145 -> 0 | S79: ='Z MÍSTA'!H145 -> 0 | T79: =REPRE!E48 -> 0 | U79: 2664.358726
B80: ='60'!B146 -> ZAPLATÍLEK | C80: ='60'!C146 -> Josef | D80: ='60'!D146 -> 7.B | F80: ='60'!H146 -> 733.5896376 | G80: ='300'!H145 -> 0 | H80: ='1000'!H146 -> 0 | I80: =DÁLKA!H146 -> 0 | J80: =VÝŠKA!H146 -> 582.6 | K80: =MÍČEK!H146 -> 450 | L80: =KOULE!H146 -> 467.2222222 | M80: =ČLUNEK!H146 -> 0 | N80: =LEHSED!H146 -> 0 | O80: =ODBÍJENÍ!H146 -> 208 | P80: =PLAVÁNÍ!H146 -> 0 | Q80: =ŠPLH!H146 -> 0 | R80: =ŠVIHADLO!H146 -> 0 | S80: ='Z MÍSTA'!H146 -> 0 | T80: =REPRE!E49 -> 0 | U80: 2441.41186
B81: ='60'!B147 -> ERBEN | C81: ='60'!C147 -> Viktor | D81: ='60'!D147 -> 8.A | F81: ='60'!H147 -> 709.3123844 | G81: ='300'!H146 -> 520.9774453 | H81: ='1000'!H147 -> 0 | I81: =DÁLKA!H147 -> 0 | J81: =VÝŠKA!H147 -> 605.48 | K81: =MÍČEK!H147 -> 262.5 | L81: =KOULE!H147 -> 490.5555556 | M81: =ČLUNEK!H147 -> 767.6191366 | N81: =LEHSED!H147 -> 350 | O81: =ODBÍJENÍ!H147 -> 232 | P81: =PLAVÁNÍ!H147 -> 0 | Q81: =ŠPLH!H147 -> 0 | R81: =ŠVIHADLO!H147 -> 0 | S81: ='Z MÍSTA'!H147 -> 623.2 | T81: =REPRE!E50 -> 0 | U81: 4561.644522
B82: ='60'!B148 -> FRANC | C82: ='60'!C148 -> Daniel | D82: ='60'!D148 -> 8.A | F82: ='60'!H148 -> 673.4998351 | G82: ='300'!H147 -> 0 | H82: ='1000'!H148 -> 0 | I82: =DÁLKA!H148 -> 564.642 | J82: =VÝŠKA!H148 -> 605.48 | K82: =MÍČEK!H148 -> 325 | L82: =KOULE!H148 -> 0 | M82: =ČLUNEK!H148 -> 679.3552394 | N82: =LEHSED!H148 -> 0 | O82: =ODBÍJENÍ!H148 -> 104 | P82: =PLAVÁNÍ!H148 -> 0 | Q82: =ŠPLH!H148 -> 0 | R82: =ŠVIHADLO!H148 -> 0 | S82: ='Z MÍSTA'!H148 -> 600.4 | T82: =REPRE!E51 -> 0 | U82: 3552.377074
B83: ='60'!B149 -> JINDŘIŠEK | C83: ='60'!C149 -> Matyáš | D83: ='60'!D149 -> 8.A | F83: ='60'!H149 -> 0 | G83: ='300'!H148 -> 743.7507218 | H83: ='1000'!H149 -> 0 | I83: =DÁLKA!H149 -> 0 | J83: =VÝŠKA!H149 -> 628.36 | K83: =MÍČEK!H149 -> 0 | L83: =KOULE!H149 -> 643.8888889 | M83: =ČLUNEK!H149 -> 873.2139985 | N83: =LEHSED!H149 -> 512.5 | O83: =ODBÍJENÍ!H149 -> 224 | P83: =PLAVÁNÍ!H149 -> 0 | Q83: =ŠPLH!H149 -> 0 | R83: =ŠVIHADLO!H149 -> 493.75 | S83: ='Z MÍSTA'!H149 -> 779 | T83: =REPRE!E52 -> 0 | U83: 4898.463609
B84: ='60'!B150 -> KOLAČNÝ | C84: ='60'!C150 -> Štěpán | D84: ='60'!D150 -> 8.A | F84: ='60'!H150 -> 692.1869804 | G84: ='300'!H149 -> 454.7174192 | H84: ='1000'!H150 -> 0 | I84: =DÁLKA!H150 -> 566.124 | J84: =VÝŠKA!H150 -> 548.28 | K84: =MÍČEK!H150 -> 312.5 | L84: =KOULE!H150 -> 600.5555556 | M84: =ČLUNEK!H150 -> 794.2281357 | N84: =LEHSED!H150 -> 537.5 | O84: =ODBÍJENÍ!H150 -> 152 | P84: =PLAVÁNÍ!H150 -> 0 | Q84: =ŠPLH!H150 -> 0 | R84: =ŠVIHADLO!H150 -> 0 | S84: ='Z MÍSTA'!H150 -> 684 | T84: =REPRE!E53 -> 0 | U84: 5342.092091
B85: ='60'!B151 -> KRISTAN | C85: ='60'!C151 -> Jáchym | D85: ='60'!D151 -> 8.A | F85: ='60'!H151 -> 541.0170446 | G85: ='300'!H150 -> 259.3435753 | H85: ='1000'!H151 -> 0 | I85: =DÁLKA!H151 -> 0 | J85: =VÝŠKA!H151 -> 485.36 | K85: =MÍČEK!H151 -> 187.5 | L85: =KOULE!H151 -> 372.2222222 | M85: =ČLUNEK!H151 -> 500.0827291 | N85: =LEHSED!H151 -> 0 | O85: =ODBÍJENÍ!H151 -> 96 | P85: =PLAVÁNÍ!H151 -> 0 | Q85: =ŠPLH!H151 -> 0 | R85: =ŠVIHADLO!H151 -> 0 | S85: ='Z MÍSTA'!H151 -> 440.8 | T85: =REPRE!E54 -> 0 | U85: 2882.325571
B86: ='60'!B152 -> NGUYEN | C86: ='60'!C152 -> David | D86: ='60'!D152 -> 8.A | F86: ='60'!H152 -> 0 | G86: ='300'!H151 -> 0 | H86: ='1000'!H152 -> 0 | I86: =DÁLKA!H152 -> 0 | J86: =VÝŠKA!H152 -> 628.36 | K86: =MÍČEK!H152 -> 456.25 | L86: =KOULE!H152 -> 0 | M86: =ČLUNEK!H152 -> 876.5472854 | N86: =LEHSED!H152 -> 0 | O86: =ODBÍJENÍ!H152 -> 232 | P86: =PLAVÁNÍ!H152 -> 0 | Q86: =ŠPLH!H152 -> 0 | R86: =ŠVIHADLO!H152 -> 0 | S86: ='Z MÍSTA'!H152 -> 874 | T86: =REPRE!E55 -> 0 | U86: 3067.157285
B87: ='60'!B153 -> NOVOTNÝ | C87: ='60'!C153 -> Jan | D87: ='60'!D153 -> 8.A | F87: ='60'!H153 -> 772.2299225 | G87: ='300'!H152 -> 809.1939274 | H87: ='1000'!H153 -> 0 | I87: =DÁLKA!H153 -> 662.454 | J87: =VÝŠKA!H153 -> 628.36 | K87: =MÍČEK!H153 -> 337.5 | L87: =KOULE!H153 -> 0 | M87: =ČLUNEK!H153 -> 865.4923011 | N87: =LEHSED!H153 -> 0 | O87: =ODBÍJENÍ!H153 -> 128 | P87: =PLAVÁNÍ!H153 -> 0 | Q87: =ŠPLH!H153 -> 0 | R87: =ŠVIHADLO!H153 -> 0 | S87: ='Z MÍSTA'!H153 -> 0 | T87: =REPRE!E56 -> 0 | U87: 4203.230151
B88: ='60'!B154 -> RÁB | C88: ='60'!C154 -> Adam | D88: ='60'!D154 -> 8.A | F88: ='60'!H154 -> 625.320837 | G88: ='300'!H153 -> 436.640326 | H88: ='1000'!H154 -> 0 | I88: =DÁLKA!H154 -> 532.038 | J88: =VÝŠKA!H154 -> 508.24 | K88: =MÍČEK!H154 -> 318.75 | L88: =KOULE!H154 -> 611.6666667 | M88: =ČLUNEK!H154 -> 705.0732463 | N88: =LEHSED!H154 -> 0 | O88: =ODBÍJENÍ!H154 -> 96 | P88: =PLAVÁNÍ!H154 -> 0 | Q88: =ŠPLH!H154 -> 0 | R88: =ŠVIHADLO!H154 -> 0 | S88: ='Z MÍSTA'!H154 -> 615.6 | T88: =REPRE!E57 -> 0 | U88: 4449.329076
B89: ='60'!B155 -> REPASKÝ | C89: ='60'!C155 -> Jakub | D89: ='60'!D155 -> 8.A | F89: ='60'!H155 -> 823.2283622 | G89: ='300'!H154 -> 765.5481923 | H89: ='1000'!H155 -> 0 | I89: =DÁLKA!H155 -> 0 | J89: =VÝŠKA!H155 -> 628.36 | K89: =MÍČEK!H155 -> 631.25 | L89: =KOULE!H155 -> 667.7777778 | M89: =ČLUNEK!H155 -> 916.5547796 | N89: =LEHSED!H155 -> 612.5 | O89: =ODBÍJENÍ!H155 -> 584 | P89: =PLAVÁNÍ!H155 -> 0 | Q89: =ŠPLH!H155 -> 0 | R89: =ŠVIHADLO!H155 -> 912.5 | S89: ='Z MÍSTA'!H155 -> 809.4 | T89: =REPRE!E58 -> 0 | U89: 7351.119112
B90: ='60'!B156 -> SKÁLA | C90: ='60'!C156 -> Jan | D90: ='60'!D156 -> 8.A | F90: ='60'!H156 -> 823.2283622 | G90: ='300'!H155 -> 743.3402435 | H90: ='1000'!H156 -> 0 | I90: =DÁLKA!H156 -> 715.806 | J90: =VÝŠKA!H156 -> 628.36 | K90: =MÍČEK!H156 -> 375 | L90: =KOULE!H156 -> 688.3333333 | M90: =ČLUNEK!H156 -> 818.6469916 | N90: =LEHSED!H156 -> 0 | O90: =ODBÍJENÍ!H156 -> 120 | P90: =PLAVÁNÍ!H156 -> 0 | Q90: =ŠPLH!H156 -> 0 | R90: =ŠVIHADLO!H156 -> 0 | S90: ='Z MÍSTA'!H156 -> 809.4 | T90: =REPRE!E59 -> 0 | U90: 5722.114931
B91: ='60'!B157 -> ŠPULÁK | C91: ='60'!C157 -> Jakub | D91: ='60'!D157 -> 8.A | F91: ='60'!H157 -> 747.4538948 | G91: ='300'!H156 -> 656.940733 | H91: ='1000'!H157 -> 0 | I91: =DÁLKA!H157 -> 626.886 | J91: =VÝŠKA!H157 -> 628.36 | K91: =MÍČEK!H157 -> 562.5 | L91: =KOULE!H157 -> 661.6666667 | M91: =ČLUNEK!H157 -> 787.244744 | N91: =LEHSED!H157 -> 337.5 | O91: =ODBÍJENÍ!H157 -> 144 | P91: =PLAVÁNÍ!H157 -> 0 | Q91: =ŠPLH!H157 -> 0 | R91: =ŠVIHADLO!H157 -> 212.5 | S91: ='Z MÍSTA'!H157 -> 737.2 | T91: =REPRE!E60 -> 0 | U91: 6102.252038
B92: ='60'!B158 -> VALENTA | C92: ='60'!C158 -> Tomáš | D92: ='60'!D158 -> 8.A | F92: ='60'!H158 -> 872.5095561 | G92: ='300'!H157 -> 901.0188423 | H92: ='1000'!H158 -> 0 | I92: =DÁLKA!H158 -> 829.92 | J92: =VÝŠKA!H158 -> 628.36 | K92: =MÍČEK!H158 -> 662.5 | L92: =KOULE!H158 -> 766.6666667 | M92: =ČLUNEK!H158 -> 900.2976199 | N92: =LEHSED!H158 -> 612.5 | O92: =ODBÍJENÍ!H158 -> 584 | P92: =PLAVÁNÍ!H158 -> 0 | Q92: =ŠPLH!H158 -> 0 | R92: =ŠVIHADLO!H158 -> 887.5 | S92: ='Z MÍSTA'!H158 -> 889.2 | T92: =REPRE!E61 -> 0 | U92: 8534.472685
B93: ='60'!B159 -> VANCL | C93: ='60'!C159 -> Jiří | D93: ='60'!D159 -> 8.A | F93: ='60'!H159 -> 757.9344574 | G93: ='300'!H158 -> 616.412371 | H93: ='1000'!H159 -> 0 | I93: =DÁLKA!H159 -> 0 | J93: =VÝŠKA!H159 -> 605.48 | K93: =MÍČEK!H159 -> 387.5 | L93: =KOULE!H159 -> 583.8888889 | M93: =ČLUNEK!H159 -> 818.6469916 | N93: =LEHSED!H159 -> 0 | O93: =ODBÍJENÍ!H159 -> 256 | P93: =PLAVÁNÍ!H159 -> 0 | Q93: =ŠPLH!H159 -> 0 | R93: =ŠVIHADLO!H159 -> 0 | S93: ='Z MÍSTA'!H159 -> 771.4 | T93: =REPRE!E62 -> 0 | U93: 4797.262709
B94: ='60'!B160 -> VAŠÍČEK | C94: ='60'!C160 -> David | D94: ='60'!D160 -> 8.A | F94: ='60'!H160 -> 0 | G94: ='300'!H159 -> 0 | H94: ='1000'!H160 -> 0 | I94: =DÁLKA!H160 -> 628.368 | J94: =VÝŠKA!H160 -> 0 | K94: =MÍČEK!H160 -> 406.25 | L94: =KOULE!H160 -> 0 | M94: =ČLUNEK!H160 -> 0 | N94: =LEHSED!H160 -> 0 | O94: =ODBÍJENÍ!H160 -> 248 | P94: =PLAVÁNÍ!H160 -> 0 | Q94: =ŠPLH!H160 -> 0 | R94: =ŠVIHADLO!H160 -> 0 | S94: ='Z MÍSTA'!H160 -> 794.2 | T94: =REPRE!E63 -> 0 | U94: 2076.818
B95: ='60'!B161 -> ZOUHAR | C95: ='60'!C161 -> Ondřej | D95: ='60'!D161 -> 8.A | F95: ='60'!H161 -> 819.2100192 | G95: ='300'!H160 -> 786.9346915 | H95: ='1000'!H161 -> 0 | I95: =DÁLKA!H161 -> 663.936 | J95: =VÝŠKA!H161 -> 605.48 | K95: =MÍČEK!H161 -> 437.5 | L95: =KOULE!H161 -> 520.5555556 | M95: =ČLUNEK!H161 -> 862.2066446 | N95: =LEHSED!H161 -> 0 | O95: =ODBÍJENÍ!H161 -> 248 | P95: =PLAVÁNÍ!H161 -> 0 | Q95: =ŠPLH!H161 -> 0 | R95: =ŠVIHADLO!H161 -> 0 | S95: ='Z MÍSTA'!H161 -> 786.6 | T95: =REPRE!E64 -> 0 | U95: 5730.422911
B96: ='60'!B162 -> ZUZÁNEK | C96: ='60'!C162 -> Filip | D96: ='60'!D162 -> 8.A | F96: ='60'!H162 -> 732.3593794 | G96: ='300'!H161 -> 622.7941174 | H96: ='1000'!H162 -> 0 | I96: =DÁLKA!H162 -> 0 | J96: =VÝŠKA!H162 -> 628.36 | K96: =MÍČEK!H162 -> 306.25 | L96: =KOULE!H162 -> 533.3333333 | M96: =ČLUNEK!H162 -> 845.9853231 | N96: =LEHSED!H162 -> 0 | O96: =ODBÍJENÍ!H162 -> 256 | P96: =PLAVÁNÍ!H162 -> 0 | Q96: =ŠPLH!H162 -> 0 | R96: =ŠVIHADLO!H162 -> 0 | S96: ='Z MÍSTA'!H162 -> 725.8 | T96: =REPRE!E65 -> 0 | U96: 4650.882153
B97: ='60'!B163 -> BRUMLICH | C97: ='60'!C163 -> Jan | D97: ='60'!D163 -> 9.A | F97: ='60'!H163 -> 0 | G97: ='300'!H162 -> 785.3787608 | H97: ='1000'!H163 -> 0 | I97: =DÁLKA!H163 -> 0 | J97: =VÝŠKA!H163 -> 742.76 | K97: =MÍČEK!H163 -> 725 | L97: =KOULE!H163 -> 842.7777778 | M97: =ČLUNEK!H163 -> 0 | N97: =LEHSED!H163 -> 0 | O97: =ODBÍJENÍ!H163 -> 328 | P97: =PLAVÁNÍ!H163 -> 436.9544345 | Q97: =ŠPLH!H163 -> 0 | R97: =ŠVIHADLO!H163 -> 0 | S97: ='Z MÍSTA'!H163 -> 0 | T97: =REPRE!E66 -> 0 | U97: 3860.870973
B98: ='60'!B164 -> BUCHAR | C98: ='60'!C164 -> Jiří | D98: ='60'!D164 -> 9.A | F98: ='60'!H164 -> 811.3087831 | G98: ='300'!H163 -> 772.2220729 | H98: ='1000'!H164 -> 0 | I98: =DÁLKA!H164 -> 726.18 | J98: =VÝŠKA!H164 -> 714.16 | K98: =MÍČEK!H164 -> 406.25 | L98: =KOULE!H164 -> 0 | M98: =ČLUNEK!H164 -> 0 | N98: =LEHSED!H164 -> 0 | O98: =ODBÍJENÍ!H164 -> 328 | P98: =PLAVÁNÍ!H164 -> 0 | Q98: =ŠPLH!H164 -> 0 | R98: =ŠVIHADLO!H164 -> 0 | S98: ='Z MÍSTA'!H164 -> 0 | T98: =REPRE!E67 -> 0 | U98: 3758.120856
B99: ='60'!B165 -> FAISTAUER | C99: ='60'!C165 -> Jiří | D99: ='60'!D165 -> 9.A | F99: ='60'!H165 -> 0 | G99: ='300'!H164 -> 0 | H99: ='1000'!H165 -> 0 | I99: =DÁLKA!H165 -> 714.324 | J99: =VÝŠKA!H165 -> 656.96 | K99: =MÍČEK!H165 -> 550 | L99: =KOULE!H165 -> 600 | M99: =ČLUNEK!H165 -> 0 | N99: =LEHSED!H165 -> 0 | O99: =ODBÍJENÍ!H165 -> 0 | P99: =PLAVÁNÍ!H165 -> 0 | Q99: =ŠPLH!H165 -> 0 | R99: =ŠVIHADLO!H165 -> 0 | S99: ='Z MÍSTA'!H165 -> 0 | T99: =REPRE!E68 -> 0 | U99: =SUM(F99:T99) -> 2521.284
B100: ='60'!B166 -> FAISTAUER | C100: ='60'!C166 -> Roman | D100: ='60'!D166 -> 9.A | F100: ='60'!H166 -> 863.3729673 | G100: ='300'!H165 -> 696.1259162 | H100: ='1000'!H166 -> 0 | I100: =DÁLKA!H166 -> 723.216 | J100: =VÝŠKA!H166 -> 685.56 | K100: =MÍČEK!H166 -> 650 | L100: =KOULE!H166 -> 728.3333333 | M100: =ČLUNEK!H166 -> 0 | N100: =LEHSED!H166 -> 0 | O100: =ODBÍJENÍ!H166 -> 248 | P100: =PLAVÁNÍ!H166 -> 0 | Q100: =ŠPLH!H166 -> 0 | R100: =ŠVIHADLO!H166 -> 0 | S100: ='Z MÍSTA'!H166 -> 0 | T100: =REPRE!E69 -> 0 | U100: 4594.608217
B101: ='60'!B167 -> FAJSTAVR | C101: ='60'!C167 -> Jakub | D101: ='60'!D167 -> 9.A | F101: ='60'!H167 -> 802.0585553 | G101: ='300'!H166 -> 650.0818055 | H101: ='1000'!H167 -> 0 | I101: =DÁLKA!H167 -> 678.756 | J101: =VÝŠKA!H167 -> 611.2 | K101: =MÍČEK!H167 -> 0 | L101: =KOULE!H167 -> 735 | M101: =ČLUNEK!H167 -> 0 | N101: =LEHSED!H167 -> 600 | O101: =ODBÍJENÍ!H167 -> 0 | P101: =PLAVÁNÍ!H167 -> 511.9635032 | Q101: =ŠPLH!H167 -> 0 | R101: =ŠVIHADLO!H167 -> 412.5 | S101: ='Z MÍSTA'!H167 -> 459.8 | T101: =REPRE!E70 -> 0 | U101: 5461.359864
B102: ='60'!B168 -> FARSKÝ | C102: ='60'!C168 -> Vojtěch | D102: ='60'!D168 -> 9.A | F102: ='60'!H168 -> 810.5284141 | G102: ='300'!H167 -> 0 | H102: ='1000'!H168 -> 0 | I102: =DÁLKA!H168 -> 748.41 | J102: =VÝŠKA!H168 -> 777.08 | K102: =MÍČEK!H168 -> 675 | L102: =KOULE!H168 -> 682.7777778 | M102: =ČLUNEK!H168 -> 0 | N102: =LEHSED!H168 -> 0 | O102: =ODBÍJENÍ!H168 -> 642 | P102: =PLAVÁNÍ!H168 -> 0 | Q102: =ŠPLH!H168 -> 0 | R102: =ŠVIHADLO!H168 -> 0 | S102: ='Z MÍSTA'!H168 -> 0 | T102: =REPRE!E71 -> 0 | U102: 4335.796192
B103: ='60'!B169 -> HOLUBEC | C103: ='60'!C169 -> Lukáš | D103: ='60'!D169 -> 9.A | F103: ='60'!H169 -> 0 | G103: ='300'!H168 -> 0 | H103: ='1000'!H169 -> 0 | I103: =DÁLKA!H169 -> 601.692 | J103: =VÝŠKA!H169 -> 628.36 | K103: =MÍČEK!H169 -> 437.5 | L103: =KOULE!H169 -> 646.1111111 | M103: =ČLUNEK!H169 -> 0 | N103: =LEHSED!H169 -> 0 | O103: =ODBÍJENÍ!H169 -> 120 | P103: =PLAVÁNÍ!H169 -> 0 | Q103: =ŠPLH!H169 -> 0 | R103: =ŠVIHADLO!H169 -> 0 | S103: ='Z MÍSTA'!H169 -> 0 | T103: =REPRE!E72 -> 0 | U103: 2433.663111
B104: ='60'!B170 -> CHAROUZ | C104: ='60'!C170 -> Vojtěch | D104: ='60'!D170 -> 9.A | F104: ='60'!H170 -> 802.0585553 | G104: ='300'!H169 -> 715.5790691 | H104: ='1000'!H170 -> 0 | I104: =DÁLKA!H170 -> 711.36 | J104: =VÝŠKA!H170 -> 725.6 | K104: =MÍČEK!H170 -> 375 | L104: =KOULE!H170 -> 611.1111111 | M104: =ČLUNEK!H170 -> 0 | N104: =LEHSED!H170 -> 0 | O104: =ODBÍJENÍ!H170 -> 152 | P104: =PLAVÁNÍ!H170 -> 0 | Q104: =ŠPLH!H170 -> 0 | R104: =ŠVIHADLO!H170 -> 0 | S104: ='Z MÍSTA'!H170 -> 0 | T104: =REPRE!E73 -> 0 | U104: 4092.708736
B105: ='60'!B171 -> IACCHERI | C105: ='60'!C171 -> Carlo | D105: ='60'!D171 -> 9.A | F105: ='60'!H171 -> 783.5564368 | G105: ='300'!H170 -> 680.2918958 | H105: ='1000'!H171 -> 0 | I105: =DÁLKA!H171 -> 613.548 | J105: =VÝŠKA!H171 -> 628.36 | K105: =MÍČEK!H171 -> 0 | L105: =KOULE!H171 -> 670 | M105: =ČLUNEK!H171 -> 0 | N105: =LEHSED!H171 -> 0 | O105: =ODBÍJENÍ!H171 -> 0 | P105: =PLAVÁNÍ!H171 -> 436.9544345 | Q105: =ŠPLH!H171 -> 0 | R105: =ŠVIHADLO!H171 -> 0 | S105: ='Z MÍSTA'!H171 -> 703 | T105: =REPRE!E74 -> 0 | U105: 4515.710767
B106: ='60'!B172 -> JOHN | C106: ='60'!C172 -> Adrian | D106: ='60'!D172 -> 9.A | F106: ='60'!H172 -> 553.0231758 | G106: ='300'!H171 -> 0 | H106: ='1000'!H172 -> 0 | I106: =DÁLKA!H172 -> 419.406 | J106: =VÝŠKA!H172 -> 399.56 | K106: =MÍČEK!H172 -> 250 | L106: =KOULE!H172 -> 501.1111111 | M106: =ČLUNEK!H172 -> 0 | N106: =LEHSED!H172 -> 375 | O106: =ODBÍJENÍ!H172 -> 128 | P106: =PLAVÁNÍ!H172 -> 0 | Q106: =ŠPLH!H172 -> 0 | R106: =ŠVIHADLO!H172 -> 0 | S106: ='Z MÍSTA'!H172 -> 0 | T106: =REPRE!E75 -> 0 | U106: 2626.100287
B107: ='60'!B173 -> KRČÍK | C107: ='60'!C173 -> Matthew | D107: ='60'!D173 -> 9.A | F107: ='60'!H173 -> 780.6883103 | G107: ='300'!H172 -> 0 | H107: ='1000'!H173 -> 0 | I107: =DÁLKA!H173 -> 631.332 | J107: =VÝŠKA!H173 -> 656.96 | K107: =MÍČEK!H173 -> 0 | L107: =KOULE!H173 -> 632.2222222 | M107: =ČLUNEK!H173 -> 0 | N107: =LEHSED!H173 -> 0 | O107: =ODBÍJENÍ!H173 -> 0 | P107: =PLAVÁNÍ!H173 -> 511.9635032 | Q107: =ŠPLH!H173 -> 0 | R107: =ŠVIHADLO!H173 -> 0 | S107: ='Z MÍSTA'!H173 -> 0 | T107: =REPRE!E76 -> 0 | U107: 3213.166036
B108: ='60'!B174 -> KRESAN | C108: ='60'!C174 -> Vojtěch | D108: ='60'!D174 -> 9.A | F108: ='60'!H174 -> 770.1488551 | G108: ='300'!H173 -> 0 | H108: ='1000'!H174 -> 0 | I108: =DÁLKA!H174 -> 609.102 | J108: =VÝŠKA!H174 -> 611.2 | K108: =MÍČEK!H174 -> 331.25 | L108: =KOULE!H174 -> 660 | M108: =ČLUNEK!H174 -> 0 | N108: =LEHSED!H174 -> 0 | O108: =ODBÍJENÍ!H174 -> 80 | P108: =PLAVÁNÍ!H174 -> 436.9544345 | Q108: =ŠPLH!H174 -> 0 | R108: =ŠVIHADLO!H174 -> 0 | S108: ='Z MÍSTA'!H174 -> 0 | T108: =REPRE!E77 -> 0 | U108: 3498.65529
B109: ='60'!B175 -> LÁNSKÝ | C109: ='60'!C175 -> Vojtěch | D109: ='60'!D175 -> 9.A | F109: ='60'!H175 -> 0 | G109: ='300'!H174 -> 316.5535629 | H109: ='1000'!H175 -> 0 | I109: =DÁLKA!H175 -> 0 | J109: =VÝŠKA!H175 -> 525.4 | K109: =MÍČEK!H175 -> 268.75 | L109: =KOULE!H175 -> 650 | M109: =ČLUNEK!H175 -> 0 | N109: =LEHSED!H175 -> 0 | O109: =ODBÍJENÍ!H175 -> 120 | P109: =PLAVÁNÍ!H175 -> 0 | Q109: =ŠPLH!H175 -> 0 | R109: =ŠVIHADLO!H175 -> 0 | S109: ='Z MÍSTA'!H175 -> 0 | T109: =REPRE!E78 -> 0 | U109: 1880.703563
B110: ='60'!B176 -> LEŠÁK | C110: ='60'!C176 -> Lukáš | D110: ='60'!D176 -> 9.A | F110: ='60'!H176 -> 641.7645004 | G110: ='300'!H175 -> 0 | H110: ='1000'!H176 -> 0 | I110: =DÁLKA!H176 -> 471.276 | J110: =VÝŠKA!H176 -> 582.6 | K110: =MÍČEK!H176 -> 287.5 | L110: =KOULE!H176 -> 541.6666667 | M110: =ČLUNEK!H176 -> 0 | N110: =LEHSED!H176 -> 0 | O110: =ODBÍJENÍ!H176 -> 0 | P110: =PLAVÁNÍ!H176 -> 0 | Q110: =ŠPLH!H176 -> 0 | R110: =ŠVIHADLO!H176 -> 0 | S110: ='Z MÍSTA'!H176 -> 0 | T110: =REPRE!E79 -> 0 | U110: 2524.807167
B111: ='60'!B177 -> RYPL | C111: ='60'!C177 -> Matyáš | D111: ='60'!D177 -> 9.A | F111: ='60'!H177 -> 814.4478746 | G111: ='300'!H176 -> 815.7215274 | H111: ='1000'!H177 -> 0 | I111: =DÁLKA!H177 -> 727.662 | J111: =VÝŠKA!H177 -> 656.96 | K111: =MÍČEK!H177 -> 325 | L111: =KOULE!H177 -> 554.4444444 | M111: =ČLUNEK!H177 -> 0 | N111: =LEHSED!H177 -> 687.5 | O111: =ODBÍJENÍ!H177 -> 152 | P111: =PLAVÁNÍ!H177 -> 511.9635032 | Q111: =ŠPLH!H177 -> 0 | R111: =ŠVIHADLO!H177 -> 0 | S111: ='Z MÍSTA'!H177 -> 0 | T111: =REPRE!E80 -> 0 | U111: 5245.69935
B112: ='60'!B178 -> VU TRAN DINH | C112: ='60'!C178 -> Lukas | D112: ='60'!D178 -> 9.A | F112: ='60'!H178 -> 783.5564368 | G112: ='300'!H177 -> 0 | H112: ='1000'!H178 -> 0 | I112: =DÁLKA!H178 -> 669.864 | J112: =VÝŠKA!H178 -> 0 | K112: =MÍČEK!H178 -> 506.25 | L112: =KOULE!H178 -> 691.1111111 | M112: =ČLUNEK!H178 -> 0 | N112: =LEHSED!H178 -> 0 | O112: =ODBÍJENÍ!H178 -> 0 | P112: =PLAVÁNÍ!H178 -> 436.9544345 | Q112: =ŠPLH!H178 -> 0 | R112: =ŠVIHADLO!H178 -> 0 | S112: ='Z MÍSTA'!H178 -> 0 | T112: =REPRE!E81 -> 0 | U112: 3087.735982
B113: ='60'!B179 -> DUFEK | C113: ='60'!C179 -> Matyáš | D113: ='60'!D179 -> 9.B | F113: ='60'!H179 -> 0 | G113: ='300'!H178 -> 0 | H113: ='1000'!H179 -> 0 | I113: =DÁLKA!H179 -> 0 | J113: =VÝŠKA!H179 -> 525.4 | K113: =MÍČEK!H179 -> 362.5 | L113: =KOULE!H179 -> 0 | M113: =ČLUNEK!H179 -> 0 | N113: =LEHSED!H179 -> 0 | O113: =ODBÍJENÍ!H179 -> 168 | P113: =PLAVÁNÍ!H179 -> 0 | Q113: =ŠPLH!H179 -> 0 | R113: =ŠVIHADLO!H179 -> 0 | S113: ='Z MÍSTA'!H179 -> 0 | T113: =REPRE!E82 -> 0 | U113: 1055.9
B114: ='60'!B180 -> JEŽEK | C114: ='60'!C180 -> Jonáš | D114: ='60'!D180 -> 9.B | F114: ='60'!H180 -> 828.9318167 | G114: ='300'!H179 -> 0 | H114: ='1000'!H180 -> 0 | I114: =DÁLKA!H180 -> 0 | J114: =VÝŠKA!H180 -> 611.2 | K114: =MÍČEK!H180 -> 562.5 | L114: =KOULE!H180 -> 653.8888889 | M114: =ČLUNEK!H180 -> 0 | N114: =LEHSED!H180 -> 0 | O114: =ODBÍJENÍ!H180 -> 679.6 | P114: =PLAVÁNÍ!H180 -> 436.9544345 | Q114: =ŠPLH!H180 -> 0 | R114: =ŠVIHADLO!H180 -> 0 | S114: ='Z MÍSTA'!H180 -> 0 | T114: =REPRE!E83 -> 0 | U114: 3773.07514
B115: ='60'!B181 -> JEŽEK | C115: ='60'!C181 -> Mikuláš | D115: ='60'!D181 -> 9.B | F115: ='60'!H181 -> 0 | G115: ='300'!H180 -> 0 | H115: ='1000'!H181 -> 0 | I115: =DÁLKA!H181 -> 0 | J115: =VÝŠKA!H181 -> 714.16 | K115: =MÍČEK!H181 -> 562.5 | L115: =KOULE!H181 -> 0 | M115: =ČLUNEK!H181 -> 0 | N115: =LEHSED!H181 -> 0 | O115: =ODBÍJENÍ!H181 -> 0 | P115: =PLAVÁNÍ!H181 -> 436.9544345 | Q115: =ŠPLH!H181 -> 0 | R115: =ŠVIHADLO!H181 -> 0 | S115: ='Z MÍSTA'!H181 -> 0 | T115: =REPRE!E84 -> 0 | U115: 1713.614434
B116: ='60'!B182 -> NECHANICKÝ | C116: ='60'!C182 -> Michal | D116: ='60'!D182 -> 9.B | F116: ='60'!H182 -> 814.4478746 | G116: ='300'!H181 -> 0 | H116: ='1000'!H182 -> 0 | I116: =DÁLKA!H182 -> 681.72 | J116: =VÝŠKA!H182 -> 651.24 | K116: =MÍČEK!H182 -> 487.5 | L116: =KOULE!H182 -> 574.4444444 | M116: =ČLUNEK!H182 -> 0 | N116: =LEHSED!H182 -> 325 | O116: =ODBÍJENÍ!H182 -> 668.4 | P116: =PLAVÁNÍ!H182 -> 0 | Q116: =ŠPLH!H182 -> 0 | R116: =ŠVIHADLO!H182 -> 531.25 | S116: ='Z MÍSTA'!H182 -> 501.6 | T116: =REPRE!E85 -> 0 | U116: 5235.602319
B117: ='60'!B183 -> PAULÍČEK | C117: ='60'!C183 -> Jakub | D117: ='60'!D183 -> 9.B | F117: ='60'!H183 -> 802.0585553 | G117: ='300'!H182 -> 0 | H117: ='1000'!H183 -> 0 | I117: =DÁLKA!H183 -> 0 | J117: =VÝŠKA!H183 -> 742.76 | K117: =MÍČEK!H183 -> 475 | L117: =KOULE!H183 -> 0 | M117: =ČLUNEK!H183 -> 0 | N117: =LEHSED!H183 -> 0 | O117: =ODBÍJENÍ!H183 -> 96 | P117: =PLAVÁNÍ!H183 -> 0 | Q117: =ŠPLH!H183 -> 0 | R117: =ŠVIHADLO!H183 -> 0 | S117: ='Z MÍSTA'!H183 -> 0 | T117: =REPRE!E86 -> 0 | U117: 2115.818555
B118: ='60'!B184 -> POHOŘALÝ | C118: ='60'!C184 -> Jakub | D118: ='60'!D184 -> 9.B | F118: ='60'!H184 -> 887.6020161 | G118: ='300'!H183 -> 0 | H118: ='1000'!H184 -> 0 | I118: =DÁLKA!H184 -> 770.64 | J118: =VÝŠKA!H184 -> 742.76 | K118: =MÍČEK!H184 -> 568.75 | L118: =KOULE!H184 -> 762.2222222 | M118: =ČLUNEK!H184 -> 0 | N118: =LEHSED!H184 -> 0 | O118: =ODBÍJENÍ!H184 -> 576 | P118: =PLAVÁNÍ!H184 -> 0 | Q118: =ŠPLH!H184 -> 0 | R118: =ŠVIHADLO!H184 -> 0 | S118: ='Z MÍSTA'!H184 -> 0 | T118: =REPRE!E87 -> 0 | U118: 4307.974238
B119: ='60'!B185 -> POSPÍCHAL | C119: ='60'!C185 -> Daniel | D119: ='60'!D185 -> 9.B | F119: ='60'!H185 -> 799.7843281 | G119: ='300'!H184 -> 0 | H119: ='1000'!H185 -> 0 | I119: =DÁLKA!H185 -> 687.648 | J119: =VÝŠKA!H185 -> 582.6 | K119: =MÍČEK!H185 -> 0 | L119: =KOULE!H185 -> 683.8888889 | M119: =ČLUNEK!H185 -> 0 | N119: =LEHSED!H185 -> 0 | O119: =ODBÍJENÍ!H185 -> 248 | P119: =PLAVÁNÍ!H185 -> 0 | Q119: =ŠPLH!H185 -> 0 | R119: =ŠVIHADLO!H185 -> 0 | S119: ='Z MÍSTA'!H185 -> 0 | T119: =REPRE!E88 -> 0 | U119: 3001.921217
B120: ='60'!B186 -> SOUKUP | C120: ='60'!C186 -> Lukáš | D120: ='60'!D186 -> 9.B | F120: ='60'!H186 -> 799.7843281 | G120: ='300'!H185 -> 0 | H120: ='1000'!H186 -> 0 | I120: =DÁLKA!H186 -> 739.518 | J120: =VÝŠKA!H186 -> 656.96 | K120: =MÍČEK!H186 -> 487.5 | L120: =KOULE!H186 -> 743.8888889 | M120: =ČLUNEK!H186 -> 0 | N120: =LEHSED!H186 -> 0 | O120: =ODBÍJENÍ!H186 -> 679.6 | P120: =PLAVÁNÍ!H186 -> 0 | Q120: =ŠPLH!H186 -> 0 | R120: =ŠVIHADLO!H186 -> 0 | S120: ='Z MÍSTA'!H186 -> 0 | T120: =REPRE!E89 -> 0 | U120: 4107.251217
B121: ='60'!B187 -> VANCL | C121: ='60'!C187 -> Jan | D121: ='60'!D187 -> 9.B | F121: ='60'!H187 -> 866.0906872 | G121: ='300'!H186 -> 0 | H121: ='1000'!H187 -> 0 | I121: =DÁLKA!H187 -> 739.518 | J121: =VÝŠKA!H187 -> 799.96 | K121: =MÍČEK!H187 -> 775 | L121: =KOULE!H187 -> 838.8888889 | M121: =ČLUNEK!H187 -> 0 | N121: =LEHSED!H187 -> 0 | O121: =ODBÍJENÍ!H187 -> 272 | P121: =PLAVÁNÍ!H187 -> 436.9544345 | Q121: =ŠPLH!H187 -> 0 | R121: =ŠVIHADLO!H187 -> 0 | S121: ='Z MÍSTA'!H187 -> 0 | T121: =REPRE!E90 -> 0 | U121: 4728.412011
B122: ='60'!B188 -> VANCL | C122: ='60'!C188 -> Lukáš | D122: ='60'!D188 -> 9.B | F122: ='60'!H188 -> 834.7280104 | G122: ='300'!H187 -> 754.3277273 | H122: ='1000'!H188 -> 0 | I122: =DÁLKA!H188 -> 726.18 | J122: =VÝŠKA!H188 -> 799.96 | K122: =MÍČEK!H188 -> 662.5 | L122: =KOULE!H188 -> 924.4444444 | M122: =ČLUNEK!H188 -> 0 | N122: =LEHSED!H188 -> 0 | O122: =ODBÍJENÍ!H188 -> 576 | P122: =PLAVÁNÍ!H188 -> 436.9544345 | Q122: =ŠPLH!H188 -> 0 | R122: =ŠVIHADLO!H188 -> 0 | S122: ='Z MÍSTA'!H188 -> 0 | T122: =REPRE!E91 -> 0 | U122: 5715.094617
B123: ='60'!B189 -> VAŠÍK | C123: ='60'!C189 -> Jiří | D123: ='60'!D189 -> 9.B | F123: ='60'!H189 -> 794.5359835 | G123: ='300'!H188 -> 0 | H123: ='1000'!H189 -> 0 | I123: =DÁLKA!H189 -> 674.31 | J123: =VÝŠKA!H189 -> 628.36 | K123: =MÍČEK!H189 -> 450 | L123: =KOULE!H189 -> 626.6666667 | M123: =ČLUNEK!H189 -> 0 | N123: =LEHSED!H189 -> 0 | O123: =ODBÍJENÍ!H189 -> 120 | P123: =PLAVÁNÍ!H189 -> 0 | Q123: =ŠPLH!H189 -> 0 | R123: =ŠVIHADLO!H189 -> 0 | S123: ='Z MÍSTA'!H189 -> 0 | T123: =REPRE!E92 -> 0 | U123: 3293.87265
B124: ='60'!B190 -> VOHNOUT | C124: ='60'!C190 -> Zdeněk | D124: ='60'!D190 -> 9.B | F124: ='60'!H190 -> 919.6685934 | G124: ='300'!H189 -> 962.9828242 | H124: ='1000'!H190 -> 0 | I124: =DÁLKA!H190 -> 835.848 | J124: =VÝŠKA!H190 -> 782.8 | K124: =MÍČEK!H190 -> 618.75 | L124: =KOULE!H190 -> 717.7777778 | M124: =ČLUNEK!H190 -> 0 | N124: =LEHSED!H190 -> 0 | O124: =ODBÍJENÍ!H190 -> 642 | P124: =PLAVÁNÍ!H190 -> 0 | Q124: =ŠPLH!H190 -> 0 | R124: =ŠVIHADLO!H190 -> 0 | S124: ='Z MÍSTA'!H190 -> 0 | T124: =REPRE!E93 -> 0 | U124: 5479.827195

Sheet ROČ
C1: CELKOVÉ VÝSLEDKY | W1: =TODAY() -> 2021-06-28
B3: 6. ročník | F3: 60 m | G3: 300m | H3: 1000m | I3: dálka | J3: výška | K3: míček | L3: koule | M3: oštěp | N3: člunek | O3: lehsed | P3: odbíjení | Q3: plavání | R3: shyby | S3: šplh | T3: švihadlo | U3: z místa | V3: REPRE | W3: CELKEM
A5: 1. | B5: =B121 -> BOUKAL | C5: =C121 -> Jakub | D5: 6.A | F5: 608.6949179 | G5: 357.2276587 | H5: 0 | I5: 474.24 | J5: 0 | K5: 175 | L5: 548.3333333 | M5: =M121 -> 0 | N5: 663.7575028 | O5: 0 | P5: 96 | Q5: 0 | R5: 0 | S5: 0 | T5: 0 | U5: 0 | V5: 0 | W5: 2923.253413
A6: 2. | B6: =B122 -> DEMČUK | C6: Ilja | D6: 6.A | F6: =F122 -> 686.3454534 | G6: 582.9735498 | H6: 0 | I6: 572.052 | J6: 571.16 | K6: 250 | L6: 515.5555556 | M6: 0 | N6: 0 | O6: 312.5 | P6: 120 | Q6: 0 | R6: 0 | S6: 0 | T6: 0 | U6: 570 | V6: 0 | W6: =W122 -> 4180.586559
A7: 3. | B7: =B123 -> FAISTAUER | C7: Kryštof | D7: 6.A | F7: =F123 -> 767.3945441 | G7: 670.248152 | H7: 0 | I7: 653.562 | J7: 628.36 | K7: 431.25 | L7: 488.8888889 | M7: 0 | N7: 855.6771362 | O7: 512.5 | P7: 64 | Q7: 0 | R7: 0 | S7: 0 | T7: 325 | U7: 627 | V7: 0 | W7: 6023.880721
A8: 4. | B8: =B124 -> FRK | C8: Matyáš | D8: 6.A | F8: =F124 -> 602.4974976 | G8: 351.7134153 | H8: 0 | I8: 529.074 | J8: 411 | K8: 0 | L8: 0 | M8: 0 | N8: 639.1720793 | O8: 0 | P8: 112 | Q8: 0 | R8: 0 | S8: 0 | T8: 0 | U8: 0 | V8: 0 | W8: 2645.456992
A9: 5. | B9: =B125 -> HUBÁLOVSKÝ | C9: Marek | D9: 6.A | F9: =F125 -> 657.4040393 | G9: 442.951971 | H9: 0 | I9: 678.756 | J9: 485.36 | K9: 325 | L9: 413.8888889 | M9: 0 | N9: 680.2297461 | O9: 0 | P9: 64 | Q9: 0 | R9: 0 | S9: 0 | T9: 0 | U9: 0 | V9: 0 | W9: 3747.590645
A10: 6. | B10: =B126 -> MAŘAS | C10: Dominik | D10: 6.A | F10: =F126 -> 647.6364407 | G10: 379.6319554 | H10: 0 | I10: 545.376 | J10: 0 | K10: 275 | L10: 517.2222222 | M10: 0 | N10: 639.1720793 | O10: 0 | P10: 88 | Q10: 0 | R10: 0 | S10: 0 | T10: 0 | U10: 691.6 | V10: 0 | W10: 3783.638698
A11: 7. | B11: =B127 -> MAŤÁTKO | C11: Jakub | D11: 6.A | F11: =F127 -> 585.1621053 | G11: 331.6780969 | H11: 0 | I11: 0 | J11: 0 | K11: 250 | L11: 435.5555556 | M11: 0 | N11: 475.326472 | O11: 0 | P11: 80 | Q11: 0 | R11: 0 | S11: 0 | T11: 0 | U11: 0 | V11: 0 | W11: 2157.72223
A12: 8. | B12: =B128 -> MERY | C12: Luboš | D12: 6.A | F12: =F128 -> 657.4040393 | G12: 407.1843586 | H12: 0 | I12: 0 | J12: 456.76 | K12: 0 | L12: 0 | M12: 0 | N12: 663.7575028 | O12: 325 | P12: 32 | Q12: 0 | R12: 0 | S12: 0 | T12: 112.5 | U12: 566.2 | V12: 0 | W12: 3220.805901
A13: 9. | B13: =B129 -> NOVOTNÝ | C13: Matěj | D13: 6.A | F13: =F129 -> 680.6211833 | G13: 0 | H13: 0 | I13: 527.592 | J13: 439.6 | K13: 362.5 | L13: 0 | M13: 0 | N13: 722.344333 | O13: 0 | P13: 0 | Q13: 0 | R13: 0 | S13: 0 | T13: 0 | U13: 0 | V13: 0 | W13: 2732.657516
A14: 10. | B14: =B130 -> ŘEHOŘEK | C14: Vojtěch | D14: 6.A | F14: =F130 -> 635.1483363 | G14: 440.4559076 | H14: 0 | I14: 549.822 | J14: 485.36 | K14: 500 | L14: 507.2222222 | M14: 0 | N14: 0 | O14: 350 | P14: 112 | Q14: 0 | R14: 0 | S14: 0 | T14: 0 | U14: 554.8 | V14: 0 | W14: 4134.808466
A15: 11. | B15: =B131 -> ŠÍR | C15: Matyáš | D15: 6.A | F15: =F131 -> 655.0460078 | G15: 465.7496614 | H15: 0 | I15: 530.556 | J15: 479.64 | K15: 250 | L15: 379.4444444 | M15: 0 | N15: 603.039864 | O15: 475 | P15: 88 | Q15: 0 | R15: 0 | S15: 0 | T15: 237.5 | U15: 600.4 | V15: 0 | W15: 4764.375978
A16: 12. | B16: =B132 -> TORÁČ | C16: Tomáš | D16: 6.A | F16: =F132 -> 387.7719881 | G16: 110.1526699 | H16: 0 | I16: 0 | J16: 0 | K16: 156.25 | L16: 427.2222222 | M16: 0 | N16: 372.892898 | O16: 0 | P16: 96 | Q16: 0 | R16: 0 | S16: 0 | T16: 0 | U16: 0 | V16: 0 | W16: 1550.289778
A17: 13. | B17: =B133 -> ULLMAN | C17: Šimon | D17: 6.A | F17: =F133 -> 790.1011078 | G17: 690.3599225 | H17: 0 | I17: 634.296 | J17: 439.6 | K17: 306.25 | L17: 0 | M17: 0 | N17: 788.2386569 | O17: 0 | P17: 48 | Q17: 0 | R17: 0 | S17: 0 | T17: 0 | U17: 0 | V17: 0 | W17: 3696.845687
A18: 14. | B18: =B134 -> VÁCLAVÍK | C18: Ondřej | D18: 6.A | F18: =F134 -> 681.6533976 | G18: 609.1811602 | H18: 0 | I18: 569.088 | J18: 542.56 | K18: 450 | L18: 488.8888889 | M18: 0 | N18: 755.1114192 | O18: 0 | P18: 0 | Q18: 0 | R18: 0 | S18: 0 | T18: 0 | U18: 0 | V18: 0 | W18: 4096.482866
A19: 15. | B19: =B135 -> AUERSWALD | C19: Daniel | D19: 6.B | F19: =F135 -> 741.7076005 | G19: 594.2990891 | H19: 0 | I19: 626.886 | J19: 628.36 | K19: 312.5 | L19: 473.8888889 | M19: 0 | N19: 761.8226409 | O19: 0 | P19: 152 | Q19: 0 | R19: 0 | S19: 0 | T19: 187.5 | U19: 0 | V19: 0 | W19: 4478.964219
A20: 16. | B20: =B136 -> BODLÁK | C20: Vladimír | D20: 6.B | F20: =F136 -> 853.5742752 | G20: 881.7771043 | H20: 0 | I20: 0 | J20: 628.36 | K20: 0 | L20: 735.5555556 | M20: 0 | N20: 923.6308113 | O20: 662.5 | P20: 0 | Q20: 0 | R20: 0 | S20: 0 | T20: 312.5 | U20: 114 | V20: 0 | W20: 5111.897746
A21: 17. | B21: =B137 -> BUDÍN | C21: Martin | D21: 6.B | F21: =F137 -> 707.6107236 | G21: 613.09701 | H21: 0 | I21: 595.764 | J21: 513.96 | K21: 387.5 | L21: 393.3333333 | M21: 0 | N21: 780.3215075 | O21: 375 | P21: 72 | Q21: 0 | R21: 0 | S21: 0 | T21: 500 | U21: 570 | V21: 0 | W21: 5508.586574
A22: 18. | B22: =B138 -> DVOŘÁK | C22: Dominik | D22: 6.B | F22: =F138 -> 651.3155856 | G22: 0 | H22: 0 | I22: 477.204 | J22: 411 | K22: 0 | L22: 0 | M22: 0 | N22: 707.777346 | O22: 0 | P22: 0 | Q22: 0 | R22: 0 | S22: 0 | T22: 0 | U22: 0 | V22: 0 | W22: 2247.296932
A23: 19. | B23: =B139 -> FIŠERA | C23: Vojtěch | D23: 6.B | F23: =F139 -> 708.7440775 | G23: 632.8626166 | H23: 0 | I23: 589.836 | J23: 542.56 | K23: 237.5 | L23: 500 | M23: 0 | N23: 733.4352323 | O23: 325 | P23: 96 | Q23: 0 | R23: 0 | S23: 0 | T23: 568.75 | U23: 494 | V23: 0 | W23: 5428.687926
A24: 20. | B24: =B140 -> JINDŘIŠEK | C24: Vít | D24: 6.B | F24: =F140 -> 821.6155267 | G24: 0 | H24: 0 | I24: 675.792 | J24: 439.6 | K24: 525 | L24: 0 | M24: 0 | N24: 825.9137458 | O24: 500 | P24: 224 | Q24: 0 | R24: 0 | S24: 0 | T24: 350 | U24: 760 | V24: 0 | W24: 5121.921273
A25: 21. | B25: =B141 -> JIROUŠ | C25: Matouš | D25: 6.B | F25: =F141 -> 729.9135088 | G25: 0 | H25: 0 | I25: 638.742 | J25: 439.6 | K25: 350 | L25: 468.8888889 | M25: 0 | N25: 819.6809926 | O25: 312.5 | P25: 152 | Q25: 0 | R25: 0 | S25: 0 | T25: 250 | U25: 760 | V25: 0 | W25: 4921.32539
A26: 22. | B26: =B142 -> KERLE | C26: Marek | D26: 6.B | F26: =F142 -> 697.6022715 | G26: 685.9413855 | H26: 0 | I26: 586.872 | J26: 571.16 | K26: 0 | L26: 542.2222222 | M26: 0 | N26: 794.2281357 | O26: 600 | P26: 176 | Q26: 0 | R26: 0 | S26: 0 | T26: 231.25 | U26: 600.4 | V26: 0 | W26: 5485.676015
A27: 23. | B27: =B143 -> LUKEŠ | C27: Jakub | D27: 6.B | F27: =F143 -> 719.1430964 | G27: 680.6544324 | H27: 0 | I27: 561.678 | J27: 542.56 | K27: 262.5 | L27: 470.5555556 | M27: 0 | N27: 822.7911822 | O27: 375 | P27: 96 | Q27: 0 | R27: 0 | S27: 0 | T27: 406.25 | U27: 722 | V27: 0 | W27: 5659.132267
A28: 24. | B28: =B144 -> OTT | C28: Matyáš | D28: 6.B | F28: =F144 -> 678.5680154 | G28: 478.937555 | H28: 0 | I28: 566.124 | J28: 542.56 | K28: 362.5 | L28: 427.7777778 | M28: 0 | N28: 762.7858778 | O28: 0 | P28: 88 | Q28: 0 | R28: 0 | S28: 0 | T28: 0 | U28: 0 | V28: 0 | W28: 3907.253226
A29: 25. | B29: =B145 -> POKORNÝ | C29: Matyáš | D29: 6.B | F29: =F145 -> 808.1977818 | G29: 809.6576595 | H29: 0 | I29: 0 | J29: 571.16 | K29: 537.5 | L29: 461.1111111 | M29: 0 | N29: 882.135289 | O29: 0 | P29: 176 | Q29: 0 | R29: 0 | S29: 0 | T29: 0 | U29: 0 | V29: 0 | W29: 4245.761841
A30: 26. | B30: =B146 -> POLÁČEK | C30: Matyáš | D30: 6.B | F30: =F146 -> 654.5768642 | G30: 421.9583494 | H30: 0 | I30: 529.074 | J30: 513.96 | K30: 425 | L30: 502.7777778 | M30: 0 | N30: 687.2568313 | O30: 0 | P30: 80 | Q30: 0 | R30: 0 | S30: 0 | T30: 0 | U30: 0 | V30: 0 | W30: 3814.603823
A31: 27. | B31: =B147 -> SOUKUP | C31: Patrik | D31: 6.B | F31: =F147 -> 729.3050713 | G31: 686.4915539 | H31: 0 | I31: 603.174 | J31: 542.56 | K31: 375 | L31: 472.2222222 | M31: 0 | N31: 845.9853231 | O31: 337.5 | P31: 88 | Q31: 0 | R31: 0 | S31: 0 | T31: 593.75 | U31: 760 | V31: 0 | W31: 6033.988171
A32: 28. | B32: =B148 -> VALENTA | C32: Jakub | D32: 6.B | F32: =F148 -> 720.3211103 | G32: 0 | H32: 0 | I32: 0 | J32: 628.36 | K32: 325 | L32: 455.5555556 | M32: 0 | N32: 810.423469 | O32: 612.5 | P32: 0 | Q32: 0 | R32: 0 | S32: 0 | T32: 475 | U32: 0 | V32: 0 | W32: 4027.160135
A33: 29. | B33: VRBATA | C33: Dominik | D33: 6.B | F33: 719.7315287 | G33: 621.1903985 | H33: 0 | I33: 613.548 | J33: 571.16 | K33: 431.25 | L33: 497.2222222 | M33: 0 | N33: 822.7911822 | O33: 0 | P33: 72 | Q33: 0 | R33: 0 | S33: 0 | T33: 0 | U33: 0 | V33: 0 | W33: 4348.893332
C35: CELKOVÉ VÝSLEDKY | W35: =TODAY() -> 2021-06-28
B37: 7. ročník | F37: 60 m | G37: 300m | H37: 1000m | I37: dálka | J37: výška | K37: míček | L37: koule | N37: člunek | O37: lehsed | P37: odbíjení | Q37: plavání | S37: šplh | T37: švihadlo | U37: z místa | V37: REPRE | W37: CELKEM
A39: 1. | B39: =B150 -> FEJKL | C39: =C150 -> Jan | D39: =D150 -> 7.A | F39: =F150 -> 793.051222 | G39: 0 | H39: 0 | I39: 800.28 | J39: 788.52 | K39: 612.5 | L39: 603.8888889 | M39: 0 | N39: 0 | O39: 712.5 | P39: 144 | Q39: 436.9544345 | R39: 0 | S39: 0 | T39: 262.5 | U39: 760 | V39: 0 | W39: 5914.194545
A40: 2. | B40: =B151 -> KOTYK | C40: Tadeáš | D40: 7.A | F40: =F151 -> 694.3409504 | G40: 0 | H40: 0 | I40: 549.822 | J40: 582.6 | K40: 250 | L40: 510.5555556 | M40: 0 | N40: 0 | O40: 437.5 | P40: 56 | Q40: 0 | R40: 0 | S40: 0 | T40: 125 | U40: 228 | V40: 0 | W40: 3433.818506
A41: 3. | B41: =B152 -> KRAUSE | C41: Tadeáš | D41: 7.A | F41: =F152 -> 726.8833336 | G41: 0 | H41: 0 | I41: 640.224 | J41: 611.2 | K41: 368.75 | L41: 478.8888889 | M41: 0 | N41: 0 | O41: 675 | P41: 144 | Q41: 0 | R41: 0 | S41: 0 | T41: 756.25 | U41: 763.8 | V41: 0 | W41: 5164.996222
A42: 4. | B42: =B153 -> LEŠÁK | C42: Martin | D42: 7.A | F42: =F153 -> 685.2960597 | G42: 0 | H42: 0 | I42: 0 | J42: 548.28 | K42: 318.75 | L42: 501.6666667 | M42: 0 | N42: 0 | O42: 187.5 | P42: 56 | Q42: 0 | R42: 0 | S42: 0 | T42: 187.5 | U42: 0 | V42: 0 | W42: 2484.992726
A43: 5. | B43: =B154 -> NECHANICKÝ | C43: David | D43: 7.A | F43: =F154 -> 757.2692403 | G43: 0 | H43: 0 | I43: 660.972 | J43: 639.8 | K43: 387.5 | L43: 0 | M43: 0 | N43: 0 | O43: 0 | P43: 176 | Q43: 436.9544345 | R43: 0 | S43: 0 | T43: 0 | U43: 0 | V43: 0 | W43: 3058.495675
A44: 6. | B44: =B155 -> ŘEHOŘEK | C44: Jan | D44: 7.A | F44: =F155 -> 763.9841015 | G44: 0 | H44: 0 | I44: 647.634 | J44: 668.4 | K44: 525 | L44: 460 | M44: 0 | N44: 0 | O44: 325 | P44: 336 | Q44: 436.9544345 | R44: 0 | S44: 0 | T44: 718.75 | U44: 0 | V44: 0 | W44: 4881.722536
A45: 7. | B45: =B156 -> SOUKUP | C45: Ondřej | D45: 7.A | F45: =F156 -> 734.8248169 | G45: 0 | H45: 0 | I45: 576.498 | J45: 582.6 | K45: 0 | L45: 0 | M45: 0 | N45: 0 | O45: 587.5 | P45: 176 | Q45: 0 | R45: 0 | S45: 0 | T45: 0 | U45: 0 | V45: 0 | W45: 2657.422817
A46: 8. | B46: =B157 -> SPANILÝ | C46: David | D46: 7.A | F46: =F157 -> 747.4538948 | G46: 0 | H46: 0 | I46: 0 | J46: 0 | K46: 587.5 | L46: 481.6666667 | M46: 0 | N46: 0 | O46: 675 | P46: 336 | Q46: 436.9544345 | R46: 0 | S46: 0 | T46: 662.5 | U46: 752.4 | V46: 0 | W46: 4679.474996
A47: 9. | B47: =B158 -> ČADAN | C47: Benjamín | D47: 7.B | F47: =F158 -> 0 | G47: 0 | H47: 0 | I47: 603.174 | J47: 605.48 | K47: 325 | L47: 466.6666667 | M47: 0 | N47: 0 | O47: 0 | P47: 80 | Q47: 0 | R47: 0 | S47: 0 | T47: 0 | U47: 0 | V47: 0 | W47: 2080.320667
A48: 10. | B48: =B159 -> ČERNÝ | C48: Michal | D48: 7.B | F48: =F159 -> 713.3212519 | G48: 0 | H48: 0 | I48: 529.074 | J48: 548.28 | K48: 493.75 | L48: 463.8888889 | M48: 0 | N48: 0 | O48: 0 | P48: 120 | Q48: 0 | R48: 0 | S48: 0 | T48: 0 | U48: 0 | V48: 0 | W48: 2868.314141
A49: 11. | B49: =B160 -> DOLEJŠÍ | C49: David | D49: 7.B | F49: =F160 -> 673.4998351 | G49: 0 | H49: 0 | I49: 560.196 | J49: 639.8 | K49: 262.5 | L49: 516.6666667 | M49: 0 | N49: 0 | O49: 562.5 | P49: 64 | Q49: 0 | R49: 0 | S49: 0 | T49: 362.5 | U49: 577.6 | V49: 0 | W49: 4219.262502
A50: 12. | B50: =B161 -> NOVÁK | C50: Matěj | D50: 7.B | F50: =F161 -> 707.0456704 | G50: 0 | H50: 0 | I50: 588.354 | J50: 582.6 | K50: 381.25 | L50: 463.3333333 | M50: 0 | N50: 0 | O50: 0 | P50: 64 | Q50: 0 | R50: 0 | S50: 0 | T50: 425 | U50: 642.2 | V50: 0 | W50: 3853.783004
A51: 13. | B51: =B162 -> POVAŽANEC | C51: Martin | D51: 7.B | F51: =F162 -> 743.6113762 | G51: 0 | H51: 0 | I51: 660.972 | J51: 611.2 | K51: 506.25 | L51: 645 | M51: 0 | N51: 0 | O51: 0 | P51: 64 | Q51: 0 | R51: 0 | S51: 0 | T51: 0 | U51: 0 | V51: 0 | W51: 3231.033376
A52: 14. | B52: =B163 -> RICHTER | C52: Jakub | D52: 7.B | F52: =F163 -> 0 | G52: 0 | H52: 0 | I52: 0 | J52: 0 | K52: 287.5 | L52: 0 | M52: 0 | N52: 0 | O52: 250 | P52: 0 | Q52: 0 | R52: 0 | S52: 0 | T52: 0 | U52: 0 | V52: 0 | W52: 537.5
A53: 15. | B53: =B164 -> ROZUMEK | C53: Adam | D53: 7.B | F53: =F164 -> 0 | G53: 0 | H53: 0 | I53: 515.736 | J53: 548.28 | K53: 475 | L53: 595.5555556 | M53: 0 | N53: 0 | O53: 0 | P53: 208 | Q53: 0 | R53: 0 | S53: 0 | T53: 0 | U53: 0 | V53: 0 | W53: 2342.571556
A54: 16. | B54: =B165 -> VALENTA | C54: =C165 -> František | D54: =D165 -> 7.B | F54: =F165 -> 682.6893928 | G54: 0 | H54: 0 | I54: 515.736 | J54: 582.6 | K54: 250 | L54: 513.3333333 | M54: 0 | N54: 0 | O54: 0 | P54: 120 | Q54: 0 | R54: 0 | S54: 0 | T54: 0 | U54: 0 | V54: 0 | W54: =W165 -> 2664.358726
A55: 17. | B55: =B166 -> ZAPLATÍLEK | C55: Josef | D55: 7.B | F55: =F166 -> 733.5896376 | G55: 0 | H55: 0 | I55: 0 | J55: 582.6 | K55: 450 | L55: 467.2222222 | M55: 0 | N55: 0 | O55: 0 | P55: 208 | Q55: 0 | R55: 0 | S55: 0 | T55: 0 | U55: 0 | V55: 0 | W55: 2441.41186
C58: CELKOVÉ VÝSLEDKY | W58: =W35 -> 2021-06-28
B60: 8. ročník | F60: 60 m | G60: 300m | H60: 1000m | I60: dálka | J60: výška | K60: míček | L60: koule | N60: člunek | O60: lehsed | P60: odbíjení | Q60: plavání | S60: šplh | T60: švihadlo | U60: z místa | V60: REPRE | W60: CELKEM
A62: 1. | B62: =B167 -> ERBEN | C62: =C167 -> Viktor | D62: =D167 -> 8.A | F62: =F167 -> 709.3123844 | G62: 520.9774453 | H62: 0 | I62: 0 | J62: 605.48 | K62: 262.5 | L62: 490.5555556 | M62: 0 | N62: 767.6191366 | O62: 350 | P62: 232 | Q62: 0 | R62: 0 | S62: 0 | T62: 0 | U62: 623.2 | V62: 0 | W62: 4561.644522
A63: 2. | B63: =B168 -> FRANC | C63: =C168 -> Daniel | D63: 8.A | F63: =F168 -> 673.4998351 | G63: 0 | H63: 0 | I63: 564.642 | J63: 605.48 | K63: 325 | L63: 0 | M63: 0 | N63: 679.3552394 | O63: 0 | P63: 104 | Q63: 0 | R63: 0 | S63: 0 | T63: 0 | U63: 600.4 | V63: 0 | W63: 3552.377074
A64: 3. | B64: =B169 -> JINDŘIŠEK | C64: Matyáš | D64: 8.A | F64: =F169 -> 0 | G64: 743.7507218 | H64: 0 | I64: 0 | J64: 628.36 | K64: 0 | L64: 643.8888889 | M64: 0 | N64: 873.2139985 | O64: 512.5 | P64: 224 | Q64: 0 | R64: 0 | S64: 0 | T64: 493.75 | U64: 779 | V64: 0 | W64: 4898.463609
A65: 4. | B65: =B170 -> KOLAČNÝ | C65: Štěpán | D65: 8.A | F65: =F170 -> 692.1869804 | G65: 454.7174192 | H65: 0 | I65: 566.124 | J65: 548.28 | K65: 312.5 | L65: 600.5555556 | M65: 0 | N65: 794.2281357 | O65: 537.5 | P65: 152 | Q65: 0 | R65: 0 | S65: 0 | T65: 0 | U65: 684 | V65: 0 | W65: 5342.092091
A66: 5. | B66: =B171 -> KRISTAN | C66: Jáchym | D66: 8.A | F66: =F171 -> 541.0170446 | G66: 259.3435753 | H66: 0 | I66: 0 | J66: 485.36 | K66: 187.5 | L66: 372.2222222 | M66: 0 | N66: 500.0827291 | O66: 0 | P66: 96 | Q66: 0 | R66: 0 | S66: 0 | T66: 0 | U66: 440.8 | V66: 0 | W66: 2882.325571
A67: 6. | B67: =B172 -> NGUYEN | C67: David | D67: 8.A | F67: =F172 -> 0 | G67: 0 | H67: 0 | I67: 0 | J67: 628.36 | K67: 456.25 | L67: 0 | M67: 0 | N67: 876.5472854 | O67: 0 | P67: 232 | Q67: 0 | R67: 0 | S67: 0 | T67: 0 | U67: 874 | V67: 0 | W67: 3067.157285
A68: 7. | B68: =B173 -> NOVOTNÝ | C68: Jan | D68: 8.A | F68: =F173 -> 772.2299225 | G68: 809.1939274 | H68: 0 | I68: 662.454 | J68: 628.36 | K68: 337.5 | L68: 0 | M68: 0 | N68: 865.4923011 | O68: 0 | P68: 128 | Q68: 0 | R68: 0 | S68: 0 | T68: 0 | U68: 0 | V68: 0 | W68: 4203.230151
A69: 8. | B69: =B174 -> RÁB | C69: Adam | D69: 8.A | F69: =F174 -> 625.320837 | G69: 436.640326 | H69: 0 | I69: 532.038 | J69: 508.24 | K69: 318.75 | L69: 611.6666667 | M69: 0 | N69: 705.0732463 | O69: 0 | P69: 96 | Q69: 0 | R69: 0 | S69: 0 | T69: 0 | U69: 615.6 | V69: 0 | W69: 4449.329076
A70: 9. | B70: =B175 -> REPASKÝ | C70: Jakub | D70: 8.A | F70: =F175 -> 823.2283622 | G70: 765.5481923 | H70: 0 | I70: 0 | J70: 628.36 | K70: 631.25 | L70: 667.7777778 | M70: 0 | N70: 916.5547796 | O70: 612.5 | P70: 584 | Q70: 0 | R70: 0 | S70: 0 | T70: 912.5 | U70: 809.4 | V70: 0 | W70: 7351.119112
A71: 10. | B71: =B176 -> SKÁLA | C71: Jan | D71: 8.A | F71: =F176 -> 823.2283622 | G71: 743.3402435 | H71: 0 | I71: 715.806 | J71: 628.36 | K71: 375 | L71: 688.3333333 | M71: 0 | N71: 818.6469916 | O71: 0 | P71: 120 | Q71: 0 | R71: 0 | S71: 0 | T71: 0 | U71: 809.4 | V71: 0 | W71: 5722.114931
A72: 11. | B72: =B177 -> ŠPULÁK | C72: Jakub | D72: 8.A | F72: =F177 -> 747.4538948 | G72: 656.940733 | H72: 0 | I72: 626.886 | J72: 628.36 | K72: 562.5 | L72: 661.6666667 | M72: 0 | N72: 787.244744 | O72: 337.5 | P72: 144 | Q72: 0 | R72: 0 | S72: 0 | T72: 212.5 | U72: 737.2 | V72: 0 | W72: 6102.252038
A73: 12. | B73: =B178 -> VALENTA | C73: Tomáš | D73: 8.A | F73: =F178 -> 872.5095561 | G73: 901.0188423 | H73: 0 | I73: 829.92 | J73: 628.36 | K73: 662.5 | L73: 766.6666667 | M73: 0 | N73: 900.2976199 | O73: 612.5 | P73: 584 | Q73: 0 | R73: 0 | S73: 0 | T73: 887.5 | U73: 889.2 | V73: 0 | W73: 8534.472685
A74: 13. | B74: =B179 -> VANCL | C74: Jiří | D74: 8.A | F74: =F179 -> 757.9344574 | G74: 616.412371 | H74: 0 | I74: 0 | J74: 605.48 | K74: 387.5 | L74: 583.8888889 | M74: 0 | N74: 818.6469916 | O74: 0 | P74: 256 | Q74: 0 | R74: 0 | S74: 0 | T74: 0 | U74: 771.4 | V74: 0 | W74: 4797.262709
A75: 14. | B75: =B180 -> VAŠÍČEK | C75: David | D75: 8.A | F75: =F180 -> 0 | G75: 0 | H75: 0 | I75: 628.368 | J75: 0 | K75: 406.25 | L75: 0 | M75: 0 | N75: 0 | O75: 0 | P75: 248 | Q75: 0 | R75: 0 | S75: 0 | T75: 0 | U75: 794.2 | V75: 0 | W75: 2076.818
A76: 15. | B76: =B181 -> ZOUHAR | C76: Ondřej | D76: 8.A | F76: =F181 -> 819.2100192 | G76: 786.9346915 | H76: 0 | I76: 663.936 | J76: 605.48 | K76: 437.5 | L76: 520.5555556 | M76: 0 | N76: 862.2066446 | O76: 0 | P76: 248 | Q76: 0 | R76: 0 | S76: 0 | T76: 0 | U76: 786.6 | V76: 0 | W76: 5730.422911
A77: 16. | B77: =B182 -> ZUZÁNEK | C77: Filip | D77: 8.A | F77: =F182 -> 732.3593794 | G77: 622.7941174 | H77: 0 | I77: 0 | J77: 628.36 | K77: 306.25 | L77: 533.3333333 | M77: 0 | N77: 845.9853231 | O77: 0 | P77: 256 | Q77: 0 | R77: 0 | S77: 0 | T77: 0 | U77: 725.8 | V77: 0 | W77: 4650.882153
C80: CELKOVÉ VÝSLEDKY
B82: 9. ročník | F82: 60 m | G82: 300m | H82: 1000m | I82: dálka | J82: výška | K82: míček | L82: koule | N82: člunek | O82: lehsed | P82: odbíjení | Q82: plavání | S82: šplh | T82: švihadlo | U82: z místa | V82: REPRE | W82: CELKEM
A84: 1. | B84: =B183 -> BRUMLICH | C84: =C183 -> Jan | D84: =D183 -> 9.A | F84: =F183 -> 0 | G84: 785.3787608 | H84: 0 | I84: 0 | J84: 742.76 | K84: 725 | L84: 842.7777778 | M84: 0 | N84: 0 | O84: 0 | P84: 328 | Q84: 436.9544345 | R84: 0 | S84: 0 | T84: 0 | U84: 0 | V84: 0 | W84: 3860.870973
A85: 2. | B85: =B184 -> BUCHAR | C85: Jiří | D85: 9.A | F85: =F184 -> 811.3087831 | G85: 772.2220729 | H85: 0 | I85: 726.18 | J85: 714.16 | K85: 406.25 | L85: 0 | M85: 0 | N85: 0 | O85: 0 | P85: 328 | Q85: 0 | R85: 0 | S85: 0 | T85: 0 | U85: 0 | V85: 0 | W85: 3758.120856
A86: 3. | B86: =B185 -> FAISTAUER | C86: Jiří | D86: 9.A | F86: =F185 -> 0 | G86: 0 | H86: 0 | I86: 714.324 | J86: 656.96 | K86: 550 | L86: 600 | M86: 0 | N86: 0 | O86: 0 | P86: 0 | Q86: 0 | R86: 0 | S86: 0 | T86: 0 | U86: 0 | V86: 0 | W86: 2521.284
A87: 4. | B87: =B186 -> FAISTAUER | C87: Roman | D87: 9.A | F87: =F186 -> 863.3729673 | G87: 696.1259162 | H87: 0 | I87: 723.216 | J87: 685.56 | K87: 650 | L87: 728.3333333 | M87: 0 | N87: 0 | O87: 0 | P87: 248 | Q87: 0 | R87: 0 | S87: 0 | T87: 0 | U87: 0 | V87: 0 | W87: 4594.608217
A88: 5. | B88: =B187 -> FAJSTAVR | C88: Jakub | D88: 9.A | F88: =F187 -> 802.0585553 | G88: 650.0818055 | H88: 0 | I88: 678.756 | J88: 611.2 | K88: 0 | L88: 735 | M88: 0 | N88: 0 | O88: 600 | P88: 0 | Q88: 511.9635032 | R88: 0 | S88: 0 | T88: 412.5 | U88: 459.8 | V88: 0 | W88: 5461.359864
A89: 6. | B89: =B188 -> FARSKÝ | C89: Vojtěch | D89: 9.A | F89: =F188 -> 810.5284141 | G89: 0 | H89: 0 | I89: 748.41 | J89: 777.08 | K89: 675 | L89: 682.7777778 | M89: 0 | N89: 0 | O89: 0 | P89: 642 | Q89: 0 | R89: 0 | S89: 0 | T89: 0 | U89: 0 | V89: 0 | W89: 4335.796192
A90: 7. | B90: =B189 -> HOLUBEC | C90: Lukáš | D90: 9.A | F90: =F189 -> 0 | G90: 0 | H90: 0 | I90: 601.692 | J90: 628.36 | K90: 437.5 | L90: 646.1111111 | M90: 0 | N90: 0 | O90: 0 | P90: 120 | Q90: 0 | R90: 0 | S90: 0 | T90: 0 | U90: 0 | V90: 0 | W90: 2433.663111
A91: 8. | B91: =B190 -> CHAROUZ | C91: Vojtěch | D91: 9.A | F91: =F190 -> 802.0585553 | G91: 715.5790691 | H91: 0 | I91: 711.36 | J91: 725.6 | K91: 375 | L91: 611.1111111 | M91: 0 | N91: 0 | O91: 0 | P91: 152 | Q91: 0 | R91: 0 | S91: 0 | T91: 0 | U91: 0 | V91: 0 | W91: 4092.708736
A92: 9. | B92: =B191 -> IACCHERI | C92: Carlo | D92: 9.A | F92: =F191 -> 783.5564368 | G92: 680.2918958 | H92: 0 | I92: 613.548 | J92: 628.36 | K92: 0 | L92: 670 | M92: 0 | N92: 0 | O92: 0 | P92: 0 | Q92: 436.9544345 | R92: 0 | S92: 0 | T92: 0 | U92: 703 | V92: 0 | W92: 4515.710767
A93: 10. | B93: =B192 -> JOHN | C93: Adrian | D93: 9.A | F93: =F192 -> 553.0231758 | G93: 0 | H93: 0 | I93: 419.406 | J93: 399.56 | K93: 250 | L93: 501.1111111 | M93: 0 | N93: 0 | O93: 375 | P93: 128 | Q93: 0 | R93: 0 | S93: 0 | T93: 0 | U93: 0 | V93: 0 | W93: 2626.100287
A94: 11. | B94: =B193 -> KRČÍK | C94: Matthew | D94: 9.A | F94: =F193 -> 780.6883103 | G94: 0 | H94: 0 | I94: 631.332 | J94: 656.96 | K94: 0 | L94: 632.2222222 | M94: 0 | N94: 0 | O94: 0 | P94: 0 | Q94: 511.9635032 | R94: 0 | S94: 0 | T94: 0 | U94: 0 | V94: 0 | W94: 3213.166036
A95: 12. | B95: =B194 -> KRESAN | C95: Vojtěch | D95: 9.A | F95: =F194 -> 770.1488551 | G95: 0 | H95: 0 | I95: 609.102 | J95: 611.2 | K95: 331.25 | L95: 660 | M95: 0 | N95: 0 | O95: 0 | P95: 80 | Q95: 436.9544345 | R95: 0 | S95: 0 | T95: 0 | U95: 0 | V95: 0 | W95: 3498.65529
A96: 13. | B96: =B195 -> LÁNSKÝ | C96: Vojtěch | D96: 9.A | F96: =F195 -> 0 | G96: 316.5535629 | H96: 0 | I96: 0 | J96: 525.4 | K96: 268.75 | L96: 650 | M96: 0 | N96: 0 | O96: 0 | P96: 120 | Q96: 0 | R96: 0 | S96: 0 | T96: 0 | U96: 0 | V96: 0 | W96: 1880.703563
A97: 14. | B97: =B196 -> LEŠÁK | C97: Lukáš | D97: 9.A | F97: =F196 -> 641.7645004 | G97: 0 | H97: 0 | I97: 471.276 | J97: 582.6 | K97: 287.5 | L97: 541.6666667 | M97: 0 | N97: 0 | O97: 0 | P97: 0 | Q97: 0 | R97: 0 | S97: 0 | T97: 0 | U97: 0 | V97: 0 | W97: 2524.807167
A98: 15. | B98: =B197 -> RYPL | C98: Matyáš | D98: 9.A | F98: =F197 -> 814.4478746 | G98: 815.7215274 | H98: 0 | I98: 727.662 | J98: 656.96 | K98: 325 | L98: 554.4444444 | M98: 0 | N98: 0 | O98: 687.5 | P98: 152 | Q98: 511.9635032 | R98: 0 | S98: 0 | T98: 0 | U98: 0 | V98: 0 | W98: 5245.69935
A99: 16. | B99: =B198 -> VU TRAN DINH | C99: Lukas | D99: 9.A | F99: =F198 -> 783.5564368 | G99: 0 | H99: 0 | I99: 669.864 | J99: 0 | K99: 506.25 | L99: 691.1111111 | M99: 0 | N99: 0 | O99: 0 | P99: 0 | Q99: 436.9544345 | R99: 0 | S99: 0 | T99: 0 | U99: 0 | V99: 0 | W99: 3087.735982
A100: 17. | B100: =B199 -> DUFEK | C100: Matyáš | D100: 9.B | F100: =F199 -> 0 | G100: 0 | H100: 0 | I100: 0 | J100: 525.4 | K100: 362.5 | L100: 0 | M100: 0 | N100: 0 | O100: 0 | P100: 168 | Q100: 0 | R100: 0 | S100: 0 | T100: 0 | U100: 0 | V100: 0 | W100: 1055.9
A101: 18. | B101: =B200 -> JEŽEK | C101: Jonáš | D101: 9.B | F101: =F200 -> 828.9318167 | G101: 0 | H101: 0 | I101: 0 | J101: 611.2 | K101: 562.5 | L101: 653.8888889 | M101: 0 | N101: 0 | O101: 0 | P101: 679.6 | Q101: 436.9544345 | R101: 0 | S101: 0 | T101: 0 | U101: 0 | V101: 0 | W101: 3773.07514
A102: 19. | B102: =B201 -> JEŽEK | C102: Mikuláš | D102: 9.B | F102: =F201 -> 0 | G102: 0 | H102: 0 | I102: 0 | J102: 714.16 | K102: 562.5 | L102: 0 | M102: 0 | N102: 0 | O102: 0 | P102: 0 | Q102: 436.9544345 | R102: 0 | S102: 0 | T102: 0 | U102: 0 | V102: 0 | W102: 1713.614434
A103: 20. | B103: =B202 -> NECHANICKÝ | C103: Michal | D103: 9.B | F103: =F202 -> 814.4478746 | G103: 0 | H103: 0 | I103: 681.72 | J103: 651.24 | K103: 487.5 | L103: 574.4444444 | M103: 0 | N103: 0 | O103: 325 | P103: 668.4 | Q103: 0 | R103: 0 | S103: 0 | T103: 531.25 | U103: 501.6 | V103: 0 | W103: 5235.602319
A104: 21. | B104: =B203 -> PAULÍČEK | C104: Jakub | D104: 9.B | F104: =F203 -> 802.0585553 | G104: 0 | H104: 0 | I104: 0 | J104: 742.76 | K104: 475 | L104: 0 | M104: 0 | N104: 0 | O104: 0 | P104: 96 | Q104: 0 | R104: 0 | S104: 0 | T104: 0 | U104: 0 | V104: 0 | W104: 2115.818555
A105: 22. | B105: =B204 -> POHOŘALÝ | C105: Jakub | D105: 9.B | F105: =F204 -> 887.6020161 | G105: 0 | H105: 0 | I105: 770.64 | J105: 742.76 | K105: 568.75 | L105: 762.2222222 | M105: 0 | N105: 0 | O105: 0 | P105: 576 | Q105: 0 | R105: 0 | S105: 0 | T105: 0 | U105: 0 | V105: 0 | W105: 4307.974238
A106: 23. | B106: =B205 -> POSPÍCHAL | C106: Daniel | D106: 9.B | F106: =F205 -> 799.7843281 | G106: 0 | H106: 0 | I106: 687.648 | J106: 582.6 | K106: 0 | L106: 683.8888889 | M106: 0 | N106: 0 | O106: 0 | P106: 248 | Q106: 0 | R106: 0 | S106: 0 | T106: 0 | U106: 0 | V106: 0 | W106: 3001.921217
A107: 24. | B107: =B206 -> SOUKUP | C107: Lukáš | D107: 9.B | F107: =F206 -> 799.7843281 | G107: 0 | H107: 0 | I107: 739.518 | J107: 656.96 | K107: 487.5 | L107: 743.8888889 | M107: 0 | N107: 0 | O107: 0 | P107: 679.6 | Q107: 0 | R107: 0 | S107: 0 | T107: 0 | U107: 0 | V107: 0 | W107: 4107.251217
A108: 25. | B108: =B207 -> VANCL | C108: Jan | D108: 9.B | F108: =F207 -> 866.0906872 | G108: 0 | H108: 0 | I108: 739.518 | J108: 799.96 | K108: 775 | L108: 838.8888889 | M108: 0 | N108: 0 | O108: 0 | P108: 272 | Q108: 436.9544345 | R108: 0 | S108: 0 | T108: 0 | U108: 0 | V108: 0 | W108: 4728.412011
A109: 26. | B109: =B208 -> VANCL | C109: Lukáš | D109: 9.B | F109: =F208 -> 834.7280104 | G109: 754.3277273 | H109: 0 | I109: 726.18 | J109: 799.96 | K109: 662.5 | L109: 924.4444444 | M109: 0 | N109: 0 | O109: 0 | P109: 576 | Q109: 436.9544345 | R109: 0 | S109: 0 | T109: 0 | U109: 0 | V109: 0 | W109: 5715.094617
A110: 27. | B110: =B209 -> VAŠÍK | C110: Jiří | D110: 9.B | F110: =F209 -> 794.5359835 | G110: 0 | H110: 0 | I110: 674.31 | J110: 628.36 | K110: 450 | L110: 626.6666667 | M110: 0 | N110: 0 | O110: 0 | P110: 120 | Q110: 0 | R110: 0 | S110: 0 | T110: 0 | U110: 0 | V110: 0 | W110: 3293.87265
A111: 28. | B111: =B210 -> VOHNOUT | C111: =C210 -> Zdeněk | D111: =D210 -> 9.B | F111: =F210 -> 919.6685934 | G111: 962.9828242 | H111: 0 | I111: 835.848 | J111: 782.8 | K111: 618.75 | L111: 717.7777778 | M111: 0 | N111: 0 | O111: 0 | P111: 642 | Q111: 0 | R111: 0 | S111: 0 | T111: 0 | U111: 0 | V111: 0 | W111: 5479.827195
F120: 60 m | G120: 300m | H120: 1000m | I120: dálka | J120: výška | K120: míček | L120: koule | M120: oštěp | N120: člunek | O120: lehsed | P120: odbíjení | Q120: plavání | R120: shyby | S120: šplh | T120: švihadlo | U120: z místa | V120: REPRE | W120: CELKEM
B121: ='60'!B101 -> BOUKAL | C121: ='60'!C101 -> Jakub | D121: ='60'!D101 -> 6.A | F121: ='60'!H101 -> 608.6949179 | G121: ='300'!H100 -> 357.2276587 | H121: ='1000'!H101 -> 0 | I121: =DÁLKA!H101 -> 474.24 | J121: =VÝŠKA!H101 -> 0 | K121: =MÍČEK!H101 -> 175 | L121: =KOULE!H101 -> 548.3333333 | M121: =OŠTĚP!H101 -> 0 | N121: =ČLUNEK!H101 -> 663.7575028 | O121: =LEHSED!H101 -> 0 | P121: =ODBÍJENÍ!H101 -> 96 | Q121: =PLAVÁNÍ!H101 -> 0 | R121: =SHYBY!H101 -> 0 | S121: =ŠPLH!H101 -> 0 | T121: =ŠVIHADLO!H101 -> 0 | U121: ='Z MÍSTA'!H101 -> 0 | V121: =REPRE!E4 -> 0 | W121: =SUM(F121:V121) -> 2923.253413
B122: ='60'!B102 -> DEMČUK | C122: ='60'!C102 -> Ilja | D122: ='60'!D102 -> 6.A | F122: ='60'!H102 -> 686.3454534 | G122: ='300'!H101 -> 582.9735498 | H122: ='1000'!H102 -> 0 | I122: =DÁLKA!H102 -> 572.052 | J122: =VÝŠKA!H102 -> 571.16 | K122: =MÍČEK!H102 -> 250 | L122: =KOULE!H102 -> 515.5555556 | M122: =OŠTĚP!H102 -> 0 | N122: =ČLUNEK!H102 -> 0 | O122: =LEHSED!H102 -> 312.5 | P122: =ODBÍJENÍ!H102 -> 120 | Q122: =PLAVÁNÍ!H102 -> 0 | R122: =SHYBY!H102 -> 0 | S122: =ŠPLH!H102 -> 0 | T122: =ŠVIHADLO!H102 -> 0 | U122: ='Z MÍSTA'!H102 -> 570 | V122: =REPRE!E5 -> 0 | W122: =SUM(F122:V122) -> 4180.586559
B123: ='60'!B103 -> FAISTAUER | C123: ='60'!C103 -> Kryštof | D123: ='60'!D103 -> 6.A | F123: ='60'!H103 -> 767.3945441 | G123: ='300'!H102 -> 670.248152 | H123: ='1000'!H103 -> 0 | I123: =DÁLKA!H103 -> 653.562 | J123: =VÝŠKA!H103 -> 628.36 | K123: =MÍČEK!H103 -> 431.25 | L123: =KOULE!H103 -> 488.8888889 | M123: =OŠTĚP!H103 -> 0 | N123: =ČLUNEK!H103 -> 855.6771362 | O123: =LEHSED!H103 -> 512.5 | P123: =ODBÍJENÍ!H103 -> 64 | Q123: =PLAVÁNÍ!H103 -> 0 | R123: =SHYBY!H103 -> 0 | S123: =ŠPLH!H103 -> 0 | T123: =ŠVIHADLO!H103 -> 325 | U123: ='Z MÍSTA'!H103 -> 627 | V123: =REPRE!E6 -> 0 | W123: =SUM(F123:V123) -> 6023.880721
B124: ='60'!B104 -> FRK | C124: ='60'!C104 -> Matyáš | D124: ='60'!D104 -> 6.A | F124: ='60'!H104 -> 602.4974976 | G124: ='300'!H103 -> 351.7134153 | H124: ='1000'!H104 -> 0 | I124: =DÁLKA!H104 -> 529.074 | J124: =VÝŠKA!H104 -> 411 | K124: =MÍČEK!H104 -> 0 | L124: =KOULE!H104 -> 0 | M124: =OŠTĚP!H104 -> 0 | N124: =ČLUNEK!H104 -> 639.1720793 | O124: =LEHSED!H104 -> 0 | P124: =ODBÍJENÍ!H104 -> 112 | Q124: =PLAVÁNÍ!H104 -> 0 | R124: =SHYBY!H104 -> 0 | S124: =ŠPLH!H104 -> 0 | T124: =ŠVIHADLO!H104 -> 0 | U124: ='Z MÍSTA'!H104 -> 0 | V124: =REPRE!E7 -> 0 | W124: =SUM(F124:V124) -> 2645.456992
B125: ='60'!B105 -> HUBÁLOVSKÝ | C125: ='60'!C105 -> Marek | D125: ='60'!D105 -> 6.A | F125: ='60'!H105 -> 657.4040393 | G125: ='300'!H104 -> 442.951971 | H125: ='1000'!H105 -> 0 | I125: =DÁLKA!H105 -> 678.756 | J125: =VÝŠKA!H105 -> 485.36 | K125: =MÍČEK!H105 -> 325 | L125: =KOULE!H105 -> 413.8888889 | M125: =OŠTĚP!H105 -> 0 | N125: =ČLUNEK!H105 -> 680.2297461 | O125: =LEHSED!H105 -> 0 | P125: =ODBÍJENÍ!H105 -> 64 | Q125: =PLAVÁNÍ!H105 -> 0 | R125: =SHYBY!H105 -> 0 | S125: =ŠPLH!H105 -> 0 | T125: =ŠVIHADLO!H105 -> 0 | U125: ='Z MÍSTA'!H105 -> 0 | V125: =REPRE!E8 -> 0 | W125: =SUM(F125:V125) -> 3747.590645
B126: ='60'!B106 -> MAŘAS | C126: ='60'!C106 -> Dominik | D126: ='60'!D106 -> 6.A | F126: ='60'!H106 -> 647.6364407 | G126: ='300'!H105 -> 379.6319554 | H126: ='1000'!H106 -> 0 | I126: =DÁLKA!H106 -> 545.376 | J126: =VÝŠKA!H106 -> 0 | K126: =MÍČEK!H106 -> 275 | L126: =KOULE!H106 -> 517.2222222 | M126: =OŠTĚP!H106 -> 0 | N126: =ČLUNEK!H106 -> 639.1720793 | O126: =LEHSED!H106 -> 0 | P126: =ODBÍJENÍ!H106 -> 88 | Q126: =PLAVÁNÍ!H106 -> 0 | R126: =SHYBY!H106 -> 0 | S126: =ŠPLH!H106 -> 0 | T126: =ŠVIHADLO!H106 -> 0 | U126: ='Z MÍSTA'!H106 -> 691.6 | V126: =REPRE!E9 -> 0 | W126: =SUM(F126:V126) -> 3783.638698
B127: ='60'!B107 -> MAŤÁTKO | C127: ='60'!C107 -> Jakub | D127: ='60'!D107 -> 6.A | F127: ='60'!H107 -> 585.1621053 | G127: ='300'!H106 -> 331.6780969 | H127: ='1000'!H107 -> 0 | I127: =DÁLKA!H107 -> 0 | J127: =VÝŠKA!H107 -> 0 | K127: =MÍČEK!H107 -> 250 | L127: =KOULE!H107 -> 435.5555556 | M127: =OŠTĚP!H107 -> 0 | N127: =ČLUNEK!H107 -> 475.326472 | O127: =LEHSED!H107 -> 0 | P127: =ODBÍJENÍ!H107 -> 80 | Q127: =PLAVÁNÍ!H107 -> 0 | R127: =SHYBY!H107 -> 0 | S127: =ŠPLH!H107 -> 0 | T127: =ŠVIHADLO!H107 -> 0 | U127: ='Z MÍSTA'!H107 -> 0 | V127: =REPRE!E10 -> 0 | W127: =SUM(F127:V127) -> 2157.72223
B128: ='60'!B108 -> MERY | C128: ='60'!C108 -> Luboš | D128: ='60'!D108 -> 6.A | F128: ='60'!H108 -> 657.4040393 | G128: ='300'!H107 -> 407.1843586 | H128: ='1000'!H108 -> 0 | I128: =DÁLKA!H108 -> 0 | J128: =VÝŠKA!H108 -> 456.76 | K128: =MÍČEK!H108 -> 0 | L128: =KOULE!H108 -> 0 | M128: =OŠTĚP!H108 -> 0 | N128: =ČLUNEK!H108 -> 663.7575028 | O128: =LEHSED!H108 -> 325 | P128: =ODBÍJENÍ!H108 -> 32 | Q128: =PLAVÁNÍ!H108 -> 0 | R128: =SHYBY!H108 -> 0 | S128: =ŠPLH!H108 -> 0 | T128: =ŠVIHADLO!H108 -> 112.5 | U128: ='Z MÍSTA'!H108 -> 566.2 | V128: =REPRE!E11 -> 0 | W128: =SUM(F128:V128) -> 3220.805901
B129: ='60'!B109 -> NOVOTNÝ | C129: ='60'!C109 -> Matěj | D129: ='60'!D109 -> 6.A | F129: ='60'!H109 -> 680.6211833 | G129: ='300'!H108 -> 0 | H129: ='1000'!H109 -> 0 | I129: =DÁLKA!H109 -> 527.592 | J129: =VÝŠKA!H109 -> 439.6 | K129: =MÍČEK!H109 -> 362.5 | L129: =KOULE!H109 -> 0 | M129: =OŠTĚP!H109 -> 0 | N129: =ČLUNEK!H109 -> 722.344333 | O129: =LEHSED!H109 -> 0 | P129: =ODBÍJENÍ!H109 -> 0 | Q129: =PLAVÁNÍ!H109 -> 0 | R129: =SHYBY!H109 -> 0 | S129: =ŠPLH!H109 -> 0 | T129: =ŠVIHADLO!H109 -> 0 | U129: ='Z MÍSTA'!H109 -> 0 | V129: =REPRE!E12 -> 0 | W129: =SUM(F129:V129) -> 2732.657516
B130: ='60'!B110 -> ŘEHOŘEK | C130: ='60'!C110 -> Vojtěch | D130: ='60'!D110 -> 6.A | F130: ='60'!H110 -> 635.1483363 | G130: ='300'!H109 -> 440.4559076 | H130: ='1000'!H110 -> 0 | I130: =DÁLKA!H110 -> 549.822 | J130: =VÝŠKA!H110 -> 485.36 | K130: =MÍČEK!H110 -> 500 | L130: =KOULE!H110 -> 507.2222222 | M130: =OŠTĚP!H110 -> 0 | N130: =ČLUNEK!H110 -> 0 | O130: =LEHSED!H110 -> 350 | P130: =ODBÍJENÍ!H110 -> 112 | Q130: =PLAVÁNÍ!H110 -> 0 | R130: =SHYBY!H110 -> 0 | S130: =ŠPLH!H110 -> 0 | T130: =ŠVIHADLO!H110 -> 0 | U130: ='Z MÍSTA'!H110 -> 554.8 | V130: =REPRE!E13 -> 0 | W130: =SUM(F130:V130) -> 4134.808466
B131: ='60'!B111 -> ŠÍR | C131: ='60'!C111 -> Matyáš | D131: ='60'!D111 -> 6.A | F131: ='60'!H111 -> 655.0460078 | G131: ='300'!H110 -> 465.7496614 | H131: ='1000'!H111 -> 0 | I131: =DÁLKA!H111 -> 530.556 | J131: =VÝŠKA!H111 -> 479.64 | K131: =MÍČEK!H111 -> 250 | L131: =KOULE!H111 -> 379.4444444 | M131: =OŠTĚP!H111 -> 0 | N131: =ČLUNEK!H111 -> 603.039864 | O131: =LEHSED!H111 -> 475 | P131: =ODBÍJENÍ!H111 -> 88 | Q131: =PLAVÁNÍ!H111 -> 0 | R131: =SHYBY!H111 -> 0 | S131: =ŠPLH!H111 -> 0 | T131: =ŠVIHADLO!H111 -> 237.5 | U131: ='Z MÍSTA'!H111 -> 600.4 | V131: =REPRE!E14 -> 0 | W131: =SUM(F131:V131) -> 4764.375978
B132: ='60'!B112 -> TORÁČ | C132: ='60'!C112 -> Tomáš | D132: ='60'!D112 -> 6.A | F132: ='60'!H112 -> 387.7719881 | G132: ='300'!H111 -> 110.1526699 | H132: ='1000'!H112 -> 0 | I132: =DÁLKA!H112 -> 0 | J132: =VÝŠKA!H112 -> 0 | K132: =MÍČEK!H112 -> 156.25 | L132: =KOULE!H112 -> 427.2222222 | M132: =OŠTĚP!H112 -> 0 | N132: =ČLUNEK!H112 -> 372.892898 | O132: =LEHSED!H112 -> 0 | P132: =ODBÍJENÍ!H112 -> 96 | Q132: =PLAVÁNÍ!H112 -> 0 | R132: =SHYBY!H112 -> 0 | S132: =ŠPLH!H112 -> 0 | T132: =ŠVIHADLO!H112 -> 0 | U132: ='Z MÍSTA'!H112 -> 0 | V132: =REPRE!E15 -> 0 | W132: =SUM(F132:V132) -> 1550.289778
B133: ='60'!B113 -> ULLMAN | C133: ='60'!C113 -> Šimon | D133: ='60'!D113 -> 6.A | F133: ='60'!H113 -> 790.1011078 | G133: ='300'!H112 -> 690.3599225 | H133: ='1000'!H113 -> 0 | I133: =DÁLKA!H113 -> 634.296 | J133: =VÝŠKA!H113 -> 439.6 | K133: =MÍČEK!H113 -> 306.25 | L133: =KOULE!H113 -> 0 | M133: =OŠTĚP!H113 -> 0 | N133: =ČLUNEK!H113 -> 788.2386569 | O133: =LEHSED!H113 -> 0 | P133: =ODBÍJENÍ!H113 -> 48 | Q133: =PLAVÁNÍ!H113 -> 0 | R133: =SHYBY!H113 -> 0 | S133: =ŠPLH!H113 -> 0 | T133: =ŠVIHADLO!H113 -> 0 | U133: ='Z MÍSTA'!H113 -> 0 | V133: =REPRE!E16 -> 0 | W133: =SUM(F133:V133) -> 3696.845687
B134: ='60'!B114 -> VÁCLAVÍK | C134: ='60'!C114 -> Ondřej | D134: ='60'!D114 -> 6.A | F134: ='60'!H114 -> 681.6533976 | G134: ='300'!H113 -> 609.1811602 | H134: ='1000'!H114 -> 0 | I134: =DÁLKA!H114 -> 569.088 | J134: =VÝŠKA!H114 -> 542.56 | K134: =MÍČEK!H114 -> 450 | L134: =KOULE!H114 -> 488.8888889 | M134: =OŠTĚP!H114 -> 0 | N134: =ČLUNEK!H114 -> 755.1114192 | O134: =LEHSED!H114 -> 0 | P134: =ODBÍJENÍ!H114 -> 0 | Q134: =PLAVÁNÍ!H114 -> 0 | R134: =SHYBY!H114 -> 0 | S134: =ŠPLH!H114 -> 0 | T134: =ŠVIHADLO!H114 -> 0 | U134: ='Z MÍSTA'!H114 -> 0 | V134: =REPRE!E17 -> 0 | W134: =SUM(F134:V134) -> 4096.482866
B135: ='60'!B115 -> AUERSWALD | C135: ='60'!C115 -> Daniel | D135: ='60'!D115 -> 6.B | F135: ='60'!H115 -> 741.7076005 | G135: ='300'!H114 -> 594.2990891 | H135: ='1000'!H115 -> 0 | I135: =DÁLKA!H115 -> 626.886 | J135: =VÝŠKA!H115 -> 628.36 | K135: =MÍČEK!H115 -> 312.5 | L135: =KOULE!H115 -> 473.8888889 | M135: =OŠTĚP!H115 -> 0 | N135: =ČLUNEK!H115 -> 761.8226409 | O135: =LEHSED!H115 -> 0 | P135: =ODBÍJENÍ!H115 -> 152 | Q135: =PLAVÁNÍ!H115 -> 0 | R135: =SHYBY!H115 -> 0 | S135: =ŠPLH!H115 -> 0 | T135: =ŠVIHADLO!H115 -> 187.5 | U135: ='Z MÍSTA'!H115 -> 0 | V135: =REPRE!E18 -> 0 | W135: =SUM(F135:V135) -> 4478.964219
B136: ='60'!B116 -> BODLÁK | C136: ='60'!C116 -> Vladimír | D136: ='60'!D116 -> 6.B | F136: ='60'!H116 -> 853.5742752 | G136: ='300'!H115 -> 881.7771043 | H136: ='1000'!H116 -> 0 | I136: =DÁLKA!H116 -> 0 | J136: =VÝŠKA!H116 -> 628.36 | K136: =MÍČEK!H116 -> 0 | L136: =KOULE!H116 -> 735.5555556 | M136: =OŠTĚP!H116 -> 0 | N136: =ČLUNEK!H116 -> 923.6308113 | O136: =LEHSED!H116 -> 662.5 | P136: =ODBÍJENÍ!H116 -> 0 | Q136: =PLAVÁNÍ!H116 -> 0 | R136: =SHYBY!H116 -> 0 | S136: =ŠPLH!H116 -> 0 | T136: =ŠVIHADLO!H116 -> 312.5 | U136: ='Z MÍSTA'!H116 -> 114 | V136: =REPRE!E19 -> 0 | W136: =SUM(F136:V136) -> 5111.897746
B137: ='60'!B117 -> BUDÍN | C137: ='60'!C117 -> Martin | D137: ='60'!D117 -> 6.B | F137: ='60'!H117 -> 707.6107236 | G137: ='300'!H116 -> 613.09701 | H137: ='1000'!H117 -> 0 | I137: =DÁLKA!H117 -> 595.764 | J137: =VÝŠKA!H117 -> 513.96 | K137: =MÍČEK!H117 -> 387.5 | L137: =KOULE!H117 -> 393.3333333 | M137: =OŠTĚP!H117 -> 0 | N137: =ČLUNEK!H117 -> 780.3215075 | O137: =LEHSED!H117 -> 375 | P137: =ODBÍJENÍ!H117 -> 72 | Q137: =PLAVÁNÍ!H117 -> 0 | R137: =SHYBY!H117 -> 0 | S137: =ŠPLH!H117 -> 0 | T137: =ŠVIHADLO!H117 -> 500 | U137: ='Z MÍSTA'!H117 -> 570 | V137: =REPRE!E20 -> 0 | W137: =SUM(F137:V137) -> 5508.586574
B138: ='60'!B118 -> DVOŘÁK | C138: ='60'!C118 -> Dominik | D138: ='60'!D118 -> 6.B | F138: ='60'!H118 -> 651.3155856 | G138: ='300'!H117 -> 0 | H138: ='1000'!H118 -> 0 | I138: =DÁLKA!H118 -> 477.204 | J138: =VÝŠKA!H118 -> 411 | K138: =MÍČEK!H118 -> 0 | L138: =KOULE!H118 -> 0 | M138: =OŠTĚP!H118 -> 0 | N138: =ČLUNEK!H118 -> 707.777346 | O138: =LEHSED!H118 -> 0 | P138: =ODBÍJENÍ!H118 -> 0 | Q138: =PLAVÁNÍ!H118 -> 0 | R138: =SHYBY!H118 -> 0 | S138: =ŠPLH!H118 -> 0 | T138: =ŠVIHADLO!H118 -> 0 | U138: ='Z MÍSTA'!H118 -> 0 | V138: =REPRE!E21 -> 0 | W138: =SUM(F138:V138) -> 2247.296932
B139: ='60'!B119 -> FIŠERA | C139: ='60'!C119 -> Vojtěch | D139: ='60'!D119 -> 6.B | F139: ='60'!H119 -> 708.7440775 | G139: ='300'!H118 -> 632.8626166 | H139: ='1000'!H119 -> 0 | I139: =DÁLKA!H119 -> 589.836 | J139: =VÝŠKA!H119 -> 542.56 | K139: =MÍČEK!H119 -> 237.5 | L139: =KOULE!H119 -> 500 | M139: =OŠTĚP!H119 -> 0 | N139: =ČLUNEK!H119 -> 733.4352323 | O139: =LEHSED!H119 -> 325 | P139: =ODBÍJENÍ!H119 -> 96 | Q139: =PLAVÁNÍ!H119 -> 0 | R139: =SHYBY!H119 -> 0 | S139: =ŠPLH!H119 -> 0 | T139: =ŠVIHADLO!H119 -> 568.75 | U139: ='Z MÍSTA'!H119 -> 494 | V139: =REPRE!E22 -> 0 | W139: =SUM(F139:V139) -> 5428.687926
B140: ='60'!B120 -> JINDŘIŠEK | C140: ='60'!C120 -> Vít | D140: ='60'!D120 -> 6.B | F140: ='60'!H120 -> 821.6155267 | G140: ='300'!H119 -> 0 | H140: ='1000'!H120 -> 0 | I140: =DÁLKA!H120 -> 675.792 | J140: =VÝŠKA!H120 -> 439.6 | K140: =MÍČEK!H120 -> 525 | L140: =KOULE!H120 -> 0 | M140: =OŠTĚP!H120 -> 0 | N140: =ČLUNEK!H120 -> 825.9137458 | O140: =LEHSED!H120 -> 500 | P140: =ODBÍJENÍ!H120 -> 224 | Q140: =PLAVÁNÍ!H120 -> 0 | R140: =SHYBY!H120 -> 0 | S140: =ŠPLH!H120 -> 0 | T140: =ŠVIHADLO!H120 -> 350 | U140: ='Z MÍSTA'!H120 -> 760 | V140: =REPRE!E23 -> 0 | W140: =SUM(F140:V140) -> 5121.921273
B141: ='60'!B121 -> JIROUŠ | C141: ='60'!C121 -> Matouš | D141: ='60'!D121 -> 6.B | F141: ='60'!H121 -> 729.9135088 | G141: ='300'!H120 -> 0 | H141: ='1000'!H121 -> 0 | I141: =DÁLKA!H121 -> 638.742 | J141: =VÝŠKA!H121 -> 439.6 | K141: =MÍČEK!H121 -> 350 | L141: =KOULE!H121 -> 468.8888889 | M141: =OŠTĚP!H121 -> 0 | N141: =ČLUNEK!H121 -> 819.6809926 | O141: =LEHSED!H121 -> 312.5 | P141: =ODBÍJENÍ!H121 -> 152 | Q141: =PLAVÁNÍ!H121 -> 0 | R141: =SHYBY!H121 -> 0 | S141: =ŠPLH!H121 -> 0 | T141: =ŠVIHADLO!H121 -> 250 | U141: ='Z MÍSTA'!H121 -> 760 | V141: =REPRE!E24 -> 0 | W141: =SUM(F141:V141) -> 4921.32539
B142: ='60'!B122 -> KERLE | C142: ='60'!C122 -> Marek | D142: ='60'!D122 -> 6.B | F142: ='60'!H122 -> 697.6022715 | G142: ='300'!H121 -> 685.9413855 | H142: ='1000'!H122 -> 0 | I142: =DÁLKA!H122 -> 586.872 | J142: =VÝŠKA!H122 -> 571.16 | K142: =MÍČEK!H122 -> 0 | L142: =KOULE!H122 -> 542.2222222 | M142: =OŠTĚP!H122 -> 0 | N142: =ČLUNEK!H122 -> 794.2281357 | O142: =LEHSED!H122 -> 600 | P142: =ODBÍJENÍ!H122 -> 176 | Q142: =PLAVÁNÍ!H122 -> 0 | R142: =SHYBY!H122 -> 0 | S142: =ŠPLH!H122 -> 0 | T142: =ŠVIHADLO!H122 -> 231.25 | U142: ='Z MÍSTA'!H122 -> 600.4 | V142: =REPRE!E25 -> 0 | W142: =SUM(F142:V142) -> 5485.676015
B143: ='60'!B123 -> LUKEŠ | C143: ='60'!C123 -> Jakub | D143: ='60'!D123 -> 6.B | F143: ='60'!H123 -> 719.1430964 | G143: ='300'!H122 -> 680.6544324 | H143: ='1000'!H123 -> 0 | I143: =DÁLKA!H123 -> 561.678 | J143: =VÝŠKA!H123 -> 542.56 | K143: =MÍČEK!H123 -> 262.5 | L143: =KOULE!H123 -> 470.5555556 | M143: =OŠTĚP!H123 -> 0 | N143: =ČLUNEK!H123 -> 822.7911822 | O143: =LEHSED!H123 -> 375 | P143: =ODBÍJENÍ!H123 -> 96 | Q143: =PLAVÁNÍ!H123 -> 0 | R143: =SHYBY!H123 -> 0 | S143: =ŠPLH!H123 -> 0 | T143: =ŠVIHADLO!H123 -> 406.25 | U143: ='Z MÍSTA'!H123 -> 722 | V143: =REPRE!E26 -> 0 | W143: =SUM(F143:V143) -> 5659.132267
B144: ='60'!B124 -> OTT | C144: ='60'!C124 -> Matyáš | D144: ='60'!D124 -> 6.B | F144: ='60'!H124 -> 678.5680154 | G144: ='300'!H123 -> 478.937555 | H144: ='1000'!H124 -> 0 | I144: =DÁLKA!H124 -> 566.124 | J144: =VÝŠKA!H124 -> 542.56 | K144: =MÍČEK!H124 -> 362.5 | L144: =KOULE!H124 -> 427.7777778 | M144: =OŠTĚP!H124 -> 0 | N144: =ČLUNEK!H124 -> 762.7858778 | O144: =LEHSED!H124 -> 0 | P144: =ODBÍJENÍ!H124 -> 88 | Q144: =PLAVÁNÍ!H124 -> 0 | R144: =SHYBY!H124 -> 0 | S144: =ŠPLH!H124 -> 0 | T144: =ŠVIHADLO!H124 -> 0 | U144: ='Z MÍSTA'!H124 -> 0 | V144: =REPRE!E27 -> 0 | W144: =SUM(F144:V144) -> 3907.253226
B145: ='60'!B125 -> POKORNÝ | C145: ='60'!C125 -> Matyáš | D145: ='60'!D125 -> 6.B | F145: ='60'!H125 -> 808.1977818 | G145: ='300'!H124 -> 809.6576595 | H145: ='1000'!H125 -> 0 | I145: =DÁLKA!H125 -> 0 | J145: =VÝŠKA!H125 -> 571.16 | K145: =MÍČEK!H125 -> 537.5 | L145: =KOULE!H125 -> 461.1111111 | M145: =OŠTĚP!H125 -> 0 | N145: =ČLUNEK!H125 -> 882.135289 | O145: =LEHSED!H125 -> 0 | P145: =ODBÍJENÍ!H125 -> 176 | Q145: =PLAVÁNÍ!H125 -> 0 | R145: =SHYBY!H125 -> 0 | S145: =ŠPLH!H125 -> 0 | T145: =ŠVIHADLO!H125 -> 0 | U145: ='Z MÍSTA'!H125 -> 0 | V145: =REPRE!E28 -> 0 | W145: =SUM(F145:V145) -> 4245.761841
B146: ='60'!B126 -> POLÁČEK | C146: ='60'!C126 -> Matyáš | D146: ='60'!D126 -> 6.B | F146: ='60'!H126 -> 654.5768642 | G146: ='300'!H125 -> 421.9583494 | H146: ='1000'!H126 -> 0 | I146: =DÁLKA!H126 -> 529.074 | J146: =VÝŠKA!H126 -> 513.96 | K146: =MÍČEK!H126 -> 425 | L146: =KOULE!H126 -> 502.7777778 | M146: =OŠTĚP!H126 -> 0 | N146: =ČLUNEK!H126 -> 687.2568313 | O146: =LEHSED!H126 -> 0 | P146: =ODBÍJENÍ!H126 -> 80 | Q146: =PLAVÁNÍ!H126 -> 0 | R146: =SHYBY!H126 -> 0 | S146: =ŠPLH!H126 -> 0 | T146: =ŠVIHADLO!H126 -> 0 | U146: ='Z MÍSTA'!H126 -> 0 | V146: =REPRE!E29 -> 0 | W146: =SUM(F146:V146) -> 3814.603823
B147: ='60'!B127 -> SOUKUP | C147: ='60'!C127 -> Patrik | D147: ='60'!D127 -> 6.B | F147: ='60'!H127 -> 729.3050713 | G147: ='300'!H126 -> 686.4915539 | H147: ='1000'!H127 -> 0 | I147: =DÁLKA!H127 -> 603.174 | J147: =VÝŠKA!H127 -> 542.56 | K147: =MÍČEK!H127 -> 375 | L147: =KOULE!H127 -> 472.2222222 | M147: =OŠTĚP!H127 -> 0 | N147: =ČLUNEK!H127 -> 845.9853231 | O147: =LEHSED!H127 -> 337.5 | P147: =ODBÍJENÍ!H127 -> 88 | Q147: =PLAVÁNÍ!H127 -> 0 | R147: =SHYBY!H127 -> 0 | S147: =ŠPLH!H127 -> 0 | T147: =ŠVIHADLO!H127 -> 593.75 | U147: ='Z MÍSTA'!H127 -> 760 | V147: =REPRE!E30 -> 0 | W147: =SUM(F147:V147) -> 6033.988171
B148: ='60'!B128 -> VALENTA | C148: ='60'!C128 -> Jakub | D148: ='60'!D128 -> 6.B | F148: ='60'!H128 -> 720.3211103 | G148: ='300'!H127 -> 0 | H148: ='1000'!H128 -> 0 | I148: =DÁLKA!H128 -> 0 | J148: =VÝŠKA!H128 -> 628.36 | K148: =MÍČEK!H128 -> 325 | L148: =KOULE!H128 -> 455.5555556 | M148: =OŠTĚP!H128 -> 0 | N148: =ČLUNEK!H128 -> 810.423469 | O148: =LEHSED!H128 -> 612.5 | P148: =ODBÍJENÍ!H128 -> 0 | Q148: =PLAVÁNÍ!H128 -> 0 | R148: =SHYBY!H128 -> 0 | S148: =ŠPLH!H128 -> 0 | T148: =ŠVIHADLO!H128 -> 475 | U148: ='Z MÍSTA'!H128 -> 0 | V148: =REPRE!E31 -> 0 | W148: =SUM(F148:V148) -> 4027.160135
B149: ='60'!B129 -> VRBATA | C149: ='60'!C129 -> Dominik | D149: ='60'!D129 -> 6.B | F149: ='60'!H129 -> 719.7315287 | G149: ='300'!H128 -> 621.1903985 | H149: ='1000'!H129 -> 0 | I149: =DÁLKA!H129 -> 613.548 | J149: =VÝŠKA!H129 -> 571.16 | K149: =MÍČEK!H129 -> 431.25 | L149: =KOULE!H129 -> 497.2222222 | M149: =OŠTĚP!H129 -> 0 | N149: =ČLUNEK!H129 -> 822.7911822 | O149: =LEHSED!H129 -> 0 | P149: =ODBÍJENÍ!H129 -> 72 | Q149: =PLAVÁNÍ!H129 -> 0 | R149: =SHYBY!H129 -> 0 | S149: =ŠPLH!H129 -> 0 | T149: =ŠVIHADLO!H129 -> 0 | U149: ='Z MÍSTA'!H129 -> 0 | V149: =REPRE!E32 -> 0 | W149: =SUM(F149:V149) -> 4348.893332
B150: ='60'!B130 -> FEJKL | C150: ='60'!C130 -> Jan | D150: ='60'!D130 -> 7.A | F150: ='60'!H130 -> 793.051222 | G150: ='300'!H129 -> 0 | H150: ='1000'!H130 -> 0 | I150: =DÁLKA!H130 -> 800.28 | J150: =VÝŠKA!H130 -> 788.52 | K150: =MÍČEK!H130 -> 612.5 | L150: =KOULE!H130 -> 603.8888889 | M150: =OŠTĚP!H130 -> 0 | N150: =ČLUNEK!H130 -> 0 | O150: =LEHSED!H130 -> 712.5 | P150: =ODBÍJENÍ!H130 -> 144 | Q150: =PLAVÁNÍ!H130 -> 436.9544345 | R150: =SHYBY!H130 -> 0 | S150: =ŠPLH!H130 -> 0 | T150: =ŠVIHADLO!H130 -> 262.5 | U150: ='Z MÍSTA'!H130 -> 760 | V150: =REPRE!E33 -> 0 | W150: =SUM(F150:V150) -> 5914.194545
B151: ='60'!B131 -> KOTYK | C151: ='60'!C131 -> Tadeáš | D151: ='60'!D131 -> 7.A | F151: ='60'!H131 -> 694.3409504 | G151: ='300'!H130 -> 0 | H151: ='1000'!H131 -> 0 | I151: =DÁLKA!H131 -> 549.822 | J151: =VÝŠKA!H131 -> 582.6 | K151: =MÍČEK!H131 -> 250 | L151: =KOULE!H131 -> 510.5555556 | M151: =OŠTĚP!H131 -> 0 | N151: =ČLUNEK!H131 -> 0 | O151: =LEHSED!H131 -> 437.5 | P151: =ODBÍJENÍ!H131 -> 56 | Q151: =PLAVÁNÍ!H131 -> 0 | R151: =SHYBY!H131 -> 0 | S151: =ŠPLH!H131 -> 0 | T151: =ŠVIHADLO!H131 -> 125 | U151: ='Z MÍSTA'!H131 -> 228 | V151: =REPRE!E34 -> 0 | W151: =SUM(F151:V151) -> 3433.818506
B152: ='60'!B132 -> KRAUSE | C152: ='60'!C132 -> Tadeáš | D152: ='60'!D132 -> 7.A | F152: ='60'!H132 -> 726.8833336 | G152: ='300'!H131 -> 0 | H152: ='1000'!H132 -> 0 | I152: =DÁLKA!H132 -> 640.224 | J152: =VÝŠKA!H132 -> 611.2 | K152: =MÍČEK!H132 -> 368.75 | L152: =KOULE!H132 -> 478.8888889 | M152: =OŠTĚP!H132 -> 0 | N152: =ČLUNEK!H132 -> 0 | O152: =LEHSED!H132 -> 675 | P152: =ODBÍJENÍ!H132 -> 144 | Q152: =PLAVÁNÍ!H132 -> 0 | R152: =SHYBY!H132 -> 0 | S152: =ŠPLH!H132 -> 0 | T152: =ŠVIHADLO!H132 -> 756.25 | U152: ='Z MÍSTA'!H132 -> 763.8 | V152: =REPRE!E35 -> 0 | W152: =SUM(F152:V152) -> 5164.996222
B153: ='60'!B133 -> LEŠÁK | C153: ='60'!C133 -> Martin | D153: ='60'!D133 -> 7.A | F153: ='60'!H133 -> 685.2960597 | G153: ='300'!H132 -> 0 | H153: ='1000'!H133 -> 0 | I153: =DÁLKA!H133 -> 0 | J153: =VÝŠKA!H133 -> 548.28 | K153: =MÍČEK!H133 -> 318.75 | L153: =KOULE!H133 -> 501.6666667 | M153: =OŠTĚP!H133 -> 0 | N153: =ČLUNEK!H133 -> 0 | O153: =LEHSED!H133 -> 187.5 | P153: =ODBÍJENÍ!H133 -> 56 | Q153: =PLAVÁNÍ!H133 -> 0 | R153: =SHYBY!H133 -> 0 | S153: =ŠPLH!H133 -> 0 | T153: =ŠVIHADLO!H133 -> 187.5 | U153: ='Z MÍSTA'!H133 -> 0 | V153: =REPRE!E36 -> 0 | W153: =SUM(F153:V153) -> 2484.992726
B154: ='60'!B134 -> NECHANICKÝ | C154: ='60'!C134 -> David | D154: ='60'!D134 -> 7.A | F154: ='60'!H134 -> 757.2692403 | G154: ='300'!H133 -> 0 | H154: ='1000'!H134 -> 0 | I154: =DÁLKA!H134 -> 660.972 | J154: =VÝŠKA!H134 -> 639.8 | K154: =MÍČEK!H134 -> 387.5 | L154: =KOULE!H134 -> 0 | M154: =OŠTĚP!H134 -> 0 | N154: =ČLUNEK!H134 -> 0 | O154: =LEHSED!H134 -> 0 | P154: =ODBÍJENÍ!H134 -> 176 | Q154: =PLAVÁNÍ!H134 -> 436.9544345 | R154: =SHYBY!H134 -> 0 | S154: =ŠPLH!H134 -> 0 | T154: =ŠVIHADLO!H134 -> 0 | U154: ='Z MÍSTA'!H134 -> 0 | V154: =REPRE!E37 -> 0 | W154: =SUM(F154:V154) -> 3058.495675
B155: ='60'!B135 -> ŘEHOŘEK | C155: ='60'!C135 -> Jan | D155: ='60'!D135 -> 7.A | F155: ='60'!H135 -> 763.9841015 | G155: ='300'!H134 -> 0 | H155: ='1000'!H135 -> 0 | I155: =DÁLKA!H135 -> 647.634 | J155: =VÝŠKA!H135 -> 668.4 | K155: =MÍČEK!H135 -> 525 | L155: =KOULE!H135 -> 460 | M155: =OŠTĚP!H135 -> 0 | N155: =ČLUNEK!H135 -> 0 | O155: =LEHSED!H135 -> 325 | P155: =ODBÍJENÍ!H135 -> 336 | Q155: =PLAVÁNÍ!H135 -> 436.9544345 | R155: =SHYBY!H135 -> 0 | S155: =ŠPLH!H135 -> 0 | T155: =ŠVIHADLO!H135 -> 718.75 | U155: ='Z MÍSTA'!H135 -> 0 | V155: =REPRE!E38 -> 0 | W155: =SUM(F155:V155) -> 4881.722536
B156: ='60'!B136 -> SOUKUP | C156: ='60'!C136 -> Ondřej | D156: ='60'!D136 -> 7.A | F156: ='60'!H136 -> 734.8248169 | G156: ='300'!H135 -> 0 | H156: ='1000'!H136 -> 0 | I156: =DÁLKA!H136 -> 576.498 | J156: =VÝŠKA!H136 -> 582.6 | K156: =MÍČEK!H136 -> 0 | L156: =KOULE!H136 -> 0 | M156: =OŠTĚP!H136 -> 0 | N156: =ČLUNEK!H136 -> 0 | O156: =LEHSED!H136 -> 587.5 | P156: =ODBÍJENÍ!H136 -> 176 | Q156: =PLAVÁNÍ!H136 -> 0 | R156: =SHYBY!H136 -> 0 | S156: =ŠPLH!H136 -> 0 | T156: =ŠVIHADLO!H136 -> 0 | U156: ='Z MÍSTA'!H136 -> 0 | V156: =REPRE!E39 -> 0 | W156: =SUM(F156:V156) -> 2657.422817
B157: ='60'!B137 -> SPANILÝ | C157: ='60'!C137 -> David | D157: ='60'!D137 -> 7.A | F157: ='60'!H137 -> 747.4538948 | G157: ='300'!H136 -> 0 | H157: ='1000'!H137 -> 0 | I157: =DÁLKA!H137 -> 0 | J157: =VÝŠKA!H137 -> 0 | K157: =MÍČEK!H137 -> 587.5 | L157: =KOULE!H137 -> 481.6666667 | M157: =OŠTĚP!H137 -> 0 | N157: =ČLUNEK!H137 -> 0 | O157: =LEHSED!H137 -> 675 | P157: =ODBÍJENÍ!H137 -> 336 | Q157: =PLAVÁNÍ!H137 -> 436.9544345 | R157: =SHYBY!H137 -> 0 | S157: =ŠPLH!H137 -> 0 | T157: =ŠVIHADLO!H137 -> 662.5 | U157: ='Z MÍSTA'!H137 -> 752.4 | V157: =REPRE!E40 -> 0 | W157: =SUM(F157:V157) -> 4679.474996
B158: ='60'!B138 -> ČADAN | C158: ='60'!C138 -> Benjamín | D158: ='60'!D138 -> 7.B | F158: ='60'!H138 -> 0 | G158: ='300'!H137 -> 0 | H158: ='1000'!H138 -> 0 | I158: =DÁLKA!H138 -> 603.174 | J158: =VÝŠKA!H138 -> 605.48 | K158: =MÍČEK!H138 -> 325 | L158: =KOULE!H138 -> 466.6666667 | M158: =OŠTĚP!H138 -> 0 | N158: =ČLUNEK!H138 -> 0 | O158: =LEHSED!H138 -> 0 | P158: =ODBÍJENÍ!H138 -> 80 | Q158: =PLAVÁNÍ!H138 -> 0 | R158: =SHYBY!H138 -> 0 | S158: =ŠPLH!H138 -> 0 | T158: =ŠVIHADLO!H138 -> 0 | U158: ='Z MÍSTA'!H138 -> 0 | V158: =REPRE!E41 -> 0 | W158: =SUM(F158:V158) -> 2080.320667
B159: ='60'!B139 -> ČERNÝ | C159: ='60'!C139 -> Michal | D159: ='60'!D139 -> 7.B | F159: ='60'!H139 -> 713.3212519 | G159: ='300'!H138 -> 0 | H159: ='1000'!H139 -> 0 | I159: =DÁLKA!H139 -> 529.074 | J159: =VÝŠKA!H139 -> 548.28 | K159: =MÍČEK!H139 -> 493.75 | L159: =KOULE!H139 -> 463.8888889 | M159: =OŠTĚP!H139 -> 0 | N159: =ČLUNEK!H139 -> 0 | O159: =LEHSED!H139 -> 0 | P159: =ODBÍJENÍ!H139 -> 120 | Q159: =PLAVÁNÍ!H139 -> 0 | R159: =SHYBY!H139 -> 0 | S159: =ŠPLH!H139 -> 0 | T159: =ŠVIHADLO!H139 -> 0 | U159: ='Z MÍSTA'!H139 -> 0 | V159: =REPRE!E42 -> 0 | W159: =SUM(F159:V159) -> 2868.314141
B160: ='60'!B140 -> DOLEJŠÍ | C160: ='60'!C140 -> David | D160: ='60'!D140 -> 7.B | F160: ='60'!H140 -> 673.4998351 | G160: ='300'!H139 -> 0 | H160: ='1000'!H140 -> 0 | I160: =DÁLKA!H140 -> 560.196 | J160: =VÝŠKA!H140 -> 639.8 | K160: =MÍČEK!H140 -> 262.5 | L160: =KOULE!H140 -> 516.6666667 | M160: =OŠTĚP!H140 -> 0 | N160: =ČLUNEK!H140 -> 0 | O160: =LEHSED!H140 -> 562.5 | P160: =ODBÍJENÍ!H140 -> 64 | Q160: =PLAVÁNÍ!H140 -> 0 | R160: =SHYBY!H140 -> 0 | S160: =ŠPLH!H140 -> 0 | T160: =ŠVIHADLO!H140 -> 362.5 | U160: ='Z MÍSTA'!H140 -> 577.6 | V160: =REPRE!E43 -> 0 | W160: =SUM(F160:V160) -> 4219.262502
B161: ='60'!B141 -> NOVÁK | C161: ='60'!C141 -> Matěj | D161: ='60'!D141 -> 7.B | F161: ='60'!H141 -> 707.0456704 | G161: ='300'!H140 -> 0 | H161: ='1000'!H141 -> 0 | I161: =DÁLKA!H141 -> 588.354 | J161: =VÝŠKA!H141 -> 582.6 | K161: =MÍČEK!H141 -> 381.25 | L161: =KOULE!H141 -> 463.3333333 | M161: =OŠTĚP!H141 -> 0 | N161: =ČLUNEK!H141 -> 0 | O161: =LEHSED!H141 -> 0 | P161: =ODBÍJENÍ!H141 -> 64 | Q161: =PLAVÁNÍ!H141 -> 0 | R161: =SHYBY!H141 -> 0 | S161: =ŠPLH!H141 -> 0 | T161: =ŠVIHADLO!H141 -> 425 | U161: ='Z MÍSTA'!H141 -> 642.2 | V161: =REPRE!E44 -> 0 | W161: =SUM(F161:V161) -> 3853.783004
B162: ='60'!B142 -> POVAŽANEC | C162: ='60'!C142 -> Martin | D162: ='60'!D142 -> 7.B | F162: ='60'!H142 -> 743.6113762 | G162: ='300'!H141 -> 0 | H162: ='1000'!H142 -> 0 | I162: =DÁLKA!H142 -> 660.972 | J162: =VÝŠKA!H142 -> 611.2 | K162: =MÍČEK!H142 -> 506.25 | L162: =KOULE!H142 -> 645 | M162: =OŠTĚP!H142 -> 0 | N162: =ČLUNEK!H142 -> 0 | O162: =LEHSED!H142 -> 0 | P162: =ODBÍJENÍ!H142 -> 64 | Q162: =PLAVÁNÍ!H142 -> 0 | R162: =SHYBY!H142 -> 0 | S162: =ŠPLH!H142 -> 0 | T162: =ŠVIHADLO!H142 -> 0 | U162: ='Z MÍSTA'!H142 -> 0 | V162: =REPRE!E45 -> 0 | W162: =SUM(F162:V162) -> 3231.033376
B163: ='60'!B143 -> RICHTER | C163: ='60'!C143 -> Jakub | D163: ='60'!D143 -> 7.B | F163: ='60'!H143 -> 0 | G163: ='300'!H142 -> 0 | H163: ='1000'!H143 -> 0 | I163: =DÁLKA!H143 -> 0 | J163: =VÝŠKA!H143 -> 0 | K163: =MÍČEK!H143 -> 287.5 | L163: =KOULE!H143 -> 0 | M163: =OŠTĚP!H143 -> 0 | N163: =ČLUNEK!H143 -> 0 | O163: =LEHSED!H143 -> 250 | P163: =ODBÍJENÍ!H143 -> 0 | Q163: =PLAVÁNÍ!H143 -> 0 | R163: =SHYBY!H143 -> 0 | S163: =ŠPLH!H143 -> 0 | T163: =ŠVIHADLO!H143 -> 0 | U163: ='Z MÍSTA'!H143 -> 0 | V163: =REPRE!E46 -> 0 | W163: =SUM(F163:V163) -> 537.5
B164: ='60'!B144 -> ROZUMEK | C164: ='60'!C144 -> Adam | D164: ='60'!D144 -> 7.B | F164: ='60'!H144 -> 0 | G164: ='300'!H143 -> 0 | H164: ='1000'!H144 -> 0 | I164: =DÁLKA!H144 -> 515.736 | J164: =VÝŠKA!H144 -> 548.28 | K164: =MÍČEK!H144 -> 475 | L164: =KOULE!H144 -> 595.5555556 | M164: =OŠTĚP!H144 -> 0 | N164: =ČLUNEK!H144 -> 0 | O164: =LEHSED!H144 -> 0 | P164: =ODBÍJENÍ!H144 -> 208 | Q164: =PLAVÁNÍ!H144 -> 0 | R164: =SHYBY!H144 -> 0 | S164: =ŠPLH!H144 -> 0 | T164: =ŠVIHADLO!H144 -> 0 | U164: ='Z MÍSTA'!H144 -> 0 | V164: =REPRE!E47 -> 0 | W164: =SUM(F164:V164) -> 2342.571556
B165: ='60'!B145 -> VALENTA | C165: ='60'!C145 -> František | D165: ='60'!D145 -> 7.B | F165: ='60'!H145 -> 682.6893928 | G165: ='300'!H144 -> 0 | H165: ='1000'!H145 -> 0 | I165: =DÁLKA!H145 -> 515.736 | J165: =VÝŠKA!H145 -> 582.6 | K165: =MÍČEK!H145 -> 250 | L165: =KOULE!H145 -> 513.3333333 | M165: =OŠTĚP!H145 -> 0 | N165: =ČLUNEK!H145 -> 0 | O165: =LEHSED!H145 -> 0 | P165: =ODBÍJENÍ!H145 -> 120 | Q165: =PLAVÁNÍ!H145 -> 0 | R165: =SHYBY!H145 -> 0 | S165: =ŠPLH!H145 -> 0 | T165: =ŠVIHADLO!H145 -> 0 | U165: ='Z MÍSTA'!H145 -> 0 | V165: =REPRE!E48 -> 0 | W165: =SUM(F165:V165) -> 2664.358726
B166: ='60'!B146 -> ZAPLATÍLEK | C166: ='60'!C146 -> Josef | D166: ='60'!D146 -> 7.B | F166: ='60'!H146 -> 733.5896376 | G166: ='300'!H145 -> 0 | H166: ='1000'!H146 -> 0 | I166: =DÁLKA!H146 -> 0 | J166: =VÝŠKA!H146 -> 582.6 | K166: =MÍČEK!H146 -> 450 | L166: =KOULE!H146 -> 467.2222222 | M166: =OŠTĚP!H146 -> 0 | N166: =ČLUNEK!H146 -> 0 | O166: =LEHSED!H146 -> 0 | P166: =ODBÍJENÍ!H146 -> 208 | Q166: =PLAVÁNÍ!H146 -> 0 | R166: =SHYBY!H146 -> 0 | S166: =ŠPLH!H146 -> 0 | T166: =ŠVIHADLO!H146 -> 0 | U166: ='Z MÍSTA'!H146 -> 0 | V166: =REPRE!E49 -> 0 | W166: =SUM(F166:V166) -> 2441.41186
B167: ='60'!B147 -> ERBEN | C167: ='60'!C147 -> Viktor | D167: ='60'!D147 -> 8.A | F167: ='60'!H147 -> 709.3123844 | G167: ='300'!H146 -> 520.9774453 | H167: ='1000'!H147 -> 0 | I167: =DÁLKA!H147 -> 0 | J167: =VÝŠKA!H147 -> 605.48 | K167: =MÍČEK!H147 -> 262.5 | L167: =KOULE!H147 -> 490.5555556 | M167: =OŠTĚP!H147 -> 0 | N167: =ČLUNEK!H147 -> 767.6191366 | O167: =LEHSED!H147 -> 350 | P167: =ODBÍJENÍ!H147 -> 232 | Q167: =PLAVÁNÍ!H147 -> 0 | R167: =SHYBY!H147 -> 0 | S167: =ŠPLH!H147 -> 0 | T167: =ŠVIHADLO!H147 -> 0 | U167: ='Z MÍSTA'!H147 -> 623.2 | V167: =REPRE!E50 -> 0 | W167: =SUM(F167:V167) -> 4561.644522
B168: ='60'!B148 -> FRANC | C168: ='60'!C148 -> Daniel | D168: ='60'!D148 -> 8.A | F168: ='60'!H148 -> 673.4998351 | G168: ='300'!H147 -> 0 | H168: ='1000'!H148 -> 0 | I168: =DÁLKA!H148 -> 564.642 | J168: =VÝŠKA!H148 -> 605.48 | K168: =MÍČEK!H148 -> 325 | L168: =KOULE!H148 -> 0 | M168: =OŠTĚP!H148 -> 0 | N168: =ČLUNEK!H148 -> 679.3552394 | O168: =LEHSED!H148 -> 0 | P168: =ODBÍJENÍ!H148 -> 104 | Q168: =PLAVÁNÍ!H148 -> 0 | R168: =SHYBY!H148 -> 0 | S168: =ŠPLH!H148 -> 0 | T168: =ŠVIHADLO!H148 -> 0 | U168: ='Z MÍSTA'!H148 -> 600.4 | V168: =REPRE!E51 -> 0 | W168: =SUM(F168:V168) -> 3552.377074
B169: ='60'!B149 -> JINDŘIŠEK | C169: ='60'!C149 -> Matyáš | D169: ='60'!D149 -> 8.A | F169: ='60'!H149 -> 0 | G169: ='300'!H148 -> 743.7507218 | H169: ='1000'!H149 -> 0 | I169: =DÁLKA!H149 -> 0 | J169: =VÝŠKA!H149 -> 628.36 | K169: =MÍČEK!H149 -> 0 | L169: =KOULE!H149 -> 643.8888889 | M169: =OŠTĚP!H149 -> 0 | N169: =ČLUNEK!H149 -> 873.2139985 | O169: =LEHSED!H149 -> 512.5 | P169: =ODBÍJENÍ!H149 -> 224 | Q169: =PLAVÁNÍ!H149 -> 0 | R169: =SHYBY!H149 -> 0 | S169: =ŠPLH!H149 -> 0 | T169: =ŠVIHADLO!H149 -> 493.75 | U169: ='Z MÍSTA'!H149 -> 779 | V169: =REPRE!E52 -> 0 | W169: =SUM(F169:V169) -> 4898.463609
B170: ='60'!B150 -> KOLAČNÝ | C170: ='60'!C150 -> Štěpán | D170: ='60'!D150 -> 8.A | F170: ='60'!H150 -> 692.1869804 | G170: ='300'!H149 -> 454.7174192 | H170: ='1000'!H150 -> 0 | I170: =DÁLKA!H150 -> 566.124 | J170: =VÝŠKA!H150 -> 548.28 | K170: =MÍČEK!H150 -> 312.5 | L170: =KOULE!H150 -> 600.5555556 | M170: =OŠTĚP!H150 -> 0 | N170: =ČLUNEK!H150 -> 794.2281357 | O170: =LEHSED!H150 -> 537.5 | P170: =ODBÍJENÍ!H150 -> 152 | Q170: =PLAVÁNÍ!H150 -> 0 | R170: =SHYBY!H150 -> 0 | S170: =ŠPLH!H150 -> 0 | T170: =ŠVIHADLO!H150 -> 0 | U170: ='Z MÍSTA'!H150 -> 684 | V170: =REPRE!E53 -> 0 | W170: =SUM(F170:V170) -> 5342.092091
B171: ='60'!B151 -> KRISTAN | C171: ='60'!C151 -> Jáchym | D171: ='60'!D151 -> 8.A | F171: ='60'!H151 -> 541.0170446 | G171: ='300'!H150 -> 259.3435753 | H171: ='1000'!H151 -> 0 | I171: =DÁLKA!H151 -> 0 | J171: =VÝŠKA!H151 -> 485.36 | K171: =MÍČEK!H151 -> 187.5 | L171: =KOULE!H151 -> 372.2222222 | M171: =OŠTĚP!H151 -> 0 | N171: =ČLUNEK!H151 -> 500.0827291 | O171: =LEHSED!H151 -> 0 | P171: =ODBÍJENÍ!H151 -> 96 | Q171: =PLAVÁNÍ!H151 -> 0 | R171: =SHYBY!H151 -> 0 | S171: =ŠPLH!H151 -> 0 | T171: =ŠVIHADLO!H151 -> 0 | U171: ='Z MÍSTA'!H151 -> 440.8 | V171: =REPRE!E54 -> 0 | W171: =SUM(F171:V171) -> 2882.325571
B172: ='60'!B152 -> NGUYEN | C172: ='60'!C152 -> David | D172: ='60'!D152 -> 8.A | F172: ='60'!H152 -> 0 | G172: ='300'!H151 -> 0 | H172: ='1000'!H152 -> 0 | I172: =DÁLKA!H152 -> 0 | J172: =VÝŠKA!H152 -> 628.36 | K172: =MÍČEK!H152 -> 456.25 | L172: =KOULE!H152 -> 0 | M172: =OŠTĚP!H152 -> 0 | N172: =ČLUNEK!H152 -> 876.5472854 | O172: =LEHSED!H152 -> 0 | P172: =ODBÍJENÍ!H152 -> 232 | Q172: =PLAVÁNÍ!H152 -> 0 | R172: =SHYBY!H152 -> 0 | S172: =ŠPLH!H152 -> 0 | T172: =ŠVIHADLO!H152 -> 0 | U172: ='Z MÍSTA'!H152 -> 874 | V172: =REPRE!E55 -> 0 | W172: =SUM(F172:V172) -> 3067.157285
B173: ='60'!B153 -> NOVOTNÝ | C173: ='60'!C153 -> Jan | D173: ='60'!D153 -> 8.A | F173: ='60'!H153 -> 772.2299225 | G173: ='300'!H152 -> 809.1939274 | H173: ='1000'!H153 -> 0 | I173: =DÁLKA!H153 -> 662.454 | J173: =VÝŠKA!H153 -> 628.36 | K173: =MÍČEK!H153 -> 337.5 | L173: =KOULE!H153 -> 0 | M173: =OŠTĚP!H153 -> 0 | N173: =ČLUNEK!H153 -> 865.4923011 | O173: =LEHSED!H153 -> 0 | P173: =ODBÍJENÍ!H153 -> 128 | Q173: =PLAVÁNÍ!H153 -> 0 | R173: =SHYBY!H153 -> 0 | S173: =ŠPLH!H153 -> 0 | T173: =ŠVIHADLO!H153 -> 0 | U173: ='Z MÍSTA'!H153 -> 0 | V173: =REPRE!E56 -> 0 | W173: =SUM(F173:V173) -> 4203.230151
B174: ='60'!B154 -> RÁB | C174: ='60'!C154 -> Adam | D174: ='60'!D154 -> 8.A | F174: ='60'!H154 -> 625.320837 | G174: ='300'!H153 -> 436.640326 | H174: ='1000'!H154 -> 0 | I174: =DÁLKA!H154 -> 532.038 | J174: =VÝŠKA!H154 -> 508.24 | K174: =MÍČEK!H154 -> 318.75 | L174: =KOULE!H154 -> 611.6666667 | M174: =OŠTĚP!H154 -> 0 | N174: =ČLUNEK!H154 -> 705.0732463 | O174: =LEHSED!H154 -> 0 | P174: =ODBÍJENÍ!H154 -> 96 | Q174: =PLAVÁNÍ!H154 -> 0 | R174: =SHYBY!H154 -> 0 | S174: =ŠPLH!H154 -> 0 | T174: =ŠVIHADLO!H154 -> 0 | U174: ='Z MÍSTA'!H154 -> 615.6 | V174: =REPRE!E57 -> 0 | W174: =SUM(F174:V174) -> 4449.329076
B175: ='60'!B155 -> REPASKÝ | C175: ='60'!C155 -> Jakub | D175: ='60'!D155 -> 8.A | F175: ='60'!H155 -> 823.2283622 | G175: ='300'!H154 -> 765.5481923 | H175: ='1000'!H155 -> 0 | I175: =DÁLKA!H155 -> 0 | J175: =VÝŠKA!H155 -> 628.36 | K175: =MÍČEK!H155 -> 631.25 | L175: =KOULE!H155 -> 667.7777778 | M175: =OŠTĚP!H155 -> 0 | N175: =ČLUNEK!H155 -> 916.5547796 | O175: =LEHSED!H155 -> 612.5 | P175: =ODBÍJENÍ!H155 -> 584 | Q175: =PLAVÁNÍ!H155 -> 0 | R175: =SHYBY!H155 -> 0 | S175: =ŠPLH!H155 -> 0 | T175: =ŠVIHADLO!H155 -> 912.5 | U175: ='Z MÍSTA'!H155 -> 809.4 | V175: =REPRE!E58 -> 0 | W175: =SUM(F175:V175) -> 7351.119112
B176: ='60'!B156 -> SKÁLA | C176: ='60'!C156 -> Jan | D176: ='60'!D156 -> 8.A | F176: ='60'!H156 -> 823.2283622 | G176: ='300'!H155 -> 743.3402435 | H176: ='1000'!H156 -> 0 | I176: =DÁLKA!H156 -> 715.806 | J176: =VÝŠKA!H156 -> 628.36 | K176: =MÍČEK!H156 -> 375 | L176: =KOULE!H156 -> 688.3333333 | M176: =OŠTĚP!H156 -> 0 | N176: =ČLUNEK!H156 -> 818.6469916 | O176: =LEHSED!H156 -> 0 | P176: =ODBÍJENÍ!H156 -> 120 | Q176: =PLAVÁNÍ!H156 -> 0 | R176: =SHYBY!H156 -> 0 | S176: =ŠPLH!H156 -> 0 | T176: =ŠVIHADLO!H156 -> 0 | U176: ='Z MÍSTA'!H156 -> 809.4 | V176: =REPRE!E59 -> 0 | W176: =SUM(F176:V176) -> 5722.114931
B177: ='60'!B157 -> ŠPULÁK | C177: ='60'!C157 -> Jakub | D177: ='60'!D157 -> 8.A | F177: ='60'!H157 -> 747.4538948 | G177: ='300'!H156 -> 656.940733 | H177: ='1000'!H157 -> 0 | I177: =DÁLKA!H157 -> 626.886 | J177: =VÝŠKA!H157 -> 628.36 | K177: =MÍČEK!H157 -> 562.5 | L177: =KOULE!H157 -> 661.6666667 | M177: =OŠTĚP!H157 -> 0 | N177: =ČLUNEK!H157 -> 787.244744 | O177: =LEHSED!H157 -> 337.5 | P177: =ODBÍJENÍ!H157 -> 144 | Q177: =PLAVÁNÍ!H157 -> 0 | R177: =SHYBY!H157 -> 0 | S177: =ŠPLH!H157 -> 0 | T177: =ŠVIHADLO!H157 -> 212.5 | U177: ='Z MÍSTA'!H157 -> 737.2 | V177: =REPRE!E60 -> 0 | W177: =SUM(F177:V177) -> 6102.252038
B178: ='60'!B158 -> VALENTA | C178: ='60'!C158 -> Tomáš | D178: ='60'!D158 -> 8.A | F178: ='60'!H158 -> 872.5095561 | G178: ='300'!H157 -> 901.0188423 | H178: ='1000'!H158 -> 0 | I178: =DÁLKA!H158 -> 829.92 | J178: =VÝŠKA!H158 -> 628.36 | K178: =MÍČEK!H158 -> 662.5 | L178: =KOULE!H158 -> 766.6666667 | M178: =OŠTĚP!H158 -> 0 | N178: =ČLUNEK!H158 -> 900.2976199 | O178: =LEHSED!H158 -> 612.5 | P178: =ODBÍJENÍ!H158 -> 584 | Q178: =PLAVÁNÍ!H158 -> 0 | R178: =SHYBY!H158 -> 0 | S178: =ŠPLH!H158 -> 0 | T178: =ŠVIHADLO!H158 -> 887.5 | U178: ='Z MÍSTA'!H158 -> 889.2 | V178: =REPRE!E61 -> 0 | W178: =SUM(F178:V178) -> 8534.472685
B179: ='60'!B159 -> VANCL | C179: ='60'!C159 -> Jiří | D179: ='60'!D159 -> 8.A | F179: ='60'!H159 -> 757.9344574 | G179: ='300'!H158 -> 616.412371 | H179: ='1000'!H159 -> 0 | I179: =DÁLKA!H159 -> 0 | J179: =VÝŠKA!H159 -> 605.48 | K179: =MÍČEK!H159 -> 387.5 | L179: =KOULE!H159 -> 583.8888889 | M179: =OŠTĚP!H159 -> 0 | N179: =ČLUNEK!H159 -> 818.6469916 | O179: =LEHSED!H159 -> 0 | P179: =ODBÍJENÍ!H159 -> 256 | Q179: =PLAVÁNÍ!H159 -> 0 | R179: =SHYBY!H159 -> 0 | S179: =ŠPLH!H159 -> 0 | T179: =ŠVIHADLO!H159 -> 0 | U179: ='Z MÍSTA'!H159 -> 771.4 | V179: =REPRE!E62 -> 0 | W179: =SUM(F179:V179) -> 4797.262709
B180: ='60'!B160 -> VAŠÍČEK | C180: ='60'!C160 -> David | D180: ='60'!D160 -> 8.A | F180: ='60'!H160 -> 0 | G180: ='300'!H159 -> 0 | H180: ='1000'!H160 -> 0 | I180: =DÁLKA!H160 -> 628.368 | J180: =VÝŠKA!H160 -> 0 | K180: =MÍČEK!H160 -> 406.25 | L180: =KOULE!H160 -> 0 | M180: =OŠTĚP!H160 -> 0 | N180: =ČLUNEK!H160 -> 0 | O180: =LEHSED!H160 -> 0 | P180: =ODBÍJENÍ!H160 -> 248 | Q180: =PLAVÁNÍ!H160 -> 0 | R180: =SHYBY!H160 -> 0 | S180: =ŠPLH!H160 -> 0 | T180: =ŠVIHADLO!H160 -> 0 | U180: ='Z MÍSTA'!H160 -> 794.2 | V180: =REPRE!E63 -> 0 | W180: =SUM(F180:V180) -> 2076.818
B181: ='60'!B161 -> ZOUHAR | C181: ='60'!C161 -> Ondřej | D181: ='60'!D161 -> 8.A | F181: ='60'!H161 -> 819.2100192 | G181: ='300'!H160 -> 786.9346915 | H181: ='1000'!H161 -> 0 | I181: =DÁLKA!H161 -> 663.936 | J181: =VÝŠKA!H161 -> 605.48 | K181: =MÍČEK!H161 -> 437.5 | L181: =KOULE!H161 -> 520.5555556 | M181: =OŠTĚP!H161 -> 0 | N181: =ČLUNEK!H161 -> 862.2066446 | O181: =LEHSED!H161 -> 0 | P181: =ODBÍJENÍ!H161 -> 248 | Q181: =PLAVÁNÍ!H161 -> 0 | R181: =SHYBY!H161 -> 0 | S181: =ŠPLH!H161 -> 0 | T181: =ŠVIHADLO!H161 -> 0 | U181: ='Z MÍSTA'!H161 -> 786.6 | V181: =REPRE!E64 -> 0 | W181: =SUM(F181:V181) -> 5730.422911
B182: ='60'!B162 -> ZUZÁNEK | C182: ='60'!C162 -> Filip | D182: ='60'!D162 -> 8.A | F182: ='60'!H162 -> 732.3593794 | G182: ='300'!H161 -> 622.7941174 | H182: ='1000'!H162 -> 0 | I182: =DÁLKA!H162 -> 0 | J182: =VÝŠKA!H162 -> 628.36 | K182: =MÍČEK!H162 -> 306.25 | L182: =KOULE!H162 -> 533.3333333 | M182: =OŠTĚP!H162 -> 0 | N182: =ČLUNEK!H162 -> 845.9853231 | O182: =LEHSED!H162 -> 0 | P182: =ODBÍJENÍ!H162 -> 256 | Q182: =PLAVÁNÍ!H162 -> 0 | R182: =SHYBY!H162 -> 0 | S182: =ŠPLH!H162 -> 0 | T182: =ŠVIHADLO!H162 -> 0 | U182: ='Z MÍSTA'!H162 -> 725.8 | V182: =REPRE!E65 -> 0 | W182: =SUM(F182:V182) -> 4650.882153
B183: ='60'!B163 -> BRUMLICH | C183: ='60'!C163 -> Jan | D183: ='60'!D163 -> 9.A | F183: ='60'!H163 -> 0 | G183: ='300'!H162 -> 785.3787608 | H183: ='1000'!H163 -> 0 | I183: =DÁLKA!H163 -> 0 | J183: =VÝŠKA!H163 -> 742.76 | K183: =MÍČEK!H163 -> 725 | L183: =KOULE!H163 -> 842.7777778 | M183: =OŠTĚP!H163 -> 0 | N183: =ČLUNEK!H163 -> 0 | O183: =LEHSED!H163 -> 0 | P183: =ODBÍJENÍ!H163 -> 328 | Q183: =PLAVÁNÍ!H163 -> 436.9544345 | R183: =SHYBY!H163 -> 0 | S183: =ŠPLH!H163 -> 0 | T183: =ŠVIHADLO!H163 -> 0 | U183: ='Z MÍSTA'!H163 -> 0 | V183: =REPRE!E66 -> 0 | W183: =SUM(F183:V183) -> 3860.870973
B184: ='60'!B164 -> BUCHAR | C184: ='60'!C164 -> Jiří | D184: ='60'!D164 -> 9.A | F184: ='60'!H164 -> 811.3087831 | G184: ='300'!H163 -> 772.2220729 | H184: ='1000'!H164 -> 0 | I184: =DÁLKA!H164 -> 726.18 | J184: =VÝŠKA!H164 -> 714.16 | K184: =MÍČEK!H164 -> 406.25 | L184: =KOULE!H164 -> 0 | M184: =OŠTĚP!H164 -> 0 | N184: =ČLUNEK!H164 -> 0 | O184: =LEHSED!H164 -> 0 | P184: =ODBÍJENÍ!H164 -> 328 | Q184: =PLAVÁNÍ!H164 -> 0 | R184: =SHYBY!H164 -> 0 | S184: =ŠPLH!H164 -> 0 | T184: =ŠVIHADLO!H164 -> 0 | U184: ='Z MÍSTA'!H164 -> 0 | V184: =REPRE!E67 -> 0 | W184: =SUM(F184:V184) -> 3758.120856
B185: ='60'!B165 -> FAISTAUER | C185: ='60'!C165 -> Jiří | D185: ='60'!D165 -> 9.A | F185: ='60'!H165 -> 0 | G185: ='300'!H164 -> 0 | H185: ='1000'!H165 -> 0 | I185: =DÁLKA!H165 -> 714.324 | J185: =VÝŠKA!H165 -> 656.96 | K185: =MÍČEK!H165 -> 550 | L185: =KOULE!H165 -> 600 | M185: =OŠTĚP!H165 -> 0 | N185: =ČLUNEK!H165 -> 0 | O185: =LEHSED!H165 -> 0 | P185: =ODBÍJENÍ!H165 -> 0 | Q185: =PLAVÁNÍ!H165 -> 0 | R185: =SHYBY!H165 -> 0 | S185: =ŠPLH!H165 -> 0 | T185: =ŠVIHADLO!H165 -> 0 | U185: ='Z MÍSTA'!H165 -> 0 | V185: =REPRE!E68 -> 0 | W185: =SUM(F185:V185) -> 2521.284
B186: ='60'!B166 -> FAISTAUER | C186: ='60'!C166 -> Roman | D186: ='60'!D166 -> 9.A | F186: ='60'!H166 -> 863.3729673 | G186: ='300'!H165 -> 696.1259162 | H186: ='1000'!H166 -> 0 | I186: =DÁLKA!H166 -> 723.216 | J186: =VÝŠKA!H166 -> 685.56 | K186: =MÍČEK!H166 -> 650 | L186: =KOULE!H166 -> 728.3333333 | M186: =OŠTĚP!H166 -> 0 | N186: =ČLUNEK!H166 -> 0 | O186: =LEHSED!H166 -> 0 | P186: =ODBÍJENÍ!H166 -> 248 | Q186: =PLAVÁNÍ!H166 -> 0 | R186: =SHYBY!H166 -> 0 | S186: =ŠPLH!H166 -> 0 | T186: =ŠVIHADLO!H166 -> 0 | U186: ='Z MÍSTA'!H166 -> 0 | V186: =REPRE!E69 -> 0 | W186: =SUM(F186:V186) -> 4594.608217
B187: ='60'!B167 -> FAJSTAVR | C187: ='60'!C167 -> Jakub | D187: ='60'!D167 -> 9.A | F187: ='60'!H167 -> 802.0585553 | G187: ='300'!H166 -> 650.0818055 | H187: ='1000'!H167 -> 0 | I187: =DÁLKA!H167 -> 678.756 | J187: =VÝŠKA!H167 -> 611.2 | K187: =MÍČEK!H167 -> 0 | L187: =KOULE!H167 -> 735 | M187: =OŠTĚP!H167 -> 0 | N187: =ČLUNEK!H167 -> 0 | O187: =LEHSED!H167 -> 600 | P187: =ODBÍJENÍ!H167 -> 0 | Q187: =PLAVÁNÍ!H167 -> 511.9635032 | R187: =SHYBY!H167 -> 0 | S187: =ŠPLH!H167 -> 0 | T187: =ŠVIHADLO!H167 -> 412.5 | U187: ='Z MÍSTA'!H167 -> 459.8 | V187: =REPRE!E70 -> 0 | W187: =SUM(F187:V187) -> 5461.359864
B188: ='60'!B168 -> FARSKÝ | C188: ='60'!C168 -> Vojtěch | D188: ='60'!D168 -> 9.A | F188: ='60'!H168 -> 810.5284141 | G188: ='300'!H167 -> 0 | H188: ='1000'!H168 -> 0 | I188: =DÁLKA!H168 -> 748.41 | J188: =VÝŠKA!H168 -> 777.08 | K188: =MÍČEK!H168 -> 675 | L188: =KOULE!H168 -> 682.7777778 | M188: =OŠTĚP!H168 -> 0 | N188: =ČLUNEK!H168 -> 0 | O188: =LEHSED!H168 -> 0 | P188: =ODBÍJENÍ!H168 -> 642 | Q188: =PLAVÁNÍ!H168 -> 0 | R188: =SHYBY!H168 -> 0 | S188: =ŠPLH!H168 -> 0 | T188: =ŠVIHADLO!H168 -> 0 | U188: ='Z MÍSTA'!H168 -> 0 | V188: =REPRE!E71 -> 0 | W188: =SUM(F188:V188) -> 4335.796192
B189: ='60'!B169 -> HOLUBEC | C189: ='60'!C169 -> Lukáš | D189: ='60'!D169 -> 9.A | F189: ='60'!H169 -> 0 | G189: ='300'!H168 -> 0 | H189: ='1000'!H169 -> 0 | I189: =DÁLKA!H169 -> 601.692 | J189: =VÝŠKA!H169 -> 628.36 | K189: =MÍČEK!H169 -> 437.5 | L189: =KOULE!H169 -> 646.1111111 | M189: =OŠTĚP!H169 -> 0 | N189: =ČLUNEK!H169 -> 0 | O189: =LEHSED!H169 -> 0 | P189: =ODBÍJENÍ!H169 -> 120 | Q189: =PLAVÁNÍ!H169 -> 0 | R189: =SHYBY!H169 -> 0 | S189: =ŠPLH!H169 -> 0 | T189: =ŠVIHADLO!H169 -> 0 | U189: ='Z MÍSTA'!H169 -> 0 | V189: =REPRE!E72 -> 0 | W189: =SUM(F189:V189) -> 2433.663111
B190: ='60'!B170 -> CHAROUZ | C190: ='60'!C170 -> Vojtěch | D190: ='60'!D170 -> 9.A | F190: ='60'!H170 -> 802.0585553 | G190: ='300'!H169 -> 715.5790691 | H190: ='1000'!H170 -> 0 | I190: =DÁLKA!H170 -> 711.36 | J190: =VÝŠKA!H170 -> 725.6 | K190: =MÍČEK!H170 -> 375 | L190: =KOULE!H170 -> 611.1111111 | M190: =OŠTĚP!H170 -> 0 | N190: =ČLUNEK!H170 -> 0 | O190: =LEHSED!H170 -> 0 | P190: =ODBÍJENÍ!H170 -> 152 | Q190: =PLAVÁNÍ!H170 -> 0 | R190: =SHYBY!H170 -> 0 | S190: =ŠPLH!H170 -> 0 | T190: =ŠVIHADLO!H170 -> 0 | U190: ='Z MÍSTA'!H170 -> 0 | V190: =REPRE!E73 -> 0 | W190: =SUM(F190:V190) -> 4092.708736
B191: ='60'!B171 -> IACCHERI | C191: ='60'!C171 -> Carlo | D191: ='60'!D171 -> 9.A | F191: ='60'!H171 -> 783.5564368 | G191: ='300'!H170 -> 680.2918958 | H191: ='1000'!H171 -> 0 | I191: =DÁLKA!H171 -> 613.548 | J191: =VÝŠKA!H171 -> 628.36 | K191: =MÍČEK!H171 -> 0 | L191: =KOULE!H171 -> 670 | M191: =OŠTĚP!H171 -> 0 | N191: =ČLUNEK!H171 -> 0 | O191: =LEHSED!H171 -> 0 | P191: =ODBÍJENÍ!H171 -> 0 | Q191: =PLAVÁNÍ!H171 -> 436.9544345 | R191: =SHYBY!H171 -> 0 | S191: =ŠPLH!H171 -> 0 | T191: =ŠVIHADLO!H171 -> 0 | U191: ='Z MÍSTA'!H171 -> 703 | V191: =REPRE!E74 -> 0 | W191: =SUM(F191:V191) -> 4515.710767
B192: ='60'!B172 -> JOHN | C192: ='60'!C172 -> Adrian | D192: ='60'!D172 -> 9.A | F192: ='60'!H172 -> 553.0231758 | G192: ='300'!H171 -> 0 | H192: ='1000'!H172 -> 0 | I192: =DÁLKA!H172 -> 419.406 | J192: =VÝŠKA!H172 -> 399.56 | K192: =MÍČEK!H172 -> 250 | L192: =KOULE!H172 -> 501.1111111 | M192: =OŠTĚP!H172 -> 0 | N192: =ČLUNEK!H172 -> 0 | O192: =LEHSED!H172 -> 375 | P192: =ODBÍJENÍ!H172 -> 128 | Q192: =PLAVÁNÍ!H172 -> 0 | R192: =SHYBY!H172 -> 0 | S192: =ŠPLH!H172 -> 0 | T192: =ŠVIHADLO!H172 -> 0 | U192: ='Z MÍSTA'!H172 -> 0 | V192: =REPRE!E75 -> 0 | W192: =SUM(F192:V192) -> 2626.100287
B193: ='60'!B173 -> KRČÍK | C193: ='60'!C173 -> Matthew | D193: ='60'!D173 -> 9.A | F193: ='60'!H173 -> 780.6883103 | G193: ='300'!H172 -> 0 | H193: ='1000'!H173 -> 0 | I193: =DÁLKA!H173 -> 631.332 | J193: =VÝŠKA!H173 -> 656.96 | K193: =MÍČEK!H173 -> 0 | L193: =KOULE!H173 -> 632.2222222 | M193: =OŠTĚP!H173 -> 0 | N193: =ČLUNEK!H173 -> 0 | O193: =LEHSED!H173 -> 0 | P193: =ODBÍJENÍ!H173 -> 0 | Q193: =PLAVÁNÍ!H173 -> 511.9635032 | R193: =SHYBY!H173 -> 0 | S193: =ŠPLH!H173 -> 0 | T193: =ŠVIHADLO!H173 -> 0 | U193: ='Z MÍSTA'!H173 -> 0 | V193: =REPRE!E76 -> 0 | W193: =SUM(F193:V193) -> 3213.166036
B194: ='60'!B174 -> KRESAN | C194: ='60'!C174 -> Vojtěch | D194: ='60'!D174 -> 9.A | F194: ='60'!H174 -> 770.1488551 | G194: ='300'!H173 -> 0 | H194: ='1000'!H174 -> 0 | I194: =DÁLKA!H174 -> 609.102 | J194: =VÝŠKA!H174 -> 611.2 | K194: =MÍČEK!H174 -> 331.25 | L194: =KOULE!H174 -> 660 | M194: =OŠTĚP!H174 -> 0 | N194: =ČLUNEK!H174 -> 0 | O194: =LEHSED!H174 -> 0 | P194: =ODBÍJENÍ!H174 -> 80 | Q194: =PLAVÁNÍ!H174 -> 436.9544345 | R194: =SHYBY!H174 -> 0 | S194: =ŠPLH!H174 -> 0 | T194: =ŠVIHADLO!H174 -> 0 | U194: ='Z MÍSTA'!H174 -> 0 | V194: =REPRE!E77 -> 0 | W194: =SUM(F194:V194) -> 3498.65529
B195: ='60'!B175 -> LÁNSKÝ | C195: ='60'!C175 -> Vojtěch | D195: ='60'!D175 -> 9.A | F195: ='60'!H175 -> 0 | G195: ='300'!H174 -> 316.5535629 | H195: ='1000'!H175 -> 0 | I195: =DÁLKA!H175 -> 0 | J195: =VÝŠKA!H175 -> 525.4 | K195: =MÍČEK!H175 -> 268.75 | L195: =KOULE!H175 -> 650 | M195: =OŠTĚP!H175 -> 0 | N195: =ČLUNEK!H175 -> 0 | O195: =LEHSED!H175 -> 0 | P195: =ODBÍJENÍ!H175 -> 120 | Q195: =PLAVÁNÍ!H175 -> 0 | R195: =SHYBY!H175 -> 0 | S195: =ŠPLH!H175 -> 0 | T195: =ŠVIHADLO!H175 -> 0 | U195: ='Z MÍSTA'!H175 -> 0 | V195: =REPRE!E78 -> 0 | W195: =SUM(F195:V195) -> 1880.703563
B196: ='60'!B176 -> LEŠÁK | C196: ='60'!C176 -> Lukáš | D196: ='60'!D176 -> 9.A | F196: ='60'!H176 -> 641.7645004 | G196: ='300'!H175 -> 0 | H196: ='1000'!H176 -> 0 | I196: =DÁLKA!H176 -> 471.276 | J196: =VÝŠKA!H176 -> 582.6 | K196: =MÍČEK!H176 -> 287.5 | L196: =KOULE!H176 -> 541.6666667 | M196: =OŠTĚP!H176 -> 0 | N196: =ČLUNEK!H176 -> 0 | O196: =LEHSED!H176 -> 0 | P196: =ODBÍJENÍ!H176 -> 0 | Q196: =PLAVÁNÍ!H176 -> 0 | R196: =SHYBY!H176 -> 0 | S196: =ŠPLH!H176 -> 0 | T196: =ŠVIHADLO!H176 -> 0 | U196: ='Z MÍSTA'!H176 -> 0 | V196: =REPRE!E79 -> 0 | W196: =SUM(F196:V196) -> 2524.807167
B197: ='60'!B177 -> RYPL | C197: ='60'!C177 -> Matyáš | D197: ='60'!D177 -> 9.A | F197: ='60'!H177 -> 814.4478746 | G197: ='300'!H176 -> 815.7215274 | H197: ='1000'!H177 -> 0 | I197: =DÁLKA!H177 -> 727.662 | J197: =VÝŠKA!H177 -> 656.96 | K197: =MÍČEK!H177 -> 325 | L197: =KOULE!H177 -> 554.4444444 | M197: =OŠTĚP!H177 -> 0 | N197: =ČLUNEK!H177 -> 0 | O197: =LEHSED!H177 -> 687.5 | P197: =ODBÍJENÍ!H177 -> 152 | Q197: =PLAVÁNÍ!H177 -> 511.9635032 | R197: =SHYBY!H177 -> 0 | S197: =ŠPLH!H177 -> 0 | T197: =ŠVIHADLO!H177 -> 0 | U197: ='Z MÍSTA'!H177 -> 0 | V197: =REPRE!E80 -> 0 | W197: =SUM(F197:V197) -> 5245.69935
B198: ='60'!B178 -> VU TRAN DINH | C198: ='60'!C178 -> Lukas | D198: ='60'!D178 -> 9.A | F198: ='60'!H178 -> 783.5564368 | G198: ='300'!H177 -> 0 | H198: ='1000'!H178 -> 0 | I198: =DÁLKA!H178 -> 669.864 | J198: =VÝŠKA!H178 -> 0 | K198: =MÍČEK!H178 -> 506.25 | L198: =KOULE!H178 -> 691.1111111 | M198: =OŠTĚP!H178 -> 0 | N198: =ČLUNEK!H178 -> 0 | O198: =LEHSED!H178 -> 0 | P198: =ODBÍJENÍ!H178 -> 0 | Q198: =PLAVÁNÍ!H178 -> 436.9544345 | R198: =SHYBY!H178 -> 0 | S198: =ŠPLH!H178 -> 0 | T198: =ŠVIHADLO!H178 -> 0 | U198: ='Z MÍSTA'!H178 -> 0 | V198: =REPRE!E81 -> 0 | W198: =SUM(F198:V198) -> 3087.735982
B199: ='60'!B179 -> DUFEK | C199: ='60'!C179 -> Matyáš | D199: ='60'!D179 -> 9.B | F199: ='60'!H179 -> 0 | G199: ='300'!H178 -> 0 | H199: ='1000'!H179 -> 0 | I199: =DÁLKA!H179 -> 0 | J199: =VÝŠKA!H179 -> 525.4 | K199: =MÍČEK!H179 -> 362.5 | L199: =KOULE!H179 -> 0 | M199: =OŠTĚP!H179 -> 0 | N199: =ČLUNEK!H179 -> 0 | O199: =LEHSED!H179 -> 0 | P199: =ODBÍJENÍ!H179 -> 168 | Q199: =PLAVÁNÍ!H179 -> 0 | R199: =SHYBY!H179 -> 0 | S199: =ŠPLH!H179 -> 0 | T199: =ŠVIHADLO!H179 -> 0 | U199: ='Z MÍSTA'!H179 -> 0 | V199: =REPRE!E82 -> 0 | W199: =SUM(F199:V199) -> 1055.9
B200: ='60'!B180 -> JEŽEK | C200: ='60'!C180 -> Jonáš | D200: ='60'!D180 -> 9.B | F200: ='60'!H180 -> 828.9318167 | G200: ='300'!H179 -> 0 | H200: ='1000'!H180 -> 0 | I200: =DÁLKA!H180 -> 0 | J200: =VÝŠKA!H180 -> 611.2 | K200: =MÍČEK!H180 -> 562.5 | L200: =KOULE!H180 -> 653.8888889 | M200: =OŠTĚP!H180 -> 0 | N200: =ČLUNEK!H180 -> 0 | O200: =LEHSED!H180 -> 0 | P200: =ODBÍJENÍ!H180 -> 679.6 | Q200: =PLAVÁNÍ!H180 -> 436.9544345 | R200: =SHYBY!H180 -> 0 | S200: =ŠPLH!H180 -> 0 | T200: =ŠVIHADLO!H180 -> 0 | U200: ='Z MÍSTA'!H180 -> 0 | V200: =REPRE!E83 -> 0 | W200: =SUM(F200:V200) -> 3773.07514
B201: ='60'!B181 -> JEŽEK | C201: ='60'!C181 -> Mikuláš | D201: ='60'!D181 -> 9.B | F201: ='60'!H181 -> 0 | G201: ='300'!H180 -> 0 | H201: ='1000'!H181 -> 0 | I201: =DÁLKA!H181 -> 0 | J201: =VÝŠKA!H181 -> 714.16 | K201: =MÍČEK!H181 -> 562.5 | L201: =KOULE!H181 -> 0 | M201: =OŠTĚP!H181 -> 0 | N201: =ČLUNEK!H181 -> 0 | O201: =LEHSED!H181 -> 0 | P201: =ODBÍJENÍ!H181 -> 0 | Q201: =PLAVÁNÍ!H181 -> 436.9544345 | R201: =SHYBY!H181 -> 0 | S201: =ŠPLH!H181 -> 0 | T201: =ŠVIHADLO!H181 -> 0 | U201: ='Z MÍSTA'!H181 -> 0 | V201: =REPRE!E84 -> 0 | W201: =SUM(F201:V201) -> 1713.614434
B202: ='60'!B182 -> NECHANICKÝ | C202: ='60'!C182 -> Michal | D202: ='60'!D182 -> 9.B | F202: ='60'!H182 -> 814.4478746 | G202: ='300'!H181 -> 0 | H202: ='1000'!H182 -> 0 | I202: =DÁLKA!H182 -> 681.72 | J202: =VÝŠKA!H182 -> 651.24 | K202: =MÍČEK!H182 -> 487.5 | L202: =KOULE!H182 -> 574.4444444 | M202: =OŠTĚP!H182 -> 0 | N202: =ČLUNEK!H182 -> 0 | O202: =LEHSED!H182 -> 325 | P202: =ODBÍJENÍ!H182 -> 668.4 | Q202: =PLAVÁNÍ!H182 -> 0 | R202: =SHYBY!H182 -> 0 | S202: =ŠPLH!H182 -> 0 | T202: =ŠVIHADLO!H182 -> 531.25 | U202: ='Z MÍSTA'!H182 -> 501.6 | V202: =REPRE!E85 -> 0 | W202: =SUM(F202:V202) -> 5235.602319
B203: ='60'!B183 -> PAULÍČEK | C203: ='60'!C183 -> Jakub | D203: ='60'!D183 -> 9.B | F203: ='60'!H183 -> 802.0585553 | G203: ='300'!H182 -> 0 | H203: ='1000'!H183 -> 0 | I203: =DÁLKA!H183 -> 0 | J203: =VÝŠKA!H183 -> 742.76 | K203: =MÍČEK!H183 -> 475 | L203: =KOULE!H183 -> 0 | M203: =OŠTĚP!H183 -> 0 | N203: =ČLUNEK!H183 -> 0 | O203: =LEHSED!H183 -> 0 | P203: =ODBÍJENÍ!H183 -> 96 | Q203: =PLAVÁNÍ!H183 -> 0 | R203: =SHYBY!H183 -> 0 | S203: =ŠPLH!H183 -> 0 | T203: =ŠVIHADLO!H183 -> 0 | U203: ='Z MÍSTA'!H183 -> 0 | V203: =REPRE!E86 -> 0 | W203: =SUM(F203:V203) -> 2115.818555
B204: ='60'!B184 -> POHOŘALÝ | C204: ='60'!C184 -> Jakub | D204: ='60'!D184 -> 9.B | F204: ='60'!H184 -> 887.6020161 | G204: ='300'!H183 -> 0 | H204: ='1000'!H184 -> 0 | I204: =DÁLKA!H184 -> 770.64 | J204: =VÝŠKA!H184 -> 742.76 | K204: =MÍČEK!H184 -> 568.75 | L204: =KOULE!H184 -> 762.2222222 | M204: =OŠTĚP!H184 -> 0 | N204: =ČLUNEK!H184 -> 0 | O204: =LEHSED!H184 -> 0 | P204: =ODBÍJENÍ!H184 -> 576 | Q204: =PLAVÁNÍ!H184 -> 0 | R204: =SHYBY!H184 -> 0 | S204: =ŠPLH!H184 -> 0 | T204: =ŠVIHADLO!H184 -> 0 | U204: ='Z MÍSTA'!H184 -> 0 | V204: =REPRE!E87 -> 0 | W204: =SUM(F204:V204) -> 4307.974238
B205: ='60'!B185 -> POSPÍCHAL | C205: ='60'!C185 -> Daniel | D205: ='60'!D185 -> 9.B | F205: ='60'!H185 -> 799.7843281 | G205: ='300'!H184 -> 0 | H205: ='1000'!H185 -> 0 | I205: =DÁLKA!H185 -> 687.648 | J205: =VÝŠKA!H185 -> 582.6 | K205: =MÍČEK!H185 -> 0 | L205: =KOULE!H185 -> 683.8888889 | M205: =OŠTĚP!H185 -> 0 | N205: =ČLUNEK!H185 -> 0 | O205: =LEHSED!H185 -> 0 | P205: =ODBÍJENÍ!H185 -> 248 | Q205: =PLAVÁNÍ!H185 -> 0 | R205: =SHYBY!H185 -> 0 | S205: =ŠPLH!H185 -> 0 | T205: =ŠVIHADLO!H185 -> 0 | U205: ='Z MÍSTA'!H185 -> 0 | V205: =REPRE!E88 -> 0 | W205: =SUM(F205:V205) -> 3001.921217
B206: ='60'!B186 -> SOUKUP | C206: ='60'!C186 -> Lukáš | D206: ='60'!D186 -> 9.B | F206: ='60'!H186 -> 799.7843281 | G206: ='300'!H185 -> 0 | H206: ='1000'!H186 -> 0 | I206: =DÁLKA!H186 -> 739.518 | J206: =VÝŠKA!H186 -> 656.96 | K206: =MÍČEK!H186 -> 487.5 | L206: =KOULE!H186 -> 743.8888889 | M206: =OŠTĚP!H186 -> 0 | N206: =ČLUNEK!H186 -> 0 | O206: =LEHSED!H186 -> 0 | P206: =ODBÍJENÍ!H186 -> 679.6 | Q206: =PLAVÁNÍ!H186 -> 0 | R206: =SHYBY!H186 -> 0 | S206: =ŠPLH!H186 -> 0 | T206: =ŠVIHADLO!H186 -> 0 | U206: ='Z MÍSTA'!H186 -> 0 | V206: =REPRE!E89 -> 0 | W206: =SUM(F206:V206) -> 4107.251217
B207: ='60'!B187 -> VANCL | C207: ='60'!C187 -> Jan | D207: ='60'!D187 -> 9.B | F207: ='60'!H187 -> 866.0906872 | G207: ='300'!H186 -> 0 | H207: ='1000'!H187 -> 0 | I207: =DÁLKA!H187 -> 739.518 | J207: =VÝŠKA!H187 -> 799.96 | K207: =MÍČEK!H187 -> 775 | L207: =KOULE!H187 -> 838.8888889 | M207: =OŠTĚP!H187 -> 0 | N207: =ČLUNEK!H187 -> 0 | O207: =LEHSED!H187 -> 0 | P207: =ODBÍJENÍ!H187 -> 272 | Q207: =PLAVÁNÍ!H187 -> 436.9544345 | R207: =SHYBY!H187 -> 0 | S207: =ŠPLH!H187 -> 0 | T207: =ŠVIHADLO!H187 -> 0 | U207: ='Z MÍSTA'!H187 -> 0 | V207: =REPRE!E90 -> 0 | W207: =SUM(F207:V207) -> 4728.412011
B208: ='60'!B188 -> VANCL | C208: ='60'!C188 -> Lukáš | D208: ='60'!D188 -> 9.B | F208: ='60'!H188 -> 834.7280104 | G208: ='300'!H187 -> 754.3277273 | H208: ='1000'!H188 -> 0 | I208: =DÁLKA!H188 -> 726.18 | J208: =VÝŠKA!H188 -> 799.96 | K208: =MÍČEK!H188 -> 662.5 | L208: =KOULE!H188 -> 924.4444444 | M208: =OŠTĚP!H188 -> 0 | N208: =ČLUNEK!H188 -> 0 | O208: =LEHSED!H188 -> 0 | P208: =ODBÍJENÍ!H188 -> 576 | Q208: =PLAVÁNÍ!H188 -> 436.9544345 | R208: =SHYBY!H188 -> 0 | S208: =ŠPLH!H188 -> 0 | T208: =ŠVIHADLO!H188 -> 0 | U208: ='Z MÍSTA'!H188 -> 0 | V208: =REPRE!E91 -> 0 | W208: =SUM(F208:V208) -> 5715.094617
B209: ='60'!B189 -> VAŠÍK | C209: ='60'!C189 -> Jiří | D209: ='60'!D189 -> 9.B | F209: ='60'!H189 -> 794.5359835 | G209: ='300'!H188 -> 0 | H209: ='1000'!H189 -> 0 | I209: =DÁLKA!H189 -> 674.31 | J209: =VÝŠKA!H189 -> 628.36 | K209: =MÍČEK!H189 -> 450 | L209: =KOULE!H189 -> 626.6666667 | M209: =OŠTĚP!H189 -> 0 | N209: =ČLUNEK!H189 -> 0 | O209: =LEHSED!H189 -> 0 | P209: =ODBÍJENÍ!H189 -> 120 | Q209: =PLAVÁNÍ!H189 -> 0 | R209: =SHYBY!H189 -> 0 | S209: =ŠPLH!H189 -> 0 | T209: =ŠVIHADLO!H189 -> 0 | U209: ='Z MÍSTA'!H189 -> 0 | V209: =REPRE!E92 -> 0 | W209: =SUM(F209:V209) -> 3293.87265
B210: ='60'!B190 -> VOHNOUT | C210: ='60'!C190 -> Zdeněk | D210: ='60'!D190 -> 9.B | F210: ='60'!H190 -> 919.6685934 | G210: ='300'!H189 -> 962.9828242 | H210: ='1000'!H190 -> 0 | I210: =DÁLKA!H190 -> 835.848 | J210: =VÝŠKA!H190 -> 782.8 | K210: =MÍČEK!H190 -> 618.75 | L210: =KOULE!H190 -> 717.7777778 | M210: =OŠTĚP!H190 -> 0 | N210: =ČLUNEK!H190 -> 0 | O210: =LEHSED!H190 -> 0 | P210: =ODBÍJENÍ!H190 -> 642 | Q210: =PLAVÁNÍ!H190 -> 0 | R210: =SHYBY!H190 -> 0 | S210: =ŠPLH!H190 -> 0 | T210: =ŠVIHADLO!H190 -> 0 | U210: ='Z MÍSTA'!H190 -> 0 | V210: =REPRE!E93 -> 0 | W210: =SUM(F210:V210) -> 5479.827195

Sheet VÝK
B1: SPORTOVEC ŠKOLY 2020 - 2021 | K1: CHLAPCI 6. ROČNÍK
C3: 60 m | D3: 300m | E3: 1000m | F3: dálka | G3: výška | H3: míček | I3: koule | J3: oštěp | K3: člunek | L3: lehsed | M3: odbíjení | N3: plavání | O3: shyby | P3: šplh | Q3: švihadlo | R3: z místa | S3: REPRE | T3: BODY
A4: ='60'!B101 -> BOUKAL | B4: ='60'!C101 -> Jakub | C4: ='60'!E101 -> 12.56 | D4: ='300'!E101 -> 00:01:00.280 | E4: ='1000'!E101 -> 00:00:00 | F4: =DÁLKA!E101 -> 245 | G4: =VÝŠKA!E101 -> 0 | H4: =MÍČEK!E101 -> 14 | I4: =KOULE!E101 -> 6.87 | K4: =ČLUNEK!E101 -> 12.21 | L4: =LEHSED!E101 -> 0 | M4: =ODBÍJENÍ!E101 -> 12 | N4: =PLAVÁNÍ!E101 -> 0 | P4: =ŠPLH!E101 -> 0 | Q4: =ŠVIHADLO!E101 -> 0 | R4: ='Z MÍSTA'!E101 -> 0 | S4: =REPRE!E4 -> 0 | T4: =ROČ!W121 -> 2923.253413
A5: ='60'!B102 -> DEMČUK | B5: ='60'!C102 -> Ilja | C5: ='60'!E102 -> 10.85 | D5: ='300'!E101 -> 00:01:00.280 | E5: ='1000'!E102 -> 00:00:00 | F5: =DÁLKA!E102 -> 311 | G5: =VÝŠKA!E102 -> 103 | H5: =MÍČEK!E102 -> 20 | I5: =KOULE!E102 -> 6.28 | K5: =ČLUNEK!E102 -> 0 | L5: =LEHSED!E102 -> 25 | M5: =ODBÍJENÍ!E102 -> 15 | N5: =PLAVÁNÍ!E102 -> 0 | P5: =ŠPLH!E102 -> 0 | Q5: =ŠVIHADLO!E102 -> 0 | R5: ='Z MÍSTA'!E102 -> 150 | S5: =REPRE!E5 -> 0 | T5: =ROČ!W122 -> 4180.586559
A6: ='60'!B103 -> FAISTAUER | B6: ='60'!C103 -> Kryštof | C6: ='60'!E103 -> 9.5 | D6: ='300'!E102 -> 00:00:54.880 | E6: ='1000'!E103 -> 00:00:00 | F6: =DÁLKA!E103 -> 366 | G6: =VÝŠKA!E103 -> 113 | H6: =MÍČEK!E103 -> 34.5 | I6: =KOULE!E103 -> 5.8 | K6: =ČLUNEK!E103 -> 10.21 | L6: =LEHSED!E103 -> 41 | M6: =ODBÍJENÍ!E103 -> 8 | N6: =PLAVÁNÍ!E103 -> 0 | P6: =ŠPLH!E103 -> 0 | Q6: =ŠVIHADLO!E103 -> 52 | R6: ='Z MÍSTA'!E103 -> 165 | S6: =REPRE!E6 -> 0 | T6: =ROČ!W123 -> 6023.880721
A7: ='60'!B104 -> FRK | B7: ='60'!C104 -> Matyáš | C7: ='60'!E104 -> 12.72 | D7: ='300'!E103 -> 00:01:21.540 | E7: ='1000'!E104 -> 00:00:00 | F7: =DÁLKA!E104 -> 282 | G7: =VÝŠKA!E104 -> 75 | H7: =MÍČEK!E104 -> 0 | I7: =KOULE!E104 -> 0 | K7: =ČLUNEK!E104 -> 12.5 | L7: =LEHSED!E104 -> 0 | M7: =ODBÍJENÍ!E104 -> 14 | N7: =PLAVÁNÍ!E104 -> 0 | P7: =ŠPLH!E104 -> 0 | Q7: =ŠVIHADLO!E104 -> 0 | R7: ='Z MÍSTA'!E104 -> 0 | S7: =REPRE!E7 -> 0 | T7: =ROČ!W124 -> 2645.456992
A8: ='60'!B105 -> HUBÁLOVSKÝ | B8: ='60'!C105 -> Marek | C8: ='60'!E105 -> 11.43 | D8: ='300'!E104 -> 00:01:11.580 | E8: ='1000'!E105 -> 00:00:00 | F8: =DÁLKA!E105 -> 383 | G8: =VÝŠKA!E105 -> 88 | H8: =MÍČEK!E105 -> 26 | I8: =KOULE!E105 -> 4.45 | K8: =ČLUNEK!E105 -> 12.02 | L8: =LEHSED!E105 -> 0 | M8: =ODBÍJENÍ!E105 -> 8 | N8: =PLAVÁNÍ!E105 -> 0 | P8: =ŠPLH!E105 -> 0 | Q8: =ŠVIHADLO!E105 -> 0 | R8: ='Z MÍSTA'!E105 -> 0 | S8: =REPRE!E8 -> 0 | T8: =ROČ!W125 -> 3747.590645
A9: ='60'!B106 -> MAŘAS | B9: ='60'!C106 -> Dominik | C9: ='60'!E106 -> 11.64 | D9: ='300'!E105 -> 00:01:18.210 | E9: ='1000'!E106 -> 00:00:00 | F9: =DÁLKA!E106 -> 293 | G9: =VÝŠKA!E106 -> 0 | H9: =MÍČEK!E106 -> 22 | I9: =KOULE!E106 -> 6.31 | K9: =ČLUNEK!E106 -> 12.5 | L9: =LEHSED!E106 -> 0 | M9: =ODBÍJENÍ!E106 -> 11 | N9: =PLAVÁNÍ!E106 -> 0 | P9: =ŠPLH!E106 -> 0 | Q9: =ŠVIHADLO!E106 -> 0 | R9: ='Z MÍSTA'!E106 -> 182 | S9: =REPRE!E9 -> 0 | T9: =ROČ!W126 -> 3783.638698
A10: ='60'!B107 -> MAŤÁTKO | B10: ='60'!C107 -> Jakub | C10: ='60'!E107 -> 13.19 | D10: ='300'!E106 -> 00:01:24.110 | E10: ='1000'!E107 -> 00:00:00 | F10: =DÁLKA!E107 -> 0 | G10: =VÝŠKA!E107 -> 0 | H10: =MÍČEK!E107 -> 20 | I10: =KOULE!E107 -> 4.84 | K10: =ČLUNEK!E107 -> 14.62 | L10: =LEHSED!E107 -> 0 | M10: =ODBÍJENÍ!E107 -> 10 | N10: =PLAVÁNÍ!E107 -> 0 | P10: =ŠPLH!E107 -> 0 | Q10: =ŠVIHADLO!E107 -> 0 | R10: ='Z MÍSTA'!E107 -> 0 | S10: =REPRE!E10 -> 0 | T10: =ROČ!W127 -> 2157.72223
A11: ='60'!B108 -> MERY | B11: ='60'!C108 -> Luboš | C11: ='60'!E108 -> 11.43 | D11: ='300'!E107 -> 00:01:15.180 | E11: ='1000'!E108 -> 00:00:00 | F11: =DÁLKA!E108 -> 0 | G11: =VÝŠKA!E108 -> 83 | H11: =MÍČEK!E108 -> 0 | I11: =KOULE!E108 -> 0 | K11: =ČLUNEK!E108 -> 12.21 | L11: =LEHSED!E108 -> 26 | M11: =ODBÍJENÍ!E108 -> 4 | N11: =PLAVÁNÍ!E108 -> 0 | P11: =ŠPLH!E108 -> 0 | Q11: =ŠVIHADLO!E108 -> 18 | R11: ='Z MÍSTA'!E108 -> 149 | S11: =REPRE!E11 -> 0 | T11: =ROČ!W128 -> 3220.805901
A12: ='60'!B109 -> NOVOTNÝ | B12: ='60'!C109 -> Matěj | C12: ='60'!E109 -> 10.96 | D12: ='300'!E108 -> 00:00:00 | E12: ='1000'!E109 -> 00:00:00 | F12: =DÁLKA!E109 -> 281 | G12: =VÝŠKA!E109 -> 80 | H12: =MÍČEK!E109 -> 29 | I12: =KOULE!E109 -> 0 | K12: =ČLUNEK!E109 -> 11.55 | L12: =LEHSED!E109 -> 0 | M12: =ODBÍJENÍ!E109 -> 0 | N12: =PLAVÁNÍ!E109 -> 0 | P12: =ŠPLH!E109 -> 0 | Q12: =ŠVIHADLO!E109 -> 0 | R12: ='Z MÍSTA'!E109 -> 0 | S12: =REPRE!E12 -> 0 | T12: =ROČ!W129 -> 2732.657516
A13: ='60'!B110 -> ŘEHOŘEK | B13: ='60'!C110 -> Vojtěch | C13: ='60'!E110 -> 11.92 | D13: ='300'!E109 -> 00:01:11.820 | E13: ='1000'!E110 -> 00:00:00 | F13: =DÁLKA!E110 -> 296 | G13: =VÝŠKA!E110 -> 88 | H13: =MÍČEK!E110 -> 40 | I13: =KOULE!E110 -> 6.13 | K13: =ČLUNEK!E110 -> 0 | L13: =LEHSED!E110 -> 28 | M13: =ODBÍJENÍ!E110 -> 14 | N13: =PLAVÁNÍ!E110 -> 0 | P13: =ŠPLH!E110 -> 0 | Q13: =ŠVIHADLO!E110 -> 0 | R13: ='Z MÍSTA'!E110 -> 146 | S13: =REPRE!E13 -> 0 | T13: =ROČ!W130 -> 4134.808466
A14: ='60'!B111 -> ŠÍR | B14: ='60'!C111 -> Matyáš | C14: ='60'!E111 -> 11.48 | D14: ='300'!E110 -> 00:01:09.460 | E14: ='1000'!E111 -> 00:00:00 | F14: =DÁLKA!E111 -> 283 | G14: =VÝŠKA!E111 -> 87 | H14: =MÍČEK!E111 -> 20 | I14: =KOULE!E111 -> 3.83 | K14: =ČLUNEK!E111 -> 12.94 | L14: =LEHSED!E111 -> 38 | M14: =ODBÍJENÍ!E111 -> 11 | N14: =PLAVÁNÍ!E111 -> 0 | P14: =ŠPLH!E111 -> 0 | Q14: =ŠVIHADLO!E111 -> 38 | R14: ='Z MÍSTA'!E111 -> 158 | S14: =REPRE!E14 -> 0 | T14: =ROČ!W131 -> 4764.375978
A15: ='60'!B112 -> TORÁČ | B15: ='60'!C112 -> Tomáš | C15: ='60'!E112 -> 22.77 | D15: ='300'!E111 -> 00:02:09.100 | E15: ='1000'!E112 -> 00:00:00 | F15: =DÁLKA!E112 -> 0 | G15: =VÝŠKA!E112 -> 0 | H15: =MÍČEK!E112 -> 12.5 | I15: =KOULE!E112 -> 4.69 | K15: =ČLUNEK!E112 -> 16.09 | L15: =LEHSED!E112 -> 0 | M15: =ODBÍJENÍ!E112 -> 12 | N15: =PLAVÁNÍ!E112 -> 0 | P15: =ŠPLH!E112 -> 0 | Q15: =ŠVIHADLO!E112 -> 0 | R15: ='Z MÍSTA'!E112 -> 0 | S15: =REPRE!E15 -> 0 | T15: =ROČ!W132 -> 1550.289778
A16: ='60'!B113 -> ULLMAN | B16: ='60'!C113 -> Šimon | C16: ='60'!E113 -> 9.18 | D16: ='300'!E112 -> 00:00:53.770 | E16: ='1000'!E113 -> 00:00:00 | F16: =DÁLKA!E113 -> 353 | G16: =VÝŠKA!E113 -> 80 | H16: =MÍČEK!E113 -> 24.5 | I16: =KOULE!E113 -> 0 | K16: =ČLUNEK!E113 -> 10.86 | L16: =LEHSED!E113 -> 0 | M16: =ODBÍJENÍ!E113 -> 6 | N16: =PLAVÁNÍ!E113 -> 0 | P16: =ŠPLH!E113 -> 0 | Q16: =ŠVIHADLO!E113 -> 0 | R16: ='Z MÍSTA'!E113 -> 0 | S16: =REPRE!E16 -> 0 | T16: =ROČ!W133 -> 3696.845687
A17: ='60'!B114 -> VÁCLAVÍK | B17: ='60'!C114 -> Ondřej | C17: ='60'!E114 -> 10.94 | D17: ='300'!E113 -> 00:00:58.550 | E17: ='1000'!E114 -> 00:00:00 | F17: =DÁLKA!E114 -> 309 | G17: =VÝŠKA!E114 -> 98 | H17: =MÍČEK!E114 -> 36 | I17: =KOULE!E114 -> 5.8 | K17: =ČLUNEK!E114 -> 11.2 | L17: =LEHSED!E114 -> 0 | M17: =ODBÍJENÍ!E114 -> 0 | N17: =PLAVÁNÍ!E114 -> 0 | P17: =ŠPLH!E114 -> 0 | Q17: =ŠVIHADLO!E114 -> 0 | R17: ='Z MÍSTA'!E114 -> 0 | S17: =REPRE!E17 -> 0 | T17: =ROČ!W134 -> 4096.482866
A18: ='60'!B115 -> AUERSWALD | B18: ='60'!C115 -> Daniel | C18: ='60'!E115 -> 9.89 | D18: ='300'!E114 -> 00:00:59.520 | E18: ='1000'!E115 -> 00:00:00 | F18: =DÁLKA!E115 -> 348 | G18: =VÝŠKA!E115 -> 113 | H18: =MÍČEK!E115 -> 25 | I18: =KOULE!E115 -> 5.53 | K18: =ČLUNEK!E115 -> 11.13 | L18: =LEHSED!E115 -> 0 | M18: =ODBÍJENÍ!E115 -> 19 | N18: =PLAVÁNÍ!E115 -> 0 | P18: =ŠPLH!E115 -> 0 | Q18: =ŠVIHADLO!E115 -> 30 | R18: ='Z MÍSTA'!E115 -> 0 | S18: =REPRE!E18 -> 0 | T18: =ROČ!W135 -> 4478.964219
A19: ='60'!B116 -> BODLÁK | B19: ='60'!C116 -> Vladimír | C19: ='60'!E116 -> 8.39 | D19: ='300'!E115 -> 00:00:45.090 | E19: ='1000'!E116 -> 00:00:00 | F19: =DÁLKA!E116 -> 0 | G19: =VÝŠKA!E116 -> 113 | H19: =MÍČEK!E116 -> 0 | I19: =KOULE!E116 -> 10.24 | K19: =ČLUNEK!E116 -> 9.61 | L19: =LEHSED!E116 -> 53 | M19: =ODBÍJENÍ!E116 -> 0 | N19: =PLAVÁNÍ!E116 -> 0 | P19: =ŠPLH!E116 -> 0 | Q19: =ŠVIHADLO!E116 -> 50 | R19: ='Z MÍSTA'!E116 -> 30 | S19: =REPRE!E19 -> 0 | T19: =ROČ!W136 -> 5111.897746
A20: ='60'!B117 -> BUDÍN | B20: ='60'!C117 -> Martin | C20: ='60'!E117 -> 10.46 | D20: ='300'!E116 -> 00:00:58.300 | E20: ='1000'!E117 -> 00:00:00 | F20: =DÁLKA!E117 -> 327 | G20: =VÝŠKA!E117 -> 93 | H20: =MÍČEK!E117 -> 31 | I20: =KOULE!E117 -> 4.08 | K20: =ČLUNEK!E117 -> 10.94 | L20: =LEHSED!E117 -> 30 | M20: =ODBÍJENÍ!E117 -> 9 | N20: =PLAVÁNÍ!E117 -> 0 | P20: =ŠPLH!E117 -> 0 | Q20: =ŠVIHADLO!E117 -> 80 | R20: ='Z MÍSTA'!E117 -> 150 | S20: =REPRE!E20 -> 0 | T20: =ROČ!W137 -> 5508.586574
A21: ='60'!B118 -> DVOŘÁK | B21: ='60'!C118 -> Dominik | C21: ='60'!E118 -> 11.56 | D21: ='300'!E117 -> 00:00:00 | E21: ='1000'!E118 -> 00:00:00 | F21: =DÁLKA!E118 -> 247 | G21: =VÝŠKA!E118 -> 75 | H21: =MÍČEK!E118 -> 0 | I21: =KOULE!E118 -> 0 | K21: =ČLUNEK!E118 -> 11.71 | L21: =LEHSED!E118 -> 0 | M21: =ODBÍJENÍ!E118 -> 0 | N21: =PLAVÁNÍ!E118 -> 0 | P21: =ŠPLH!E118 -> 0 | Q21: =ŠVIHADLO!E118 -> 0 | R21: ='Z MÍSTA'!E118 -> 0 | S21: =REPRE!E21 -> 0 | T21: =ROČ!W138 -> 2247.296932
A22: ='60'!B119 -> FIŠERA | B22: ='60'!C119 -> Vojtěch | C22: ='60'!E119 -> 10.44 | D22: ='300'!E118 -> 00:00:57.070 | E22: ='1000'!E119 -> 00:00:00 | F22: =DÁLKA!E119 -> 323 | G22: =VÝŠKA!E119 -> 98 | H22: =MÍČEK!E119 -> 19 | I22: =KOULE!E119 -> 6 | K22: =ČLUNEK!E119 -> 11.43 | L22: =LEHSED!E119 -> 26 | M22: =ODBÍJENÍ!E119 -> 12 | N22: =PLAVÁNÍ!E119 -> 0 | P22: =ŠPLH!E119 -> 0 | Q22: =ŠVIHADLO!E119 -> 91 | R22: ='Z MÍSTA'!E119 -> 130 | S22: =REPRE!E22 -> 0 | T22: =ROČ!W139 -> 5428.687926
A23: ='60'!B120 -> JINDŘIŠEK | B23: ='60'!C120 -> Vít | C23: ='60'!E120 -> 8.77 | D23: ='300'!E119 -> 00:00:00 | E23: ='1000'!E120 -> 00:00:00 | F23: =DÁLKA!E120 -> 381 | G23: =VÝŠKA!E120 -> 80 | H23: =MÍČEK!E120 -> 42 | I23: =KOULE!E120 -> 0 | K23: =ČLUNEK!E120 -> 10.49 | L23: =LEHSED!E120 -> 40 | M23: =ODBÍJENÍ!E120 -> 28 | N23: =PLAVÁNÍ!E120 -> 0 | P23: =ŠPLH!E120 -> 0 | Q23: =ŠVIHADLO!E120 -> 56 | R23: ='Z MÍSTA'!E120 -> 200 | S23: =REPRE!E23 -> 0 | T23: =ROČ!W140 -> 5121.921273
A24: ='60'!B121 -> JIROUŠ | B24: ='60'!C121 -> Matouš | C24: ='60'!E121 -> 10.08 | D24: ='300'!E120 -> 00:00:00 | E24: ='1000'!E121 -> 00:00:00 | F24: =DÁLKA!E121 -> 356 | G24: =VÝŠKA!E121 -> 80 | H24: =MÍČEK!E121 -> 28 | I24: =KOULE!E121 -> 5.44 | K24: =ČLUNEK!E121 -> 10.55 | L24: =LEHSED!E121 -> 25 | M24: =ODBÍJENÍ!E121 -> 19 | N24: =PLAVÁNÍ!E121 -> 0 | P24: =ŠPLH!E121 -> 0 | Q24: =ŠVIHADLO!E121 -> 40 | R24: ='Z MÍSTA'!E121 -> 200 | S24: =REPRE!E24 -> 0 | T24: =ROČ!W141 -> 4921.32539
A25: ='60'!B122 -> KERLE | B25: ='60'!C122 -> Marek | C25: ='60'!E122 -> 10.64 | D25: ='300'!E121 -> 00:00:54.010 | E25: ='1000'!E122 -> 00:00:00 | F25: =DÁLKA!E122 -> 321 | G25: =VÝŠKA!E122 -> 103 | H25: =MÍČEK!E122 -> 0 | I25: =KOULE!E122 -> 6.76 | K25: =ČLUNEK!E122 -> 10.8 | L25: =LEHSED!E122 -> 48 | M25: =ODBÍJENÍ!E122 -> 22 | N25: =PLAVÁNÍ!E122 -> 0 | P25: =ŠPLH!E122 -> 0 | Q25: =ŠVIHADLO!E122 -> 37 | R25: ='Z MÍSTA'!E122 -> 158 | S25: =REPRE!E25 -> 0 | T25: =ROČ!W142 -> 5485.676015
A26: ='60'!B123 -> LUKEŠ | B26: ='60'!C123 -> Jakub | C26: ='60'!E123 -> 10.26 | D26: ='300'!E122 -> 00:00:54.300 | E26: ='1000'!E123 -> 00:00:00 | F26: =DÁLKA!E123 -> 304 | G26: =VÝŠKA!E123 -> 98 | H26: =MÍČEK!E123 -> 21 | I26: =KOULE!E123 -> 5.47 | K26: =ČLUNEK!E123 -> 10.52 | L26: =LEHSED!E123 -> 30 | M26: =ODBÍJENÍ!E123 -> 12 | N26: =PLAVÁNÍ!E123 -> 0 | P26: =ŠPLH!E123 -> 0 | Q26: =ŠVIHADLO!E123 -> 65 | R26: ='Z MÍSTA'!E123 -> 190 | S26: =REPRE!E26 -> 0 | T26: =ROČ!W143 -> 5659.132267
A27: ='60'!B124 -> OTT | B27: ='60'!C124 -> Matyáš | C27: ='60'!E124 -> 11 | D27: ='300'!E123 -> 00:01:08.290 | E27: ='1000'!E124 -> 00:00:00 | F27: =DÁLKA!E124 -> 307 | G27: =VÝŠKA!E124 -> 98 | H27: =MÍČEK!E124 -> 29 | I27: =KOULE!E124 -> 4.7 | K27: =ČLUNEK!E124 -> 11.12 | L27: =LEHSED!E124 -> 0 | M27: =ODBÍJENÍ!E124 -> 11 | N27: =PLAVÁNÍ!E124 -> 0 | P27: =ŠPLH!E124 -> 0 | Q27: =ŠVIHADLO!E124 -> 0 | R27: ='Z MÍSTA'!E124 -> 0 | S27: =REPRE!E27 -> 0 | T27: =ROČ!W144 -> 3907.253226
A28: ='60'!B125 -> POKORNÝ | B28: ='60'!C125 -> Matyáš | C28: ='60'!E125 -> 8.94 | D28: ='300'!E124 -> 00:00:48.010 | E28: ='1000'!E125 -> 00:00:00 | F28: =DÁLKA!E125 -> 0 | G28: =VÝŠKA!E125 -> 103 | H28: =MÍČEK!E125 -> 43 | I28: =KOULE!E125 -> 5.3 | K28: =ČLUNEK!E125 -> 9.97 | L28: =LEHSED!E125 -> 0 | M28: =ODBÍJENÍ!E125 -> 22 | N28: =PLAVÁNÍ!E125 -> 0 | P28: =ŠPLH!E125 -> 0 | Q28: =ŠVIHADLO!E125 -> 0 | R28: ='Z MÍSTA'!E125 -> 0 | S28: =REPRE!E28 -> 0 | T28: =ROČ!W145 -> 4245.761841
A29: ='60'!B126 -> POLÁČEK | B29: ='60'!C126 -> Matyáš | C29: ='60'!E126 -> 11.49 | D29: ='300'!E125 -> 00:01:13.650 | E29: ='1000'!E126 -> 00:00:00 | F29: =DÁLKA!E126 -> 282 | G29: =VÝŠKA!E126 -> 93 | H29: =MÍČEK!E126 -> 34 | I29: =KOULE!E126 -> 6.05 | K29: =ČLUNEK!E126 -> 11.94 | L29: =LEHSED!E126 -> 0 | M29: =ODBÍJENÍ!E126 -> 10 | N29: =PLAVÁNÍ!E126 -> 0 | P29: =ŠPLH!E126 -> 0 | Q29: =ŠVIHADLO!E126 -> 0 | R29: ='Z MÍSTA'!E126 -> 0 | S29: =REPRE!E29 -> 0 | T29: =ROČ!W146 -> 3814.603823
A30: ='60'!B127 -> SOUKUP | B30: ='60'!C127 -> Patrik | C30: ='60'!E127 -> 10.09 | D30: ='300'!E126 -> 00:00:53.980 | E30: ='1000'!E127 -> 00:00:00 | F30: =DÁLKA!E127 -> 332 | G30: =VÝŠKA!E127 -> 98 | H30: =MÍČEK!E127 -> 30 | I30: =KOULE!E127 -> 5.5 | K30: =ČLUNEK!E127 -> 10.3 | L30: =LEHSED!E127 -> 27 | M30: =ODBÍJENÍ!E127 -> 11 | N30: =PLAVÁNÍ!E127 -> 0 | P30: =ŠPLH!E127 -> 0 | Q30: =ŠVIHADLO!E127 -> 95 | R30: ='Z MÍSTA'!E127 -> 200 | S30: =REPRE!E30 -> 0 | T30: =ROČ!W147 -> 6033.988171
A31: ='60'!B128 -> VALENTA | B31: ='60'!C128 -> Jakub | C31: ='60'!E128 -> 10.24 | D31: ='300'!E127 -> 00:00:00 | E31: ='1000'!E128 -> 00:00:00 | F31: =DÁLKA!E128 -> 0 | G31: =VÝŠKA!E128 -> 113 | H31: =MÍČEK!E128 -> 26 | I31: =KOULE!E128 -> 5.2 | K31: =ČLUNEK!E128 -> 10.64 | L31: =LEHSED!E128 -> 49 | M31: =ODBÍJENÍ!E128 -> 0 | N31: =PLAVÁNÍ!E128 -> 0 | P31: =ŠPLH!E128 -> 0 | Q31: =ŠVIHADLO!E128 -> 76 | R31: ='Z MÍSTA'!E128 -> 0 | S31: =REPRE!E31 -> 0 | T31: =ROČ!W148 -> 4027.160135
A32: ='60'!B129 -> VRBATA | B32: ='60'!C129 -> Dominik | C32: ='60'!E129 -> 10.25 | D32: ='300'!E128 -> 00:00:57.790 | E32: ='1000'!E129 -> 00:00:00 | F32: =DÁLKA!E129 -> 339 | G32: =VÝŠKA!E129 -> 103 | H32: =MÍČEK!E129 -> 34.5 | I32: =KOULE!E129 -> 5.95 | K32: =ČLUNEK!E129 -> 10.52 | L32: =LEHSED!E129 -> 0 | M32: =ODBÍJENÍ!E129 -> 9 | N32: =PLAVÁNÍ!E129 -> 0 | P32: =ŠPLH!E129 -> 0 | Q32: =ŠVIHADLO!E129 -> 0 | R32: ='Z MÍSTA'!E129 -> 0 | S32: =REPRE!E32 -> 0 | T32: =ROČ!W149 -> 4348.893332
A33: SPORTOVEC ŠKOLY 2020 - 2021 | J33: CHLAPCI 7. ROČNÍK | R33: ZPĚT
C35: 60 m | D35: 300m | E35: 1000m | F35: dálka | G35: výška | H35: míček | I35: koule | J35: oštěp | K35: člunek | L35: lehsed | M35: odbíjení | N35: plavání | O35: shyby | P35: šplh | Q35: švihadlo | R35: z místa | S35: REPRE | T35: BODY
A36: ='60'!B130 -> FEJKL | B36: ='60'!C130 -> Jan | C36: ='60'!E130 -> 9.14 | D36: ='300'!E129 -> 00:00:00 | E36: ='1000'!E130 -> 00:00:00 | F36: =DÁLKA!E130 -> 465 | G36: =VÝŠKA!E130 -> 141 | H36: =MÍČEK!E130 -> 49 | I36: =KOULE!E130 -> 7.87 | J36: =OŠTĚP!E130 -> 0 | K36: =ČLUNEK!E130 -> 0 | L36: =LEHSED!E130 -> 57 | M36: =ODBÍJENÍ!E130 -> 18 | N36: =PLAVÁNÍ!E130 -> 30 | O36: =SHYBY!E130 -> 0 | P36: =ŠPLH!E130 -> 0 | Q36: =ŠVIHADLO!E130 -> 42 | R36: ='Z MÍSTA'!E130 -> 200 | S36: =REPRE!E33 -> 0 | T36: =ROČ!W150 -> 5914.194545
A37: ='60'!B131 -> KOTYK | B37: ='60'!C131 -> Tadeáš | C37: ='60'!E131 -> 10.7 | D37: ='300'!E130 -> 00:00:00 | E37: ='1000'!E131 -> 00:00:00 | F37: =DÁLKA!E131 -> 296 | G37: =VÝŠKA!E131 -> 105 | H37: =MÍČEK!E131 -> 20 | I37: =KOULE!E131 -> 6.19 | J37: =OŠTĚP!E131 -> 0 | K37: =ČLUNEK!E131 -> 0 | L37: =LEHSED!E131 -> 35 | M37: =ODBÍJENÍ!E131 -> 7 | N37: =PLAVÁNÍ!E131 -> 0 | O37: =SHYBY!E131 -> 0 | P37: =ŠPLH!E131 -> 0 | Q37: =ŠVIHADLO!E131 -> 20 | R37: ='Z MÍSTA'!E131 -> 60 | S37: =REPRE!E34 -> 0 | T37: =ROČ!W151 -> 3433.818506
A38: ='60'!B132 -> KRAUSE | B38: ='60'!C132 -> Tadeáš | C38: ='60'!E132 -> 10.13 | D38: ='300'!E131 -> 00:00:00 | E38: ='1000'!E132 -> 00:00:00 | F38: =DÁLKA!E132 -> 357 | G38: =VÝŠKA!E132 -> 110 | H38: =MÍČEK!E132 -> 29.5 | I38: =KOULE!E132 -> 5.62 | J38: =OŠTĚP!E132 -> 0 | K38: =ČLUNEK!E132 -> 0 | L38: =LEHSED!E132 -> 54 | M38: =ODBÍJENÍ!E132 -> 18 | N38: =PLAVÁNÍ!E132 -> 0 | O38: =SHYBY!E132 -> 0 | P38: =ŠPLH!E132 -> 0 | Q38: =ŠVIHADLO!E132 -> 121 | R38: ='Z MÍSTA'!E132 -> 201 | S38: =REPRE!E35 -> 0 | T38: =ROČ!W152 -> 5164.996222
A39: ='60'!B133 -> LEŠÁK | B39: ='60'!C133 -> Martin | C39: ='60'!E133 -> 10.87 | D39: ='300'!E132 -> 00:00:00 | E39: ='1000'!E133 -> 00:00:00 | F39: =DÁLKA!E133 -> 0 | G39: =VÝŠKA!E133 -> 99 | H39: =MÍČEK!E133 -> 25.5 | I39: =KOULE!E133 -> 6.03 | J39: =OŠTĚP!E133 -> 0 | K39: =ČLUNEK!E133 -> 0 | L39: =LEHSED!E133 -> 15 | M39: =ODBÍJENÍ!E133 -> 7 | N39: =PLAVÁNÍ!E133 -> 0 | O39: =SHYBY!E133 -> 0 | P39: =ŠPLH!E133 -> 0 | Q39: =ŠVIHADLO!E133 -> 30 | R39: ='Z MÍSTA'!E133 -> 0 | S39: =REPRE!E36 -> 0 | T39: =ROČ!W153 -> 2484.992726
A40: ='60'!B134 -> NECHANICKÝ | B40: ='60'!C134 -> David | C40: ='60'!E134 -> 9.65 | D40: ='300'!E133 -> 00:00:00 | E40: ='1000'!E134 -> 00:00:00 | F40: =DÁLKA!E134 -> 371 | G40: =VÝŠKA!E134 -> 115 | H40: =MÍČEK!E134 -> 31 | I40: =KOULE!E134 -> 0 | J40: =OŠTĚP!E134 -> 0 | K40: =ČLUNEK!E134 -> 0 | L40: =LEHSED!E134 -> 0 | M40: =ODBÍJENÍ!E134 -> 22 | N40: =PLAVÁNÍ!E134 -> 30 | O40: =SHYBY!E134 -> 0 | P40: =ŠPLH!E134 -> 0 | Q40: =ŠVIHADLO!E134 -> 0 | R40: ='Z MÍSTA'!E134 -> 0 | S40: =REPRE!E37 -> 0 | T40: =ROČ!W154 -> 3058.495675
A41: ='60'!B135 -> ŘEHOŘEK | B41: ='60'!C135 -> Jan | C41: ='60'!E135 -> 9.55 | D41: ='300'!E134 -> 00:00:00 | E41: ='1000'!E135 -> 00:00:00 | F41: =DÁLKA!E135 -> 362 | G41: =VÝŠKA!E135 -> 120 | H41: =MÍČEK!E135 -> 42 | I41: =KOULE!E135 -> 5.28 | J41: =OŠTĚP!E135 -> 0 | K41: =ČLUNEK!E135 -> 0 | L41: =LEHSED!E135 -> 26 | M41: =ODBÍJENÍ!E135 -> 42 | N41: =PLAVÁNÍ!E135 -> 30 | O41: =SHYBY!E135 -> 0 | P41: =ŠPLH!E135 -> 0 | Q41: =ŠVIHADLO!E135 -> 115 | R41: ='Z MÍSTA'!E135 -> 0 | S41: =REPRE!E38 -> 0 | T41: =ROČ!W155 -> 4881.722536
A42: ='60'!B136 -> SOUKUP | B42: ='60'!C136 -> Ondřej | C42: ='60'!E136 -> 10 | D42: ='300'!E135 -> 00:00:00 | E42: ='1000'!E136 -> 00:00:00 | F42: =DÁLKA!E136 -> 314 | G42: =VÝŠKA!E136 -> 105 | H42: =MÍČEK!E136 -> 0 | I42: =KOULE!E136 -> 0 | J42: =OŠTĚP!E136 -> 0 | K42: =ČLUNEK!E136 -> 0 | L42: =LEHSED!E136 -> 47 | M42: =ODBÍJENÍ!E136 -> 22 | N42: =PLAVÁNÍ!E136 -> 0 | O42: =SHYBY!E136 -> 0 | P42: =ŠPLH!E136 -> 0 | Q42: =ŠVIHADLO!E136 -> 0 | R42: ='Z MÍSTA'!E136 -> 0 | S42: =REPRE!E39 -> 0 | T42: =ROČ!W156 -> 2657.422817
A43: ='60'!B137 -> SPANILÝ | B43: ='60'!C137 -> David | C43: ='60'!E137 -> 9.8 | D43: ='300'!E136 -> 00:00:00 | E43: ='1000'!E137 -> 00:00:00 | F43: =DÁLKA!E137 -> 0 | G43: =VÝŠKA!E137 -> 0 | H43: =MÍČEK!E137 -> 47 | I43: =KOULE!E137 -> 5.67 | J43: =OŠTĚP!E137 -> 0 | K43: =ČLUNEK!E137 -> 0 | L43: =LEHSED!E137 -> 54 | M43: =ODBÍJENÍ!E137 -> 42 | N43: =PLAVÁNÍ!E137 -> 30 | O43: =SHYBY!E137 -> 0 | P43: =ŠPLH!E137 -> 0 | Q43: =ŠVIHADLO!E137 -> 106 | R43: ='Z MÍSTA'!E137 -> 198 | S43: =REPRE!E40 -> 0 | T43: =ROČ!W157 -> 4679.474996
A44: ='60'!B138 -> ČADAN | B44: ='60'!C138 -> Benjamín | C44: ='60'!E138 -> 0 | D44: ='300'!E137 -> 00:00:00 | E44: ='1000'!E138 -> 00:00:00 | F44: =DÁLKA!E138 -> 332 | G44: =VÝŠKA!E138 -> 109 | H44: =MÍČEK!E138 -> 26 | I44: =KOULE!E138 -> 5.4 | J44: =OŠTĚP!E138 -> 0 | K44: =ČLUNEK!E138 -> 0 | L44: =LEHSED!E138 -> 0 | M44: =ODBÍJENÍ!E138 -> 10 | N44: =PLAVÁNÍ!E138 -> 0 | O44: =SHYBY!E138 -> 0 | P44: =ŠPLH!E138 -> 0 | Q44: =ŠVIHADLO!E138 -> 0 | R44: ='Z MÍSTA'!E138 -> 0 | S44: =REPRE!E41 -> 0 | T44: =ROČ!W158 -> 2080.320667
A45: ='60'!B139 -> ČERNÝ | B45: ='60'!C139 -> Michal | C45: ='60'!E139 -> 10.36 | D45: ='300'!E138 -> 00:00:00 | E45: ='1000'!E139 -> 00:00:00 | F45: =DÁLKA!E139 -> 282 | G45: =VÝŠKA!E139 -> 99 | H45: =MÍČEK!E139 -> 39.5 | I45: =KOULE!E139 -> 5.35 | J45: =OŠTĚP!E139 -> 0 | K45: =ČLUNEK!E139 -> 0 | L45: =LEHSED!E139 -> 0 | M45: =ODBÍJENÍ!E139 -> 15 | N45: =PLAVÁNÍ!E139 -> 0 | O45: =SHYBY!E139 -> 0 | P45: =ŠPLH!E139 -> 0 | Q45: =ŠVIHADLO!E139 -> 0 | R45: ='Z MÍSTA'!E139 -> 0 | S45: =REPRE!E42 -> 0 | T45: =ROČ!W159 -> 2868.314141
A46: ='60'!B140 -> DOLEJŠÍ | B46: ='60'!C140 -> David | C46: ='60'!E140 -> 11.1 | D46: ='300'!E139 -> 00:00:00 | E46: ='1000'!E140 -> 00:00:00 | F46: =DÁLKA!E140 -> 303 | G46: =VÝŠKA!E140 -> 115 | H46: =MÍČEK!E140 -> 21 | I46: =KOULE!E140 -> 6.3 | J46: =OŠTĚP!E140 -> 0 | K46: =ČLUNEK!E140 -> 0 | L46: =LEHSED!E140 -> 45 | M46: =ODBÍJENÍ!E140 -> 8 | N46: =PLAVÁNÍ!E140 -> 0 | O46: =SHYBY!E140 -> 0 | P46: =ŠPLH!E140 -> 0 | Q46: =ŠVIHADLO!E140 -> 58 | R46: ='Z MÍSTA'!E140 -> 152 | S46: =REPRE!E43 -> 0 | T46: =ROČ!W160 -> 4219.262502
A47: ='60'!B141 -> NOVÁK | B47: ='60'!C141 -> Matěj | C47: ='60'!E141 -> 10.47 | D47: ='300'!E140 -> 00:00:00 | E47: ='1000'!E141 -> 00:00:00 | F47: =DÁLKA!E141 -> 322 | G47: =VÝŠKA!E141 -> 105 | H47: =MÍČEK!E141 -> 30.5 | I47: =KOULE!E141 -> 5.34 | J47: =OŠTĚP!E141 -> 0 | K47: =ČLUNEK!E141 -> 0 | L47: =LEHSED!E141 -> 0 | M47: =ODBÍJENÍ!E141 -> 8 | N47: =PLAVÁNÍ!E141 -> 0 | O47: =SHYBY!E141 -> 0 | P47: =ŠPLH!E141 -> 0 | Q47: =ŠVIHADLO!E141 -> 68 | R47: ='Z MÍSTA'!E141 -> 169 | S47: =REPRE!E44 -> 0 | T47: =ROČ!W161 -> 3853.783004
A48: ='60'!B142 -> POVAŽANEC | B48: ='60'!C142 -> Martin | C48: ='60'!E142 -> 9.86 | D48: ='300'!E141 -> 00:00:00 | E48: ='1000'!E142 -> 00:00:00 | F48: =DÁLKA!E142 -> 371 | G48: =VÝŠKA!E142 -> 110 | H48: =MÍČEK!E142 -> 40.5 | I48: =KOULE!E142 -> 8.61 | J48: =OŠTĚP!E142 -> 0 | K48: =ČLUNEK!E142 -> 0 | L48: =LEHSED!E142 -> 0 | M48: =ODBÍJENÍ!E142 -> 8 | N48: =PLAVÁNÍ!E142 -> 0 | O48: =SHYBY!E142 -> 0 | P48: =ŠPLH!E142 -> 0 | Q48: =ŠVIHADLO!E142 -> 0 | R48: ='Z MÍSTA'!E142 -> 0 | S48: =REPRE!E45 -> 0 | T48: =ROČ!W162 -> 3231.033376
A49: ='60'!B143 -> RICHTER | B49: ='60'!C143 -> Jakub | C49: ='60'!E143 -> 0 | D49: ='300'!E142 -> 00:00:00 | E49: ='1000'!E143 -> 00:00:00 | F49: =DÁLKA!E143 -> 0 | G49: =VÝŠKA!E143 -> 0 | H49: =MÍČEK!E143 -> 23 | I49: =KOULE!E143 -> 0 | J49: =OŠTĚP!E143 -> 0 | K49: =ČLUNEK!E143 -> 0 | L49: =LEHSED!E143 -> 20 | M49: =ODBÍJENÍ!E143 -> 0 | N49: =PLAVÁNÍ!E143 -> 0 | O49: =SHYBY!E143 -> 0 | P49: =ŠPLH!E143 -> 0 | Q49: =ŠVIHADLO!E143 -> 0 | R49: ='Z MÍSTA'!E143 -> 0 | S49: =REPRE!E46 -> 0 | T49: =ROČ!W163 -> 537.5
A50: ='60'!B144 -> ROZUMEK | B50: ='60'!C144 -> Adam | C50: ='60'!E144 -> 0 | D50: ='300'!E143 -> 00:00:00 | E50: ='1000'!E144 -> 00:00:00 | F50: =DÁLKA!E144 -> 273 | G50: =VÝŠKA!E144 -> 99 | H50: =MÍČEK!E144 -> 38 | I50: =KOULE!E144 -> 7.72 | J50: =OŠTĚP!E144 -> 0 | K50: =ČLUNEK!E144 -> 0 | L50: =LEHSED!E144 -> 0 | M50: =ODBÍJENÍ!E144 -> 26 | N50: =PLAVÁNÍ!E144 -> 0 | O50: =SHYBY!E144 -> 0 | P50: =ŠPLH!E144 -> 0 | Q50: =ŠVIHADLO!E144 -> 0 | R50: ='Z MÍSTA'!E144 -> 0 | S50: =REPRE!E47 -> 0 | T50: =ROČ!W164 -> 2342.571556
A51: ='60'!B145 -> VALENTA | B51: ='60'!C145 -> František | C51: ='60'!E145 -> 10.92 | D51: ='300'!E144 -> 00:00:00 | E51: ='1000'!E145 -> 00:00:00 | F51: =DÁLKA!E145 -> 273 | G51: =VÝŠKA!E145 -> 105 | H51: =MÍČEK!E145 -> 20 | I51: =KOULE!E145 -> 6.24 | J51: =OŠTĚP!E145 -> 0 | K51: =ČLUNEK!E145 -> 0 | L51: =LEHSED!E145 -> 0 | M51: =ODBÍJENÍ!E145 -> 15 | N51: =PLAVÁNÍ!E145 -> 0 | O51: =SHYBY!E145 -> 0 | P51: =ŠPLH!E145 -> 0 | Q51: =ŠVIHADLO!E145 -> 0 | R51: ='Z MÍSTA'!E145 -> 0 | S51: =REPRE!E48 -> 0 | T51: =ROČ!W165 -> 2664.358726
A52: ='60'!B146 -> ZAPLATÍLEK | B52: ='60'!C146 -> Josef | C52: ='60'!E146 -> 10.02 | D52: ='300'!E145 -> 00:00:00 | E52: ='1000'!E146 -> 00:00:00 | F52: =DÁLKA!E146 -> 0 | G52: =VÝŠKA!E146 -> 105 | H52: =MÍČEK!E146 -> 36 | I52: =KOULE!E146 -> 5.41 | J52: =OŠTĚP!E146 -> 0 | K52: =ČLUNEK!E146 -> 0 | L52: =LEHSED!E146 -> 0 | M52: =ODBÍJENÍ!E146 -> 26 | N52: =PLAVÁNÍ!E146 -> 0 | O52: =SHYBY!E146 -> 0 | P52: =ŠPLH!E146 -> 0 | Q52: =ŠVIHADLO!E146 -> 0 | R52: ='Z MÍSTA'!E146 -> 0 | S52: =REPRE!E49 -> 0 | T52: =ROČ!W166 -> 2441.41186
A58: SPORTOVEC ŠKOLY 2020 - 2021 | J58: CHLAPCI 8. ROČNÍK | R58: ZPĚT
C60: 60 m | D60: 300m | E60: 1000m | F60: dálka | G60: výška | H60: míček | I60: koule | J60: oštěp | K60: člunek | L60: lehsed | M60: odbíjení | N60: plavání | O60: shyby | P60: šplh | Q60: švihadlo | R60: z místa | S60: REPRE | T60: BODY
A61: ='60'!B147 -> ERBEN | B61: ='60'!C147 -> Viktor | C61: ='60'!E147 -> 10.43 | D61: ='300'!E146 -> 00:01:04.810 | E61: ='1000'!E147 -> 00:00:00 | F61: =DÁLKA!E147 -> 0 | G61: =VÝŠKA!E147 -> 109 | H61: =MÍČEK!E147 -> 21 | I61: =KOULE!E147 -> 5.83 | J61: =OŠTĚP!E147 -> 0 | K61: =ČLUNEK!E147 -> 11.07 | L61: =LEHSED!E147 -> 28 | M61: =ODBÍJENÍ!E147 -> 29 | N61: =PLAVÁNÍ!E147 -> 0 | O61: =SHYBY!H147 -> 0 | P61: =ŠPLH!E147 -> 0 | Q61: =ŠVIHADLO!E147 -> 0 | R61: ='Z MÍSTA'!E147 -> 164 | S61: =REPRE!E50 -> 0 | T61: =ROČ!W167 -> 4561.644522
A62: ='60'!B148 -> FRANC | B62: ='60'!C148 -> Daniel | C62: ='60'!E148 -> 11.1 | D62: ='300'!E147 -> 00:00:00 | E62: ='1000'!E148 -> 00:00:00 | F62: =DÁLKA!E148 -> 306 | G62: =VÝŠKA!E148 -> 109 | H62: =MÍČEK!E148 -> 26 | I62: =KOULE!E148 -> 0 | J62: =OŠTĚP!E148 -> 0 | K62: =ČLUNEK!E148 -> 12.03 | L62: =LEHSED!E148 -> 0 | M62: =ODBÍJENÍ!E148 -> 13 | N62: =PLAVÁNÍ!E148 -> 0 | O62: =SHYBY!H148 -> 0 | P62: =ŠPLH!E148 -> 0 | Q62: =ŠVIHADLO!E148 -> 0 | R62: ='Z MÍSTA'!E148 -> 158 | S62: =REPRE!E51 -> 0 | T62: =ROČ!W168 -> 3552.377074
A63: ='60'!B149 -> JINDŘIŠEK | B63: ='60'!C149 -> Matyáš | C63: ='60'!E149 -> 0 | D63: ='300'!E148 -> 00:00:51.030 | E63: ='1000'!E149 -> 00:00:00 | F63: =DÁLKA!E149 -> 0 | G63: =VÝŠKA!E149 -> 113 | H63: =MÍČEK!E149 -> 0 | I63: =KOULE!E149 -> 8.59 | J63: =OŠTĚP!E149 -> 0 | K63: =ČLUNEK!E149 -> 10.05 | L63: =LEHSED!E149 -> 41 | M63: =ODBÍJENÍ!E149 -> 28 | N63: =PLAVÁNÍ!E149 -> 0 | O63: =SHYBY!H149 -> 0 | P63: =ŠPLH!E149 -> 0 | Q63: =ŠVIHADLO!E149 -> 79 | R63: ='Z MÍSTA'!E149 -> 205 | S63: =REPRE!E52 -> 0 | T63: =ROČ!W169 -> 4898.463609
A64: ='60'!B150 -> KOLAČNÝ | B64: ='60'!C150 -> Štěpán | C64: ='60'!E150 -> 10.74 | D64: ='300'!E149 -> 00:01:10.470 | E64: ='1000'!E150 -> 00:00:00 | F64: =DÁLKA!E150 -> 307 | G64: =VÝŠKA!E150 -> 99 | H64: =MÍČEK!E150 -> 25 | I64: =KOULE!E150 -> 7.81 | J64: =OŠTĚP!E150 -> 0 | K64: =ČLUNEK!E150 -> 10.8 | L64: =LEHSED!E150 -> 43 | M64: =ODBÍJENÍ!E150 -> 19 | N64: =PLAVÁNÍ!E150 -> 0 | O64: =SHYBY!H150 -> 0 | P64: =ŠPLH!E150 -> 0 | Q64: =ŠVIHADLO!E150 -> 0 | R64: ='Z MÍSTA'!E150 -> 180 | S64: =REPRE!E53 -> 0 | T64: =ROČ!W170 -> 5342.092091
A65: ='60'!B151 -> KRISTAN | B65: ='60'!C151 -> Jáchym | C65: ='60'!E151 -> 14.56 | D65: ='300'!E150 -> 00:01:34.910 | E65: ='1000'!E151 -> 00:00:00 | F65: =DÁLKA!E151 -> 0 | G65: =VÝŠKA!E151 -> 88 | H65: =MÍČEK!E151 -> 15 | I65: =KOULE!E151 -> 3.7 | J65: =OŠTĚP!E151 -> 0 | K65: =ČLUNEK!E151 -> 14.28 | L65: =LEHSED!E151 -> 0 | M65: =ODBÍJENÍ!E151 -> 12 | N65: =PLAVÁNÍ!E151 -> 0 | O65: =SHYBY!H151 -> 0 | P65: =ŠPLH!E151 -> 0 | Q65: =ŠVIHADLO!E151 -> 0 | R65: ='Z MÍSTA'!E151 -> 116 | S65: =REPRE!E54 -> 0 | T65: =ROČ!W171 -> 2882.325571
A66: ='60'!B152 -> NGUYEN | B66: ='60'!C152 -> David | C66: ='60'!E152 -> 0 | D66: ='300'!E151 -> 00:00:00 | E66: ='1000'!E152 -> 00:00:00 | F66: =DÁLKA!E152 -> 381 | G66: =VÝŠKA!E152 -> 113 | H66: =MÍČEK!E152 -> 36.5 | I66: =KOULE!E152 -> 5.9 | J66: =OŠTĚP!E152 -> 0 | K66: =ČLUNEK!E152 -> 10.02 | L66: =LEHSED!E152 -> 0 | M66: =ODBÍJENÍ!E152 -> 29 | N66: =PLAVÁNÍ!E152 -> 0 | O66: =SHYBY!H152 -> 0 | P66: =ŠPLH!E152 -> 0 | Q66: =ŠVIHADLO!E152 -> 0 | R66: ='Z MÍSTA'!E152 -> 230 | S66: =REPRE!E55 -> 0 | T66: =ROČ!W172 -> 3067.157285
A67: ='60'!B153 -> NOVOTNÝ | B67: ='60'!C153 -> Jan | C67: ='60'!E153 -> 9.43 | D67: ='300'!E152 -> 00:00:48.030 | E67: ='1000'!E153 -> 00:00:00 | F67: =DÁLKA!E153 -> 372 | G67: =VÝŠKA!E153 -> 113 | H67: =MÍČEK!E153 -> 27 | I67: =KOULE!E153 -> 0 | J67: =OŠTĚP!E153 -> 0 | K67: =ČLUNEK!E153 -> 10.12 | L67: =LEHSED!E153 -> 0 | M67: =ODBÍJENÍ!E153 -> 16 | N67: =PLAVÁNÍ!E153 -> 0 | O67: =SHYBY!H153 -> 0 | P67: =ŠPLH!E153 -> 0 | Q67: =ŠVIHADLO!E153 -> 0 | R67: ='Z MÍSTA'!E153 -> 0 | S67: =REPRE!E56 -> 0 | T67: =ROČ!W173 -> 4203.230151
A68: ='60'!B154 -> RÁB | B68: ='60'!C154 -> Adam | C68: ='60'!E154 -> 12.15 | D68: ='300'!E153 -> 00:01:12.190 | E68: ='1000'!E154 -> 00:00:00 | F68: =DÁLKA!E154 -> 284 | G68: =VÝŠKA!E154 -> 92 | H68: =MÍČEK!E154 -> 25.5 | I68: =KOULE!E154 -> 8.01 | J68: =OŠTĚP!E154 -> 0 | K68: =ČLUNEK!E154 -> 11.74 | L68: =LEHSED!E154 -> 0 | M68: =ODBÍJENÍ!E154 -> 12 | N68: =PLAVÁNÍ!E154 -> 0 | O68: =SHYBY!H154 -> 0 | P68: =ŠPLH!E154 -> 0 | Q68: =ŠVIHADLO!E154 -> 0 | R68: ='Z MÍSTA'!E154 -> 162 | S68: =REPRE!E57 -> 0 | T68: =ROČ!W174 -> 4449.329076
A69: ='60'!B155 -> REPASKÝ | B69: ='60'!C155 -> Jakub | C69: ='60'!E155 -> 8.75 | D69: ='300'!E154 -> 00:00:49.990 | E69: ='1000'!E155 -> 00:00:00 | F69: =DÁLKA!E155 -> 0 | G69: =VÝŠKA!E155 -> 113 | H69: =MÍČEK!E155 -> 50.5 | I69: =KOULE!E155 -> 9.02 | J69: =OŠTĚP!E155 -> 0 | K69: =ČLUNEK!E155 -> 9.67 | L69: =LEHSED!E155 -> 49 | M69: =ODBÍJENÍ!E155 -> 73 | N69: =PLAVÁNÍ!E155 -> 0 | O69: =SHYBY!H155 -> 0 | P69: =ŠPLH!E155 -> 0 | Q69: =ŠVIHADLO!E155 -> 146 | R69: ='Z MÍSTA'!E155 -> 213 | S69: =REPRE!E58 -> 0 | T69: =ROČ!W175 -> 7351.119112
A70: ='60'!B156 -> SKÁLA | B70: ='60'!C156 -> Jan | C70: ='60'!E156 -> 8.75 | D70: ='300'!E155 -> 00:00:51.050 | E70: ='1000'!E156 -> 00:00:00 | F70: =DÁLKA!E156 -> 408 | G70: =VÝŠKA!E156 -> 113 | H70: =MÍČEK!E156 -> 30 | I70: =KOULE!E156 -> 9.39 | J70: =OŠTĚP!E156 -> 0 | K70: =ČLUNEK!E156 -> 10.56 | L70: =LEHSED!E156 -> 0 | M70: =ODBÍJENÍ!E156 -> 15 | N70: =PLAVÁNÍ!E156 -> 0 | O70: =SHYBY!H156 -> 0 | P70: =ŠPLH!E156 -> 0 | Q70: =ŠVIHADLO!E156 -> 0 | R70: ='Z MÍSTA'!E156 -> 213 | S70: =REPRE!E59 -> 0 | T70: =ROČ!W176 -> 5722.114931
A71: ='60'!B157 -> ŠPULÁK | B71: ='60'!C157 -> Jakub | C71: ='60'!E157 -> 9.8 | D71: ='300'!E156 -> 00:00:55.640 | E71: ='1000'!E157 -> 00:00:00 | F71: =DÁLKA!E157 -> 348 | G71: =VÝŠKA!E157 -> 113 | H71: =MÍČEK!E157 -> 45 | I71: =KOULE!E157 -> 8.91 | J71: =OŠTĚP!E157 -> 0 | K71: =ČLUNEK!E157 -> 10.87 | L71: =LEHSED!E157 -> 27 | M71: =ODBÍJENÍ!E157 -> 18 | N71: =PLAVÁNÍ!E157 -> 0 | O71: =SHYBY!H157 -> 0 | P71: =ŠPLH!E157 -> 0 | Q71: =ŠVIHADLO!E157 -> 34 | R71: ='Z MÍSTA'!E157 -> 194 | S71: =REPRE!E60 -> 0 | T71: =ROČ!W177 -> 6102.252038
A72: ='60'!B158 -> VALENTA | B72: ='60'!C158 -> Tomáš | C72: ='60'!E158 -> 8.18 | D72: ='300'!E157 -> 00:00:44.370 | E72: ='1000'!E158 -> 00:00:00 | F72: =DÁLKA!E158 -> 485 | G72: =VÝŠKA!E158 -> 113 | H72: =MÍČEK!E158 -> 53 | I72: =KOULE!E158 -> 10.8 | J72: =OŠTĚP!E158 -> 0 | K72: =ČLUNEK!E158 -> 9.81 | L72: =LEHSED!E158 -> 49 | M72: =ODBÍJENÍ!E158 -> 73 | N72: =PLAVÁNÍ!E158 -> 0 | O72: =SHYBY!H158 -> 0 | P72: =ŠPLH!E158 -> 0 | Q72: =ŠVIHADLO!E158 -> 142 | R72: ='Z MÍSTA'!E158 -> 234 | S72: =REPRE!E61 -> 0 | T72: =ROČ!W178 -> 8534.472685
A73: ='60'!B159 -> VANCL | B73: ='60'!C159 -> Jiří | C73: ='60'!E159 -> 9.64 | D73: ='300'!E158 -> 00:00:58.090 | E73: ='1000'!E159 -> 00:00:00 | F73: =DÁLKA!E159 -> 0 | G73: =VÝŠKA!E159 -> 109 | H73: =MÍČEK!E159 -> 31 | I73: =KOULE!E159 -> 7.51 | J73: =OŠTĚP!E159 -> 0 | K73: =ČLUNEK!E159 -> 10.56 | L73: =LEHSED!E159 -> 0 | M73: =ODBÍJENÍ!E159 -> 32 | N73: =PLAVÁNÍ!E159 -> 0 | O73: =SHYBY!H159 -> 0 | P73: =ŠPLH!E159 -> 0 | Q73: =ŠVIHADLO!E159 -> 0 | R73: ='Z MÍSTA'!E159 -> 203 | S73: =REPRE!E62 -> 0 | T73: =ROČ!W179 -> 4797.262709
A74: ='60'!B160 -> VAŠÍČEK | B74: ='60'!C160 -> David | C74: ='60'!E160 -> 0 | D74: ='300'!E159 -> 00:00:00 | E74: ='1000'!E160 -> 00:00:00 | F74: =DÁLKA!E160 -> 349 | G74: =VÝŠKA!E160 -> 0 | H74: =MÍČEK!E160 -> 32.5 | I74: =KOULE!E160 -> 0 | J74: =OŠTĚP!E160 -> 0 | K74: =ČLUNEK!E160 -> 0 | L74: =LEHSED!E160 -> 0 | M74: =ODBÍJENÍ!E160 -> 31 | N74: =PLAVÁNÍ!E160 -> 0 | O74: =SHYBY!H160 -> 0 | P74: =ŠPLH!E160 -> 0 | Q74: =ŠVIHADLO!E160 -> 0 | R74: ='Z MÍSTA'!E160 -> 209 | S74: =REPRE!E63 -> 0 | T74: =ROČ!W180 -> 2076.818
A75: ='60'!B161 -> ZOUHAR | B75: ='60'!C161 -> Ondřej | C75: ='60'!E161 -> 8.8 | D75: ='300'!E160 -> 00:00:49.010 | E75: ='1000'!E161 -> 00:00:00 | F75: =DÁLKA!E161 -> 373 | G75: =VÝŠKA!E161 -> 109 | H75: =MÍČEK!E161 -> 35 | I75: =KOULE!E161 -> 6.37 | J75: =OŠTĚP!E161 -> 0 | K75: =ČLUNEK!E161 -> 10.15 | L75: =LEHSED!E161 -> 0 | M75: =ODBÍJENÍ!E161 -> 31 | N75: =PLAVÁNÍ!E161 -> 0 | O75: =SHYBY!H161 -> 0 | P75: =ŠPLH!E161 -> 0 | Q75: =ŠVIHADLO!E161 -> 0 | R75: ='Z MÍSTA'!E161 -> 207 | S75: =REPRE!E64 -> 0 | T75: =ROČ!W181 -> 5730.422911
A76: ='60'!B162 -> ZUZÁNEK | B76: ='60'!C162 -> Filip | C76: ='60'!E162 -> 10.04 | D76: ='300'!E161 -> 00:00:57.690 | E76: ='1000'!E162 -> 00:00:00 | F76: =DÁLKA!E162 -> 0 | G76: =VÝŠKA!E162 -> 113 | H76: =MÍČEK!E162 -> 24.5 | I76: =KOULE!E162 -> 6.6 | J76: =OŠTĚP!E162 -> 0 | K76: =ČLUNEK!E162 -> 10.3 | L76: =LEHSED!E162 -> 0 | M76: =ODBÍJENÍ!E162 -> 32 | N76: =PLAVÁNÍ!E162 -> 0 | O76: =SHYBY!H162 -> 0 | P76: =ŠPLH!E162 -> 0 | Q76: =ŠVIHADLO!E162 -> 0 | R76: ='Z MÍSTA'!E162 -> 191 | S76: =REPRE!E65 -> 0 | T76: =ROČ!W182 -> 4650.882153
A84: SPORTOVEC ŠKOLY 2020 - 2021 | J84: CHLAPCI 9. ROČNÍK | R84: ZPĚT
C86: 60 m | D86: 300m | E86: 1000m | F86: dálka | G86: výška | H86: míček | I86: koule | J86: oštěp | K86: člunek | L86: lehsed | M86: odbíjení | N86: plavání | O86: shyby | P86: šplh | Q86: švihadlo | R86: z místa | S86: REPRE | T86: BODY
A87: ='60'!B163 -> BRUMLICH | B87: ='60'!C163 -> Jan | C87: ='60'!E163 -> 0 | D87: ='300'!E162 -> 00:00:49.080 | E87: ='1000'!E163 -> 00:00:00 | F87: =DÁLKA!E163 -> 0 | G87: =VÝŠKA!E163 -> 133 | H87: =MÍČEK!E163 -> 58 | I87: =KOULE!E163 -> 12.17 | J87: =OŠTĚP!E163 -> 0 | K87: =ČLUNEK!E163 -> 0 | L87: =LEHSED!E163 -> 0 | M87: =ODBÍJENÍ!E163 -> 41 | N87: =PLAVÁNÍ!E163 -> 30 | O87: =SHYBY!E163 -> 0 | P87: =ŠPLH!E163 -> 0 | Q87: =ŠVIHADLO!E163 -> 0 | R87: ='Z MÍSTA'!E163 -> 0 | S87: =REPRE!E66 -> 0 | T87: =ROČ!W183 -> 3860.870973
A88: ='60'!B164 -> BUCHAR | B88: ='60'!C164 -> Jiří | C88: ='60'!E164 -> 8.9 | D88: ='300'!E163 -> 00:00:49.680 | E88: ='1000'!E164 -> 00:00:00 | F88: =DÁLKA!E164 -> 415 | G88: =VÝŠKA!E164 -> 128 | H88: =MÍČEK!E164 -> 32.5 | I88: =KOULE!E164 -> 0 | J88: =OŠTĚP!E164 -> 0 | K88: =ČLUNEK!E164 -> 0 | L88: =LEHSED!E164 -> 0 | M88: =ODBÍJENÍ!E164 -> 41 | N88: =PLAVÁNÍ!E164 -> 0 | O88: =SHYBY!E164 -> 0 | P88: =ŠPLH!E164 -> 0 | Q88: =ŠVIHADLO!E164 -> 0 | R88: ='Z MÍSTA'!E164 -> 0 | S88: =REPRE!E67 -> 0 | T88: =ROČ!W184 -> 3758.120856
A89: ='60'!B165 -> FAISTAUER | B89: ='60'!C165 -> Jiří | C89: ='60'!E165 -> 0 | D89: ='300'!E164 -> 00:00:00 | E89: ='1000'!E165 -> 00:00:00 | F89: =DÁLKA!E165 -> 407 | G89: =VÝŠKA!E165 -> 118 | H89: =MÍČEK!E165 -> 44 | I89: =KOULE!E165 -> 7.8 | J89: =OŠTĚP!E165 -> 0 | K89: =ČLUNEK!E165 -> 0 | L89: =LEHSED!E165 -> 0 | M89: =ODBÍJENÍ!E165 -> 0 | N89: =PLAVÁNÍ!E165 -> 0 | O89: =SHYBY!E165 -> 0 | P89: =ŠPLH!E165 -> 0 | Q89: =ŠVIHADLO!E165 -> 0 | R89: ='Z MÍSTA'!E165 -> 0 | S89: =REPRE!E68 -> 0 | T89: =ROČ!W185 -> 2521.284
A90: ='60'!B166 -> FAISTAUER | B90: ='60'!C166 -> Roman | C90: ='60'!E166 -> 8.28 | D90: ='300'!E165 -> 00:00:53.460 | E90: ='1000'!E166 -> 00:00:00 | F90: =DÁLKA!E166 -> 413 | G90: =VÝŠKA!E166 -> 123 | H90: =MÍČEK!E166 -> 52 | I90: =KOULE!E166 -> 10.11 | J90: =OŠTĚP!E166 -> 0 | K90: =ČLUNEK!E166 -> 0 | L90: =LEHSED!E166 -> 0 | M90: =ODBÍJENÍ!E166 -> 31 | N90: =PLAVÁNÍ!E166 -> 0 | O90: =SHYBY!E166 -> 0 | P90: =ŠPLH!E166 -> 0 | Q90: =ŠVIHADLO!E166 -> 0 | R90: ='Z MÍSTA'!E166 -> 0 | S90: =REPRE!E69 -> 0 | T90: =ROČ!W186 -> 4594.608217
A91: ='60'!B167 -> FAJSTAVR | B91: ='60'!C167 -> Jakub | C91: ='60'!E167 -> 9.02 | D91: ='300'!E166 -> 00:00:56.040 | E91: ='1000'!E167 -> 00:00:00 | F91: =DÁLKA!E167 -> 383 | G91: =VÝŠKA!E167 -> 110 | H91: =MÍČEK!E167 -> 0 | I91: =KOULE!E167 -> 10.23 | J91: =OŠTĚP!E167 -> 0 | K91: =ČLUNEK!E167 -> 0 | L91: =LEHSED!E167 -> 48 | M91: =ODBÍJENÍ!E167 -> 0 | N91: =PLAVÁNÍ!E167 -> 25 | O91: =SHYBY!E167 -> 0 | P91: =ŠPLH!E167 -> 0 | Q91: =ŠVIHADLO!E167 -> 66 | R91: ='Z MÍSTA'!E167 -> 121 | S91: =REPRE!E70 -> 0 | T91: =ROČ!W187 -> 5461.359864
A92: ='60'!B168 -> FARSKÝ | B92: ='60'!C168 -> Vojtěch | C92: ='60'!E168 -> 8.91 | D92: ='300'!E167 -> 00:00:00 | E92: ='1000'!E168 -> 00:00:00 | F92: =DÁLKA!E168 -> 430 | G92: =VÝŠKA!E168 -> 139 | H92: =MÍČEK!E168 -> 54 | I92: =KOULE!E168 -> 9.29 | J92: =OŠTĚP!E168 -> 0 | K92: =ČLUNEK!E168 -> 0 | L92: =LEHSED!E168 -> 0 | M92: =ODBÍJENÍ!E168 -> 85 | N92: =PLAVÁNÍ!E168 -> 0 | O92: =SHYBY!E168 -> 0 | P92: =ŠPLH!E168 -> 0 | Q92: =ŠVIHADLO!E168 -> 0 | R92: ='Z MÍSTA'!E168 -> 0 | S92: =REPRE!E71 -> 0 | T92: =ROČ!W188 -> 4335.796192
A93: ='60'!B169 -> HOLUBEC | B93: ='60'!C169 -> Lukáš | C93: ='60'!E169 -> 0 | D93: ='300'!E168 -> 00:00:00 | E93: ='1000'!E169 -> 00:00:00 | F93: =DÁLKA!E169 -> 331 | G93: =VÝŠKA!E169 -> 113 | H93: =MÍČEK!E169 -> 35 | I93: =KOULE!E169 -> 8.63 | J93: =OŠTĚP!E169 -> 0 | K93: =ČLUNEK!E169 -> 0 | L93: =LEHSED!E169 -> 0 | M93: =ODBÍJENÍ!E169 -> 15 | N93: =PLAVÁNÍ!E169 -> 0 | O93: =SHYBY!E169 -> 0 | P93: =ŠPLH!E169 -> 0 | Q93: =ŠVIHADLO!E169 -> 0 | R93: ='Z MÍSTA'!E169 -> 0 | S93: =REPRE!E72 -> 0 | T93: =ROČ!W189 -> 2433.663111
A94: ='60'!B170 -> CHAROUZ | B94: ='60'!C170 -> Vojtěch | C94: ='60'!E170 -> 9.02 | D94: ='300'!E169 -> 00:00:52.440 | E94: ='1000'!E170 -> 00:00:00 | F94: =DÁLKA!E170 -> 405 | G94: =VÝŠKA!E170 -> 130 | H94: =MÍČEK!E170 -> 30 | I94: =KOULE!E170 -> 8 | J94: =OŠTĚP!E170 -> 0 | K94: =ČLUNEK!E170 -> 0 | L94: =LEHSED!E170 -> 0 | M94: =ODBÍJENÍ!E170 -> 19 | N94: =PLAVÁNÍ!E170 -> 0 | O94: =SHYBY!E170 -> 0 | P94: =ŠPLH!E170 -> 0 | Q94: =ŠVIHADLO!E170 -> 0 | R94: ='Z MÍSTA'!E170 -> 0 | S94: =REPRE!E73 -> 0 | T94: =ROČ!W190 -> 4092.708736
A95: ='60'!B171 -> IACCHERI | B95: ='60'!C171 -> Carlo | C95: ='60'!E171 -> 9.27 | D95: ='300'!E170 -> 00:00:54.320 | E95: ='1000'!E171 -> 00:00:00 | F95: =DÁLKA!E171 -> 339 | G95: =VÝŠKA!E171 -> 113 | H95: =MÍČEK!E171 -> 0 | I95: =KOULE!E171 -> 9.06 | J95: =OŠTĚP!E171 -> 0 | K95: =ČLUNEK!E171 -> 0 | L95: =LEHSED!E171 -> 0 | M95: =ODBÍJENÍ!E171 -> 0 | N95: =PLAVÁNÍ!E171 -> 30 | O95: =SHYBY!E171 -> 0 | P95: =ŠPLH!E171 -> 0 | Q95: =ŠVIHADLO!E171 -> 0 | R95: ='Z MÍSTA'!E171 -> 185 | S95: =REPRE!E74 -> 0 | T95: =ROČ!W191 -> 4515.710767
A96: ='60'!B172 -> JOHN | B96: ='60'!C172 -> Adrian | C96: ='60'!E172 -> 14.16 | D96: ='300'!E171 -> 00:00:00 | E96: ='1000'!E172 -> 00:00:00 | F96: =DÁLKA!E172 -> 208 | G96: =VÝŠKA!E172 -> 73 | H96: =MÍČEK!E172 -> 20 | I96: =KOULE!E172 -> 6.02 | J96: =OŠTĚP!E172 -> 0 | K96: =ČLUNEK!E172 -> 0 | L96: =LEHSED!E172 -> 30 | M96: =ODBÍJENÍ!E172 -> 16 | N96: =PLAVÁNÍ!E172 -> 0 | O96: =SHYBY!E172 -> 0 | P96: =ŠPLH!E172 -> 0 | Q96: =ŠVIHADLO!E172 -> 0 | R96: ='Z MÍSTA'!E172 -> 0 | S96: =REPRE!E75 -> 0 | T96: =ROČ!W192 -> 2626.100287
A97: ='60'!B173 -> KRČÍK | B97: ='60'!C173 -> Matthew | C97: ='60'!E173 -> 9.31 | D97: ='300'!E172 -> 00:00:00 | E97: ='1000'!E173 -> 00:00:00 | F97: =DÁLKA!E173 -> 351 | G97: =VÝŠKA!E173 -> 118 | H97: =MÍČEK!E173 -> 0 | I97: =KOULE!E173 -> 8.38 | J97: =OŠTĚP!E173 -> 0 | K97: =ČLUNEK!E173 -> 0 | L97: =LEHSED!E173 -> 0 | M97: =ODBÍJENÍ!E173 -> 0 | N97: =PLAVÁNÍ!E173 -> 25 | O97: =SHYBY!E173 -> 0 | P97: =ŠPLH!E173 -> 0 | Q97: =ŠVIHADLO!E173 -> 0 | R97: ='Z MÍSTA'!E173 -> 0 | S97: =REPRE!E76 -> 0 | T97: =ROČ!W193 -> 3213.166036
A98: ='60'!B174 -> KRESAN | B98: ='60'!C174 -> Vojtěch | C98: ='60'!E174 -> 9.46 | D98: ='300'!E173 -> 00:00:00 | E98: ='1000'!E174 -> 00:00:00 | F98: =DÁLKA!E174 -> 336 | G98: =VÝŠKA!E174 -> 110 | H98: =MÍČEK!E174 -> 26.5 | I98: =KOULE!E174 -> 8.88 | J98: =OŠTĚP!E174 -> 0 | K98: =ČLUNEK!E174 -> 0 | L98: =LEHSED!E174 -> 0 | M98: =ODBÍJENÍ!E174 -> 10 | N98: =PLAVÁNÍ!E174 -> 30 | O98: =SHYBY!E174 -> 0 | P98: =ŠPLH!E174 -> 0 | Q98: =ŠVIHADLO!E174 -> 0 | R98: ='Z MÍSTA'!E174 -> 0 | S98: =REPRE!E77 -> 0 | T98: =ROČ!W194 -> 3498.65529
A99: ='60'!B175 -> LÁNSKÝ | B99: ='60'!C175 -> Vojtěch | C99: ='60'!E175 -> 0 | D99: ='300'!E174 -> 00:01:26.160 | E99: ='1000'!E175 -> 00:00:00 | F99: =DÁLKA!E175 -> 0 | G99: =VÝŠKA!E175 -> 95 | H99: =MÍČEK!E175 -> 21.5 | I99: =KOULE!E175 -> 8.7 | J99: =OŠTĚP!E175 -> 0 | K99: =ČLUNEK!E175 -> 0 | L99: =LEHSED!E175 -> 0 | M99: =ODBÍJENÍ!E175 -> 15 | N99: =PLAVÁNÍ!E175 -> 0 | O99: =SHYBY!E175 -> 0 | P99: =ŠPLH!E175 -> 0 | Q99: =ŠVIHADLO!E175 -> 0 | R99: ='Z MÍSTA'!E175 -> 0 | S99: =REPRE!E78 -> 0 | T99: =ROČ!W195 -> 1880.703563
A100: ='60'!B176 -> LEŠÁK | B100: ='60'!C176 -> Lukáš | C100: ='60'!E176 -> 11.77 | D100: ='300'!E175 -> 00:00:00 | E100: ='1000'!E176 -> 00:00:00 | F100: =DÁLKA!E176 -> 243 | G100: =VÝŠKA!E176 -> 105 | H100: =MÍČEK!E176 -> 23 | I100: =KOULE!E176 -> 6.75 | J100: =OŠTĚP!E176 -> 0 | K100: =ČLUNEK!E176 -> 0 | L100: =LEHSED!E176 -> 0 | M100: =ODBÍJENÍ!E176 -> 0 | N100: =PLAVÁNÍ!E176 -> 0 | O100: =SHYBY!E176 -> 0 | P100: =ŠPLH!E176 -> 0 | Q100: =ŠVIHADLO!E176 -> 0 | R100: ='Z MÍSTA'!E176 -> 0 | S100: =REPRE!E79 -> 0 | T100: =ROČ!W196 -> 2524.807167
A101: ='60'!B177 -> RYPL | B101: ='60'!C177 -> Matyáš | C101: ='60'!E177 -> 8.86 | D101: ='300'!E176 -> 00:00:47.750 | E101: ='1000'!E177 -> 00:00:00 | F101: =DÁLKA!E177 -> 416 | G101: =VÝŠKA!E177 -> 118 | H101: =MÍČEK!E177 -> 26 | I101: =KOULE!E177 -> 6.98 | J101: =OŠTĚP!E177 -> 0 | K101: =ČLUNEK!E177 -> 0 | L101: =LEHSED!E177 -> 55 | M101: =ODBÍJENÍ!E177 -> 19 | N101: =PLAVÁNÍ!E177 -> 25 | O101: =SHYBY!E177 -> 0 | P101: =ŠPLH!E177 -> 0 | Q101: =ŠVIHADLO!E177 -> 0 | R101: ='Z MÍSTA'!E177 -> 0 | S101: =REPRE!E80 -> 0 | T101: =ROČ!W197 -> 5245.69935
A102: ='60'!B178 -> VU TRAN DINH | B102: ='60'!C178 -> Lukas | C102: ='60'!E178 -> 9.27 | D102: ='300'!E177 -> 00:00:00 | E102: ='1000'!E178 -> 00:00:00 | F102: =DÁLKA!E178 -> 377 | G102: =VÝŠKA!E178 -> 0 | H102: =MÍČEK!E178 -> 40.5 | I102: =KOULE!E178 -> 9.44 | J102: =OŠTĚP!E178 -> 0 | K102: =ČLUNEK!E178 -> 0 | L102: =LEHSED!E178 -> 0 | M102: =ODBÍJENÍ!E178 -> 15 | N102: =PLAVÁNÍ!E178 -> 30 | O102: =SHYBY!E178 -> 0 | P102: =ŠPLH!E178 -> 0 | Q102: =ŠVIHADLO!E178 -> 0 | R102: ='Z MÍSTA'!E178 -> 0 | S102: =REPRE!E81 -> 0 | T102: =ROČ!W198 -> 3087.735982
A103: ='60'!B179 -> DUFEK | B103: ='60'!C179 -> Matyáš | C103: ='60'!E179 -> 0 | D103: ='300'!E178 -> 00:00:00 | E103: ='1000'!E179 -> 00:00:00 | F103: =DÁLKA!E179 -> 0 | G103: =VÝŠKA!E179 -> 95 | H103: =MÍČEK!E179 -> 29 | I103: =KOULE!E179 -> 0 | J103: =OŠTĚP!E179 -> 0 | K103: =ČLUNEK!E179 -> 0 | L103: =LEHSED!E179 -> 0 | M103: =ODBÍJENÍ!E179 -> 21 | N103: =PLAVÁNÍ!E179 -> 0 | O103: =SHYBY!E179 -> 0 | P103: =ŠPLH!E179 -> 0 | Q103: =ŠVIHADLO!E179 -> 0 | R103: ='Z MÍSTA'!E179 -> 0 | S103: =REPRE!E82 -> 0 | T103: =ROČ!W199 -> 1055.9
A104: ='60'!B180 -> JEŽEK | B104: ='60'!C180 -> Jonáš | C104: ='60'!E180 -> 8.68 | D104: ='300'!E179 -> 00:00:00 | E104: ='1000'!E180 -> 00:00:00 | F104: =DÁLKA!E180 -> 0 | G104: =VÝŠKA!E180 -> 110 | H104: =MÍČEK!E180 -> 45 | I104: =KOULE!E180 -> 8.77 | J104: =OŠTĚP!E180 -> 0 | K104: =ČLUNEK!E180 -> 0 | L104: =LEHSED!E180 -> 0 | M104: =ODBÍJENÍ!E180 -> 179 | N104: =PLAVÁNÍ!E180 -> 30 | O104: =SHYBY!E180 -> 0 | P104: =ŠPLH!E180 -> 0 | Q104: =ŠVIHADLO!E180 -> 0 | R104: ='Z MÍSTA'!E180 -> 0 | S104: =REPRE!E83 -> 0 | T104: =ROČ!W200 -> 3773.07514
A105: ='60'!B181 -> JEŽEK | B105: ='60'!C181 -> Mikuláš | C105: ='60'!E181 -> 0 | D105: ='300'!E180 -> 00:00:00 | E105: ='1000'!E181 -> 00:00:00 | F105: =DÁLKA!E181 -> 0 | G105: =VÝŠKA!E181 -> 128 | H105: =MÍČEK!E181 -> 45 | I105: =KOULE!E181 -> 0 | J105: =OŠTĚP!E181 -> 0 | K105: =ČLUNEK!E181 -> 0 | L105: =LEHSED!E181 -> 0 | M105: =ODBÍJENÍ!E181 -> 0 | N105: =PLAVÁNÍ!E181 -> 30 | O105: =SHYBY!E181 -> 0 | P105: =ŠPLH!E181 -> 0 | Q105: =ŠVIHADLO!E181 -> 0 | R105: ='Z MÍSTA'!E181 -> 0 | S105: =REPRE!E84 -> 0 | T105: =ROČ!W201 -> 1713.614434
A106: ='60'!B182 -> NECHANICKÝ | B106: ='60'!C182 -> Michal | C106: ='60'!E182 -> 8.86 | D106: ='300'!E181 -> 00:00:00 | E106: ='1000'!E182 -> 00:00:00 | F106: =DÁLKA!E182 -> 385 | G106: =VÝŠKA!E182 -> 117 | H106: =MÍČEK!E182 -> 39 | I106: =KOULE!E182 -> 7.34 | J106: =OŠTĚP!E182 -> 0 | K106: =ČLUNEK!E182 -> 0 | L106: =LEHSED!E182 -> 26 | M106: =ODBÍJENÍ!E182 -> 151 | N106: =PLAVÁNÍ!E182 -> 0 | O106: =SHYBY!E182 -> 0 | P106: =ŠPLH!E182 -> 0 | Q106: =ŠVIHADLO!E182 -> 85 | R106: ='Z MÍSTA'!E182 -> 132 | S106: =REPRE!E85 -> 0 | T106: =ROČ!W202 -> 5235.602319
A107: ='60'!B183 -> PAULÍČEK | B107: ='60'!C183 -> Jakub | C107: ='60'!E183 -> 9.02 | D107: ='300'!E182 -> 00:00:00 | E107: ='1000'!E183 -> 00:00:00 | F107: =DÁLKA!E183 -> 0 | G107: =VÝŠKA!E183 -> 133 | H107: =MÍČEK!E183 -> 38 | I107: =KOULE!E183 -> 0 | J107: =OŠTĚP!E183 -> 0 | K107: =ČLUNEK!E183 -> 0 | L107: =LEHSED!E183 -> 0 | M107: =ODBÍJENÍ!E183 -> 12 | N107: =PLAVÁNÍ!E183 -> 0 | O107: =SHYBY!E183 -> 0 | P107: =ŠPLH!E183 -> 0 | Q107: =ŠVIHADLO!E183 -> 0 | R107: ='Z MÍSTA'!E183 -> 0 | S107: =REPRE!E86 -> 0 | T107: =ROČ!W203 -> 2115.818555
A108: ='60'!B184 -> POHOŘALÝ | B108: ='60'!C184 -> Jakub | C108: ='60'!E184 -> 8.02 | D108: ='300'!E183 -> 00:00:00 | E108: ='1000'!E184 -> 00:00:00 | F108: =DÁLKA!E184 -> 445 | G108: =VÝŠKA!E184 -> 133 | H108: =MÍČEK!E184 -> 45.5 | I108: =KOULE!E184 -> 10.72 | J108: =OŠTĚP!E184 -> 0 | K108: =ČLUNEK!E184 -> 0 | L108: =LEHSED!E184 -> 0 | M108: =ODBÍJENÍ!E184 -> 72 | N108: =PLAVÁNÍ!E184 -> 0 | O108: =SHYBY!E184 -> 0 | P108: =ŠPLH!E184 -> 0 | Q108: =ŠVIHADLO!E184 -> 0 | R108: ='Z MÍSTA'!E184 -> 0 | S108: =REPRE!E87 -> 0 | T108: =ROČ!W204 -> 4307.974238
A109: ='60'!B185 -> POSPÍCHAL | B109: ='60'!C185 -> Daniel | C109: ='60'!E185 -> 9.05 | D109: ='300'!E184 -> 00:00:00 | E109: ='1000'!E185 -> 00:00:00 | F109: =DÁLKA!E185 -> 389 | G109: =VÝŠKA!E185 -> 105 | H109: =MÍČEK!E185 -> 0 | I109: =KOULE!E185 -> 9.31 | J109: =OŠTĚP!E185 -> 0 | K109: =ČLUNEK!E185 -> 0 | L109: =LEHSED!E185 -> 0 | M109: =ODBÍJENÍ!E185 -> 31 | N109: =PLAVÁNÍ!E185 -> 0 | O109: =SHYBY!E185 -> 0 | P109: =ŠPLH!E185 -> 0 | Q109: =ŠVIHADLO!E185 -> 0 | R109: ='Z MÍSTA'!E185 -> 0 | S109: =REPRE!E88 -> 0 | T109: =ROČ!W205 -> 3001.921217
A110: ='60'!B186 -> SOUKUP | B110: ='60'!C186 -> Lukáš | C110: ='60'!E186 -> 9.05 | D110: ='300'!E185 -> 00:00:00 | E110: ='1000'!E186 -> 00:00:00 | F110: =DÁLKA!E186 -> 424 | G110: =VÝŠKA!E186 -> 118 | H110: =MÍČEK!E186 -> 39 | I110: =KOULE!E186 -> 10.39 | J110: =OŠTĚP!E186 -> 0 | K110: =ČLUNEK!E186 -> 0 | L110: =LEHSED!E186 -> 0 | M110: =ODBÍJENÍ!E186 -> 179 | N110: =PLAVÁNÍ!E186 -> 0 | O110: =SHYBY!E186 -> 0 | P110: =ŠPLH!E186 -> 0 | Q110: =ŠVIHADLO!E186 -> 0 | R110: ='Z MÍSTA'!E186 -> 0 | S110: =REPRE!E89 -> 0 | T110: =ROČ!W206 -> 4107.251217
A111: ='60'!B187 -> VANCL | B111: ='60'!C187 -> Jan | C111: ='60'!E187 -> 8.25 | D111: ='300'!E186 -> 00:00:00 | E111: ='1000'!E187 -> 00:00:00 | F111: =DÁLKA!E187 -> 424 | G111: =VÝŠKA!E187 -> 143 | H111: =MÍČEK!E187 -> 62 | I111: =KOULE!E187 -> 12.1 | J111: =OŠTĚP!E187 -> 0 | K111: =ČLUNEK!E187 -> 0 | L111: =LEHSED!E187 -> 0 | M111: =ODBÍJENÍ!E187 -> 34 | N111: =PLAVÁNÍ!E187 -> 30 | O111: =SHYBY!E187 -> 0 | P111: =ŠPLH!E187 -> 0 | Q111: =ŠVIHADLO!E187 -> 0 | R111: ='Z MÍSTA'!E187 -> 0 | S111: =REPRE!E90 -> 0 | T111: =ROČ!W207 -> 4728.412011
A112: ='60'!B188 -> VANCL | B112: ='60'!C188 -> Lukáš | C112: ='60'!E188 -> 8.61 | D112: ='300'!E187 -> 00:00:50.520 | E112: ='1000'!E188 -> 00:00:00 | F112: =DÁLKA!E188 -> 415 | G112: =VÝŠKA!E188 -> 143 | H112: =MÍČEK!E188 -> 53 | I112: =KOULE!E188 -> 13.64 | J112: =OŠTĚP!E188 -> 0 | K112: =ČLUNEK!E188 -> 0 | L112: =LEHSED!E188 -> 0 | M112: =ODBÍJENÍ!E188 -> 72 | N112: =PLAVÁNÍ!E188 -> 30 | O112: =SHYBY!E188 -> 0 | P112: =ŠPLH!E188 -> 0 | Q112: =ŠVIHADLO!E188 -> 0 | R112: ='Z MÍSTA'!E188 -> 0 | S112: =REPRE!E91 -> 0 | T112: =ROČ!W208 -> 5715.094617
A113: ='60'!B189 -> VAŠÍK | B113: ='60'!C189 -> Jiří | C113: ='60'!E189 -> 9.12 | D113: ='300'!E188 -> 00:00:00 | E113: ='1000'!E189 -> 00:00:00 | F113: =DÁLKA!E189 -> 380 | G113: =VÝŠKA!E189 -> 113 | H113: =MÍČEK!E189 -> 36 | I113: =KOULE!E189 -> 8.28 | J113: =OŠTĚP!E189 -> 0 | K113: =ČLUNEK!E189 -> 0 | L113: =LEHSED!E189 -> 0 | M113: =ODBÍJENÍ!E189 -> 15 | N113: =PLAVÁNÍ!E189 -> 0 | O113: =SHYBY!E189 -> 0 | P113: =ŠPLH!E189 -> 0 | Q113: =ŠVIHADLO!E189 -> 0 | R113: ='Z MÍSTA'!E189 -> 0 | S113: =REPRE!E92 -> 0 | T113: =ROČ!W209 -> 3293.87265
A114: ='60'!B190 -> VOHNOUT | B114: ='60'!C190 -> Zdeněk | C114: ='60'!E190 -> 7.7 | D114: ='300'!E189 -> 00:00:42.200 | E114: ='1000'!E190 -> 00:00:00 | F114: =DÁLKA!E190 -> 489 | G114: =VÝŠKA!E190 -> 140 | H114: =MÍČEK!E190 -> 49.5 | I114: =KOULE!E190 -> 9.92 | J114: =OŠTĚP!E190 -> 0 | K114: =ČLUNEK!E190 -> 0 | L114: =LEHSED!E190 -> 0 | M114: =ODBÍJENÍ!E190 -> 85 | N114: =PLAVÁNÍ!E190 -> 0 | O114: =SHYBY!E190 -> 0 | P114: =ŠPLH!E190 -> 0 | Q114: =ŠVIHADLO!E190 -> 0 | R114: ='Z MÍSTA'!E190 -> 0 | S114: =REPRE!E93 -> 0 | T114: =ROČ!W210 -> 5479.827195

Sheet 60
C1: VÝKONY 2020 - 2021 | G1: 60 M | H1: CHLAPCI 6. - 9. ROČ.
B2: stav k | C2: =TODAY() -> 2021-06-28
H3: BODY | J3: 19 - 20 | K3: 18 - 19 | L3: 17 - 18
A4: 1. | B4: =B101 -> BOUKAL | C4: Jakub | D4: 6.A | E4: 12.56 | G4: =G101 -> Jilemnice 16.09.20 | H4: 608.6949179 | J4: 0 | K4: 0 | L4: 0
A5: 2. | B5: DEMČUK | C5: Ilja | D5: 6.A | E5: 10.85 | G5: =G102 -> Jilemnice 14.09.20 | H5: 686.3454534 | J5: 0 | K5: 0 | L5: 0
A6: 3. | B6: FAISTAUER | C6: Kryštof | D6: 6.A | E6: 9.5 | G6: =G103 -> Jilemnice 14.09.20 | H6: 767.3945441 | J6: 0 | K6: 0 | L6: 0
A7: 4. | B7: FRK | C7: Matyáš | D7: 6.A | E7: 12.72 | G7: =G104 -> Jilemnice 14.09.20 | H7: 602.4974976 | J7: 0 | K7: 0 | L7: 0
A8: 5. | B8: HUBÁLOVSKÝ | C8: Marek | D8: 6.A | E8: 11.43 | G8: =G105 -> Jilemnice 14.09.20 | H8: 657.4040393 | J8: 0 | K8: 0 | L8: 0
A9: 6. | B9: MAŘAS | C9: Dominik | D9: 6.A | E9: 11.64 | G9: =G106 -> Jilemnice 16.09.20 | H9: 647.6364407 | J9: 0 | K9: 0 | L9: 0
A10: 7. | B10: MAŤÁTKO | C10: Jakub | D10: 6.A | E10: 13.19 | G10: =G107 -> Jilemnice 16.09.20 | H10: 585.1621053 | J10: 0 | K10: 0 | L10: 0
A11: 8. | B11: MERY | C11: =C108 -> Luboš | D11: 6.A | E11: 11.43 | G11: =G108 -> Jilemnice 14.09.20 | H11: 657.4040393 | J11: 0 | K11: 0 | L11: 0
A12: 9. | B12: NOVOTNÝ | C12: Matěj | D12: 6.A | E12: 10.96 | G12: =G109 -> Jilemnice 14.09.20 | H12: 680.6211833 | J12: 0 | K12: 0 | L12: 0
A13: 10. | B13: ŘEHOŘEK | C13: Vojtěch | D13: 6.A | E13: 11.92 | G13: =G110 -> Jilemnice 14.09.20 | H13: 635.1483363 | J13: 0 | K13: 0 | L13: 0
A14: 11. | B14: ŠÍR | C14: Matyáš | D14: 6.A | E14: 11.48 | G14: =G111 -> Jilemnice 14.09.20 | H14: 655.0460078 | J14: 0 | K14: 0 | L14: 0
A15: 12. | B15: TORÁČ | C15: Tomáš | D15: 6.A | E15: 22.77 | G15: =G112 -> Jilemnice 16.09.20 | H15: 387.7719881 | J15: 0 | K15: 0 | L15: 0
A16: 13. | B16: ULLMAN | C16: Šimon | D16: 6.A | E16: 9.18 | G16: =G113 -> Jilemnice 14.09.20 | H16: 790.1011078 | J16: 0 | K16: 0 | L16: 0
A17: 14. | B17: VÁCLAVÍK | C17: Ondřej | D17: 6.A | E17: 10.94 | G17: =G114 -> Jilemnice 14.09.20 | H17: 681.6533976 | J17: 0 | K17: 0 | L17: 0
B18: AUERSWALD | C18: Daniel | D18: 6.B | E18: 9.89 | G18: =G115 -> Jilemnice 14.09.20 | H18: 741.7076005 | J18: 0 | K18: 0 | L18: 0
A19: 16. | B19: BODLÁK | C19: Vladimír | D19: 6.B | E19: 8.39 | G19: =G116 -> Jilemnice 14.09.20 | H19: 853.5742752 | J19: 0 | K19: 0 | L19: 0
A20: 17. | B20: BUDÍN | C20: Martin | D20: 6.B | E20: 10.46 | G20: =G117 -> Jilemnice 14.09.20 | H20: 707.6107236 | J20: 0 | K20: 0 | L20: 0
A21: 18. | B21: DVOŘÁK | C21: Dominik | D21: 6.B | E21: 11.56 | G21: =G118 -> Jilemnice 14.09.20 | H21: 651.3155856 | J21: 0 | K21: 0 | L21: 0
A22: 19. | B22: FIŠERA | C22: Vojtěch | D22: 6.B | E22: 10.44 | G22: =G119 -> Jilemnice 14.09.20 | H22: 708.7440775 | J22: 0 | K22: 0 | L22: 0
A23: 20. | B23: JINDŘIŠEK | C23: Vít | D23: 6.B | E23: 8.77 | G23: =G120 -> Jilemnice 14.09.20 | H23: 821.6155267 | J23: 0 | K23: 0 | L23: 0
A24: 21. | B24: =B121 -> JIROUŠ | C24: Matouš | D24: 6.B | E24: 10.08 | G24: =G121 -> Jilemnice 14.09.20 | H24: 729.9135088 | J24: 0 | K24: 0 | L24: 0
A25: 22. | B25: KERLE | C25: Marek | D25: 6.B | E25: 10.64 | G25: =G122 -> Jilemnice 14.09.20 | H25: 697.6022715 | J25: 0 | K25: 0 | L25: 0
A26: 23. | B26: LUKEŠ | C26: Jakub | D26: 6.B | E26: 10.26 | G26: =G123 -> Jilemnice 14.09.20 | H26: 719.1430964 | J26: 0 | K26: 0 | L26: 0
A27: 24. | B27: OTT | C27: Matyáš | D27: 6.B | E27: 11 | G27: =G124 -> Jilemnice 14.09.20 | H27: 678.5680154 | J27: 0 | K27: 0 | L27: 0
A28: 25. | B28: POKORNÝ | C28: Matyáš | D28: 6.B | E28: 8.94 | G28: =G125 -> Jilemnice 14.09.20 | H28: 808.1977818 | J28: 0 | K28: 0 | L28: 0
A29: 26. | B29: POLÁČEK | C29: Matyáš | D29: 6.B | E29: 11.49 | G29: =G126 -> Jilemnice 14.09.20 | H29: 654.5768642 | J29: 0 | K29: 0 | L29: 0
A30: 27. | B30: SOUKUP | C30: Patrik | D30: 6.B | E30: 10.09 | G30: =G127 -> Jilemnice 14.09.20 | H30: 729.3050713 | J30: 0 | K30: 0 | L30: 0
A31: 28. | B31: VALENTA | C31: Jakub | D31: 6.B | E31: 10.24 | G31: =G128 -> Jilemnice 14.09.20 | H31: 720.3211103 | J31: 0 | K31: 0 | L31: 0
A32: 29. | B32: VRBATA | C32: Dominik | D32: 6.B | E32: 10.25 | G32: =G129 -> Jilemnice 14.09.20 | H32: 719.7315287 | J32: 0 | K32: 0 | L32: 0
A33: 30. | B33: FEJKL | C33: Jan | D33: 7.A | E33: 9.14 | G33: =G130 -> Jilemnice 14.09.20 | H33: 793.051222 | J33: 9.45 | K33: 0 | L33: 0
A34: 31. | B34: KOTYK | C34: Tadeáš | D34: 7.A | E34: 10.7 | G34: =G131 -> Jilemnice 14.09.20 | H34: 694.3409504 | J34: 10.7 | K34: 0 | L34: 0
A35: 32. | B35: KRAUSE | C35: Tadeáš | D35: 7.A | E35: 10.13 | G35: =G132 -> Jilemnice 14.09.20 | H35: 726.8833336 | J35: 10.34 | K35: 0 | L35: 0
A36: 33. | B36: LEŠÁK | C36: Martin | D36: 7.A | E36: 10.87 | G36: =G133 -> Jilemnice 14.09.20 | H36: 685.2960597 | J36: 10.54 | K36: 0 | L36: 0
A37: 34. | B37: NECHANICKÝ | C37: David | D37: 7.A | E37: 9.65 | G37: =G134 -> Jilemnice 14.09.20 | H37: 757.2692403 | J37: 9.42 | K37: 0 | L37: 0
A38: 35. | B38: ŘEHOŘEK | C38: Jan | D38: 7.A | E38: 9.55 | G38: =G135 -> Jilemnice 14.09.20 | H38: 763.9841015 | J38: 9.74 | K38: 0 | L38: 0
A39: 36. | B39: SOUKUP | C39: Ondřej | D39: 7.A | E39: 10 | G39: =G136 -> Jilemnice 14.09.20 | H39: 734.8248169 | J39: 10.91 | K39: 0 | L39: 0
A40: 37. | B40: SPANILÝ | C40: David | D40: 7.A | E40: 9.8 | G40: =G137 -> Jilemnice 14.09.20 | H40: 747.4538948 | J40: 10.22 | K40: 0 | L40: 0
A41: 38. | B41: ČADAN | C41: Benjamín | D41: 7.B | E41: 0 | G41: =G138 -> 0 | H41: 0 | J41: 0 | K41: 0 | L41: 0
A42: 39. | B42: ČERNÝ | C42: Michal | D42: 7.B | E42: 10.36 | G42: =G139 -> Jilemnice 14.09.20 | H42: 713.3212519 | J42: 11.28 | K42: 0 | L42: 0
A43: 40. | B43: DOLEJŠÍ | C43: David | D43: 7.B | E43: 11.1 | G43: =G140 -> Jilemnice 14.09.20 | H43: 673.4998351 | J43: 10.8 | K43: 0 | L43: 0
A44: 41. | B44: =B141 -> NOVÁK | C44: Matěj | D44: 7.B | E44: 10.47 | G44: =G141 -> Jilemnice 14.09.20 | H44: 707.0456704 | J44: 10.54 | K44: 0 | L44: 0
A45: 42. | B45: POVAŽANEC | C45: Martin | D45: 7.B | E45: 9.86 | G45: =G142 -> Jilemnice 14.09.20 | H45: 743.6113762 | J45: 11.89 | K45: 0 | L45: 0
A46: 43. | B46: RICHTER | C46: Jakub | D46: 7.B | E46: 0 | G46: =G143 ->  | H46: 0 | J46: 11.66 | K46: 0 | L46: 0
A47: 44. | B47: ROZUMEK | C47: Adam | D47: 7.B | E47: 0 | G47: =G144 -> 0 | H47: 0 | J47: 0 | K47: 0 | L47: 0
A48: 45. | B48: VALENTA | C48: František | D48: 7.B | E48: 10.92 | G48: =G145 -> Jilemnice 14.09.20 | H48: 682.6893928 | J48: 11.6 | K48: 0 | L48: 0
A49: 46. | B49: ZAPLATÍLEK | C49: Josef | D49: 7.B | E49: 10.02 | G49: =G146 -> Jilemnice 14.09.20 | H49: 733.5896376 | J49: 10.04 | K49: 0 | L49: 0
A50: 47. | B50: ERBEN | C50: Viktor | D50: 8.A | E50: 10.43 | G50: =G147 -> Jilemnice 23.09.19 | H50: 709.3123844 | J50: 11.62 | K50: 12.32 | L50: 0
A51: 48. | B51: FRANC | C51: Daniel | D51: 8.A | E51: 11.1 | G51: =G148 -> Jilemnice 23.09.20 | H51: 673.4998351 | J51: 10.48 | K51: 10.38 | L51: 0
A52: 49. | B52: JINDŘIŠEK | C52: Matyáš | D52: 8.A | E52: 0 | G52: =G149 -> 0 | H52: 0 | J52: 9.88 | K52: 10.38 | L52: 0
A53: 50. | B53: KOLAČNÝ | C53: Štěpán | D53: 8.A | E53: 10.74 | G53: =G150 -> Jilemnice 23.09.20 | H53: 692.1869804 | J53: 10.34 | K53: 10.42 | L53: 0
A54: 51. | B54: KRISTAN | C54: Jáchym | D54: 8.A | E54: 14.56 | G54: =G151 -> Jilemnice 23.09.20 | H54: 541.0170446 | J54: 13.78 | K54: 14.93 | L54: 0
A55: 52. | B55: NGUYEN | C55: David | D55: 8.A | E55: 0 | G55: =G152 -> 0 | H55: 0 | J55: 10.58 | K55: 0 | L55: 0
A56: 53. | B56: NOVOTNÝ | C56: Jan | D56: 8.A | E56: 9.43 | G56: =G153 -> Jilemnice 23.09.20 | H56: 772.2299225 | J56: 9.93 | K56: 11.65 | L56: 0
A57: 54. | B57: RÁB | C57: Adam | D57: 8.A | E57: 12.15 | G57: =G154 -> Jilemnice 23.09.20 | H57: 625.320837 | J57: 12.58 | K57: 12.82 | L57: 0
A58: 55. | B58: REPASKÝ | C58: Jakub | D58: 8.A | E58: 8.75 | G58: =G155 -> Jilemnice 23.09.20 | H58: 823.2283622 | J58: 9.53 | K58: 0 | L58: 0
A59: 56. | B59: SKÁLA | C59: Jan | D59: 8.A | E59: 8.75 | G59: =G156 -> Jilemnice 23.09.20 | H59: 823.2283622 | J59: 0 | K59: 10.56 | L59: 0
A60: 57. | B60: ŠPULÁK | C60: Jakub | D60: 8.A | E60: 9.8 | G60: =G157 -> Jilemnice 23.09.20 | H60: 747.4538948 | J60: 10.24 | K60: 11.9 | L60: 0
A61: 58. | B61: VALENTA | C61: Tomáš | D61: 8.A | E61: 8.18 | G61: =G158 -> Jilemnice 23.09.20 | H61: 872.5095561 | J61: 8.79 | K61: 9.09 | L61: 0
A62: 59. | B62: VANCL | C62: Jiří | D62: 8.A | E62: 9.64 | G62: =G159 -> Jilemnice 23.09.20 | H62: 757.9344574 | J62: 10.74 | K62: 10.86 | L62: 0
A63: 60. | B63: VAŠÍČEK | C63: David | D63: 8.A | E63: 0 | G63: =G160 -> 0 | H63: 0 | J63: 9.89 | K63: 10.4 | L63: 0
A64: 61. | B64: =B161 -> ZOUHAR | C64: Ondřej | D64: 8.A | E64: 8.8 | G64: =G161 -> Jilemnice 23.09.20 | H64: 819.2100192 | J64: 9.3 | K64: 9.8 | L64: 0
A65: 62. | B65: ZUZÁNEK | C65: Filip | D65: 8.A | E65: 10.04 | G65: =G162 -> Jilemnice 23.09.20 | H65: 732.3593794 | J65: 10.02 | K65: 10.58 | L65: 0
A66: 63. | B66: BRUMLICH | C66: Jan | D66: 9.A | E66: 0 | G66: =G163 -> 0 | H66: 0 | J66: 8.53 | K66: 9.59 | L66: 10.62
A67: 64. | B67: BUCHAR | C67: Jiří | D67: 9.A | E67: 8.9 | G67: =G164 -> Jilemnice 14.09.20 | H67: 811.3087831 | J67: 9.19 | K67: 9.12 | L67: 10.49
A68: 65. | B68: FAISTAUER | C68: Jiří | D68: 9.A | E68: 0 | G68: =G165 -> 0 | H68: 0 | J68: 8.54 | K68: 10.37 | L68: 10.38
A69: 66. | B69: FAISTAUER | C69: Roman | D69: 9.A | E69: 8.28 | G69: =G166 -> Jilemnice 18.09.20 | H69: 863.3729673 | J69: 9.73 | K69: 10.24 | L69: 10.82
A70: 67. | B70: FAJSTAVR | C70: Jakub | D70: 9.A | E70: 9.02 | G70: =G167 -> Jilemnice 14.09.20 | H70: 802.0585553 | J70: 9.28 | K70: 10.48 | L70: 10.38
A71: 68. | B71: FARSKÝ | C71: Vojtěch | D71: 9.A | E71: 8.91 | G71: =G168 -> Jilemnice 14.09.20 | H71: 810.5284141 | J71: 9.44 | K71: 9.96 | L71: 10.98
A72: 69. | B72: HOLUBEC | C72: Lukáš | D72: 9.A | E72: 0 | G72: =G169 -> 0 | H72: 0 | J72: 11.29 | K72: 11.07 | L72: 11.89
A73: 70. | B73: CHAROUZ | C73: Vojtěch | D73: 9.A | E73: 9.02 | G73: =G170 -> Jilemnice 14.09.20 | H73: 802.0585553 | J73: 9.4 | K73: 10.67 | L73: 9.84
A74: 71. | B74: IACCHERI | C74: Carlo | D74: 9.A | E74: 9.27 | G74: =G171 -> Jilemnice 14.09.20 | H74: 783.5564368 | J74: 9.6 | K74: 11.99 | L74: 12.12
A75: 72. | B75: JOHN | C75: Adrian | D75: 9.A | E75: 14.16 | G75: =G172 -> Jilemnice 14.09.20 | H75: 553.0231758 | J75: 12.64 | K75: 13 | L75: 13.88
A76: 73. | B76: KRČÍK | C76: Matthew | D76: 9.A | E76: 9.31 | G76: =G173 -> Jilemnice 14.09.20 | H76: 780.6883103 | J76: 9.76 | K76: 10.69 | L76: 10.7
A77: 74. | B77: KRESAN | C77: Vojtěch | D77: 9.A | E77: 9.46 | G77: =G174 -> Jilemnice 14.09.20 | H77: 770.1488551 | J77: 9.63 | K77: 11.24 | L77: 11.26
A78: 75. | B78: LÁNSKÝ | C78: Vojtěch | D78: 9.A | E78: 0 | G78: =G175 -> 0 | H78: 0 | J78: 12.92 | K78: 14.89 | L78: 15.54
A79: 76. | B79: LEŠÁK | C79: Lukáš | D79: 9.A | E79: 11.77 | G79: =G176 -> Jilemnice 14.09.20 | H79: 641.7645004 | J79: 12.2 | K79: 14.3 | L79: 14.74
A80: 77. | B80: RYPL | C80: Matyáš | D80: 9.A | E80: 8.86 | G80: =G177 -> Jilemnice 14.09.20 | H80: 814.4478746 | J80: 9.45 | K80: 10.03 | L80: 11.22
A81: 78. | B81: VU TRAN DINH | C81: Lukas | D81: 9.A | E81: 9.27 | G81: =G178 -> Jilemnice 14.09.20 | H81: 783.5564368 | J81: 9.17 | K81: 0 | L81: 0
A82: 79. | B82: DUFEK | C82: Matyáš | D82: 9.B | E82: 0 | G82: =G179 -> 0 | H82: 0 | J82: 12.17 | K82: 10.99 | L82: 10.44
A83: 80. | B83: JEŽEK | C83: Jonáš | D83: 9.B | E83: 8.68 | G83: =G180 -> Jilemnice 14.09.20 | H83: 828.9318167 | J83: 8.97 | K83: 0 | L83: 9.2
A84: 81. | B84: =B181 -> JEŽEK | C84: Mikuláš | D84: 9.B | E84: 0 | G84: =G181 -> 0 | H84: 0 | J84: 8.84 | K84: 8.8 | L84: 9.68
A85: 82. | B85: NECHANICKÝ | C85: Michal | D85: 9.B | E85: 8.86 | G85: =G182 -> Jilemnice 14.09.20 | H85: 814.4478746 | J85: 9.09 | K85: 9.4 | L85: 9.61
A86: 83. | B86: PAULÍČEK | C86: Jakub | D86: 9.B | E86: 9.02 | G86: =G183 -> Jilemnice 14.09.20 | H86: 802.0585553 | J86: 9.79 | K86: 0 | L86: 9.7
A87: 84. | B87: POHOŘALÝ | C87: Jakub | D87: 9.B | E87: 8.02 | G87: =G184 -> Jilemnice 14.09.20 | H87: 887.6020161 | J87: 9.22 | K87: 9.6 | L87: 10
A88: 85. | B88: POSPÍCHAL | C88: Daniel | D88: 9.B | E88: 9.05 | G88: =G185 -> Jilemnice 14.09.20 | H88: 799.7843281 | J88: 9.03 | K88: 9.56 | L88: 9.56
A89: 86. | B89: SOUKUP | C89: Lukáš | D89: 9.B | E89: 9.05 | G89: =G186 -> Jilemnice 14.09.20 | H89: 799.7843281 | J89: 9.48 | K89: 10.45 | L89: 10.11
A90: 87. | B90: VANCL | C90: Jan | D90: 9.B | E90: 8.25 | G90: =G187 -> Jilemnice 14.09.20 | H90: 866.0906872 | J90: 9.09 | K90: 9.6 | L90: 9.81
A91: 88. | B91: VANCL | C91: Lukáš | D91: 9.B | E91: 8.61 | G91: =G188 -> Jilemnice 14.09.20 | H91: 834.7280104 | J91: 8.77 | K91: 9.6 | L91: 9.62
A92: 89. | B92: VAŠÍK | C92: Jiří | D92: 9.B | E92: 9.12 | G92: =G189 -> Jilemnice 14.09.20 | H92: 794.5359835 | J92: 10.19 | K92: 10.32 | L92: 11.06
A93: 90. | B93: VOHNOUT | C93: Zdeněk | D93: 9.B | E93: 7.7 | G93: =G190 -> Jilemnice 18.09.20 | H93: 919.6685934 | J93: 8.09 | K93: 8.66 | L93: 8.82
B100: PŘÍJMENÍ | C100: JMÉNO | D100: TŘÍDA | E100: VÝKON | G100: MÍSTO | H100: BODY | J100: 19 - 20 | K100: 18 - 19 | L100: 17 - 18
B101: BOUKAL | C101: Jakub | D101: 6.A | E101: 12.56 | G101: Jilemnice 16.09.20 | H101: =IF(E101=0,0,(1000000000 - 313216 / E101 + 34538300 / E101*2 - 1698600000 / E101*3 + 32198000000 / E101*4)/20000000+66) -> 608.6949179
B102: DEMČUK | C102: Ilja | D102: 6.A | E102: 10.85 | G102: Jilemnice 14.09.20 | H102: =IF(E102=0,0,(1000000000 - 313216 / E102 + 34538300 / E102*2 - 1698600000 / E102*3 + 32198000000 / E102*4)/20000000+66) -> 686.3454534
B103: FAISTAUER | C103: Kryštof | D103: 6.A | E103: 9.5 | G103: Jilemnice 14.09.20 | H103: =IF(E103=0,0,(1000000000 - 313216 / E103 + 34538300 / E103*2 - 1698600000 / E103*3 + 32198000000 / E103*4)/20000000+66) -> 767.3945441
B104: FRK | C104: Matyáš | D104: 6.A | E104: 12.72 | G104: Jilemnice 14.09.20 | H104: =IF(E104=0,0,(1000000000 - 313216 / E104 + 34538300 / E104*2 - 1698600000 / E104*3 + 32198000000 / E104*4)/20000000+66) -> 602.4974976
B105: HUBÁLOVSKÝ | C105: Marek | D105: 6.A | E105: 11.43 | G105: Jilemnice 14.09.20 | H105: =IF(E105=0,0,(1000000000 - 313216 / E105 + 34538300 / E105*2 - 1698600000 / E105*3 + 32198000000 / E105*4)/20000000+66) -> 657.4040393
B106: MAŘAS | C106: Dominik | D106: 6.A | E106: 11.64 | G106: Jilemnice 16.09.20 | H106: =IF(E106=0,0,(1000000000 - 313216 / E106 + 34538300 / E106*2 - 1698600000 / E106*3 + 32198000000 / E106*4)/20000000+66) -> 647.6364407
B107: MAŤÁTKO | C107: Jakub | D107: 6.A | E107: 13.19 | G107: Jilemnice 16.09.20 | H107: =IF(E107=0,0,(1000000000 - 313216 / E107 + 34538300 / E107*2 - 1698600000 / E107*3 + 32198000000 / E107*4)/20000000+66) -> 585.1621053
B108: MERY | C108: Luboš | D108: 6.A | E108: 11.43 | G108: Jilemnice 14.09.20 | H108: =IF(E108=0,0,(1000000000 - 313216 / E108 + 34538300 / E108*2 - 1698600000 / E108*3 + 32198000000 / E108*4)/20000000+66) -> 657.4040393
B109: NOVOTNÝ | C109: Matěj | D109: 6.A | E109: 10.96 | G109: Jilemnice 14.09.20 | H109: =IF(E109=0,0,(1000000000 - 313216 / E109 + 34538300 / E109*2 - 1698600000 / E109*3 + 32198000000 / E109*4)/20000000+66) -> 680.6211833
B110: ŘEHOŘEK | C110: Vojtěch | D110: 6.A | E110: 11.92 | G110: Jilemnice 14.09.20 | H110: =IF(E110=0,0,(1000000000 - 313216 / E110 + 34538300 / E110*2 - 1698600000 / E110*3 + 32198000000 / E110*4)/20000000+66) -> 635.1483363
B111: ŠÍR | C111: Matyáš | D111: 6.A | E111: 11.48 | G111: Jilemnice 14.09.20 | H111: =IF(E111=0,0,(1000000000 - 313216 / E111 + 34538300 / E111*2 - 1698600000 / E111*3 + 32198000000 / E111*4)/20000000+66) -> 655.0460078
B112: TORÁČ | C112: Tomáš | D112: 6.A | E112: 22.77 | G112: Jilemnice 16.09.20 | H112: =IF(E112=0,0,(1000000000 - 313216 / E112 + 34538300 / E112*2 - 1698600000 / E112*3 + 32198000000 / E112*4)/20000000+66) -> 387.7719881
B113: ULLMAN | C113: Šimon | D113: 6.A | E113: 9.18 | G113: Jilemnice 14.09.20 | H113: =IF(E113=0,0,(1000000000 - 313216 / E113 + 34538300 / E113*2 - 1698600000 / E113*3 + 32198000000 / E113*4)/20000000+66) -> 790.1011078
B114: VÁCLAVÍK | C114: Ondřej | D114: 6.A | E114: 10.94 | G114: Jilemnice 14.09.20 | H114: =IF(E114=0,0,(1000000000 - 313216 / E114 + 34538300 / E114*2 - 1698600000 / E114*3 + 32198000000 / E114*4)/20000000+66) -> 681.6533976
B115: AUERSWALD | C115: Daniel | D115: 6.B | E115: 9.89 | G115: Jilemnice 14.09.20 | H115: =IF(E115=0,0,(1000000000 - 313216 / E115 + 34538300 / E115*2 - 1698600000 / E115*3 + 32198000000 / E115*4)/20000000+66) -> 741.7076005
B116: BODLÁK | C116: Vladimír | D116: 6.B | E116: 8.39 | G116: Jilemnice 14.09.20 | H116: =IF(E116=0,0,(1000000000 - 313216 / E116 + 34538300 / E116*2 - 1698600000 / E116*3 + 32198000000 / E116*4)/20000000+66) -> 853.5742752
B117: BUDÍN | C117: Martin | D117: 6.B | E117: 10.46 | G117: Jilemnice 14.09.20 | H117: =IF(E117=0,0,(1000000000 - 313216 / E117 + 34538300 / E117*2 - 1698600000 / E117*3 + 32198000000 / E117*4)/20000000+66) -> 707.6107236
B118: DVOŘÁK | C118: Dominik | D118: 6.B | E118: 11.56 | G118: Jilemnice 14.09.20 | H118: =IF(E118=0,0,(1000000000 - 313216 / E118 + 34538300 / E118*2 - 1698600000 / E118*3 + 32198000000 / E118*4)/20000000+66) -> 651.3155856
B119: FIŠERA | C119: Vojtěch | D119: 6.B | E119: 10.44 | G119: Jilemnice 14.09.20 | H119: =IF(E119=0,0,(1000000000 - 313216 / E119 + 34538300 / E119*2 - 1698600000 / E119*3 + 32198000000 / E119*4)/20000000+66) -> 708.7440775
B120: JINDŘIŠEK | C120: Vít | D120: 6.B | E120: 8.77 | G120: Jilemnice 14.09.20 | H120: =IF(E120=0,0,(1000000000 - 313216 / E120 + 34538300 / E120*2 - 1698600000 / E120*3 + 32198000000 / E120*4)/20000000+66) -> 821.6155267
B121: JIROUŠ | C121: Matouš | D121: 6.B | E121: 10.08 | G121: Jilemnice 14.09.20 | H121: =IF(E121=0,0,(1000000000 - 313216 / E121 + 34538300 / E121*2 - 1698600000 / E121*3 + 32198000000 / E121*4)/20000000+66) -> 729.9135088
B122: KERLE | C122: Marek | D122: 6.B | E122: 10.64 | G122: Jilemnice 14.09.20 | H122: =IF(E122=0,0,(1000000000 - 313216 / E122 + 34538300 / E122*2 - 1698600000 / E122*3 + 32198000000 / E122*4)/20000000+66) -> 697.6022715
B123: LUKEŠ | C123: Jakub | D123: 6.B | E123: 10.26 | G123: Jilemnice 14.09.20 | H123: =IF(E123=0,0,(1000000000 - 313216 / E123 + 34538300 / E123*2 - 1698600000 / E123*3 + 32198000000 / E123*4)/20000000+66) -> 719.1430964
B124: OTT | C124: Matyáš | D124: 6.B | E124: 11 | G124: Jilemnice 14.09.20 | H124: =IF(E124=0,0,(1000000000 - 313216 / E124 + 34538300 / E124*2 - 1698600000 / E124*3 + 32198000000 / E124*4)/20000000+66) -> 678.5680154
B125: POKORNÝ | C125: Matyáš | D125: 6.B | E125: 8.94 | G125: Jilemnice 14.09.20 | H125: =IF(E125=0,0,(1000000000 - 313216 / E125 + 34538300 / E125*2 - 1698600000 / E125*3 + 32198000000 / E125*4)/20000000+66) -> 808.1977818
B126: POLÁČEK | C126: Matyáš | D126: 6.B | E126: 11.49 | G126: Jilemnice 14.09.20 | H126: =IF(E126=0,0,(1000000000 - 313216 / E126 + 34538300 / E126*2 - 1698600000 / E126*3 + 32198000000 / E126*4)/20000000+66) -> 654.5768642
B127: SOUKUP | C127: Patrik | D127: 6.B | E127: 10.09 | G127: Jilemnice 14.09.20 | H127: =IF(E127=0,0,(1000000000 - 313216 / E127 + 34538300 / E127*2 - 1698600000 / E127*3 + 32198000000 / E127*4)/20000000+66) -> 729.3050713
B128: VALENTA | C128: Jakub | D128: 6.B | E128: 10.24 | G128: Jilemnice 14.09.20 | H128: =IF(E128=0,0,(1000000000 - 313216 / E128 + 34538300 / E128*2 - 1698600000 / E128*3 + 32198000000 / E128*4)/20000000+66) -> 720.3211103
B129: VRBATA | C129: Dominik | D129: 6.B | E129: 10.25 | G129: Jilemnice 14.09.20 | H129: =IF(E129=0,0,(1000000000 - 313216 / E129 + 34538300 / E129*2 - 1698600000 / E129*3 + 32198000000 / E129*4)/20000000+66) -> 719.7315287
B130: FEJKL | C130: Jan | D130: 7.A | E130: 9.14 | G130: Jilemnice 14.09.20 | H130: =IF(E130=0,0,(1000000000 - 313216 / E130 + 34538300 / E130*2 - 1698600000 / E130*3 + 32198000000 / E130*4)/20000000+66) -> 793.051222 | J130: 9.45
B131: KOTYK | C131: Tadeáš | D131: 7.A | E131: 10.7 | G131: Jilemnice 14.09.20 | H131: =IF(E131=0,0,(1000000000 - 313216 / E131 + 34538300 / E131*2 - 1698600000 / E131*3 + 32198000000 / E131*4)/20000000+66) -> 694.3409504 | J131: 10.7
B132: KRAUSE | C132: Tadeáš | D132: 7.A | E132: 10.13 | G132: Jilemnice 14.09.20 | H132: =IF(E132=0,0,(1000000000 - 313216 / E132 + 34538300 / E132*2 - 1698600000 / E132*3 + 32198000000 / E132*4)/20000000+66) -> 726.8833336 | J132: 10.34
B133: LEŠÁK | C133: Martin | D133: 7.A | E133: 10.87 | G133: Jilemnice 14.09.20 | H133: =IF(E133=0,0,(1000000000 - 313216 / E133 + 34538300 / E133*2 - 1698600000 / E133*3 + 32198000000 / E133*4)/20000000+66) -> 685.2960597 | J133: 10.54
B134: NECHANICKÝ | C134: David | D134: 7.A | E134: 9.65 | G134: Jilemnice 14.09.20 | H134: =IF(E134=0,0,(1000000000 - 313216 / E134 + 34538300 / E134*2 - 1698600000 / E134*3 + 32198000000 / E134*4)/20000000+66) -> 757.2692403 | J134: 9.42
B135: ŘEHOŘEK | C135: Jan | D135: 7.A | E135: 9.55 | G135: Jilemnice 14.09.20 | H135: =IF(E135=0,0,(1000000000 - 313216 / E135 + 34538300 / E135*2 - 1698600000 / E135*3 + 32198000000 / E135*4)/20000000+66) -> 763.9841015 | J135: 9.74
B136: SOUKUP | C136: Ondřej | D136: 7.A | E136: 10 | G136: Jilemnice 14.09.20 | H136: =IF(E136=0,0,(1000000000 - 313216 / E136 + 34538300 / E136*2 - 1698600000 / E136*3 + 32198000000 / E136*4)/20000000+66) -> 734.8248169 | J136: 10.91
B137: SPANILÝ | C137: David | D137: 7.A | E137: 9.8 | G137: Jilemnice 14.09.20 | H137: =IF(E137=0,0,(1000000000 - 313216 / E137 + 34538300 / E137*2 - 1698600000 / E137*3 + 32198000000 / E137*4)/20000000+66) -> 747.4538948 | J137: 10.22
B138: ČADAN | C138: Benjamín | D138: 7.B | H138: =IF(E138=0,0,(1000000000 - 313216 / E138 + 34538300 / E138*2 - 1698600000 / E138*3 + 32198000000 / E138*4)/20000000+66) -> 0
B139: ČERNÝ | C139: Michal | D139: 7.B | E139: 10.36 | G139: Jilemnice 14.09.20 | H139: =IF(E139=0,0,(1000000000 - 313216 / E139 + 34538300 / E139*2 - 1698600000 / E139*3 + 32198000000 / E139*4)/20000000+66) -> 713.3212519 | J139: 11.28
B140: DOLEJŠÍ | C140: David | D140: 7.B | E140: 11.1 | G140: Jilemnice 14.09.20 | H140: =IF(E140=0,0,(1000000000 - 313216 / E140 + 34538300 / E140*2 - 1698600000 / E140*3 + 32198000000 / E140*4)/20000000+66) -> 673.4998351 | J140: 10.8
B141: NOVÁK | C141: Matěj | D141: 7.B | E141: 10.47 | G141: Jilemnice 14.09.20 | H141: =IF(E141=0,0,(1000000000 - 313216 / E141 + 34538300 / E141*2 - 1698600000 / E141*3 + 32198000000 / E141*4)/20000000+66) -> 707.0456704 | J141: 10.54
B142: POVAŽANEC | C142: Martin | D142: 7.B | E142: 9.86 | G142: Jilemnice 14.09.20 | H142: =IF(E142=0,0,(1000000000 - 313216 / E142 + 34538300 / E142*2 - 1698600000 / E142*3 + 32198000000 / E142*4)/20000000+66) -> 743.6113762 | J142: 11.89
B143: RICHTER | C143: Jakub | D143: 7.B | H143: =IF(E143=0,0,(1000000000 - 313216 / E143 + 34538300 / E143*2 - 1698600000 / E143*3 + 32198000000 / E143*4)/20000000+66) -> 0 | J143: 11.66
B144: ROZUMEK | C144: Adam | D144: 7.B | H144: =IF(E144=0,0,(1000000000 - 313216 / E144 + 34538300 / E144*2 - 1698600000 / E144*3 + 32198000000 / E144*4)/20000000+66) -> 0
B145: VALENTA | C145: František | D145: 7.B | E145: 10.92 | G145: Jilemnice 14.09.20 | H145: =IF(E145=0,0,(1000000000 - 313216 / E145 + 34538300 / E145*2 - 1698600000 / E145*3 + 32198000000 / E145*4)/20000000+66) -> 682.6893928 | J145: 11.6
B146: ZAPLATÍLEK | C146: Josef | D146: 7.B | E146: 10.02 | G146: Jilemnice 14.09.20 | H146: =IF(E146=0,0,(1000000000 - 313216 / E146 + 34538300 / E146*2 - 1698600000 / E146*3 + 32198000000 / E146*4)/20000000+66) -> 733.5896376 | J146: 10.04
B147: ERBEN | C147: Viktor | D147: 8.A | E147: 10.43 | G147: Jilemnice 23.09.19 | H147: =IF(E147=0,0,(1000000000 - 313216 / E147 + 34538300 / E147*2 - 1698600000 / E147*3 + 32198000000 / E147*4)/20000000+66) -> 709.3123844 | J147: 11.62 | K147: 12.32
B148: FRANC | C148: Daniel | D148: 8.A | E148: 11.1 | G148: Jilemnice 23.09.20 | H148: =IF(E148=0,0,(1000000000 - 313216 / E148 + 34538300 / E148*2 - 1698600000 / E148*3 + 32198000000 / E148*4)/20000000+66) -> 673.4998351 | J148: 10.48 | K148: 10.38
B149: JINDŘIŠEK | C149: Matyáš | D149: 8.A | H149: =IF(E149=0,0,(1000000000 - 313216 / E149 + 34538300 / E149*2 - 1698600000 / E149*3 + 32198000000 / E149*4)/20000000+66) -> 0 | J149: 9.88 | K149: 10.38
B150: KOLAČNÝ | C150: Štěpán | D150: 8.A | E150: 10.74 | G150: Jilemnice 23.09.20 | H150: =IF(E150=0,0,(1000000000 - 313216 / E150 + 34538300 / E150*2 - 1698600000 / E150*3 + 32198000000 / E150*4)/20000000+66) -> 692.1869804 | J150: 10.34 | K150: 10.42
B151: KRISTAN | C151: Jáchym | D151: 8.A | E151: 14.56 | G151: Jilemnice 23.09.20 | H151: =IF(E151=0,0,(1000000000 - 313216 / E151 + 34538300 / E151*2 - 1698600000 / E151*3 + 32198000000 / E151*4)/20000000+66) -> 541.0170446 | J151: 13.78 | K151: 14.93
B152: NGUYEN | C152: David | D152: 8.A | J152: 10.58
B153: NOVOTNÝ | C153: Jan | D153: 8.A | E153: 9.43 | G153: Jilemnice 23.09.20 | H153: =IF(E153=0,0,(1000000000 - 313216 / E153 + 34538300 / E153*2 - 1698600000 / E153*3 + 32198000000 / E153*4)/20000000+66) -> 772.2299225 | J153: 9.93 | K153: 11.65
B154: RÁB | C154: Adam | D154: 8.A | E154: 12.15 | G154: Jilemnice 23.09.20 | H154: =IF(E154=0,0,(1000000000 - 313216 / E154 + 34538300 / E154*2 - 1698600000 / E154*3 + 32198000000 / E154*4)/20000000+66) -> 625.320837 | J154: 12.58 | K154: 12.82
B155: REPASKÝ | C155: Jakub | D155: 8.A | E155: 8.75 | G155: Jilemnice 23.09.20 | H155: =IF(E155=0,0,(1000000000 - 313216 / E155 + 34538300 / E155*2 - 1698600000 / E155*3 + 32198000000 / E155*4)/20000000+66) -> 823.2283622 | J155: 9.53
B156: SKÁLA | C156: Jan | D156: 8.A | E156: 8.75 | G156: Jilemnice 23.09.20 | H156: =IF(E156=0,0,(1000000000 - 313216 / E156 + 34538300 / E156*2 - 1698600000 / E156*3 + 32198000000 / E156*4)/20000000+66) -> 823.2283622 | K156: 10.56
B157: ŠPULÁK | C157: Jakub | D157: 8.A | E157: 9.8 | G157: Jilemnice 23.09.20 | H157: =IF(E157=0,0,(1000000000 - 313216 / E157 + 34538300 / E157*2 - 1698600000 / E157*3 + 32198000000 / E157*4)/20000000+66) -> 747.4538948 | J157: 10.24 | K157: 11.9
B158: VALENTA | C158: Tomáš | D158: 8.A | E158: 8.18 | G158: Jilemnice 23.09.20 | H158: =IF(E158=0,0,(1000000000 - 313216 / E158 + 34538300 / E158*2 - 1698600000 / E158*3 + 32198000000 / E158*4)/20000000+66) -> 872.5095561 | J158: 8.79 | K158: 9.09
B159: VANCL | C159: Jiří | D159: 8.A | E159: 9.64 | G159: Jilemnice 23.09.20 | H159: =IF(E159=0,0,(1000000000 - 313216 / E159 + 34538300 / E159*2 - 1698600000 / E159*3 + 32198000000 / E159*4)/20000000+66) -> 757.9344574 | J159: 10.74 | K159: 10.86
B160: VAŠÍČEK | C160: David | D160: 8.A | H160: =IF(E160=0,0,(1000000000 - 313216 / E160 + 34538300 / E160*2 - 1698600000 / E160*3 + 32198000000 / E160*4)/20000000+66) -> 0 | J160: 9.89 | K160: 10.4
B161: ZOUHAR | C161: Ondřej | D161: 8.A | E161: 8.8 | G161: Jilemnice 23.09.20 | H161: =IF(E161=0,0,(1000000000 - 313216 / E161 + 34538300 / E161*2 - 1698600000 / E161*3 + 32198000000 / E161*4)/20000000+66) -> 819.2100192 | J161: 9.3 | K161: 9.8
B162: ZUZÁNEK | C162: Filip | D162: 8.A | E162: 10.04 | G162: Jilemnice 23.09.20 | H162: =IF(E162=0,0,(1000000000 - 313216 / E162 + 34538300 / E162*2 - 1698600000 / E162*3 + 32198000000 / E162*4)/20000000+66) -> 732.3593794 | J162: 10.02 | K162: 10.58
B163: BRUMLICH | C163: Jan | D163: 9.A | H163: =IF(E163=0,0,(1000000000 - 313216 / E163 + 34538300 / E163*2 - 1698600000 / E163*3 + 32198000000 / E163*4)/20000000+66) -> 0 | J163: 8.53 | K163: 9.59 | L163: 10.62
B164: BUCHAR | C164: Jiří | D164: 9.A | E164: 8.9 | G164: Jilemnice 14.09.20 | H164: =IF(E164=0,0,(1000000000 - 313216 / E164 + 34538300 / E164*2 - 1698600000 / E164*3 + 32198000000 / E164*4)/20000000+66) -> 811.3087831 | J164: 9.19 | K164: 9.12 | L164: 10.49
B165: FAISTAUER | C165: Jiří | D165: 9.A | H165: =IF(E165=0,0,(1000000000 - 313216 / E165 + 34538300 / E165*2 - 1698600000 / E165*3 + 32198000000 / E165*4)/20000000+66) -> 0 | J165: 8.54 | K165: 10.37 | L165: 10.38
B166: FAISTAUER | C166: Roman | D166: 9.A | E166: 8.28 | G166: Jilemnice 18.09.20 | H166: =IF(E166=0,0,(1000000000 - 313216 / E166 + 34538300 / E166*2 - 1698600000 / E166*3 + 32198000000 / E166*4)/20000000+66) -> 863.3729673 | J166: 9.73 | K166: 10.24 | L166: 10.82
B167: FAJSTAVR | C167: Jakub | D167: 9.A | E167: 9.02 | G167: Jilemnice 14.09.20 | H167: =IF(E167=0,0,(1000000000 - 313216 / E167 + 34538300 / E167*2 - 1698600000 / E167*3 + 32198000000 / E167*4)/20000000+66) -> 802.0585553 | J167: 9.28 | K167: 10.48 | L167: 10.38
B168: FARSKÝ | C168: Vojtěch | D168: 9.A | E168: 8.91 | G168: Jilemnice 14.09.20 | H168: =IF(E168=0,0,(1000000000 - 313216 / E168 + 34538300 / E168*2 - 1698600000 / E168*3 + 32198000000 / E168*4)/20000000+66) -> 810.5284141 | J168: 9.44 | K168: 9.96 | L168: 10.98
B169: HOLUBEC | C169: Lukáš | D169: 9.A | H169: =IF(E169=0,0,(1000000000 - 313216 / E169 + 34538300 / E169*2 - 1698600000 / E169*3 + 32198000000 / E169*4)/20000000+66) -> 0 | J169: 11.29 | K169: 11.07 | L169: 11.89
B170: CHAROUZ | C170: Vojtěch | D170: 9.A | E170: 9.02 | G170: Jilemnice 14.09.20 | H170: =IF(E170=0,0,(1000000000 - 313216 / E170 + 34538300 / E170*2 - 1698600000 / E170*3 + 32198000000 / E170*4)/20000000+66) -> 802.0585553 | J170: 9.4 | K170: 10.67 | L170: 9.84
B171: IACCHERI | C171: Carlo | D171: 9.A | E171: 9.27 | G171: Jilemnice 14.09.20 | H171: =IF(E171=0,0,(1000000000 - 313216 / E171 + 34538300 / E171*2 - 1698600000 / E171*3 + 32198000000 / E171*4)/20000000+66) -> 783.5564368 | J171: 9.6 | K171: 11.99 | L171: 12.12
B172: JOHN | C172: Adrian | D172: 9.A | E172: 14.16 | G172: Jilemnice 14.09.20 | H172: =IF(E172=0,0,(1000000000 - 313216 / E172 + 34538300 / E172*2 - 1698600000 / E172*3 + 32198000000 / E172*4)/20000000+66) -> 553.0231758 | J172: 12.64 | K172: 13 | L172: 13.88
B173: KRČÍK | C173: Matthew | D173: 9.A | E173: 9.31 | G173: Jilemnice 14.09.20 | H173: =IF(E173=0,0,(1000000000 - 313216 / E173 + 34538300 / E173*2 - 1698600000 / E173*3 + 32198000000 / E173*4)/20000000+66) -> 780.6883103 | J173: 9.76 | K173: 10.69 | L173: 10.7
B174: KRESAN | C174: Vojtěch | D174: 9.A | E174: 9.46 | G174: Jilemnice 14.09.20 | H174: =IF(E174=0,0,(1000000000 - 313216 / E174 + 34538300 / E174*2 - 1698600000 / E174*3 + 32198000000 / E174*4)/20000000+66) -> 770.1488551 | J174: 9.63 | K174: 11.24 | L174: 11.26
B175: LÁNSKÝ | C175: Vojtěch | D175: 9.A | H175: =IF(E175=0,0,(1000000000 - 313216 / E175 + 34538300 / E175*2 - 1698600000 / E175*3 + 32198000000 / E175*4)/20000000+66) -> 0 | J175: 12.92 | K175: 14.89 | L175: 15.54
B176: LEŠÁK | C176: Lukáš | D176: 9.A | E176: 11.77 | G176: Jilemnice 14.09.20 | H176: =IF(E176=0,0,(1000000000 - 313216 / E176 + 34538300 / E176*2 - 1698600000 / E176*3 + 32198000000 / E176*4)/20000000+66) -> 641.7645004 | J176: 12.2 | K176: 14.3 | L176: 14.74
B177: RYPL | C177: Matyáš | D177: 9.A | E177: 8.86 | G177: Jilemnice 14.09.20 | H177: =IF(E177=0,0,(1000000000 - 313216 / E177 + 34538300 / E177*2 - 1698600000 / E177*3 + 32198000000 / E177*4)/20000000+66) -> 814.4478746 | J177: 9.45 | K177: 10.03 | L177: 11.22
B178: VU TRAN DINH | C178: Lukas | D178: 9.A | E178: 9.27 | G178: Jilemnice 14.09.20 | H178: =IF(E178=0,0,(1000000000 - 313216 / E178 + 34538300 / E178*2 - 1698600000 / E178*3 + 32198000000 / E178*4)/20000000+66) -> 783.5564368 | J178: 9.17
B179: DUFEK | C179: Matyáš | D179: 9.B | H179: =IF(E179=0,0,(1000000000 - 313216 / E179 + 34538300 / E179*2 - 1698600000 / E179*3 + 32198000000 / E179*4)/20000000+66) -> 0 | J179: 12.17 | K179: 10.99 | L179: 10.44
B180: JEŽEK | C180: Jonáš | D180: 9.B | E180: 8.68 | G180: Jilemnice 14.09.20 | H180: =IF(E180=0,0,(1000000000 - 313216 / E180 + 34538300 / E180*2 - 1698600000 / E180*3 + 32198000000 / E180*4)/20000000+66) -> 828.9318167 | J180: 8.97 | L180: 9.2
B181: JEŽEK | C181: Mikuláš | D181: 9.B | H181: =IF(E181=0,0,(1000000000 - 313216 / E181 + 34538300 / E181*2 - 1698600000 / E181*3 + 32198000000 / E181*4)/20000000+66) -> 0 | J181: 8.84 | K181: 8.8 | L181: 9.68
B182: NECHANICKÝ | C182: Michal | D182: 9.B | E182: 8.86 | G182: Jilemnice 14.09.20 | H182: =IF(E182=0,0,(1000000000 - 313216 / E182 + 34538300 / E182*2 - 1698600000 / E182*3 + 32198000000 / E182*4)/20000000+66) -> 814.4478746 | J182: 9.09 | K182: 9.4 | L182: 9.61
B183: PAULÍČEK | C183: Jakub | D183: 9.B | E183: 9.02 | G183: Jilemnice 14.09.20 | H183: =IF(E183=0,0,(1000000000 - 313216 / E183 + 34538300 / E183*2 - 1698600000 / E183*3 + 32198000000 / E183*4)/20000000+66) -> 802.0585553 | J183: 9.79 | L183: 9.7
B184: POHOŘALÝ | C184: Jakub | D184: 9.B | E184: 8.02 | G184: Jilemnice 14.09.20 | H184: =IF(E184=0,0,(1000000000 - 313216 / E184 + 34538300 / E184*2 - 1698600000 / E184*3 + 32198000000 / E184*4)/20000000+66) -> 887.6020161 | J184: 9.22 | K184: 9.6 | L184: 10
B185: POSPÍCHAL | C185: Daniel | D185: 9.B | E185: 9.05 | G185: Jilemnice 14.09.20 | H185: =IF(E185=0,0,(1000000000 - 313216 / E185 + 34538300 / E185*2 - 1698600000 / E185*3 + 32198000000 / E185*4)/20000000+66) -> 799.7843281 | J185: 9.03 | K185: 9.56 | L185: 9.56
B186: SOUKUP | C186: Lukáš | D186: 9.B | E186: 9.05 | G186: Jilemnice 14.09.20 | H186: =IF(E186=0,0,(1000000000 - 313216 / E186 + 34538300 / E186*2 - 1698600000 / E186*3 + 32198000000 / E186*4)/20000000+66) -> 799.7843281 | J186: 9.48 | K186: 10.45 | L186: 10.11
B187: VANCL | C187: Jan | D187: 9.B | E187: 8.25 | G187: Jilemnice 14.09.20 | H187: =IF(E187=0,0,(1000000000 - 313216 / E187 + 34538300 / E187*2 - 1698600000 / E187*3 + 32198000000 / E187*4)/20000000+66) -> 866.0906872 | J187: 9.09 | K187: 9.6 | L187: 9.81
B188: VANCL | C188: Lukáš | D188: 9.B | E188: 8.61 | G188: Jilemnice 14.09.20 | H188: =IF(E188=0,0,(1000000000 - 313216 / E188 + 34538300 / E188*2 - 1698600000 / E188*3 + 32198000000 / E188*4)/20000000+66) -> 834.7280104 | J188: 8.77 | K188: 9.6 | L188: 9.62
B189: VAŠÍK | C189: Jiří | D189: 9.B | E189: 9.12 | G189: Jilemnice 14.09.20 | H189: =IF(E189=0,0,(1000000000 - 313216 / E189 + 34538300 / E189*2 - 1698600000 / E189*3 + 32198000000 / E189*4)/20000000+66) -> 794.5359835 | J189: 10.19 | K189: 10.32 | L189: 11.06
B190: VOHNOUT | C190: Zdeněk | D190: 9.B | E190: 7.7 | G190: Jilemnice 18.09.20 | H190: =IF(E190=0,0,(1000000000 - 313216 / E190 + 34538300 / E190*2 - 1698600000 / E190*3 + 32198000000 / E190*4)/20000000+66) -> 919.6685934 | J190: 8.09 | K190: 8.66 | L190: 8.82

Sheet 300
C1: VÝKONY 2020 - 2021 | G1: 300 M | H1: CHLAPCI 6. - 9. ROČ.
B2: stav k | C2: =TODAY() -> 2021-06-28 | J2: 19 - 20 | K2: 18 - 19 | L2: 17 - 18
A4: 1. | B4: =B100 -> BOUKAL | C4: =C100 -> Jakub | D4: 6.A | E4: 00:01:20.860 | G4: Jilemnice 23.06.21 | H4: 357.2276587 | J4: 00:00:00 | K4: 00:00:00 | L4: 00:00:00
A5: 2. | B5: =B101 -> DEMČUK | C5: Ilja | D5: 6.A | E5: 00:01:00.280 | G5: Jilemnice 23.06.21 | H5: 582.9735498 | J5: 00:00:00 | K5: 00:00:00 | L5: 00:00:00
A6: 3. | B6: =B102 -> FAISTAUER | C6: Kryštof | D6: 6.A | E6: 00:00:54.880 | G6: Jilemnice 23.06.21 | H6: 670.248152 | J6: 00:00:00 | K6: 00:00:00 | L6: 00:00:00
A7: 4. | B7: =B103 -> FRK | C7: Matyáš | D7: 6.A | E7: 00:01:21.540 | G7: Jilemnice 23.06.21 | H7: 351.7134153 | J7: 00:00:00 | K7: 00:00:00 | L7: 00:00:00
A8: 5. | B8: =B104 -> HUBÁLOVSKÝ | C8: Marek | D8: 6.A | E8: 00:01:11.580 | G8: Jilemnice 23.06.21 | H8: 442.951971 | J8: 00:00:00 | K8: 00:00:00 | L8: 00:00:00
A9: 6. | B9: =B105 -> MAŘAS | C9: Dominik | D9: 6.A | E9: 00:01:18.210 | G9: Jilemnice 23.06.21 | H9: 379.6319554 | J9: 00:00:00 | K9: 00:00:00 | L9: 00:00:00
A10: 7. | B10: =B106 -> MAŤÁTKO | C10: Jakub | D10: 6.A | E10: 00:01:24.110 | G10: Jilemnice 23.06.21 | H10: 331.6780969 | J10: 00:00:00 | K10: 00:00:00 | L10: 00:00:00
A11: 8. | B11: =B107 -> MERY | C11: Luboš | D11: 6.A | E11: 00:01:15.180 | G11: Jilemnice 23.06.21 | H11: 407.1843586 | J11: 00:00:00 | K11: 00:00:00 | L11: 00:00:00
A12: 9. | B12: =B108 -> NOVOTNÝ | C12: Matěj | D12: 6.A | E12: 00:00:00 | G12: 0 | H12: 0 | J12: 00:00:00 | K12: 00:00:00 | L12: 00:00:00
A13: 10. | B13: =B109 -> ŘEHOŘEK | C13: Vojtěch | D13: 6.A | E13: 00:01:11.820 | G13: Jilemnice 23.06.21 | H13: 440.4559076 | J13: 00:00:00 | K13: 00:00:00 | L13: 00:00:00
A14: 11. | B14: =B110 -> ŠÍR | C14: Matyáš | D14: 6.A | E14: 00:01:09.460 | G14: Jilemnice 23.06.21 | H14: 465.7496614 | J14: 00:00:00 | K14: 00:00:00 | L14: 00:00:00
A15: 12. | B15: =B111 -> TORÁČ | C15: Tomáš | D15: 6.A | E15: 00:02:09.100 | G15: Jilemnice 23.06.21 | H15: 110.1526699 | J15: 00:00:00 | K15: 00:00:00 | L15: 00:00:00
A16: 13. | B16: =B112 -> ULLMAN | C16: Šimon | D16: 6.A | E16: 00:00:53.770 | G16: Jilemnice 23.06.21 | H16: 690.3599225 | J16: 00:00:00 | K16: 00:00:00 | L16: 00:00:00
A17: 14. | B17: =B113 -> VÁCLAVÍK | C17: Ondřej | D17: 6.A | E17: 00:00:58.550 | G17: Jilemnice 23.06.21 | H17: 609.1811602 | J17: 00:00:00 | K17: 00:00:00 | L17: 00:00:00
A18: 15. | B18: =B114 -> AUERSWALD | C18: Daniel | D18: 6.B | E18: 00:00:59.520 | G18: Jilemnice 23.06.21 | H18: 594.2990891 | J18: 00:00:00 | K18: 00:00:00 | L18: 00:00:00
A19: 16. | B19: =B115 -> BODLÁK | C19: Vladimír | D19: 6.B | E19: 00:00:45.090 | G19: Jilemnice 23.06.21 | H19: 881.7771043 | J19: 00:00:00 | K19: 00:00:00 | L19: 00:00:00
A20: 17. | B20: =B116 -> BUDÍN | C20: Martin | D20: 6.B | E20: 00:00:58.300 | G20: Jilemnice 23.06.21 | H20: 613.09701 | J20: 00:00:00 | K20: 00:00:00 | L20: 00:00:00
A21: 18. | B21: =B117 -> DVOŘÁK | C21: Dominik | D21: 6.B | E21: 00:00:00 | G21: 0 | H21: 0 | J21: 00:00:00 | K21: 00:00:00 | L21: 00:00:00
A22: 19. | B22: =B118 -> FIŠERA | C22: Vojtěch | D22: 6.B | E22: 00:00:57.070 | G22: Jilemnice 23.06.21 | H22: 632.8626166 | J22: 00:00:00 | K22: 00:00:00 | L22: 00:00:00
A23: 20. | B23: =B119 -> JINDŘIŠEK | C23: Vít | D23: 6.B | E23: 00:00:00 | G23: 0 | H23: 0 | J23: 00:00:00 | K23: 00:00:00 | L23: 00:00:00
A24: 21. | B24: =B120 -> JIROUŠ | C24: Matouš | D24: 6.B | E24: 00:00:00 | G24: 0 | H24: 0 | J24: 00:00:00 | K24: 00:00:00 | L24: 00:00:00
A25: 22. | B25: =B121 -> KERLE | C25: Marek | D25: 6.B | E25: 00:00:54.010 | G25: Jilemnice 23.06.21 | H25: 685.9413855 | J25: 00:00:00 | K25: 00:00:00 | L25: 00:00:00
A26: 23. | B26: =B122 -> LUKEŠ | C26: Jakub | D26: 6.B | E26: 00:00:54.300 | G26: Jilemnice 23.06.21 | H26: 680.6544324 | J26: 00:00:00 | K26: 00:00:00 | L26: 00:00:00
A27: 24. | B27: =B123 -> OTT | C27: Matyáš | D27: 6.B | E27: 00:01:08.290 | G27: Jilemnice 23.06.21 | H27: 478.937555 | J27: 00:00:00 | K27: 00:00:00 | L27: 00:00:00
A28: 25. | B28: =B124 -> POKORNÝ | C28: Matyáš | D28: 6.B | E28: 00:00:48.010 | G28: Jilemnice 23.06.21 | H28: 809.6576595 | J28: 00:00:00 | K28: 00:00:00 | L28: 00:00:00
A29: 26. | B29: =B125 -> POLÁČEK | C29: Matyáš | D29: 6.B | E29: 00:01:13.650 | G29: Jilemnice 23.06.21 | H29: 421.9583494 | J29: 00:00:00 | K29: 00:00:00 | L29: 00:00:00
A30: 27. | B30: =B126 -> SOUKUP | C30: Patrik | D30: 6.B | E30: 00:00:53.980 | G30: Jilemnice 23.06.21 | H30: 686.4915539 | J30: 00:00:00 | K30: 00:00:00 | L30: 00:00:00
A31: 28. | B31: =B127 -> VALENTA | C31: Jakub | D31: 6.B | E31: 00:00:00 | G31: 0 | H31: 0 | J31: 00:00:00 | K31: 00:00:00 | L31: 00:00:00
A32: 29. | B32: =B128 -> VRBATA | C32: Dominik | D32: 6.B | E32: 00:00:57.790 | G32: Jilemnice 23.06.21 | H32: 621.1903985 | J32: 00:00:00 | K32: 00:00:00 | L32: 00:00:00
A33: 30. | B33: =B129 -> FEJKL | C33: Jan | D33: 7.A | E33: 00:00:00 | G33: 0 | H33: 0 | J33: 00:00:54.980 | K33: 00:00:00 | L33: 00:00:00
A34: 31. | B34: =B130 -> KOTYK | C34: Tadeáš | D34: 7.A | E34: 00:00:00 | G34: 0 | H34: 0 | J34: 00:01:18.780 | K34: 00:00:00 | L34: 00:00:00
A35: 32. | B35: =B131 -> KRAUSE | C35: Tadeáš | D35: 7.A | E35: 00:00:00 | G35: 0 | H35: 0 | J35: 00:00:59.500 | K35: 00:00:00 | L35: 00:00:00
A36: 33. | B36: =B132 -> LEŠÁK | C36: Martin | D36: 7.A | E36: 00:00:00 | G36: 0 | H36: 0 | J36: 00:01:15.530 | K36: 00:00:00 | L36: 00:00:00
A37: 34. | B37: =B133 -> NECHANICKÝ | C37: David | D37: 7.A | E37: 00:00:00 | G37: 0 | H37: 0 | J37: 00:00:57.540 | K37: 00:00:00 | L37: 00:00:00
A38: 35. | B38: =B134 -> ŘEHOŘEK | C38: Jan | D38: 7.A | E38: 00:00:00 | G38: 0 | H38: 0 | J38: 00:00:58.500 | K38: 00:00:00 | L38: 00:00:00
A39: 36. | B39: =B135 -> SOUKUP | C39: Ondřej | D39: 7.A | E39: 00:00:00 | G39: 0 | H39: 0 | J39: 00:01:04.170 | K39: 00:00:00 | L39: 00:00:00
A40: 37. | B40: =B136 -> SPANILÝ | C40: David | D40: 7.A | E40: 00:00:00 | G40: 0 | H40: 0 | J40: 00:01:00.950 | K40: 00:00:00 | L40: 00:00:00
A41: 38. | B41: =B137 -> ČADAN | C41: Benjamín | D41: 7.B | E41: 00:00:00 | G41: 0 | H41: 0 | J41: 00:01:14.370 | K41: 00:00:00 | L41: 00:00:00
A42: 39. | B42: =B138 -> ČERNÝ | C42: Michal | D42: 7.B | E42: 00:00:00 | G42: 0 | H42: 0 | J42: 00:01:13.500 | K42: 00:00:00 | L42: 00:00:00
A43: 40. | B43: =B139 -> DOLEJŠÍ | C43: David | D43: 7.B | E43: 00:00:00 | G43: 0 | H43: 0 | J43: 00:01:09.160 | K43: 00:00:00 | L43: 00:00:00
A44: 41. | B44: =B140 -> NOVÁK | C44: Matěj | D44: 7.B | E44: 00:00:00 | G44: 0 | H44: 0 | J44: 00:01:01.550 | K44: 00:00:00 | L44: 00:00:00
A45: 42. | B45: =B141 -> POVAŽANEC | C45: Martin | D45: 7.B | E45: 00:00:00 | G45: 0 | H45: 0 | J45: 00:01:22.800 | K45: 00:00:00 | L45: 00:00:00
A46: 43. | B46: =B142 -> RICHTER | C46: Jakub | D46: 7.B | E46: 00:00:00 | G46: 0 | H46: 0 | J46: 00:01:11.020 | K46: 00:00:00 | L46: 00:00:00
A47: 44. | B47: =B143 -> ROZUMEK | C47: Adam | D47: 7.B | E47: 00:00:00 | G47: 0 | H47: 0 | J47: 00:01:27.170 | K47: 00:00:00 | L47: 00:00:00
A48: 45. | B48: =B144 -> VALENTA | C48: František | D48: 7.B | E48: 00:00:00 | G48: 0 | H48: 0 | J48: 00:01:08.610 | K48: 00:00:00 | L48: 00:00:00
A49: 46. | B49: =B145 -> ZAPLATÍLEK | C49: Josef | D49: 7.B | E49: 00:00:00 | G49: 0 | H49: 0 | J49: 00:01:00.340 | K49: 00:00:00 | L49: 00:00:00
A50: 47. | B50: =B146 -> ERBEN | C50: Viktor | D50: 8.A | E50: 00:01:04.810 | G50: Jilemnice 23.06.21 | H50: 520.9774453 | J50: 00:01:15.110 | K50: 00:01:13.140 | L50: 00:00:00
A51: 48. | B51: =B147 -> FRANC | C51: Daniel | D51: 8.A | E51: 00:00:00 | G51: 0 | H51: 0 | J51: 00:01:18.570 | K51: 00:01:14.240 | L51: 00:00:00
A52: 49. | B52: =B148 -> JINDŘIŠEK | C52: Matyáš | D52: 8.A | E52: 00:00:51.030 | G52: Jilemnice 23.06.21 | H52: 743.7507218 | J52: 00:00:54.740 | K52: 00:01:04.050 | L52: 00:00:00
A53: 50. | B53: =B149 -> KOLAČNÝ | C53: Štěpán | D53: 8.A | E53: 00:01:10.470 | G53: Jilemnice 23.06.21 | H53: 454.7174192 | J53: 00:01:07.170 | K53: 00:01:08.590 | L53: 00:00:00
A54: 51. | B54: =B150 -> KRISTAN | C54: Jáchym | D54: 8.A | E54: 00:01:34.910 | G54: =G150 -> Jilemnice 23.06.21 | H54: 259.3435753 | J54: =J150 -> 00:01:28.170 | K54: 00:01:30.820 | L54: 00:00:00
A55: 52. | B55: NGUYEN | C55: David | D55: 8.A | E55: 00:00:00 | G55: 0 | H55: 0 | J55: 00:00:57.940 | K55: 00:00:00 | L55: 00:00:00
A56: 53. | B56: NOVOTNÝ | C56: Jan | D56: 8.A | E56: 00:00:48.030 | G56: Jilemnice 23.06.21 | H56: 809.1939274 | J56: 00:00:54.410 | K56: 00:01:06.640 | L56: 00:00:00
A57: 54. | B57: RÁB | C57: Adam | D57: 8.A | E57: 00:01:12.190 | G57: Jilemnice 23.06.21 | H57: 436.640326 | J57: 00:01:21.770 | K57: 00:01:26.790 | L57: 00:00:00
A58: 55. | B58: REPASKÝ | C58: Jakub | D58: 8.A | E58: 00:00:49.990 | G58: Jilemnice 23.06.21 | H58: 765.5481923 | J58: 00:00:00 | K58: 00:00:00 | L58: 00:00:00
A59: 56. | B59: SKÁLA | C59: Jan | D59: 8.A | E59: 00:00:51.050 | G59: Jilemnice 23.06.21 | H59: 743.3402435 | J59: 00:00:59.340 | K59: 00:01:09.240 | L59: 00:00:00
A60: 57. | B60: ŠPULÁK | C60: Jakub | D60: 8.A | E60: 00:00:55.640 | G60: Jilemnice 23.06.21 | H60: 656.940733 | J60: 00:01:06.120 | K60: 00:01:16.460 | L60: 00:00:00
A61: 58. | B61: VALENTA | C61: Tomáš | D61: 8.A | E61: 00:00:44.370 | G61: Jilemnice 23.06.21 | H61: 901.0188423 | J61: 00:00:49.500 | K61: 00:00:56.410 | L61: 00:00:00
A62: 59. | B62: VANCL | C62: Jiří | D62: 8.A | E62: 00:00:58.090 | G62: Jilemnice 23.06.21 | H62: 616.412371 | J62: 00:01:08.360 | K62: 00:01:16.720 | L62: 00:00:00
A63: 60. | B63: VAŠÍČEK | C63: David | D63: 8.A | E63: 00:00:00 | G63: 0 | H63: 0 | J63: 00:01:00.980 | K63: 00:00:57.580 | L63: 00:00:00
A64: 61. | B64: ZOUHAR | C64: Ondřej | D64: 8.A | E64: 00:00:49.010 | G64: Jilemnice 23.06.21 | H64: 786.9346915 | J64: 00:00:58.200 | K64: 00:00:58.890 | L64: 00:00:00
A65: 62. | B65: ZUZÁNEK | C65: Filip | D65: 8.A | E65: 00:00:57.690 | G65: Jilemnice 23.06.21 | H65: 622.7941174 | J65: 00:01:02.210 | K65: 00:01:07.280 | L65: 00:00:00
A66: 63. | B66: BRUMLICH | C66: Jan | D66: 9.A | E66: 00:00:49.080 | G66: Jilemnice 16.06.21 | H66: 785.3787608 | J66: 00:00:00 | K66: 00:00:49.930 | L66: 00:01:00.480
A67: 64. | B67: BUCHAR | C67: Jiří | D67: 9.A | E67: 00:00:49.680 | G67: Jilemnice 16.06.21 | H67: 772.2220729 | J67: 00:00:00 | K67: 00:00:53.090 | L67: 00:00:56.320
A68: 65. | B68: FAISTAVER | C68: Jiří | D68: 9.A | E68: 00:00:00 | G68: 0 | H68: 0 | J68: 00:00:00 | K68: 00:01:06.040 | L68: 00:01:10.860
A69: 66. | B69: FAISTAVER | C69: Roman | D69: 9.A | E69: 00:00:53.460 | G69: Jilemnice 16.06.21 | H69: 696.1259162 | J69: 00:00:00 | K69: 00:00:59.160 | L69: 00:01:03.250
A70: 67. | B70: FAJSTAVR | C70: Jakub | D70: 9.A | E70: 00:00:56.040 | G70: Jilemnice 23.06.21 | H70: 650.0818055 | J70: 00:00:00 | K70: 00:00:59.140 | L70: 00:01:06.160
A71: 68. | B71: FARSKÝ | C71: Vojtěch | D71: 9.A | E71: 00:00:00 | G71: 0 | H71: 0 | J71: 00:00:00 | K71: 00:00:58.300 | L71: 00:01:01.290
A72: 69. | B72: HOLUBEC | C72: Lukáš | D72: 9.A | E72: 00:00:00 | G72: 0 | H72: 0 | J72: 00:00:00 | K72: 00:01:06.500 | L72: 00:01:08.170
A73: 70. | B73: CHAROUZ | C73: Vojtěch | D73: 9.A | E73: 00:00:52.440 | G73: Jilemnice 16.06.21 | H73: 715.5790691 | J73: 00:00:00 | K73: 00:00:57.300 | L73: 00:01:07.350
A74: 71. | B74: =B170 -> IACCHERI | C74: Carlo | D74: 9.A | E74: 00:00:54.320 | G74: =G170 -> Jilemnice 23.06.21 | H74: 680.2918958 | J74: =J170 -> 00:00:00 | K74: 00:01:08.050 | L74: 00:01:13.030
A75: 72. | B75: JOHN | C75: Adrian | D75: 9.A | E75: 00:00:00 | G75: 0 | H75: 0 | J75: 00:00:00 | K75: 00:00:00 | L75: 00:01:35.010
A76: 73. | B76: KRČÍK | C76: Matthew | D76: 9.A | E76: 00:00:00 | G76: 0 | H76: 0 | J76: 00:00:00 | K76: 00:01:09.300 | L76: 00:01:08.280
A77: 74. | B77: KRESAN | C77: Vojtěch | D77: 9.A | E77: 00:00:00 | G77: 0 | H77: 0 | J77: 00:00:00 | K77: 00:01:15.010 | L77: 00:01:25.570
A78: 75. | B78: LÁNSKÝ | C78: Vojtěch | D78: 9.A | E78: 00:01:26.160 | G78: Jilemnice 23.06.21 | H78: 316.5535629 | J78: 00:00:00 | K78: 00:01:48.330 | L78: 00:01:57.650
A79: 76. | B79: LEŠÁK | C79: Lukáš | D79: 9.A | E79: 00:00:00 | G79: 0 | H79: 0 | J79: 00:00:00 | K79: 00:00:00 | L79: 00:01:22.570
A80: 77. | B80: RYPL | C80: Matyáš | D80: 9.A | E80: 00:00:47.750 | G80: Jilemnice 16.06.21 | H80: 815.7215274 | J80: 00:00:00 | K80: 00:00:58.740 | L80: 00:01:05.060
A81: 78. | B81: VU TRAN DINH | C81: Lukas | D81: 9.A | E81: 00:00:00 | G81: 0 | H81: 0 | J81: 00:00:00 | K81: 00:00:00 | L81: 00:01:17.860
A82: 79. | B82: DUFEK | C82: Matyáš | D82: 9.B | E82: 00:00:00 | G82: 0 | H82: 0 | J82: 00:00:00 | K82: 00:01:12.220 | L82: 00:00:52.470
A83: 80. | B83: JEŽEK | C83: Jonáš | D83: 9.B | E83: 00:00:00 | G83: 0 | H83: 0 | J83: 00:00:00 | K83: 00:00:49.750 | L83: 00:00:53.770
A84: 81. | B84: JEŽEK | C84: Mikuláš | D84: 9.B | E84: 00:00:00 | G84: 0 | H84: 0 | J84: 00:00:00 | K84: 00:00:53.400 | L84: 00:00:55.310
A85: 82. | B85: NECHANICKÝ | C85: Michal | D85: 9.B | E85: 00:00:00 | G85: 0 | H85: 0 | J85: 00:00:00 | K85: 00:00:54.040 | L85: 00:00:57.590
A86: 83. | B86: PAULÍČEK | C86: Jakub | D86: 9.B | E86: 00:00:00 | G86: 0 | H86: 0 | J86: 00:00:00 | K86: 00:00:56.040 | L86: 00:00:53.450
A87: 84. | B87: POHOŘALÝ | C87: Jakub | D87: 9.B | E87: 00:00:00 | G87: 0 | H87: 0 | J87: 00:00:00 | K87: 00:00:53.040 | L87: 00:00:58.920
A88: 85. | B88: POSPÍCHAL | C88: Daniel | D88: 9.B | E88: 00:00:00 | G88: 0 | H88: 0 | J88: 00:00:00 | K88: 00:00:56.750 | L88: 00:01:09.150
A89: 86. | B89: SOUKUP | C89: Lukáš | D89: 9.B | E89: 00:00:00 | G89: 0 | H89: 0 | J89: 00:00:00 | K89: 00:01:00.600 | L89: 00:01:01.110
A90: 87. | B90: VANCL | C90: Jan | D90: 9.B | E90: 00:00:00 | G90: 0 | H90: 0 | J90: 00:00:00 | K90: 00:00:57.580 | L90: 00:01:02.690
A91: 88. | B91: VANCL | C91: Lukáš | D91: 9.B | E91: 00:00:50.520 | G91: Jilemnice 16.06.21 | H91: 754.3277273 | J91: 00:00:00 | K91: 00:00:58.340 | L91: 00:01:02.500
A92: 89. | B92: VAŠÍK | C92: Jiří | D92: 9.B | E92: 00:00:00 | G92: 0 | H92: 0 | J92: 00:00:00 | K92: 00:00:59.080 | L92: 00:00:55.390
A93: 90. | B93: VOHNOUT | C93: Zdeněk | D93: 9.B | E93: 00:00:42.200 | G93: Jilemnice 16.06.21 | H93: 962.9828242 | J93: 00:00:00 | K93: 00:00:49.710 | L93: 00:00:00
B100: BOUKAL | C100: Jakub | D100: 6.A | E100: 00:01:20.860 | G100: Jilemnice 23.06.21 | H100: =IF(E100=0,0,(1000000000-313216/E100+34538300/E100*2-1698600000/E100*3+32198000000/E100*4)/200000000000-304) -> 357.2276587
B101: DEMČUK | C101: Ilja | D101: 6.A | E101: 00:01:00.280 | G101: Jilemnice 23.06.21 | H101: =IF(E101=0,0,(1000000000-313216/E101+34538300/E101*2-1698600000/E101*3+32198000000/E101*4)/200000000000-304) -> 582.9735498
B102: FAISTAUER | C102: Kryštof | D102: 6.A | E102: 00:00:54.880 | G102: Jilemnice 23.06.21 | H102: =IF(E102=0,0,(1000000000-313216/E102+34538300/E102*2-1698600000/E102*3+32198000000/E102*4)/200000000000-304) -> 670.248152
B103: FRK | C103: Matyáš | D103: 6.A | E103: 00:01:21.540 | G103: Jilemnice 23.06.21 | H103: =IF(E103=0,0,(1000000000-313216/E103+34538300/E103*2-1698600000/E103*3+32198000000/E103*4)/200000000000-304) -> 351.7134153
B104: HUBÁLOVSKÝ | C104: Marek | D104: 6.A | E104: 00:01:11.580 | G104: Jilemnice 23.06.21 | H104: =IF(E104=0,0,(1000000000-313216/E104+34538300/E104*2-1698600000/E104*3+32198000000/E104*4)/200000000000-304) -> 442.951971
B105: MAŘAS | C105: Dominik | D105: 6.A | E105: 00:01:18.210 | G105: Jilemnice 23.06.21 | H105: =IF(E105=0,0,(1000000000-313216/E105+34538300/E105*2-1698600000/E105*3+32198000000/E105*4)/200000000000-304) -> 379.6319554
B106: MAŤÁTKO | C106: Jakub | D106: 6.A | E106: 00:01:24.110 | G106: Jilemnice 23.06.21 | H106: =IF(E106=0,0,(1000000000-313216/E106+34538300/E106*2-1698600000/E106*3+32198000000/E106*4)/200000000000-304) -> 331.6780969
B107: MERY | C107: Luboš | D107: 6.A | E107: 00:01:15.180 | G107: Jilemnice 23.06.21 | H107: =IF(E107=0,0,(1000000000-313216/E107+34538300/E107*2-1698600000/E107*3+32198000000/E107*4)/200000000000-304) -> 407.1843586
B108: NOVOTNÝ | C108: Matěj | D108: 6.A | H108: =IF(E108=0,0,(1000000000-313216/E108+34538300/E108*2-1698600000/E108*3+32198000000/E108*4)/200000000000-304) -> 0
B109: ŘEHOŘEK | C109: Vojtěch | D109: 6.A | E109: 00:01:11.820 | G109: Jilemnice 23.06.21 | H109: =IF(E109=0,0,(1000000000-313216/E109+34538300/E109*2-1698600000/E109*3+32198000000/E109*4)/200000000000-304) -> 440.4559076
B110: ŠÍR | C110: Matyáš | D110: 6.A | E110: 00:01:09.460 | G110: Jilemnice 23.06.21 | H110: =IF(E110=0,0,(1000000000-313216/E110+34538300/E110*2-1698600000/E110*3+32198000000/E110*4)/200000000000-304) -> 465.7496614
B111: TORÁČ | C111: Tomáš | D111: 6.A | E111: 00:02:09.100 | G111: Jilemnice 23.06.21 | H111: =IF(E111=0,0,(1000000000-313216/E111+34538300/E111*2-1698600000/E111*3+32198000000/E111*4)/200000000000-304) -> 110.1526699
B112: ULLMAN | C112: Šimon | D112: 6.A | E112: 00:00:53.770 | G112: Jilemnice 23.06.21 | H112: =IF(E112=0,0,(1000000000-313216/E112+34538300/E112*2-1698600000/E112*3+32198000000/E112*4)/200000000000-304) -> 690.3599225
B113: VÁCLAVÍK | C113: Ondřej | D113: 6.A | E113: 00:00:58.550 | G113: Jilemnice 23.06.21 | H113: =IF(E113=0,0,(1000000000-313216/E113+34538300/E113*2-1698600000/E113*3+32198000000/E113*4)/200000000000-304) -> 609.1811602
B114: AUERSWALD | C114: Daniel | D114: 6.B | E114: 00:00:59.520 | G114: Jilemnice 23.06.21 | H114: =IF(E114=0,0,(1000000000-313216/E114+34538300/E114*2-1698600000/E114*3+32198000000/E114*4)/200000000000-304) -> 594.2990891
B115: BODLÁK | C115: Vladimír | D115: 6.B | E115: 00:00:45.090 | G115: Jilemnice 23.06.21 | H115: =IF(E115=0,0,(1000000000-313216/E115+34538300/E115*2-1698600000/E115*3+32198000000/E115*4)/200000000000-304) -> 881.7771043
B116: BUDÍN | C116: Martin | D116: 6.B | E116: 00:00:58.300 | G116: Jilemnice 23.06.21 | H116: =IF(E116=0,0,(1000000000-313216/E116+34538300/E116*2-1698600000/E116*3+32198000000/E116*4)/200000000000-304) -> 613.09701
B117: DVOŘÁK | C117: Dominik | D117: 6.B | H117: =IF(E117=0,0,(1000000000-313216/E117+34538300/E117*2-1698600000/E117*3+32198000000/E117*4)/200000000000-304) -> 0
B118: FIŠERA | C118: Vojtěch | D118: 6.B | E118: 00:00:57.070 | G118: Jilemnice 23.06.21 | H118: =IF(E118=0,0,(1000000000-313216/E118+34538300/E118*2-1698600000/E118*3+32198000000/E118*4)/200000000000-304) -> 632.8626166
B119: JINDŘIŠEK | C119: Vít | D119: 6.B | H119: =IF(E119=0,0,(1000000000-313216/E119+34538300/E119*2-1698600000/E119*3+32198000000/E119*4)/200000000000-304) -> 0
B120: JIROUŠ | C120: Matouš | D120: 6.B | H120: =IF(E120=0,0,(1000000000-313216/E120+34538300/E120*2-1698600000/E120*3+32198000000/E120*4)/200000000000-304) -> 0
B121: KERLE | C121: Marek | D121: 6.B | E121: 00:00:54.010 | G121: Jilemnice 23.06.21 | H121: =IF(E121=0,0,(1000000000-313216/E121+34538300/E121*2-1698600000/E121*3+32198000000/E121*4)/200000000000-304) -> 685.9413855
B122: LUKEŠ | C122: Jakub | D122: 6.B | E122: 00:00:54.300 | G122: Jilemnice 23.06.21 | H122: =IF(E122=0,0,(1000000000-313216/E122+34538300/E122*2-1698600000/E122*3+32198000000/E122*4)/200000000000-304) -> 680.6544324
B123: OTT | C123: Matyáš | D123: 6.B | E123: 00:01:08.290 | G123: Jilemnice 23.06.21 | H123: =IF(E123=0,0,(1000000000-313216/E123+34538300/E123*2-1698600000/E123*3+32198000000/E123*4)/200000000000-304) -> 478.937555
B124: POKORNÝ | C124: Matyáš | D124: 6.B | E124: 00:00:48.010 | G124: Jilemnice 23.06.21 | H124: =IF(E124=0,0,(1000000000-313216/E124+34538300/E124*2-1698600000/E124*3+32198000000/E124*4)/200000000000-304) -> 809.6576595
B125: POLÁČEK | C125: Matyáš | D125: 6.B | E125: 00:01:13.650 | G125: Jilemnice 23.06.21 | H125: =IF(E125=0,0,(1000000000-313216/E125+34538300/E125*2-1698600000/E125*3+32198000000/E125*4)/200000000000-304) -> 421.9583494
B126: SOUKUP | C126: Patrik | D126: 6.B | E126: 00:00:53.980 | G126: Jilemnice 23.06.21 | H126: =IF(E126=0,0,(1000000000-313216/E126+34538300/E126*2-1698600000/E126*3+32198000000/E126*4)/200000000000-304) -> 686.4915539
B127: VALENTA | C127: Jakub | D127: 6.B | H127: =IF(E127=0,0,(1000000000-313216/E127+34538300/E127*2-1698600000/E127*3+32198000000/E127*4)/200000000000-304) -> 0
B128: VRBATA | C128: Dominik | D128: 6.B | E128: 00:00:57.790 | G128: Jilemnice 23.06.21 | H128: =IF(E128=0,0,(1000000000-313216/E128+34538300/E128*2-1698600000/E128*3+32198000000/E128*4)/200000000000-304) -> 621.1903985
B129: FEJKL | C129: Jan | D129: 7.A | H129: =IF(E129=0,0,(1000000000-313216/E129+34538300/E129*2-1698600000/E129*3+32198000000/E129*4)/200000000000-304) -> 0 | J129: 00:00:54.980
B130: KOTYK | C130: Tadeáš | D130: 7.A | H130: =IF(E130=0,0,(1000000000-313216/E130+34538300/E130*2-1698600000/E130*3+32198000000/E130*4)/200000000000-304) -> 0 | J130: 00:01:18.780
B131: KRAUSE | C131: Tadeáš | D131: 7.A | H131: =IF(E131=0,0,(1000000000-313216/E131+34538300/E131*2-1698600000/E131*3+32198000000/E131*4)/200000000000-304) -> 0 | J131: 00:00:59.500
B132: LEŠÁK | C132: Martin | D132: 7.A | H132: =IF(E132=0,0,(1000000000-313216/E132+34538300/E132*2-1698600000/E132*3+32198000000/E132*4)/200000000000-304) -> 0 | J132: 00:01:15.530
B133: NECHANICKÝ | C133: David | D133: 7.A | H133: =IF(E133=0,0,(1000000000-313216/E133+34538300/E133*2-1698600000/E133*3+32198000000/E133*4)/200000000000-304) -> 0 | J133: 00:00:57.540
B134: ŘEHOŘEK | C134: Jan | D134: 7.A | H134: =IF(E134=0,0,(1000000000-313216/E134+34538300/E134*2-1698600000/E134*3+32198000000/E134*4)/200000000000-304) -> 0 | J134: 00:00:58.500
B135: SOUKUP | C135: Ondřej | D135: 7.A | H135: =IF(E135=0,0,(1000000000-313216/E135+34538300/E135*2-1698600000/E135*3+32198000000/E135*4)/200000000000-304) -> 0 | J135: 00:01:04.170
B136: SPANILÝ | C136: David | D136: 7.A | H136: =IF(E136=0,0,(1000000000-313216/E136+34538300/E136*2-1698600000/E136*3+32198000000/E136*4)/200000000000-304) -> 0 | J136: 00:01:00.950
B137: ČADAN | C137: Benjamín | D137: 7.B | H137: =IF(E137=0,0,(1000000000-313216/E137+34538300/E137*2-1698600000/E137*3+32198000000/E137*4)/200000000000-304) -> 0 | J137: 00:01:14.370
B138: ČERNÝ | C138: Michal | D138: 7.B | H138: =IF(E138=0,0,(1000000000-313216/E138+34538300/E138*2-1698600000/E138*3+32198000000/E138*4)/200000000000-304) -> 0 | J138: 00:01:13.500
B139: DOLEJŠÍ | C139: David | D139: 7.B | H139: =IF(E139=0,0,(1000000000-313216/E139+34538300/E139*2-1698600000/E139*3+32198000000/E139*4)/200000000000-304) -> 0 | J139: 00:01:09.160
B140: NOVÁK | C140: Matěj | D140: 7.B | H140: =IF(E140=0,0,(1000000000-313216/E140+34538300/E140*2-1698600000/E140*3+32198000000/E140*4)/200000000000-304) -> 0 | J140: 00:01:01.550
B141: POVAŽANEC | C141: Martin | D141: 7.B | H141: =IF(E141=0,0,(1000000000-313216/E141+34538300/E141*2-1698600000/E141*3+32198000000/E141*4)/200000000000-304) -> 0 | J141: 00:01:22.800
B142: RICHTER | C142: Jakub | D142: 7.B | H142: =IF(E142=0,0,(1000000000-313216/E142+34538300/E142*2-1698600000/E142*3+32198000000/E142*4)/200000000000-304) -> 0 | J142: 00:01:11.020
B143: ROZUMEK | C143: Adam | D143: 7.B | H143: =IF(E143=0,0,(1000000000-313216/E143+34538300/E143*2-1698600000/E143*3+32198000000/E143*4)/200000000000-304) -> 0 | J143: 00:01:27.170
B144: VALENTA | C144: František | D144: 7.B | H144: =IF(E144=0,0,(1000000000-313216/E144+34538300/E144*2-1698600000/E144*3+32198000000/E144*4)/200000000000-304) -> 0 | J144: 00:01:08.610
B145: ZAPLATÍLEK | C145: Josef | D145: 7.B | H145: =IF(E145=0,0,(1000000000-313216/E145+34538300/E145*2-1698600000/E145*3+32198000000/E145*4)/200000000000-304) -> 0 | J145: 00:01:00.340
B146: ERBEN | C146: Viktor | D146: 8.A | E146: 00:01:04.810 | G146: Jilemnice 23.06.21 | H146: =IF(E146=0,0,(1000000000-313216/E146+34538300/E146*2-1698600000/E146*3+32198000000/E146*4)/200000000000-304) -> 520.9774453 | J146: 00:01:15.110 | K146: 00:01:13.140
B147: FRANC | C147: Daniel | D147: 8.A | H147: =IF(E147=0,0,(1000000000-313216/E147+34538300/E147*2-1698600000/E147*3+32198000000/E147*4)/200000000000-304) -> 0 | J147: 00:01:18.570 | K147: 00:01:14.240
B148: JINDŘIŠEK | C148: Matyáš | D148: 8.A | E148: 00:00:51.030 | G148: Jilemnice 23.06.21 | H148: =IF(E148=0,0,(1000000000-313216/E148+34538300/E148*2-1698600000/E148*3+32198000000/E148*4)/200000000000-304) -> 743.7507218 | J148: 00:00:54.740 | K148: 00:01:04.050
B149: KOLAČNÝ | C149: Štěpán | D149: 8.A | E149: 00:01:10.470 | G149: Jilemnice 23.06.21 | H149: =IF(E149=0,0,(1000000000-313216/E149+34538300/E149*2-1698600000/E149*3+32198000000/E149*4)/200000000000-304) -> 454.7174192 | J149: 00:01:07.170 | K149: 00:01:08.590
B150: KRISTAN | C150: Jáchym | D150: 8.A | E150: 00:01:34.910 | G150: Jilemnice 23.06.21 | H150: =IF(E150=0,0,(1000000000-313216/E150+34538300/E150*2-1698600000/E150*3+32198000000/E150*4)/200000000000-304) -> 259.3435753 | J150: 00:01:28.170 | K150: 00:01:30.820
B151: NGUYEN | C151: David | D151: 8.A | H151: =IF(E151=0,0,(1000000000-313216/E151+34538300/E151*2-1698600000/E151*3+32198000000/E151*4)/200000000000-304) -> 0 | J151: 00:00:57.940
B152: NOVOTNÝ | C152: Jan | D152: 8.A | E152: 00:00:48.030 | G152: Jilemnice 23.06.21 | H152: =IF(E152=0,0,(1000000000-313216/E152+34538300/E152*2-1698600000/E152*3+32198000000/E152*4)/200000000000-304) -> 809.1939274 | J152: 00:00:54.410 | K152: 00:01:06.640
B153: RÁB | C153: Adam | D153: 8.A | E153: 00:01:12.190 | G153: Jilemnice 23.06.21 | H153: =IF(E153=0,0,(1000000000-313216/E153+34538300/E153*2-1698600000/E153*3+32198000000/E153*4)/200000000000-304) -> 436.640326 | J153: 00:01:21.770 | K153: 00:01:26.790
B154: REPASKÝ | C154: Jakub | D154: 8.A | E154: 00:00:49.990 | G154: Jilemnice 23.06.21 | H154: =IF(E154=0,0,(1000000000-313216/E154+34538300/E154*2-1698600000/E154*3+32198000000/E154*4)/200000000000-304) -> 765.5481923
B155: SKÁLA | C155: Jan | D155: 8.A | E155: 00:00:51.050 | G155: Jilemnice 23.06.21 | H155: =IF(E155=0,0,(1000000000-313216/E155+34538300/E155*2-1698600000/E155*3+32198000000/E155*4)/200000000000-304) -> 743.3402435 | J155: 00:00:59.340 | K155: 00:01:09.240
B156: ŠPULÁK | C156: Jakub | D156: 8.A | E156: 00:00:55.640 | G156: Jilemnice 23.06.21 | H156: =IF(E156=0,0,(1000000000-313216/E156+34538300/E156*2-1698600000/E156*3+32198000000/E156*4)/200000000000-304) -> 656.940733 | J156: 00:01:06.120 | K156: 00:01:16.460
B157: VALENTA | C157: Tomáš | D157: 8.A | E157: 00:00:44.370 | G157: Jilemnice 23.06.21 | H157: =IF(E157=0,0,(1000000000-313216/E157+34538300/E157*2-1698600000/E157*3+32198000000/E157*4)/200000000000-304) -> 901.0188423 | J157: 00:00:49.500 | K157: 00:00:56.410
B158: VANCL | C158: Jiří | D158: 8.A | E158: 00:00:58.090 | G158: Jilemnice 23.06.21 | H158: =IF(E158=0,0,(1000000000-313216/E158+34538300/E158*2-1698600000/E158*3+32198000000/E158*4)/200000000000-304) -> 616.412371 | J158: 00:01:08.360 | K158: 00:01:16.720
B159: VAŠÍČEK | C159: David | D159: 8.A | H159: =IF(E159=0,0,(1000000000-313216/E159+34538300/E159*2-1698600000/E159*3+32198000000/E159*4)/200000000000-304) -> 0 | J159: 00:01:00.980 | K159: 00:00:57.580
B160: ZOUHAR | C160: Ondřej | D160: 8.A | E160: 00:00:49.010 | G160: Jilemnice 23.06.21 | H160: =IF(E160=0,0,(1000000000-313216/E160+34538300/E160*2-1698600000/E160*3+32198000000/E160*4)/200000000000-304) -> 786.9346915 | J160: 00:00:58.200 | K160: 00:00:58.890
B161: ZUZÁNEK | C161: Filip | D161: 8.A | E161: 00:00:57.690 | G161: Jilemnice 23.06.21 | H161: =IF(E161=0,0,(1000000000-313216/E161+34538300/E161*2-1698600000/E161*3+32198000000/E161*4)/200000000000-304) -> 622.7941174 | J161: 00:01:02.210 | K161: 00:01:07.280
B162: BRUMLICH | C162: Jan | D162: 9.A | E162: 00:00:49.080 | G162: Jilemnice 16.06.21 | H162: =IF(E162=0,0,(1000000000-313216/E162+34538300/E162*2-1698600000/E162*3+32198000000/E162*4)/200000000000-304) -> 785.3787608 | K162: 00:00:49.930 | L162: 00:01:00.480
B163: BUCHAR | C163: Jiří | D163: 9.A | E163: 00:00:49.680 | G163: Jilemnice 16.06.21 | H163: =IF(E163=0,0,(1000000000-313216/E163+34538300/E163*2-1698600000/E163*3+32198000000/E163*4)/200000000000-304) -> 772.2220729 | K163: 00:00:53.090 | L163: 00:00:56.320
B164: FAISTAVER | C164: Jiří | D164: 9.A | H164: =IF(E164=0,0,(1000000000-313216/E164+34538300/E164*2-1698600000/E164*3+32198000000/E164*4)/200000000000-304) -> 0 | K164: 00:01:06.040 | L164: 00:01:10.860
B165: FAISTAVER | C165: Roman | D165: 9.A | E165: 00:00:53.460 | G165: Jilemnice 16.06.21 | H165: =IF(E165=0,0,(1000000000-313216/E165+34538300/E165*2-1698600000/E165*3+32198000000/E165*4)/200000000000-304) -> 696.1259162 | K165: 00:00:59.160 | L165: 00:01:03.250
B166: FAJSTAVR | C166: Jakub | D166: 9.A | E166: 00:00:56.040 | G166: Jilemnice 23.06.21 | H166: =IF(E166=0,0,(1000000000-313216/E166+34538300/E166*2-1698600000/E166*3+32198000000/E166*4)/200000000000-304) -> 650.0818055 | K166: 00:00:59.140 | L166: 00:01:06.160
B167: FARSKÝ | C167: Vojtěch | D167: 9.A | H167: =IF(E167=0,0,(1000000000-313216/E167+34538300/E167*2-1698600000/E167*3+32198000000/E167*4)/200000000000-304) -> 0 | K167: 00:00:58.300 | L167: 00:01:01.290
B168: HOLUBEC | C168: Lukáš | D168: 9.A | H168: =IF(E168=0,0,(1000000000-313216/E168+34538300/E168*2-1698600000/E168*3+32198000000/E168*4)/200000000000-304) -> 0 | K168: 00:01:06.500 | L168: 00:01:08.170
B169: CHAROUZ | C169: Vojtěch | D169: 9.A | E169: 00:00:52.440 | G169: Jilemnice 16.06.21 | H169: =IF(E169=0,0,(1000000000-313216/E169+34538300/E169*2-1698600000/E169*3+32198000000/E169*4)/200000000000-304) -> 715.5790691 | K169: 00:00:57.300 | L169: 00:01:07.350
B170: IACCHERI | C170: Carlo | D170: 9.A | E170: 00:00:54.320 | G170: Jilemnice 23.06.21 | H170: =IF(E170=0,0,(1000000000-313216/E170+34538300/E170*2-1698600000/E170*3+32198000000/E170*4)/200000000000-304) -> 680.2918958 | K170: 00:01:08.050 | L170: 00:01:13.030
B171: JOHN | C171: Adrian | D171: 9.A | H171: =IF(E171=0,0,(1000000000-313216/E171+34538300/E171*2-1698600000/E171*3+32198000000/E171*4)/200000000000-304) -> 0 | L171: 00:01:35.010
B172: KRČÍK | C172: Matthew | D172: 9.A | H172: =IF(E172=0,0,(1000000000-313216/E172+34538300/E172*2-1698600000/E172*3+32198000000/E172*4)/200000000000-304) -> 0 | K172: 00:01:09.300 | L172: 00:01:08.280
B173: KRESAN | C173: Vojtěch | D173: 9.A | H173: =IF(E173=0,0,(1000000000-313216/E173+34538300/E173*2-1698600000/E173*3+32198000000/E173*4)/200000000000-304) -> 0 | K173: 00:01:15.010 | L173: 00:01:25.570
B174: LÁNSKÝ | C174: Vojtěch | D174: 9.A | E174: 00:01:26.160 | G174: Jilemnice 23.06.21 | H174: =IF(E174=0,0,(1000000000-313216/E174+34538300/E174*2-1698600000/E174*3+32198000000/E174*4)/200000000000-304) -> 316.5535629 | K174: 00:01:48.330 | L174: 00:01:57.650
B175: LEŠÁK | C175: Lukáš | D175: 9.A | H175: =IF(E175=0,0,(1000000000-313216/E175+34538300/E175*2-1698600000/E175*3+32198000000/E175*4)/200000000000-304) -> 0 | L175: 00:01:22.570
B176: RYPL | C176: Matyáš | D176: 9.A | E176: 00:00:47.750 | G176: Jilemnice 16.06.21 | H176: =IF(E176=0,0,(1000000000-313216/E176+34538300/E176*2-1698600000/E176*3+32198000000/E176*4)/200000000000-304) -> 815.7215274 | K176: 00:00:58.740 | L176: 00:01:05.060
B177: VU TRAN DINH | C177: Lukas | D177: 9.A | H177: =IF(E177=0,0,(1000000000-313216/E177+34538300/E177*2-1698600000/E177*3+32198000000/E177*4)/200000000000-304) -> 0 | L177: 00:01:17.860
B178: DUFEK | C178: Matyáš | D178: 9.B | H178: =IF(E178=0,0,(1000000000-313216/E178+34538300/E178*2-1698600000/E178*3+32198000000/E178*4)/200000000000-304) -> 0 | K178: 00:01:12.220 | L178: 00:00:52.470
B179: JEŽEK | C179: Jonáš | D179: 9.B | H179: =IF(E179=0,0,(1000000000-313216/E179+34538300/E179*2-1698600000/E179*3+32198000000/E179*4)/200000000000-304) -> 0 | K179: 00:00:49.750 | L179: 00:00:53.770
B180: JEŽEK | C180: Mikuláš | D180: 9.B | H180: =IF(E180=0,0,(1000000000-313216/E180+34538300/E180*2-1698600000/E180*3+32198000000/E180*4)/200000000000-304) -> 0 | K180: 00:00:53.400 | L180: 00:00:55.310
B181: NECHANICKÝ | C181: Michal | D181: 9.B | H181: =IF(E181=0,0,(1000000000-313216/E181+34538300/E181*2-1698600000/E181*3+32198000000/E181*4)/200000000000-304) -> 0 | K181: 00:00:54.040 | L181: 00:00:57.590
B182: PAULÍČEK | C182: Jakub | D182: 9.B | H182: =IF(E182=0,0,(1000000000-313216/E182+34538300/E182*2-1698600000/E182*3+32198000000/E182*4)/200000000000-304) -> 0 | K182: 00:00:56.040 | L182: 00:00:53.450
B183: POHOŘALÝ | C183: Jakub | D183: 9.B | H183: =IF(E183=0,0,(1000000000-313216/E183+34538300/E183*2-1698600000/E183*3+32198000000/E183*4)/200000000000-304) -> 0 | K183: 00:00:53.040 | L183: 00:00:58.920
B184: POSPÍCHAL | C184: Daniel | D184: 9.B | H184: =IF(E184=0,0,(1000000000-313216/E184+34538300/E184*2-1698600000/E184*3+32198000000/E184*4)/200000000000-304) -> 0 | K184: 00:00:56.750 | L184: 00:01:09.150
B185: SOUKUP | C185: Lukáš | D185: 9.B | H185: =IF(E185=0,0,(1000000000-313216/E185+34538300/E185*2-1698600000/E185*3+32198000000/E185*4)/200000000000-304) -> 0 | K185: 00:01:00.600 | L185: 00:01:01.110
B186: VANCL | C186: Jan | D186: 9.B | H186: =IF(E186=0,0,(1000000000-313216/E186+34538300/E186*2-1698600000/E186*3+32198000000/E186*4)/200000000000-304) -> 0 | K186: 00:00:57.580 | L186: 00:01:02.690
B187: VANCL | C187: Lukáš | D187: 9.B | E187: 00:00:50.520 | G187: Jilemnice 16.06.21 | H187: =IF(E187=0,0,(1000000000-313216/E187+34538300/E187*2-1698600000/E187*3+32198000000/E187*4)/200000000000-304) -> 754.3277273 | K187: 00:00:58.340 | L187: 00:01:02.500
B188: VAŠÍK | C188: Jiří | D188: 9.B | H188: =IF(E188=0,0,(1000000000-313216/E188+34538300/E188*2-1698600000/E188*3+32198000000/E188*4)/200000000000-304) -> 0 | K188: 00:00:59.080 | L188: 00:00:55.390
B189: VOHNOUT | C189: Zdeněk | D189: 9.B | E189: 00:00:42.200 | G189: Jilemnice 16.06.21 | H189: =IF(E189=0,0,(1000000000-313216/E189+34538300/E189*2-1698600000/E189*3+32198000000/E189*4)/200000000000-304) -> 962.9828242 | K189: 00:00:49.710
... 1 more rows

Sheet 1000
C1: VÝKONY 2020 - 2021 | G1: 1000 M | H1: CHLAPCI 6. - 9. ROČ.
B2: stav k | C2: =TODAY() -> 2021-06-28 | J2: 19 - 20 | K2: 18 - 19 | L2: 17 - 18
A4: 1. | B4: =B101 -> BOUKAL | C4: =C101 -> Jakub | D4: 6.A | F4: 0 | G4: 0 | H4: 0 | J4: 00:00:00 | K4: 00:00:00 | L4: 00:00:00
A5: 2. | B5: =B102 -> DEMČUK | C5: Ilja | D5: 6.A | F5: 0 | G5: 0 | H5: 0 | J5: 00:00:00 | K5: 00:00:00 | L5: 00:00:00
A6: 3. | B6: =B103 -> FAISTAUER | C6: Kryštof | D6: 6.A | F6: 0 | G6: 0 | H6: 0 | J6: 00:00:00 | K6: 00:00:00 | L6: 00:00:00
A7: 4. | B7: =B104 -> FRK | C7: Matyáš | D7: 6.A | F7: 0 | G7: 0 | H7: 0 | J7: 00:00:00 | K7: 00:00:00 | L7: 00:00:00
A8: 5. | B8: =B105 -> HUBÁLOVSKÝ | C8: Marek | D8: 6.A | F8: 0 | G8: 0 | H8: 0 | J8: 00:00:00 | K8: 00:00:00 | L8: 00:00:00
A9: 6. | B9: =B106 -> MAŘAS | C9: Dominik | D9: 6.A | F9: 0 | G9: 0 | H9: 0 | J9: 00:00:00 | K9: 00:00:00 | L9: 00:00:00
A10: 7. | B10: =B107 -> MAŤÁTKO | C10: Jakub | D10: 6.A | F10: 0 | G10: 0 | H10: 0 | J10: 00:00:00 | K10: 00:00:00 | L10: 00:00:00
A11: 8. | B11: =B108 -> MERY | C11: Luboš | D11: 6.A | F11: 0 | G11: 0 | H11: 0 | J11: 00:00:00 | K11: 00:00:00 | L11: 00:00:00
A12: 9. | B12: =B109 -> NOVOTNÝ | C12: Matěj | D12: 6.A | F12: 0 | G12: 0 | H12: 0 | J12: 00:00:00 | K12: 00:00:00 | L12: 00:00:00
A13: 10. | B13: =B110 -> ŘEHOŘEK | C13: Vojtěch | D13: 6.A | F13: 0 | G13: 0 | H13: 0 | J13: 00:00:00 | K13: 00:00:00 | L13: 00:00:00
A14: 11. | B14: =B111 -> ŠÍR | C14: Matyáš | D14: 6.A | F14: 0 | G14: 0 | H14: 0 | J14: 00:00:00 | K14: 00:00:00 | L14: 00:00:00
A15: 12. | B15: =B112 -> TORÁČ | C15: Tomáš | D15: 6.A | F15: 0 | G15: 0 | H15: 0 | J15: 00:00:00 | K15: 00:00:00 | L15: 00:00:00
A16: 13. | B16: =B113 -> ULLMAN | C16: Šimon | D16: 6.A | F16: 0 | G16: 0 | H16: 0 | J16: 00:00:00 | K16: 00:00:00 | L16: 00:00:00
A17: 14. | B17: =B114 -> VÁCLAVÍK | C17: Ondřej | D17: 6.A | F17: 0 | G17: 0 | H17: 0 | J17: 00:00:00 | K17: 00:00:00 | L17: 00:00:00
A18: 15. | B18: =B115 -> AUERSWALD | C18: Daniel | D18: 6.B | F18: 0 | G18: 0 | H18: 0 | J18: 00:00:00 | K18: 00:00:00 | L18: 00:00:00
A19: 16. | B19: =B116 -> BODLÁK | C19: Vladimír | D19: 6.B | F19: 0 | G19: 0 | H19: 0 | J19: 00:00:00 | K19: 00:00:00 | L19: 00:00:00
A20: 17. | B20: =B117 -> BUDINA | C20: Martin | D20: 6.B | F20: 0 | G20: 0 | H20: 0 | J20: 00:00:00 | K20: 00:00:00 | L20: 00:00:00
A21: 18. | B21: =B118 -> DVOŘÁK | C21: Dominik | D21: 6.B | F21: 0 | G21: 0 | H21: 0 | J21: 00:00:00 | K21: 00:00:00 | L21: 00:00:00
A22: 19. | B22: =B119 -> FIŠERA | C22: Vojtěch | D22: 6.B | F22: 0 | G22: 0 | H22: 0 | J22: 00:00:00 | K22: 00:00:00 | L22: 00:00:00
A23: 20. | B23: =B120 -> JINDŘIŠEK | C23: Vít | D23: 6.B | F23: 0 | G23: 0 | H23: 0 | J23: 00:00:00 | K23: 00:00:00 | L23: 00:00:00
A24: 21. | B24: =B121 -> JIROUŠ | C24: Matouš | D24: 6.B | F24: 0 | G24: 0 | H24: 0 | J24: 00:00:00 | K24: 00:00:00 | L24: 00:00:00
A25: 22. | B25: =B122 -> KERLE | C25: Marek | D25: 6.B | F25: 0 | G25: 0 | H25: 0 | J25: 00:00:00 | K25: 00:00:00 | L25: 00:00:00
A26: 23. | B26: =B123 -> LUKEŠ | C26: Jakub | D26: 6.B | F26: 0 | G26: 0 | H26: 0 | J26: 00:00:00 | K26: 00:00:00 | L26: 00:00:00
A27: 24. | B27: =B124 -> OTT | C27: Matyáš | D27: 6.B | F27: 0 | G27: 0 | H27: 0 | J27: 00:00:00 | K27: 00:00:00 | L27: 00:00:00
A28: 25. | B28: =B125 -> POKORNÝ | C28: Matyáš | D28: 6.B | F28: 0 | G28: 0 | H28: 0 | J28: 00:00:00 | K28: 00:00:00 | L28: 00:00:00
A29: 26. | B29: =B126 -> POLÁČEK | C29: Matyáš | D29: 6.B | F29: 0 | G29: 0 | H29: 0 | J29: 00:00:00 | K29: 00:00:00 | L29: 00:00:00
A30: 27. | B30: =B127 -> SOUKUP | C30: Patrik | D30: 6.B | F30: 0 | G30: 0 | H30: 0 | J30: 00:00:00 | K30: 00:00:00 | L30: 00:00:00
A31: 28. | B31: =B128 -> VALENTA | C31: Jakub | D31: 6.B | F31: 0 | G31: 0 | H31: 0 | J31: 00:00:00 | K31: 00:00:00 | L31: 00:00:00
A32: 29. | B32: =B129 -> VRBATA | C32: Dominik | D32: 6.B | F32: 0 | G32: 0 | H32: 0 | J32: 00:00:00 | K32: 00:00:00 | L32: 00:00:00
A33: 30. | B33: =B130 -> FEJKL | C33: Jan | D33: 7.A | F33: 0 | G33: 0 | H33: 0 | J33: 00:00:00 | K33: 00:00:00 | L33: 00:00:00
A34: 31. | B34: =B131 -> KOTYK | C34: Tadeáš | D34: 7.A | F34: 0 | G34: 0 | H34: 0 | J34: 00:00:00 | K34: 00:00:00 | L34: 00:00:00
A35: 32. | B35: =B132 -> KRAUSE | C35: Tadeáš | D35: 7.A | F35: 0 | G35: 0 | H35: 0 | J35: 00:00:00 | K35: 00:00:00 | L35: 00:00:00
A36: 33. | B36: =B133 -> LEŠÁK | C36: Martin | D36: 7.A | F36: 0 | G36: 0 | H36: 0 | J36: 00:00:00 | K36: 00:00:00 | L36: 00:00:00
A37: 34. | B37: =B134 -> NECHANICKÝ | C37: David | D37: 7.A | F37: 0 | G37: 0 | H37: 0 | J37: 00:00:00 | K37: 00:00:00 | L37: 00:00:00
A38: 35. | B38: =B135 -> ŘEHOŘEK | C38: Jan | D38: 7.A | F38: 0 | G38: 0 | H38: 0 | J38: 00:00:00 | K38: 00:00:00 | L38: 00:00:00
A39: 36. | B39: =B136 -> SOUKUP | C39: Ondřej | D39: 7.A | F39: 0 | G39: 0 | H39: 0 | J39: 00:00:00 | K39: 00:00:00 | L39: 00:00:00
A40: 37. | B40: =B137 -> SPANILÝ | C40: David | D40: 7.A | F40: 0 | G40: 0 | H40: 0 | J40: 00:00:00 | K40: 00:00:00 | L40: 00:00:00
A41: 38. | B41: =B138 -> ČADAN | C41: Benjamín | D41: 7.B | F41: 0 | G41: 0 | H41: 0 | J41: 00:00:00 | K41: 00:00:00 | L41: 00:00:00
A42: 39. | B42: =B139 -> ČERNÝ | C42: Michal | D42: 7.B | F42: 0 | G42: 0 | H42: 0 | J42: 00:00:00 | K42: 00:00:00 | L42: 00:00:00
A43: 40. | B43: =B140 -> DOLEJŠÍ | C43: David | D43: 7.B | F43: 0 | G43: 0 | H43: 0 | J43: 00:00:00 | K43: 00:00:00 | L43: 00:00:00
A44: 41. | B44: =B141 -> NOVÁK | C44: Matěj | D44: 7.B | F44: 0 | G44: 0 | H44: 0 | J44: 00:00:00 | K44: 00:00:00 | L44: 00:00:00
A45: 42. | B45: =B142 -> POVAŽANEC | C45: Martin | D45: 7.B | F45: 0 | G45: 0 | H45: 0 | J45: 00:00:00 | K45: 00:00:00 | L45: 00:00:00
A46: 43. | B46: =B143 -> RICHTER | C46: Jakub | D46: 7.B | F46: 0 | G46: 0 | H46: 0 | J46: 00:00:00 | K46: 00:00:00 | L46: 00:00:00
A47: 44. | B47: =B144 -> ROZUMEK | C47: Adam | D47: 7.B | F47: 0 | G47: 0 | H47: 0 | J47: 00:00:00 | K47: 00:00:00 | L47: 00:00:00
A48: 45. | B48: =B145 -> VALENTA | C48: František | D48: 7.B | F48: 0 | G48: 0 | H48: 0 | J48: 00:00:00 | K48: 00:00:00 | L48: 00:00:00
A49: 46. | B49: =B146 -> ZAPLATÍLEK | C49: Josef | D49: 7.B | F49: 0 | G49: 0 | H49: 0 | J49: 00:00:00 | K49: 00:00:00 | L49: 00:00:00
A50: 47. | B50: =B147 -> ERBEN | C50: Viktor | D50: 8.A | F50: 0 | G50: 0 | H50: 0 | J50: 00:00:00 | K50: 00:05:36.210 | L50: 00:00:00
A51: 48. | B51: =B148 -> FRANC | C51: Daniel | D51: 8.A | F51: 0 | G51: 0 | H51: 0 | J51: 00:00:00 | K51: 00:06:39.340 | L51: 00:00:00
A52: 49. | B52: =B149 -> JINDŘIŠEK | C52: Matyáš | D52: 8.A | F52: 0 | G52: 0 | H52: 0 | J52: 00:00:00 | K52: 00:04:05.550 | L52: 00:00:00
A53: 50. | B53: =B150 -> KOLAČNÝ | C53: Štěpán | D53: 8.A | F53: 0 | G53: 0 | H53: 0 | J53: 00:00:00 | K53: 00:04:52.390 | L53: 00:00:00
A54: 51. | B54: =B151 -> KRISTAN | C54: Jáchym | D54: 8.A | F54: 0 | G54: 0 | H54: 0 | J54: 00:00:00 | K54: 00:07:05.290 | L54: 00:00:00
A55: 52. | B55: =B152 -> NGUYEN | C55: David | D55: 8.A | F55: 0 | G55: 0 | H55: 0 | J55: 00:00:00 | K55: 00:00:00 | L55: 00:00:00
A56: 53. | B56: =B153 -> NOVOTNÝ | C56: Jan | D56: 8.A | F56: 0 | G56: 0 | H56: 0 | J56: 00:00:00 | K56: 00:00:00 | L56: 00:00:00
A57: 54. | B57: =B154 -> RÁB | C57: Adam | D57: 8.A | F57: 0 | G57: 0 | H57: 0 | J57: 00:00:00 | K57: 00:07:00.400 | L57: 00:00:00
A58: 55. | B58: =B155 -> REPASKÝ | C58: Jakub | D58: 8.A | F58: 0 | G58: 0 | H58: 0 | J58: 00:00:00 | K58: 00:00:00 | L58: 00:00:00
A59: 56. | B59: =B156 -> SKÁLA | C59: Jan | D59: 8.A | F59: 0 | G59: 0 | H59: 0 | J59: 00:00:00 | K59: 00:04:35.630 | L59: 00:00:00
A60: 57. | B60: =B157 -> ŠPULÁK | C60: Jakub | D60: 8.A | F60: 0 | G60: 0 | H60: 0 | J60: 00:00:00 | K60: 00:06:33.510 | L60: 00:00:00
A61: 58. | B61: =B158 -> VALENTA | C61: Tomáš | D61: 8.A | F61: 0 | G61: 0 | H61: 0 | J61: 00:00:00 | K61: 00:04:14.700 | L61: 00:00:00
A62: 59. | B62: =B159 -> VANCL | C62: Jiří | D62: 8.A | F62: 0 | G62: 0 | H62: 0 | J62: 00:00:00 | K62: 00:06:33.070 | L62: 00:00:00
A63: 60. | B63: =B160 -> VAŠÍČEK | C63: David | D63: 8.A | F63: 0 | G63: 0 | H63: 0 | J63: 00:00:00 | K63: 00:04:03.340 | L63: 00:00:00
A64: 61. | B64: =B161 -> ZOUHAR | C64: Ondřej | D64: 8.A | F64: 0 | G64: 0 | H64: 0 | J64: 00:00:00 | K64: 00:04:44.700 | L64: 00:00:00
A65: 62. | B65: =B162 -> ZUZÁNEK | C65: Filip | D65: 8.A | F65: 0 | G65: 0 | H65: 0 | J65: 00:00:00 | K65: 00:04:52.720 | L65: 00:00:00
A66: 63. | B66: =B163 -> BRUMLICH | C66: Jan | D66: 9.A | F66: 0 | G66: 0 | H66: 0 | J66: 00:00:00 | K66: 00:04:14.700 | L66: 00:04:25.940
A67: 64. | B67: =B164 -> BUCHAR | C67: Jiří | D67: 9.A | F67: 0 | G67: 0 | H67: 0 | J67: 00:00:00 | K67: 00:03:53.340 | L67: 00:03:52.460
A68: 65. | B68: =B165 -> FAISTAVER | C68: Jiří | D68: 9.A | F68: 0 | G68: 0 | H68: 0 | J68: 00:00:00 | K68: 00:05:01.310 | L68: 00:05:28.600
A69: 66. | B69: =B166 -> FAISTAVER | C69: Roman | D69: 9.A | F69: 0 | G69: 0 | H69: 0 | J69: 00:00:00 | K69: 00:04:37.410 | L69: 00:04:50.690
A70: 67. | B70: =B167 -> FAJSTAVR | C70: Jakub | D70: 9.A | F70: 0 | G70: 0 | H70: 0 | J70: 00:00:00 | K70: 00:04:15.810 | L70: 00:04:30.620
A71: 68. | B71: =B168 -> FARSKÝ | C71: Vojtěch | D71: 9.A | F71: 0 | G71: 0 | H71: 0 | J71: 00:00:00 | K71: 00:04:43.710 | L71: 00:04:21.650
A72: 69. | B72: =B169 -> HOLUBEC | C72: Lukáš | D72: 9.A | F72: 0 | G72: 0 | H72: 0 | J72: 00:00:00 | K72: 00:05:06.280 | L72: 00:05:01.120
A73: 70. | B73: =B170 -> CHAROUZ | C73: Vojtěch | D73: 9.A | F73: 0 | G73: 0 | H73: 0 | J73: 00:00:00 | K73: 00:04:52.340 | L73: 00:04:51.310
A74: 71. | B74: =B171 -> IACCHERI | C74: Carlo | D74: 9.A | F74: 0 | G74: 0 | H74: 0 | J74: 00:00:00 | K74: 00:04:38.960 | L74: 00:04:58.670
A75: 72. | B75: =B172 -> JOHN | C75: Adrian | D75: 9.A | F75: 0 | G75: 0 | H75: 0 | J75: 00:00:00 | K75: 00:07:04.790 | L75: 00:00:00
A76: 73. | B76: =B173 -> KRČÍK | C76: Matthew | D76: 9.A | F76: 0 | G76: 0 | H76: 0 | J76: 00:00:00 | K76: 00:04:27.180 | L76: 00:04:50.150
A77: 74. | B77: =B174 -> KRESAN | C77: Vojtěch | D77: 9.A | F77: 0 | G77: 0 | H77: 0 | J77: 00:00:00 | K77: 00:05:43.650 | L77: 00:06:44.800
A78: 75. | B78: =B175 -> LÁNSKÝ | C78: Vojtěch | D78: 9.A | F78: 0 | G78: 0 | H78: 0 | J78: 00:00:00 | K78: 00:00:00 | L78: 00:08:43.740
A79: 76. | B79: =B176 -> LEŠÁK | C79: Lukáš | D79: 9.A | F79: 0 | G79: 0 | H79: 0 | J79: 00:00:00 | K79: 00:06:07.790 | L79: 00:06:20.780
A80: 77. | B80: =B177 -> RYPL | C80: Matyáš | D80: 9.A | F80: 0 | G80: 0 | H80: 0 | J80: 00:00:00 | K80: 00:04:09.760 | L80: 00:04:42.750
A81: 78. | B81: =B178 -> VU TRAN DINH | C81: Lukas | D81: 9.A | F81: 0 | G81: 0 | H81: 0 | J81: 00:00:00 | K81: 00:00:00 | L81: 00:00:00
A82: 79. | B82: =B179 -> DUFEK | C82: Matyáš | D82: 9.B | F82: 0 | G82: 0 | H82: 0 | J82: 00:00:00 | K82: 00:07:39.640 | L82: 00:05:56.180
A83: 80. | B83: =B180 -> JEŽEK | C83: Jonáš | D83: 9.B | F83: 0 | G83: 0 | H83: 0 | J83: 00:00:00 | K83: 00:03:35.190 | L83: 00:03:42.380
A84: 81. | B84: =B181 -> JEŽEK | C84: Mikuláš | D84: 9.B | F84: 0 | G84: 0 | H84: 0 | J84: 00:00:00 | K84: 00:03:48.850 | L84: 00:03:56.660
A85: 82. | B85: =B182 -> NECHANICKÝ | C85: Michal | D85: 9.B | F85: 0 | G85: 0 | H85: 0 | J85: 00:00:00 | K85: 00:03:47.550 | L85: 00:03:46.270
A86: 83. | B86: =B183 -> PAULÍČEK | C86: Jakub | D86: 9.B | F86: 0 | G86: 0 | H86: 0 | J86: 00:00:00 | K86: 00:04:12.600 | L86: 00:04:27.300
A87: 84. | B87: =B184 -> POHOŘALÝ | C87: Jakub | D87: 9.B | F87: 0 | G87: 0 | H87: 0 | J87: 00:00:00 | K87: 00:03:44.300 | L87: 00:03:49.250
A88: 85. | B88: =B185 -> POSPÍCHAL | C88: Daniel | D88: 9.B | F88: 0 | G88: 0 | H88: 0 | J88: 00:00:00 | K88: 00:03:51.920 | L88: 00:04:11
A89: 86. | B89: =B186 -> SOUKUP | C89: Lukáš | D89: 9.B | F89: 0 | G89: 0 | H89: 0 | J89: 00:00:00 | K89: 00:04:45.010 | L89: 00:04:50.960
A90: 87. | B90: =B187 -> VANCL | C90: Jan | D90: 9.B | F90: 0 | G90: 0 | H90: 0 | J90: 00:03:42.030 | K90: 00:04:18.730 | L90: 00:04:29.680
A91: 88. | B91: =B188 -> VANCL | C91: Lukáš | D91: 9.B | F91: 0 | G91: 0 | H91: 0 | J91: 00:03:57.460 | K91: 00:04:21.110 | L91: 00:04:14.250
A92: 89. | B92: =B189 -> VAŠÍK | C92: Jiří | D92: 9.B | F92: 0 | G92: 0 | H92: 0 | J92: 00:00:00 | K92: 00:00:00 | L92: 00:04:22.590
A93: 90. | B93: =B190 -> VOHNOUT | C93: Zdeněk | D93: 9.B | F93: 0 | G93: 0 | H93: 0 | J93: 00:03:35.980 | K93: 00:03:50.700 | L93: 00:03:58.370
B101: BOUKAL | C101: Jakub | D101: 6.A | H101: =IF(E101=0,0,(100 - 313216 / E101 + 3453830 / E101*2 - 169860000 / E101*3 + 321980000/ E101*4)/400000000+3) -> 0
B102: DEMČUK | C102: Ilja | D102: 6.A | H102: =IF(E102=0,0,(100 - 313216 / E102 + 3453830 / E102*2 - 169860000 / E102*3 + 321980000/ E102*4)/400000000+3) -> 0
B103: FAISTAUER | C103: Kryštof | D103: 6.A | H103: =IF(E103=0,0,(100 - 313216 / E103 + 3453830 / E103*2 - 169860000 / E103*3 + 321980000/ E103*4)/400000000+3) -> 0
B104: FRK | C104: Matyáš | D104: 6.A | H104: =IF(E104=0,0,(100 - 313216 / E104 + 3453830 / E104*2 - 169860000 / E104*3 + 321980000/ E104*4)/400000000+3) -> 0
B105: HUBÁLOVSKÝ | C105: Marek | D105: 6.A | H105: =IF(E105=0,0,(100 - 313216 / E105 + 3453830 / E105*2 - 169860000 / E105*3 + 321980000/ E105*4)/400000000+3) -> 0
B106: MAŘAS | C106: Dominik | D106: 6.A | H106: =IF(E106=0,0,(100 - 313216 / E106 + 3453830 / E106*2 - 169860000 / E106*3 + 321980000/ E106*4)/400000000+3) -> 0
B107: MAŤÁTKO | C107: Jakub | D107: 6.A | H107: =IF(E107=0,0,(100 - 313216 / E107 + 3453830 / E107*2 - 169860000 / E107*3 + 321980000/ E107*4)/400000000+3) -> 0
B108: MERY | C108: Luboš | D108: 6.A | H108: =IF(E108=0,0,(100 - 313216 / E108 + 3453830 / E108*2 - 169860000 / E108*3 + 321980000/ E108*4)/400000000+3) -> 0
B109: NOVOTNÝ | C109: Matěj | D109: 6.A | H109: =IF(E109=0,0,(100 - 313216 / E109 + 3453830 / E109*2 - 169860000 / E109*3 + 321980000/ E109*4)/400000000+3) -> 0
B110: ŘEHOŘEK | C110: Vojtěch | D110: 6.A | H110: =IF(E110=0,0,(100 - 313216 / E110 + 3453830 / E110*2 - 169860000 / E110*3 + 321980000/ E110*4)/400000000+3) -> 0
B111: ŠÍR | C111: Matyáš | D111: 6.A | H111: =IF(E111=0,0,(100 - 313216 / E111 + 3453830 / E111*2 - 169860000 / E111*3 + 321980000/ E111*4)/400000000+3) -> 0
B112: TORÁČ | C112: Tomáš | D112: 6.A | H112: =IF(E112=0,0,(100 - 313216 / E112 + 3453830 / E112*2 - 169860000 / E112*3 + 321980000/ E112*4)/400000000+3) -> 0
B113: ULLMAN | C113: Šimon | D113: 6.A | H113: =IF(E113=0,0,(100 - 313216 / E113 + 3453830 / E113*2 - 169860000 / E113*3 + 321980000/ E113*4)/400000000+3) -> 0
B114: VÁCLAVÍK | C114: Ondřej | D114: 6.A | H114: =IF(E114=0,0,(100 - 313216 / E114 + 3453830 / E114*2 - 169860000 / E114*3 + 321980000/ E114*4)/400000000+3) -> 0
B115: AUERSWALD | C115: Daniel | D115: 6.B | H115: =IF(E115=0,0,(100 - 313216 / E115 + 3453830 / E115*2 - 169860000 / E115*3 + 321980000/ E115*4)/400000000+3) -> 0
B116: BODLÁK | C116: Vladimír | D116: 6.B | H116: =IF(E116=0,0,(100 - 313216 / E116 + 3453830 / E116*2 - 169860000 / E116*3 + 321980000/ E116*4)/400000000+3) -> 0
B117: BUDINA | C117: Martin | D117: 6.B | H117: =IF(E117=0,0,(100 - 313216 / E117 + 3453830 / E117*2 - 169860000 / E117*3 + 321980000/ E117*4)/400000000+3) -> 0
B118: DVOŘÁK | C118: Dominik | D118: 6.B | H118: =IF(E118=0,0,(100 - 313216 / E118 + 3453830 / E118*2 - 169860000 / E118*3 + 321980000/ E118*4)/400000000+3) -> 0
B119: FIŠERA | C119: Vojtěch | D119: 6.B | H119: =IF(E119=0,0,(100 - 313216 / E119 + 3453830 / E119*2 - 169860000 / E119*3 + 321980000/ E119*4)/400000000+3) -> 0
B120: JINDŘIŠEK | C120: Vít | D120: 6.B | H120: =IF(E120=0,0,(100 - 313216 / E120 + 3453830 / E120*2 - 169860000 / E120*3 + 321980000/ E120*4)/400000000+3) -> 0
B121: JIROUŠ | C121: Matouš | D121: 6.B | H121: =IF(E121=0,0,(100 - 313216 / E121 + 3453830 / E121*2 - 169860000 / E121*3 + 321980000/ E121*4)/400000000+3) -> 0
B122: KERLE | C122: Marek | D122: 6.B | H122: =IF(E122=0,0,(100 - 313216 / E122 + 3453830 / E122*2 - 169860000 / E122*3 + 321980000/ E122*4)/400000000+3) -> 0
B123: LUKEŠ | C123: Jakub | D123: 6.B | H123: =IF(E123=0,0,(100 - 313216 / E123 + 3453830 / E123*2 - 169860000 / E123*3 + 321980000/ E123*4)/400000000+3) -> 0
B124: OTT | C124: Matyáš | D124: 6.B | H124: =IF(E124=0,0,(100 - 313216 / E124 + 3453830 / E124*2 - 169860000 / E124*3 + 321980000/ E124*4)/400000000+3) -> 0
B125: POKORNÝ | C125: Matyáš | D125: 6.B | H125: =IF(E125=0,0,(100 - 313216 / E125 + 3453830 / E125*2 - 169860000 / E125*3 + 321980000/ E125*4)/400000000+3) -> 0
B126: POLÁČEK | C126: Matyáš | D126: 6.B | H126: =IF(E126=0,0,(100 - 313216 / E126 + 3453830 / E126*2 - 169860000 / E126*3 + 321980000/ E126*4)/400000000+3) -> 0
B127: SOUKUP | C127: Patrik | D127: 6.B | H127: =IF(E127=0,0,(100 - 313216 / E127 + 3453830 / E127*2 - 169860000 / E127*3 + 321980000/ E127*4)/400000000+3) -> 0
B128: VALENTA | C128: Jakub | D128: 6.B | H128: =IF(E128=0,0,(100 - 313216 / E128 + 3453830 / E128*2 - 169860000 / E128*3 + 321980000/ E128*4)/400000000+3) -> 0
B129: VRBATA | C129: Dominik | D129: 6.B | H129: =IF(E129=0,0,(100 - 313216 / E129 + 3453830 / E129*2 - 169860000 / E129*3 + 321980000/ E129*4)/400000000+3) -> 0
B130: FEJKL | C130: Jan | D130: 7.A | H130: =IF(E130=0,0,(100 - 313216 / E130 + 3453830 / E130*2 - 169860000 / E130*3 + 321980000/ E130*4)/400000000+3) -> 0
B131: KOTYK | C131: Tadeáš | D131: 7.A | H131: =IF(E131=0,0,(100 - 313216 / E131 + 3453830 / E131*2 - 169860000 / E131*3 + 321980000/ E131*4)/400000000+3) -> 0
B132: KRAUSE | C132: Tadeáš | D132: 7.A | H132: =IF(E132=0,0,(100 - 313216 / E132 + 3453830 / E132*2 - 169860000 / E132*3 + 321980000/ E132*4)/400000000+3) -> 0
B133: LEŠÁK | C133: Martin | D133: 7.A | H133: =IF(E133=0,0,(100 - 313216 / E133 + 3453830 / E133*2 - 169860000 / E133*3 + 321980000/ E133*4)/400000000+3) -> 0
B134: NECHANICKÝ | C134: David | D134: 7.A | H134: =IF(E134=0,0,(100 - 313216 / E134 + 3453830 / E134*2 - 169860000 / E134*3 + 321980000/ E134*4)/400000000+3) -> 0
B135: ŘEHOŘEK | C135: Jan | D135: 7.A | H135: =IF(E135=0,0,(100 - 313216 / E135 + 3453830 / E135*2 - 169860000 / E135*3 + 321980000/ E135*4)/400000000+3) -> 0
B136: SOUKUP | C136: Ondřej | D136: 7.A | H136: =IF(E136=0,0,(100 - 313216 / E136 + 3453830 / E136*2 - 169860000 / E136*3 + 321980000/ E136*4)/400000000+3) -> 0
B137: SPANILÝ | C137: David | D137: 7.A | H137: =IF(E137=0,0,(100 - 313216 / E137 + 3453830 / E137*2 - 169860000 / E137*3 + 321980000/ E137*4)/400000000+3) -> 0
B138: ČADAN | C138: Benjamín | D138: 7.B | H138: =IF(E138=0,0,(100 - 313216 / E138 + 3453830 / E138*2 - 169860000 / E138*3 + 321980000/ E138*4)/400000000+3) -> 0
B139: ČERNÝ | C139: Michal | D139: 7.B | H139: =IF(E139=0,0,(100 - 313216 / E139 + 3453830 / E139*2 - 169860000 / E139*3 + 321980000/ E139*4)/400000000+3) -> 0
B140: DOLEJŠÍ | C140: David | D140: 7.B | H140: =IF(E140=0,0,(100 - 313216 / E140 + 3453830 / E140*2 - 169860000 / E140*3 + 321980000/ E140*4)/400000000+3) -> 0
B141: NOVÁK | C141: Matěj | D141: 7.B | H141: =IF(E141=0,0,(100 - 313216 / E141 + 3453830 / E141*2 - 169860000 / E141*3 + 321980000/ E141*4)/400000000+3) -> 0
B142: POVAŽANEC | C142: Martin | D142: 7.B | H142: =IF(E142=0,0,(100 - 313216 / E142 + 3453830 / E142*2 - 169860000 / E142*3 + 321980000/ E142*4)/400000000+3) -> 0
B143: RICHTER | C143: Jakub | D143: 7.B | H143: =IF(E143=0,0,(100 - 313216 / E143 + 3453830 / E143*2 - 169860000 / E143*3 + 321980000/ E143*4)/400000000+3) -> 0
B144: ROZUMEK | C144: Adam | D144: 7.B | H144: =IF(E144=0,0,(100 - 313216 / E144 + 3453830 / E144*2 - 169860000 / E144*3 + 321980000/ E144*4)/400000000+3) -> 0
B145: VALENTA | C145: František | D145: 7.B | H145: =IF(E145=0,0,(100 - 313216 / E145 + 3453830 / E145*2 - 169860000 / E145*3 + 321980000/ E145*4)/400000000+3) -> 0
B146: ZAPLATÍLEK | C146: Josef | D146: 7.B | H146: =IF(E146=0,0,(100 - 313216 / E146 + 3453830 / E146*2 - 169860000 / E146*3 + 321980000/ E146*4)/400000000+3) -> 0
B147: ERBEN | C147: Viktor | D147: 8.A | H147: =IF(E147=0,0,(100 - 313216 / E147 + 3453830 / E147*2 - 169860000 / E147*3 + 321980000/ E147*4)/400000000+3) -> 0 | K147: 00:05:36.210
B148: FRANC | C148: Daniel | D148: 8.A | H148: =IF(E148=0,0,(100 - 313216 / E148 + 3453830 / E148*2 - 169860000 / E148*3 + 321980000/ E148*4)/400000000+3) -> 0 | K148: 00:06:39.340
B149: JINDŘIŠEK | C149: Matyáš | D149: 8.A | H149: =IF(E149=0,0,(100 - 313216 / E149 + 3453830 / E149*2 - 169860000 / E149*3 + 321980000/ E149*4)/400000000+3) -> 0 | K149: 00:04:05.550
B150: KOLAČNÝ | C150: Štěpán | D150: 8.A | H150: =IF(E150=0,0,(100 - 313216 / E150 + 3453830 / E150*2 - 169860000 / E150*3 + 321980000/ E150*4)/400000000+3) -> 0 | K150: 00:04:52.390
B151: KRISTAN | C151: Jáchym | D151: 8.A | H151: =IF(E151=0,0,(100 - 313216 / E151 + 3453830 / E151*2 - 169860000 / E151*3 + 321980000/ E151*4)/400000000+3) -> 0 | K151: 00:07:05.290
B152: NGUYEN | C152: David | D152: 8.A
B153: NOVOTNÝ | C153: Jan | D153: 8.A | H153: =IF(E153=0,0,(100 - 313216 / E153 + 3453830 / E153*2 - 169860000 / E153*3 + 321980000/ E153*4)/400000000+3) -> 0
B154: RÁB | C154: Adam | D154: 8.A | H154: =IF(E154=0,0,(100 - 313216 / E154 + 3453830 / E154*2 - 169860000 / E154*3 + 321980000/ E154*4)/400000000+3) -> 0 | K154: 00:07:00.400
B155: REPASKÝ | C155: Jakub | D155: 8.A | H155: =IF(E155=0,0,(100 - 313216 / E155 + 3453830 / E155*2 - 169860000 / E155*3 + 321980000/ E155*4)/400000000+3) -> 0
B156: SKÁLA | C156: Jan | D156: 8.A | H156: =IF(E156=0,0,(100 - 313216 / E156 + 3453830 / E156*2 - 169860000 / E156*3 + 321980000/ E156*4)/400000000+3) -> 0 | K156: 00:04:35.630
B157: ŠPULÁK | C157: Jakub | D157: 8.A | H157: =IF(E157=0,0,(100 - 313216 / E157 + 3453830 / E157*2 - 169860000 / E157*3 + 321980000/ E157*4)/400000000+3) -> 0 | K157: 00:06:33.510
B158: VALENTA | C158: Tomáš | D158: 8.A | H158: =IF(E158=0,0,(100 - 313216 / E158 + 3453830 / E158*2 - 169860000 / E158*3 + 321980000/ E158*4)/400000000+3) -> 0 | K158: 00:04:14.700
B159: VANCL | C159: Jiří | D159: 8.A | H159: =IF(E159=0,0,(100 - 313216 / E159 + 3453830 / E159*2 - 169860000 / E159*3 + 321980000/ E159*4)/400000000+3) -> 0 | K159: 00:06:33.070
B160: VAŠÍČEK | C160: David | D160: 8.A | H160: =IF(E160=0,0,(100 - 313216 / E160 + 3453830 / E160*2 - 169860000 / E160*3 + 321980000/ E160*4)/400000000+3) -> 0 | K160: 00:04:03.340
B161: ZOUHAR | C161: Ondřej | D161: 8.A | H161: =IF(E161=0,0,(100 - 313216 / E161 + 3453830 / E161*2 - 169860000 / E161*3 + 321980000/ E161*4)/400000000+3) -> 0 | K161: 00:04:44.700
B162: ZUZÁNEK | C162: Filip | D162: 8.A | H162: =IF(E162=0,0,(100 - 313216 / E162 + 3453830 / E162*2 - 169860000 / E162*3 + 321980000/ E162*4)/400000000+3) -> 0 | K162: 00:04:52.720
B163: BRUMLICH | C163: Jan | D163: 9.A | H163: =IF(E163=0,0,(100 - 313216 / E163 + 3453830 / E163*2 - 169860000 / E163*3 + 321980000/ E163*4)/400000000+3) -> 0 | K163: 00:04:14.700 | L163: 00:04:25.940
B164: BUCHAR | C164: Jiří | D164: 9.A | H164: =IF(E164=0,0,(100 - 313216 / E164 + 3453830 / E164*2 - 169860000 / E164*3 + 321980000/ E164*4)/400000000+3) -> 0 | K164: 00:03:53.340 | L164: 00:03:52.460
B165: FAISTAVER | C165: Jiří | D165: 9.A | H165: =IF(E165=0,0,(100 - 313216 / E165 + 3453830 / E165*2 - 169860000 / E165*3 + 321980000/ E165*4)/400000000+3) -> 0 | K165: 00:05:01.310 | L165: 00:05:28.600
B166: FAISTAVER | C166: Roman | D166: 9.A | H166: =IF(E166=0,0,(100 - 313216 / E166 + 3453830 / E166*2 - 169860000 / E166*3 + 321980000/ E166*4)/400000000+3) -> 0 | K166: 00:04:37.410 | L166: 00:04:50.690
B167: FAJSTAVR | C167: Jakub | D167: 9.A | H167: =IF(E167=0,0,(100 - 313216 / E167 + 3453830 / E167*2 - 169860000 / E167*3 + 321980000/ E167*4)/400000000+3) -> 0 | K167: 00:04:15.810 | L167: 00:04:30.620
B168: FARSKÝ | C168: Vojtěch | D168: 9.A | H168: =IF(E168=0,0,(100 - 313216 / E168 + 3453830 / E168*2 - 169860000 / E168*3 + 321980000/ E168*4)/400000000+3) -> 0 | K168: 00:04:43.710 | L168: 00:04:21.650
B169: HOLUBEC | C169: Lukáš | D169: 9.A | H169: =IF(E169=0,0,(100 - 313216 / E169 + 3453830 / E169*2 - 169860000 / E169*3 + 321980000/ E169*4)/400000000+3) -> 0 | K169: 00:05:06.280 | L169: 00:05:01.120
B170: CHAROUZ | C170: Vojtěch | D170: 9.A | H170: =IF(E170=0,0,(100 - 313216 / E170 + 3453830 / E170*2 - 169860000 / E170*3 + 321980000/ E170*4)/400000000+3) -> 0 | K170: 00:04:52.340 | L170: 00:04:51.310
B171: IACCHERI | C171: Carlo | D171: 9.A | H171: =IF(E171=0,0,(100 - 313216 / E171 + 3453830 / E171*2 - 169860000 / E171*3 + 321980000/ E171*4)/400000000+3) -> 0 | K171: 00:04:38.960 | L171: 00:04:58.670
B172: JOHN | C172: Adrian | D172: 9.A | H172: =IF(E172=0,0,(100 - 313216 / E172 + 3453830 / E172*2 - 169860000 / E172*3 + 321980000/ E172*4)/400000000+3) -> 0 | K172: 00:07:04.790
B173: KRČÍK | C173: Matthew | D173: 9.A | H173: =IF(E173=0,0,(100 - 313216 / E173 + 3453830 / E173*2 - 169860000 / E173*3 + 321980000/ E173*4)/400000000+3) -> 0 | K173: 00:04:27.180 | L173: 00:04:50.150
B174: KRESAN | C174: Vojtěch | D174: 9.A | H174: =IF(E174=0,0,(100 - 313216 / E174 + 3453830 / E174*2 - 169860000 / E174*3 + 321980000/ E174*4)/400000000+3) -> 0 | K174: 00:05:43.650 | L174: 00:06:44.800
B175: LÁNSKÝ | C175: Vojtěch | D175: 9.A | H175: =IF(E175=0,0,(100 - 313216 / E175 + 3453830 / E175*2 - 169860000 / E175*3 + 321980000/ E175*4)/400000000+3) -> 0 | L175: 00:08:43.740
B176: LEŠÁK | C176: Lukáš | D176: 9.A | H176: =IF(E176=0,0,(100 - 313216 / E176 + 3453830 / E176*2 - 169860000 / E176*3 + 321980000/ E176*4)/400000000+3) -> 0 | K176: 00:06:07.790 | L176: 00:06:20.780
B177: RYPL | C177: Matyáš | D177: 9.A | H177: =IF(E177=0,0,(100 - 313216 / E177 + 3453830 / E177*2 - 169860000 / E177*3 + 321980000/ E177*4)/400000000+3) -> 0 | K177: 00:04:09.760 | L177: 00:04:42.750
B178: VU TRAN DINH | C178: Lukas | D178: 9.A
B179: DUFEK | C179: Matyáš | D179: 9.B | H179: =IF(E179=0,0,(100 - 313216 / E179 + 3453830 / E179*2 - 169860000 / E179*3 + 321980000/ E179*4)/400000000+3) -> 0 | K179: 00:07:39.640 | L179: 00:05:56.180
B180: JEŽEK | C180: Jonáš | D180: 9.B | H180: =IF(E180=0,0,(100 - 313216 / E180 + 3453830 / E180*2 - 169860000 / E180*3 + 321980000/ E180*4)/400000000+3) -> 0 | K180: 00:03:35.190 | L180: 00:03:42.380
B181: JEŽEK | C181: Mikuláš | D181: 9.B | H181: =IF(E181=0,0,(100 - 313216 / E181 + 3453830 / E181*2 - 169860000 / E181*3 + 321980000/ E181*4)/400000000+3) -> 0 | K181: 00:03:48.850 | L181: 00:03:56.660
B182: NECHANICKÝ | C182: Michal | D182: 9.B | H182: =IF(E182=0,0,(100 - 313216 / E182 + 3453830 / E182*2 - 169860000 / E182*3 + 321980000/ E182*4)/400000000+3) -> 0 | K182: 00:03:47.550 | L182: 00:03:46.270
B183: PAULÍČEK | C183: Jakub | D183: 9.B | H183: =IF(E183=0,0,(100 - 313216 / E183 + 3453830 / E183*2 - 169860000 / E183*3 + 321980000/ E183*4)/400000000+3) -> 0 | K183: 00:04:12.600 | L183: 00:04:27.300
B184: POHOŘALÝ | C184: Jakub | D184: 9.B | H184: =IF(E184=0,0,(100 - 313216 / E184 + 3453830 / E184*2 - 169860000 / E184*3 + 321980000/ E184*4)/400000000+3) -> 0 | K184: 00:03:44.300 | L184: 00:03:49.250
B185: POSPÍCHAL | C185: Daniel | D185: 9.B | H185: =IF(E185=0,0,(100 - 313216 / E185 + 3453830 / E185*2 - 169860000 / E185*3 + 321980000/ E185*4)/400000000+3) -> 0 | K185: 00:03:51.920 | L185: 00:04:11
B186: SOUKUP | C186: Lukáš | D186: 9.B | H186: =IF(E186=0,0,(100 - 313216 / E186 + 3453830 / E186*2 - 169860000 / E186*3 + 321980000/ E186*4)/400000000+3) -> 0 | K186: 00:04:45.010 | L186: 00:04:50.960
B187: VANCL | C187: Jan | D187: 9.B | H187: =IF(E187=0,0,(100 - 313216 / E187 + 3453830 / E187*2 - 169860000 / E187*3 + 321980000/ E187*4)/400000000+3) -> 0 | J187: 00:03:42.030 | K187: 00:04:18.730 | L187: 00:04:29.680
B188: VANCL | C188: Lukáš | D188: 9.B | H188: =IF(E188=0,0,(100 - 313216 / E188 + 3453830 / E188*2 - 169860000 / E188*3 + 321980000/ E188*4)/400000000+3) -> 0 | J188: 00:03:57.460 | K188: 00:04:21.110 | L188: 00:04:14.250
B189: VAŠÍK | C189: Jiří | D189: 9.B | H189: =IF(E189=0,0,(100 - 313216 / E189 + 3453830 / E189*2 - 169860000 / E189*3 + 321980000/ E189*4)/400000000+3) -> 0 | L189: 00:04:22.590
B190: VOHNOUT | C190: Zdeněk | D190: 9.B | H190: =IF(E190=0,0,(100 - 313216 / E190 + 3453830 / E190*2 - 169860000 / E190*3 + 321980000/ E190*4)/400000000+3) -> 0 | J190: 00:03:35.980 | K190: 00:03:50.700 | L190: 00:03:58.370

Sheet DÁLKA
C1: VÝKONY 2020 - 2021 | G1: DÁLKA | H1: CHLAPCI 6. - 9. ROČ.
B2: stav k | C2: =TODAY() -> 2021-06-28 | J2: 19 - 20 | K2: 18 - 19 | L2: 17 - 18
A4: 1. | B4: =B101 -> BOUKAL | C4: =C101 -> Jakub | D4: 6.A | E4: 245 | G4: Jilemnice 23.09.20 | H4: 474.24 | J4: 0 | K4: 0 | L4: 0
A5: 2. | B5: =B102 -> DEMČUK | C5: Ilja | D5: 6.A | E5: 311 | G5: Jilemnice 16.09.20 | H5: 572.052 | J5: 0 | K5: 0 | L5: 0
A6: 3. | B6: =B103 -> FAISTAUER | C6: Kryštof | D6: 6.A | E6: 366 | G6: Jilemnice 16.09.20 | H6: 653.562 | J6: 0 | K6: 0 | L6: 0
A7: 4. | B7: =B104 -> FRK | C7: Matyáš | D7: 6.A | E7: 282 | G7: Jilemnice 16.09.20 | H7: 529.074 | J7: 0 | K7: 0 | L7: 0
A8: 5. | B8: =B105 -> HUBÁLOVSKÝ | C8: Marek | D8: 6.A | E8: 383 | G8: Jilemnice 16.09.20 | H8: 678.756 | J8: 0 | K8: 0 | L8: 0
A9: 6. | B9: =B106 -> MAŘAS | C9: Dominik | D9: 6.A | E9: 293 | G9: Jilemnice 23.09.20 | H9: 545.376 | J9: 0 | K9: 0 | L9: 0
A10: 7. | B10: =B107 -> MAŤÁTKO | C10: Jakub | D10: 6.A | E10: 0 | G10: 0 | H10: 0 | J10: 0 | K10: 0 | L10: 0
A11: 8. | B11: =B108 -> MERY | C11: Luboš | D11: 6.A | E11: 0 | G11: 0 | H11: 0 | J11: 0 | K11: 0 | L11: 0
A12: 9. | B12: =B109 -> NOVOTNÝ | C12: Matěj | D12: 6.A | E12: 281 | G12: Jilemnice 16.09.20 | H12: 527.592 | J12: 0 | K12: 0 | L12: 0
A13: 10. | B13: =B110 -> ŘEHOŘEK | C13: Vojtěch | D13: 6.A | E13: 296 | G13: Jilemnice 16.09.20 | H13: 549.822 | J13: 0 | K13: 0 | L13: 0
A14: 11. | B14: =B111 -> ŠÍR | C14: Matyáš | D14: 6.A | E14: 283 | G14: Jilemnice 16.09.20 | H14: 530.556 | J14: 0 | K14: 0 | L14: 0
A15: 12. | B15: =B112 -> TORÁČ | C15: Tomáš | D15: 6.A | E15: 0 | G15: 0 | H15: 0 | J15: 0 | K15: 0 | L15: 0
A16: 13. | B16: =B113 -> ULLMAN | C16: Šimon | D16: 6.A | E16: 353 | G16: Jilemnice 16.09.20 | H16: 634.296 | J16: 0 | K16: 0 | L16: 0
A17: 14. | B17: =B114 -> VÁCLAVÍK | C17: Ondřej | D17: 6.A | E17: 309 | G17: Jilemnice 16.09.20 | H17: 569.088 | J17: 0 | K17: 0 | L17: 0
A18: 15. | B18: =B115 -> AUERSWALD | C18: Daniel | D18: 6.B | E18: 348 | G18: Jilemnice 18.09.20 | H18: 626.886 | J18: 0 | K18: 0 | L18: 0
A19: 16. | B19: =B116 -> BODLÁK | C19: Vladimír | D19: 6.B | E19: 0 | G19: 0 | H19: 0 | J19: 0 | K19: 0 | L19: 0
A20: 17. | B20: =B117 -> BUDÍN | C20: Martin | D20: 6.B | E20: 327 | G20: Jilemnice 18.09.20 | H20: 595.764 | J20: 0 | K20: 0 | L20: 0
A21: 18. | B21: =B118 -> DVOŘÁK | C21: Dominik | D21: 6.B | E21: 247 | G21: Jilemnice 18.09.20 | H21: 477.204 | J21: 0 | K21: 0 | L21: 0
A22: 19. | B22: =B119 -> FIŠERA | C22: Vojtěch | D22: 6.B | E22: 323 | G22: Jilemnice 18.09.20 | H22: 589.836 | J22: 0 | K22: 0 | L22: 0
A23: 20. | B23: =B120 -> JINDŘIŠEK | C23: Vít | D23: 6.B | E23: 381 | G23: Jilemnice 18.09.20 | H23: 675.792 | J23: 0 | K23: 0 | L23: 0
A24: 21. | B24: =B121 -> JIROUŠ | C24: Matouš | D24: 6.B | E24: 356 | G24: Jilemnice 18.09.20 | H24: 638.742 | J24: 0 | K24: 0 | L24: 0
A25: 22. | B25: =B122 -> KERLE | C25: Marek | D25: 6.B | E25: 321 | G25: Jilemnice 18.09.20 | H25: 586.872 | J25: 0 | K25: 0 | L25: 0
A26: 23. | B26: =B123 -> LUKEŠ | C26: Jakub | D26: 6.B | E26: 304 | G26: Jilemnice 18.09.20 | H26: 561.678 | J26: 0 | K26: 0 | L26: 0
A27: 24. | B27: =B124 -> OTT | C27: Matyáš | D27: 6.B | E27: 307 | G27: Jilemnice 18.09.20 | H27: 566.124 | J27: 0 | K27: 0 | L27: 0
A28: 25. | B28: =B125 -> POKORNÝ | C28: Matyáš | D28: 6.B | E28: 0 | G28: 0 | H28: 0 | J28: 0 | K28: 0 | L28: 0
A29: 26. | B29: =B126 -> POLÁČEK | C29: Matyáš | D29: 6.B | E29: 282 | G29: Jilemnice 18.09.20 | H29: 529.074 | J29: 0 | K29: 0 | L29: 0
A30: 27. | B30: =B127 -> SOUKUP | C30: Patrik | D30: 6.B | E30: 332 | G30: Jilemnice 18.09.20 | H30: 603.174 | J30: 0 | K30: 0 | L30: 0
A31: 28. | B31: =B128 -> VALENTA | C31: Jakub | D31: 6.B | E31: 0 | G31: 0 | H31: 0 | J31: 0 | K31: 0 | L31: 0
A32: 29. | B32: =B129 -> VRBATA | C32: Dominik | D32: 6.B | E32: 339 | G32: Jilemnice 18.09.20 | H32: 613.548 | J32: 0 | K32: 0 | L32: 0
A33: 30. | B33: =B130 -> FEJKL | C33: Jan | D33: 7.A | E33: 465 | G33: Jilemnice 18.09.20 | H33: 800.28 | J33: 389 | K33: 0 | L33: 0
A34: 31. | B34: =B131 -> KOTYK | C34: Tadeáš | D34: 7.A | E34: 296 | G34: Jilemnice 18.09.20 | H34: 549.822 | J34: 305 | K34: 0 | L34: 0
A35: 32. | B35: =B132 -> KRAUSE | C35: Tadeáš | D35: 7.A | E35: 357 | G35: Jilemnice 18.09.20 | H35: 640.224 | J35: 324 | K35: 0 | L35: 0
A36: 33. | B36: =B133 -> LEŠÁK | C36: Martin | D36: 7.A | E36: 0 | G36: 0 | H36: 0 | J36: 307 | K36: 0 | L36: 0
A37: 34. | B37: =B134 -> NECHANICKÝ | C37: David | D37: 7.A | E37: 371 | G37: Jilemnice 18.09.20 | H37: 660.972 | J37: 356 | K37: 0 | L37: 0
A38: 35. | B38: =B135 -> ŘEHOŘEK | C38: Jan | D38: 7.A | E38: 362 | G38: Jilemnice 18.09.20 | H38: 647.634 | J38: 333 | K38: 0 | L38: 0
A39: 36. | B39: =B136 -> SOUKUP | C39: Ondřej | D39: 7.A | E39: 314 | G39: Jilemnice 18.09.20 | H39: 576.498 | J39: 341 | K39: 0 | L39: 0
A40: 37. | B40: =B137 -> SPANILÝ | C40: David | D40: 7.A | E40: 0 | G40: 0 | H40: 0 | J40: 336 | K40: 0 | L40: 0
A41: 38. | B41: =B138 -> ČADAN | C41: Benjamín | D41: 7.B | E41: 332 | G41: Jilemnice 18.09.20 | H41: 603.174 | J41: 292 | K41: 0 | L41: 0
A42: 39. | B42: =B139 -> ČERNÝ | C42: Michal | D42: 7.B | E42: 282 | G42: Jilemnice 18.09.20 | H42: 529.074 | J42: 294 | K42: 0 | L42: 0
A43: 40. | B43: =B140 -> DOLEJŠÍ | C43: David | D43: 7.B | E43: 303 | G43: Jilemnice 18.09.20 | H43: 560.196 | J43: 287 | K43: 0 | L43: 0
A44: 41. | B44: =B141 -> NOVÁK | C44: Matěj | D44: 7.B | E44: 322 | G44: Jilemnice 18.09.20 | H44: 588.354 | J44: 306 | K44: 0 | L44: 0
A45: 42. | B45: =B142 -> POVAŽANEC | C45: Martin | D45: 7.B | E45: 371 | G45: Jilemnice 18.09.20 | H45: 660.972 | J45: 310 | K45: 0 | L45: 0
A46: 43. | B46: =B143 -> RICHTER | C46: Jakub | D46: 7.B | E46: 0 | G46: 0 | H46: 0 | J46: 266 | K46: 0 | L46: 0
A47: 44. | B47: =B144 -> ROZUMEK | C47: Adam | D47: 7.B | E47: 273 | G47: Jilemnice 18.09.20 | H47: 515.736 | J47: 238 | K47: 0 | L47: 0
A48: 45. | B48: =B145 -> VALENTA | C48: František | D48: 7.B | E48: 273 | G48: Jilemnice 18.09.20 | H48: 515.736 | J48: 271 | K48: 0 | L48: 0
A49: 46. | B49: =B146 -> ZAPLATÍLEK | C49: Josef | D49: 7.B | E49: 0 | G49: 0 | H49: 0 | J49: 333 | K49: 0 | L49: 0
A50: 47. | B50: =B147 -> ERBEN | C50: Viktor | D50: 8.A | E50: 0 | G50: 0 | H50: 0 | J50: 0 | K50: 225 | L50: 0
A51: 48. | B51: =B148 -> FRANC | C51: Daniel | D51: 8.A | E51: 306 | G51: Jilemnice 16.09.20 | H51: 564.642 | J51: 0 | K51: 245 | L51: 0
A52: 49. | B52: =B149 -> JINDŘIŠEK | C52: Matyáš | D52: 8.A | E52: 0 | G52: 0 | H52: 0 | J52: 339 | K52: 250 | L52: 0
A53: 50. | B53: =B150 -> KOLAČNÝ | C53: Štěpán | D53: 8.A | E53: 307 | G53: Jilemnice 16.09.20 | H53: 566.124 | J53: 308 | K53: 230 | L53: 0
A54: 51. | B54: =B151 -> KRISTAN | C54: Jáchym | D54: 8.A | E54: 0 | G54: 0 | H54: 0 | J54: 0 | K54: 175 | L54: 0
A55: 52. | B55: =B152 -> NGUYEN | C55: David | D55: 8.A | E55: 381 | G55: Jilemnice 16.09.20 | H55: 0 | J55: 350 | K55: 0 | L55: 0
A56: 53. | B56: =B153 -> NOVOTNÝ | C56: Jan | D56: 8.A | E56: 372 | G56: Jilemnice 16.09.20 | H56: 662.454 | J56: 390 | K56: 0 | L56: 0
A57: 54. | B57: =B154 -> RÁB | C57: Adam | D57: 8.A | E57: 284 | G57: Jilemnice 16.09.20 | H57: 532.038 | J57: 283 | K57: 206 | L57: 0
A58: 55. | B58: =B155 -> REPASKÝ | C58: Jakub | D58: 8.A | E58: 0 | G58: 0 | H58: 0 | J58: 0 | K58: 315 | L58: 0
A59: 56. | B59: =B156 -> SKÁLA | C59: Jan | D59: 8.A | E59: 408 | G59: Jilemnice 16.09.20 | H59: 715.806 | J59: 321 | K59: 200 | L59: 0
A60: 57. | B60: =B157 -> ŠPULÁK | C60: Jakub | D60: 8.A | E60: 348 | G60: Jilemnice 16.09.20 | H60: 626.886 | J60: 322 | K60: 215 | L60: 0
A61: 58. | B61: =B158 -> VALENTA | C61: Tomáš | D61: 8.A | E61: 485 | G61: Jilemnice 16.09.20 | H61: 829.92 | J61: 445 | K61: 345 | L61: 0
A62: 59. | B62: =B159 -> VANCL | C62: Jiří | D62: 8.A | E62: 0 | G62: 0 | H62: 0 | J62: 297 | K62: 182 | L62: 0
A63: 60. | B63: =B160 -> VAŠÍČEK | C63: David | D63: 8.A | E63: 349 | G63: Jilemnice 16.09.20 | H63: 628.368 | J63: 0 | K63: 270 | L63: 0
A64: 61. | B64: =B161 -> ZOUHAR | C64: Ondřej | D64: 8.A | E64: 373 | G64: Jilemnice 16.09.20 | H64: 663.936 | J64: 373 | K64: 305 | L64: 0
A65: 62. | B65: =B162 -> ZUZÁNEK | C65: Filip | D65: 8.A | E65: 0 | G65: 0 | H65: 0 | J65: 324 | K65: 271 | L65: 0
A66: 63. | B66: =B163 -> BRUMLICH | C66: Jan | D66: 9.A | E66: 0 | G66: 0 | H66: 0 | J66: 383 | K66: 371 | L66: 334
A67: 64. | B67: =B164 -> BUCHAR | C67: Jiří | D67: 9.A | E67: 415 | G67: Jilemnice 16.09.20 | H67: 726.18 | J67: 412 | K67: 371 | L67: 322
A68: 65. | B68: =B165 -> FAISTAVER | C68: Jiří | D68: 9.A | E68: 407 | G68: Jilemnice 16.09.20 | H68: 714.324 | J68: 373 | K68: 284 | L68: 315
A69: 66. | B69: =B166 -> FAISTAVER | C69: Roman | D69: 9.A | E69: 413 | G69: Jilemnice 16.09.20 | H69: 723.216 | J69: 460 | K69: 366 | L69: 341
A70: 67. | B70: =B167 -> FAJSTAVR | C70: Jakub | D70: 9.A | E70: 383 | G70: Jilemnice 16.09.20 | H70: 678.756 | J70: 0 | K70: 347 | L70: 277
A71: 68. | B71: =B168 -> FARSKÝ | C71: Vojtěch | D71: 9.A | E71: 430 | G71: Jilemnice 16.09.20 | H71: 748.41 | J71: 405 | K71: 360 | L71: 337
A72: 69. | B72: =B169 -> HOLUBEC | C72: Lukáš | D72: 9.A | E72: 331 | G72: Jilemnice 16.09.20 | H72: 601.692 | J72: 0 | K72: 270 | L72: 284
A73: 70. | B73: =B170 -> CHAROUZ | C73: Vojtěch | D73: 9.A | E73: 405 | G73: Jilemnice 16.09.20 | H73: 711.36 | J73: 372 | K73: 309 | L73: 292
A74: 71. | B74: =B171 -> IACCHERI | C74: Carlo | D74: 9.A | E74: 339 | G74: Jilemnice 16.09.20 | H74: 613.548 | J74: 339 | K74: 0 | L74: 274
A75: 72. | B75: =B172 -> JOHN | C75: Adrian | D75: 9.A | E75: 208 | G75: Jilemnice 16.09.20 | H75: 419.406 | J75: 256 | K75: 251 | L75: 170
A76: 73. | B76: =B173 -> KRČÍK | C76: Matthew | D76: 9.A | E76: 351 | G76: Jilemnice 16.09.20 | H76: 631.332 | J76: 355 | K76: 329 | L76: 289
A77: 74. | B77: =B174 -> KRESAN | C77: Vojtěch | D77: 9.A | E77: 336 | G77: Jilemnice 16.09.20 | H77: 609.102 | J77: 339 | K77: 321 | L77: 260
A78: 75. | B78: =B175 -> LÁNSKÝ | C78: Vojtěch | D78: 9.A | E78: 0 | G78: 0 | H78: 0 | J78: 250 | K78: 219 | L78: 151
A79: 76. | B79: =B176 -> LEŠÁK | C79: Lukáš | D79: 9.A | E79: 243 | G79: Jilemnice 16.09.20 | H79: 471.276 | J79: 249 | K79: 0 | L79: 177
A80: 77. | B80: =B177 -> RYPL | C80: Matyáš | D80: 9.A | E80: 416 | G80: Jilemnice 16.09.20 | H80: 727.662 | J80: 375 | K80: 334 | L80: 280
A81: 78. | B81: =B178 -> VU TRAN DINH | C81: Lukas | D81: 9.A | E81: 377 | G81: Jilemnice 16.09.20 | H81: 669.864 | J81: 370 | K81: 0 | L81: 0
A82: 79. | B82: =B179 -> DUFEK | C82: Matyáš | D82: 9.B | E82: 0 | G82: 0 | H82: 0 | J82: 0 | K82: 0 | L82: 230
A83: 80. | B83: =B180 -> JEŽEK | C83: Jonáš | D83: 9.B | E83: 0 | G83: 0 | H83: 0 | J83: 469 | K83: 393 | L83: 440
A84: 81. | B84: =B181 -> JEŽEK | C84: Mikuláš | D84: 9.B | E84: 0 | G84: 0 | H84: 0 | J84: 443 | K84: 411 | L84: 406
A85: 82. | B85: =B182 -> NECHANICKÝ | C85: Michal | D85: 9.B | E85: 385 | G85: Jilemnice 16.09.20 | H85: 681.72 | J85: 372 | K85: 380 | L85: 260
A86: 83. | B86: =B183 -> PAULÍČEK | C86: Jakub | D86: 9.B | E86: 0 | G86: 0 | H86: 0 | J86: 392 | K86: 348 | L86: 293
A87: 84. | B87: =B184 -> POHOŘALÝ | C87: Jakub | D87: 9.B | E87: 445 | G87: Jilemnice 16.09.20 | H87: 770.64 | J87: 402 | K87: 388 | L87: 338
A88: 85. | B88: =B185 -> POSPÍCHAL | C88: Daniel | D88: 9.B | E88: 389 | G88: Jilemnice 16.09.20 | H88: 687.648 | J88: 393 | K88: 362 | L88: 351
A89: 86. | B89: =B186 -> SOUKUP | C89: Lukáš | D89: 9.B | E89: 424 | G89: Jilemnice 16.09.20 | H89: 739.518 | J89: 412 | K89: 332 | L89: 343
A90: 87. | B90: =B187 -> VANCL | C90: Jan | D90: 9.B | E90: 424 | G90: Jilemnice 16.09.20 | H90: 739.518 | J90: 443 | K90: 377 | L90: 376
A91: 88. | B91: =B188 -> VANCL | C91: Lukáš | D91: 9.B | E91: 415 | G91: Jilemnice 16.09.20 | H91: 726.18 | J91: 432 | K91: 410 | L91: 356
A92: 89. | B92: =B189 -> VAŠÍK | C92: Jiří | D92: 9.B | E92: 380 | G92: Jilemnice 16.09.20 | H92: 674.31 | J92: 353 | K92: 324 | L92: 297
A93: 90. | B93: =B190 -> VOHNOUT | C93: Zdeněk | D93: 9.B | E93: 489 | G93: Jilemnice 16.09.20 | H93: 835.848 | J93: 490 | K93: 432 | L93: 406
B101: BOUKAL | C101: Jakub | D101: 6.A | E101: 245 | G101: Jilemnice 23.09.20 | H101: =IF(E101=0,0,(E101+75)*1.482) -> 474.24
B102: DEMČUK | C102: Ilja | D102: 6.A | E102: 311 | G102: Jilemnice 16.09.20 | H102: =IF(E102=0,0,(E102+75)*1.482) -> 572.052
B103: FAISTAUER | C103: Kryštof | D103: 6.A | E103: 366 | G103: Jilemnice 16.09.20 | H103: =IF(E103=0,0,(E103+75)*1.482) -> 653.562
B104: FRK | C104: Matyáš | D104: 6.A | E104: 282 | G104: Jilemnice 16.09.20 | H104: =IF(E104=0,0,(E104+75)*1.482) -> 529.074
B105: HUBÁLOVSKÝ | C105: Marek | D105: 6.A | E105: 383 | G105: Jilemnice 16.09.20 | H105: =IF(E105=0,0,(E105+75)*1.482) -> 678.756
B106: MAŘAS | C106: Dominik | D106: 6.A | E106: 293 | G106: Jilemnice 23.09.20 | H106: =IF(E106=0,0,(E106+75)*1.482) -> 545.376
B107: MAŤÁTKO | C107: Jakub | D107: 6.A | H107: =IF(E107=0,0,(E107+75)*1.482) -> 0
B108: MERY | C108: Luboš | D108: 6.A | H108: =IF(E108=0,0,(E108+75)*1.482) -> 0
B109: NOVOTNÝ | C109: Matěj | D109: 6.A | E109: 281 | G109: Jilemnice 16.09.20 | H109: =IF(E109=0,0,(E109+75)*1.482) -> 527.592
B110: ŘEHOŘEK | C110: Vojtěch | D110: 6.A | E110: 296 | G110: Jilemnice 16.09.20 | H110: =IF(E110=0,0,(E110+75)*1.482) -> 549.822
B111: ŠÍR | C111: Matyáš | D111: 6.A | E111: 283 | G111: Jilemnice 16.09.20 | H111: =IF(E111=0,0,(E111+75)*1.482) -> 530.556
B112: TORÁČ | C112: Tomáš | D112: 6.A | H112: =IF(E112=0,0,(E112+75)*1.482) -> 0
B113: ULLMAN | C113: Šimon | D113: 6.A | E113: 353 | G113: Jilemnice 16.09.20 | H113: =IF(E113=0,0,(E113+75)*1.482) -> 634.296
B114: VÁCLAVÍK | C114: Ondřej | D114: 6.A | E114: 309 | G114: Jilemnice 16.09.20 | H114: =IF(E114=0,0,(E114+75)*1.482) -> 569.088
B115: AUERSWALD | C115: Daniel | D115: 6.B | E115: 348 | G115: Jilemnice 18.09.20 | H115: =IF(E115=0,0,(E115+75)*1.482) -> 626.886
B116: BODLÁK | C116: Vladimír | D116: 6.B | H116: =IF(E116=0,0,(E116+75)*1.482) -> 0
B117: BUDÍN | C117: Martin | D117: 6.B | E117: 327 | G117: Jilemnice 18.09.20 | H117: =IF(E117=0,0,(E117+75)*1.482) -> 595.764
B118: DVOŘÁK | C118: Dominik | D118: 6.B | E118: 247 | G118: Jilemnice 18.09.20 | H118: =IF(E118=0,0,(E118+75)*1.482) -> 477.204
B119: FIŠERA | C119: Vojtěch | D119: 6.B | E119: 323 | G119: Jilemnice 18.09.20 | H119: =IF(E119=0,0,(E119+75)*1.482) -> 589.836
B120: JINDŘIŠEK | C120: Vít | D120: 6.B | E120: 381 | G120: Jilemnice 18.09.20 | H120: =IF(E120=0,0,(E120+75)*1.482) -> 675.792
B121: JIROUŠ | C121: Matouš | D121: 6.B | E121: 356 | G121: Jilemnice 18.09.20 | H121: =IF(E121=0,0,(E121+75)*1.482) -> 638.742
B122: KERLE | C122: Marek | D122: 6.B | E122: 321 | G122: Jilemnice 18.09.20 | H122: =IF(E122=0,0,(E122+75)*1.482) -> 586.872
B123: LUKEŠ | C123: Jakub | D123: 6.B | E123: 304 | G123: Jilemnice 18.09.20 | H123: =IF(E123=0,0,(E123+75)*1.482) -> 561.678
B124: OTT | C124: Matyáš | D124: 6.B | E124: 307 | G124: Jilemnice 18.09.20 | H124: =IF(E124=0,0,(E124+75)*1.482) -> 566.124
B125: POKORNÝ | C125: Matyáš | D125: 6.B | H125: =IF(E125=0,0,(E125+75)*1.482) -> 0
B126: POLÁČEK | C126: Matyáš | D126: 6.B | E126: 282 | G126: Jilemnice 18.09.20 | H126: =IF(E126=0,0,(E126+75)*1.482) -> 529.074
B127: SOUKUP | C127: Patrik | D127: 6.B | E127: 332 | G127: Jilemnice 18.09.20 | H127: =IF(E127=0,0,(E127+75)*1.482) -> 603.174
B128: VALENTA | C128: Jakub | D128: 6.B | H128: =IF(E128=0,0,(E128+75)*1.482) -> 0
B129: VRBATA | C129: Dominik | D129: 6.B | E129: 339 | G129: Jilemnice 18.09.20 | H129: =IF(E129=0,0,(E129+75)*1.482) -> 613.548
B130: FEJKL | C130: Jan | D130: 7.A | E130: 465 | G130: Jilemnice 18.09.20 | H130: =IF(E130=0,0,(E130+75)*1.482) -> 800.28 | J130: 389
B131: KOTYK | C131: Tadeáš | D131: 7.A | E131: 296 | G131: Jilemnice 18.09.20 | H131: =IF(E131=0,0,(E131+75)*1.482) -> 549.822 | J131: 305
B132: KRAUSE | C132: Tadeáš | D132: 7.A | E132: 357 | G132: Jilemnice 18.09.20 | H132: =IF(E132=0,0,(E132+75)*1.482) -> 640.224 | J132: 324
B133: LEŠÁK | C133: Martin | D133: 7.A | H133: =IF(E133=0,0,(E133+75)*1.482) -> 0 | J133: 307
B134: NECHANICKÝ | C134: David | D134: 7.A | E134: 371 | G134: Jilemnice 18.09.20 | H134: =IF(E134=0,0,(E134+75)*1.482) -> 660.972 | J134: 356
B135: ŘEHOŘEK | C135: Jan | D135: 7.A | E135: 362 | G135: Jilemnice 18.09.20 | H135: =IF(E135=0,0,(E135+75)*1.482) -> 647.634 | J135: 333
B136: SOUKUP | C136: Ondřej | D136: 7.A | E136: 314 | G136: Jilemnice 18.09.20 | H136: =IF(E136=0,0,(E136+75)*1.482) -> 576.498 | J136: 341
B137: SPANILÝ | C137: David | D137: 7.A | H137: =IF(E137=0,0,(E137+75)*1.482) -> 0 | J137: 336
B138: ČADAN | C138: Benjamín | D138: 7.B | E138: 332 | G138: Jilemnice 18.09.20 | H138: =IF(E138=0,0,(E138+75)*1.482) -> 603.174 | J138: 292
B139: ČERNÝ | C139: Michal | D139: 7.B | E139: 282 | G139: Jilemnice 18.09.20 | H139: =IF(E139=0,0,(E139+75)*1.482) -> 529.074 | J139: 294
B140: DOLEJŠÍ | C140: David | D140: 7.B | E140: 303 | G140: Jilemnice 18.09.20 | H140: =IF(E140=0,0,(E140+75)*1.482) -> 560.196 | J140: 287
B141: NOVÁK | C141: Matěj | D141: 7.B | E141: 322 | G141: Jilemnice 18.09.20 | H141: =IF(E141=0,0,(E141+75)*1.482) -> 588.354 | J141: 306
B142: POVAŽANEC | C142: Martin | D142: 7.B | E142: 371 | G142: Jilemnice 18.09.20 | H142: =IF(E142=0,0,(E142+75)*1.482) -> 660.972 | J142: 310
B143: RICHTER | C143: Jakub | D143: 7.B | H143: =IF(E143=0,0,(E143+75)*1.482) -> 0 | J143: 266
B144: ROZUMEK | C144: Adam | D144: 7.B | E144: 273 | G144: Jilemnice 18.09.20 | H144: =IF(E144=0,0,(E144+75)*1.482) -> 515.736 | J144: 238
B145: VALENTA | C145: František | D145: 7.B | E145: 273 | G145: Jilemnice 18.09.20 | H145: =IF(E145=0,0,(E145+75)*1.482) -> 515.736 | J145: 271
B146: ZAPLATÍLEK | C146: Josef | D146: 7.B | H146: =IF(E146=0,0,(E146+75)*1.482) -> 0 | J146: 333
B147: ERBEN | C147: Viktor | D147: 8.A | H147: =IF(E147=0,0,(E147+75)*1.482) -> 0 | K147: 225
B148: FRANC | C148: Daniel | D148: 8.A | E148: 306 | G148: Jilemnice 16.09.20 | H148: =IF(E148=0,0,(E148+75)*1.482) -> 564.642 | K148: 245
B149: JINDŘIŠEK | C149: Matyáš | D149: 8.A | H149: =IF(E149=0,0,(E149+75)*1.482) -> 0 | J149: 339 | K149: 250
B150: KOLAČNÝ | C150: Štěpán | D150: 8.A | E150: 307 | G150: Jilemnice 16.09.20 | H150: =IF(E150=0,0,(E150+75)*1.482) -> 566.124 | J150: 308 | K150: 230
B151: KRISTAN | C151: Jáchym | D151: 8.A | H151: =IF(E151=0,0,(E151+75)*1.482) -> 0 | K151: 175
B152: NGUYEN | C152: David | D152: 8.A | E152: 381 | G152: Jilemnice 16.09.20 | J152: 350
B153: NOVOTNÝ | C153: Jan | D153: 8.A | E153: 372 | G153: Jilemnice 16.09.20 | H153: =IF(E153=0,0,(E153+75)*1.482) -> 662.454 | J153: 390
B154: RÁB | C154: Adam | D154: 8.A | E154: 284 | G154: Jilemnice 16.09.20 | H154: =IF(E154=0,0,(E154+75)*1.482) -> 532.038 | J154: 283 | K154: 206
B155: REPASKÝ | C155: Jakub | D155: 8.A | H155: =IF(E155=0,0,(E155+75)*1.482) -> 0 | K155: 315
B156: SKÁLA | C156: Jan | D156: 8.A | E156: 408 | G156: Jilemnice 16.09.20 | H156: =IF(E156=0,0,(E156+75)*1.482) -> 715.806 | J156: 321 | K156: 200
B157: ŠPULÁK | C157: Jakub | D157: 8.A | E157: 348 | G157: Jilemnice 16.09.20 | H157: =IF(E157=0,0,(E157+75)*1.482) -> 626.886 | J157: 322 | K157: 215
B158: VALENTA | C158: Tomáš | D158: 8.A | E158: 485 | G158: Jilemnice 16.09.20 | H158: =IF(E158=0,0,(E158+75)*1.482) -> 829.92 | J158: 445 | K158: 345
B159: VANCL | C159: Jiří | D159: 8.A | H159: =IF(E159=0,0,(E159+75)*1.482) -> 0 | J159: 297 | K159: 182
B160: VAŠÍČEK | C160: David | D160: 8.A | E160: 349 | G160: Jilemnice 16.09.20 | H160: =IF(E160=0,0,(E160+75)*1.482) -> 628.368 | K160: 270
B161: ZOUHAR | C161: Ondřej | D161: 8.A | E161: 373 | G161: Jilemnice 16.09.20 | H161: =IF(E161=0,0,(E161+75)*1.482) -> 663.936 | J161: 373 | K161: 305
B162: ZUZÁNEK | C162: Filip | D162: 8.A | H162: =IF(E162=0,0,(E162+75)*1.482) -> 0 | J162: 324 | K162: 271
B163: BRUMLICH | C163: Jan | D163: 9.A | H163: =IF(E163=0,0,(E163+75)*1.482) -> 0 | J163: 383 | K163: 371 | L163: 334
B164: BUCHAR | C164: Jiří | D164: 9.A | E164: 415 | G164: Jilemnice 16.09.20 | H164: =IF(E164=0,0,(E164+75)*1.482) -> 726.18 | J164: 412 | K164: 371 | L164: 322
B165: FAISTAVER | C165: Jiří | D165: 9.A | E165: 407 | G165: Jilemnice 16.09.20 | H165: =IF(E165=0,0,(E165+75)*1.482) -> 714.324 | J165: 373 | K165: 284 | L165: 315
B166: FAISTAVER | C166: Roman | D166: 9.A | E166: 413 | G166: Jilemnice 16.09.20 | H166: =IF(E166=0,0,(E166+75)*1.482) -> 723.216 | J166: 460 | K166: 366 | L166: 341
B167: FAJSTAVR | C167: Jakub | D167: 9.A | E167: 383 | G167: Jilemnice 16.09.20 | H167: =IF(E167=0,0,(E167+75)*1.482) -> 678.756 | K167: 347 | L167: 277
B168: FARSKÝ | C168: Vojtěch | D168: 9.A | E168: 430 | G168: Jilemnice 16.09.20 | H168: =IF(E168=0,0,(E168+75)*1.482) -> 748.41 | J168: 405 | K168: 360 | L168: 337
B169: HOLUBEC | C169: Lukáš | D169: 9.A | E169: 331 | G169: Jilemnice 16.09.20 | H169: =IF(E169=0,0,(E169+75)*1.482) -> 601.692 | K169: 270 | L169: 284
B170: CHAROUZ | C170: Vojtěch | D170: 9.A | E170: 405 | G170: Jilemnice 16.09.20 | H170: =IF(E170=0,0,(E170+75)*1.482) -> 711.36 | J170: 372 | K170: 309 | L170: 292
B171: IACCHERI | C171: Carlo | D171: 9.A | E171: 339 | G171: Jilemnice 16.09.20 | H171: =IF(E171=0,0,(E171+75)*1.482) -> 613.548 | J171: 339 | L171: 274
B172: JOHN | C172: Adrian | D172: 9.A | E172: 208 | G172: Jilemnice 16.09.20 | H172: =IF(E172=0,0,(E172+75)*1.482) -> 419.406 | J172: 256 | K172: 251 | L172: 170
B173: KRČÍK | C173: Matthew | D173: 9.A | E173: 351 | G173: Jilemnice 16.09.20 | H173: =IF(E173=0,0,(E173+75)*1.482) -> 631.332 | J173: 355 | K173: 329 | L173: 289
B174: KRESAN | C174: Vojtěch | D174: 9.A | E174: 336 | G174: Jilemnice 16.09.20 | H174: =IF(E174=0,0,(E174+75)*1.482) -> 609.102 | J174: 339 | K174: 321 | L174: 260
B175: LÁNSKÝ | C175: Vojtěch | D175: 9.A | H175: =IF(E175=0,0,(E175+75)*1.482) -> 0 | J175: 250 | K175: 219 | L175: 151
B176: LEŠÁK | C176: Lukáš | D176: 9.A | E176: 243 | G176: Jilemnice 16.09.20 | H176: =IF(E176=0,0,(E176+75)*1.482) -> 471.276 | J176: 249 | L176: 177
B177: RYPL | C177: Matyáš | D177: 9.A | E177: 416 | G177: Jilemnice 16.09.20 | H177: =IF(E177=0,0,(E177+75)*1.482) -> 727.662 | J177: 375 | K177: 334 | L177: 280
B178: VU TRAN DINH | C178: Lukas | D178: 9.A | E178: 377 | G178: Jilemnice 16.09.20 | H178: =IF(E178=0,0,(E178+75)*1.482) -> 669.864 | J178: 370 | K178: 0 | L178: 0
B179: DUFEK | C179: Matyáš | D179: 9.B | H179: =IF(E179=0,0,(E179+75)*1.482) -> 0 | L179: 230
B180: JEŽEK | C180: Jonáš | D180: 9.B | H180: =IF(E180=0,0,(E180+75)*1.482) -> 0 | J180: 469 | K180: 393 | L180: 440
B181: JEŽEK | C181: Mikuláš | D181: 9.B | H181: =IF(E181=0,0,(E181+75)*1.482) -> 0 | J181: 443 | K181: 411 | L181: 406
B182: NECHANICKÝ | C182: Michal | D182: 9.B | E182: 385 | G182: Jilemnice 16.09.20 | H182: =IF(E182=0,0,(E182+75)*1.482) -> 681.72 | J182: 372 | K182: 380 | L182: 260
B183: PAULÍČEK | C183: Jakub | D183: 9.B | H183: =IF(E183=0,0,(E183+75)*1.482) -> 0 | J183: 392 | K183: 348 | L183: 293
B184: POHOŘALÝ | C184: Jakub | D184: 9.B | E184: 445 | G184: Jilemnice 16.09.20 | H184: =IF(E184=0,0,(E184+75)*1.482) -> 770.64 | J184: 402 | K184: 388 | L184: 338
B185: POSPÍCHAL | C185: Daniel | D185: 9.B | E185: 389 | G185: Jilemnice 16.09.20 | H185: =IF(E185=0,0,(E185+75)*1.482) -> 687.648 | J185: 393 | K185: 362 | L185: 351
